Workbook

Sheet 地位別地域区分
B1: 道立総合研究機構 森林研究本部 林業試験場
B2: カラマツ地位別地域区分
K3: 作成：北海道立総合研究機構 森林研究本部 林業試験場 連絡先：〒079-0198美唄市光珠内町東山（0126－63－4164） 作成者：八坂通泰、滝谷美香、山田健四
K8: 本ソフトウェアの著作権は北海道立総合研究機構森林研究本部林業試験場に帰属します。本ソフトウェアの使用による損害等については一切その責任を負いません。本ソフトウェアの改変は禁止します。

Sheet 地位指数
B1: 道立総合研究機構 森林研究本部 林業試験場
B2: カラマツ地位指数曲線 | F2: 林齢 | G2: 30 | H2: （年） | K2: 入力セル | P2: グラフ用データ
B3: 自動作成シート | F3: 上層高 | G3: 17 | H3: （ｍ） | J3: ※上層高には１ヘクタール当たり上位100本の平均値を入力してください。 | P3: 18 | Q3: 20 | R3: 22 | S3: 24 | T3: 26 | U3: 28 | V3: 30 | W3: 推定値
O4: 5 | P4: =(0.993/0.053-(0.993/0.053-0.097^(1-0.102))*EXP(-(1-0.102)*0.053*$O4))^(1/(1-0.102))*P$3/21.8651888434175 -> 3.924025281 | Q4: 4.36002809 | R4: 4.796030899 | S4: 5.232033708 | T4: 5.668036517 | U4: 6.104039326 | V4: 6.540042134 | W4: =(0.993/0.053-(0.993/0.053-0.097^(1-0.102))*EXP(-(1-0.102)*0.053*$O4))^(1/(1-0.102))*$C$8/21.8651888434175 -> 4.198036664
J5: ※黄色のセルに地位指数（40年生時の上層高）が表示されます。 | O5: 10 | P5: 7.38462633 | Q5: 8.205140367 | R5: 9.025654403 | S5: 9.84616844 | T5: 10.66668248 | U5: 11.48719651 | V5: 12.30771055 | W5: 7.900288572
O6: 15 | P6: 10.24244645 | Q6: 11.38049606 | R6: 12.51854566 | S6: 13.65659527 | T6: 14.79464488 | U6: 15.93269448 | V6: 17.07074409 | W6: 10.95766787 | AD6: 16 | AE6: 17 | AF6: 18 | AG6: 19 | AH6: 20 | AI6: 21 | AJ6: 22 | AK6: 23 | AL6: 24 | AM6: 25 | AN6: 26 | AO6: 27 | AP6: 28 | AQ6: 29 | AR6: 30 | AS6: 31 | AT6: 32 | AU6: 33 | AV6: 34 | AW6: 35 | AX6: 36 | AY6: 37 | AZ6: 38 | BA6: 39 | BB6: 40 | BC6: 41 | BD6: 42 | BE6: 43 | BF6: 44 | BG6: 45
B7: 計算結果 | O7: 20 | P7: 12.55564399 | Q7: 13.95071554 | R7: 15.3457871 | S7: 16.74085865 | T7: 18.13593021 | U7: 19.53100176 | V7: 20.92607331 | W7: 13.43239404 | CN7: =+CF8 -> 47 | CO7: =+BX8 -> 31 | CP7: =+BP8 -> 15 | CQ7: =+BI8 -> 1 | CR7: 林齢
B8: 地位指数 | C8: =$G$3*21.8651888434175/(0.993/0.053-(0.993/0.053-0.097^(1-0.102))*EXP(-(1-0.102)*0.053*$G$2))^(1/(1-0.102)) -> 19.3 | O8: 25 | P8: 14.41065836 | Q8: 16.01184263 | R8: 17.61302689 | S8: 19.21421115 | T8: 20.81539541 | U8: 22.41657968 | V8: 24.01776394 | W8: 15.41694251 | AD8: =+収穫予測!$G11 -> 2 | AE8: =+収穫予測!$G12 -> 4 | AF8: =+収穫予測!$G13 -> 6 | AG8: =+収穫予測!$G14 -> 8 | AH8: =+収穫予測!$G15 -> 10 | AI8: =+収穫予測!$G16 -> 12 | AJ8: =+収穫予測!$G17 -> 14 | AK8: =+収穫予測!$G18 -> 16 | AL8: =+収穫予測!$G19 -> 18 | AM8: =+収穫予測!$G20 -> 20 | AN8: =+収穫予測!$G21 -> 22 | AO8: =+収穫予測!$G22 -> 24 | AP8: =+収穫予測!$G23 -> 26 | AQ8: =+収穫予測!$G24 -> 28 | AR8: =+収穫予測!$G25 -> 30 | AS8: =+収穫予測!$G26 -> 32 | AT8: =+収穫予測!$G27 -> 34 | AU8: =+収穫予測!$G28 -> 36 | AV8: =+収穫予測!$G29 -> 38 | AW8: =+収穫予測!$G30 -> 40 | AX8: =+収穫予測!$G31 -> 42 | AY8: =+収穫予測!$G32 -> 44 | AZ8: =+収穫予測!$G33 -> 46 | BA8: =+収穫予測!$G34 -> 48 | BB8: =+収穫予測!$G35 -> 50 | BC8: =+収穫予測!$G36 -> 52 | BD8: =+収穫予測!$G37 -> 54 | BE8: =+収穫予測!$G38 -> 56 | BF8: =+収穫予測!$G39 -> 58 | BG8: =+収穫予測!$G40 -> 60 | BI8: =+(0+AD8)/2 -> 1 | BJ8: =+(AD8+AE8)/2 -> 3 | BK8: =+(AE8+AF8)/2 -> 5 | BL8: 7 | BM8: 9 | BN8: 11 | BO8: 13 | BP8: 15 | BQ8: 17 | BR8: 19 | BS8: 21 | BT8: 23 | BU8: 25 | BV8: 27 | BW8: 29 | BX8: 31 | BY8: 33 | BZ8: 35 | CA8: 37 | CB8: 39 | CC8: 41 | CD8: 43 | CE8: 45 | CF8: 47 | CG8: 49 | CH8: 51 | CI8: 53 | CJ8: 55 | CK8: 57 | CL8: 59 | CN8: =+CL8 -> 59 | CO8: =+CE8 -> 45 | CP8: =+BW8 -> 29 | CQ8: =+BO8 -> 13 | CR8: =+収穫予測!N11 -> 10
B9: 林齢 | C9: 上層高 | D9: 林齢 | E9: 上層高 | F9: 林齢 | G9: 上層高 | H9: 林齢 | I9: 上層高 | J9: 林齢 | K9: 上層高 | L9: 林齢 | M9: 上層高 | O9: 30 | P9: 15.89038761 | Q9: 17.65598623 | R9: 19.42158485 | S9: 21.18718348 | T9: 22.9527821 | U9: 24.71838072 | V9: 26.48397934 | W9: 17 | AC9: =SUM(AD9:BG9) -> 112 | AD9: =+収穫予測!H11 -> 0 | AE9: =+収穫予測!H12 -> 0 | AF9: =+収穫予測!$H13 -> 0 | AG9: =+収穫予測!$H14 -> 0 | AH9: =+収穫予測!$H15 -> 0 | AI9: =+収穫予測!$H16 -> 0 | AJ9: =+収穫予測!$H17 -> 6 | AK9: =+収穫予測!$H18 -> 12 | AL9: =+収穫予測!$H19 -> 30 | AM9: =+収穫予測!$H20 -> 30 | AN9: =+収穫予測!$H21 -> 18 | AO9: =+収穫予測!$H22 -> 10 | AP9: =+収穫予測!$H23 -> 6 | AQ9: =+収穫予測!$H24 -> 0 | AR9: =+収穫予測!$H25 -> 0 | AS9: =+収穫予測!$H26 -> 0 | AT9: =+収穫予測!$H27 -> 0 | AU9: =+収穫予測!$H28 -> 0 | AV9: =+収穫予測!$H29 -> 0 | AW9: =+収穫予測!$H30 -> 0 | AX9: =+収穫予測!$H31 -> 0 | AY9: =+収穫予測!$H32 -> 0 | AZ9: =+収穫予測!$H33 -> 0 | BA9: =+収穫予測!$H34 -> 0 | BB9: =+収穫予測!$H35 -> 0 | BC9: =+収穫予測!$H36 -> 0 | BD9: =+収穫予測!$H37 -> 0 | BE9: =+収穫予測!$H38 -> 0 | BF9: =+収穫予測!$H39 -> 0 | BG9: =+収穫予測!$H40 -> 0 | BI9: =ROUND((SUM(AD9:$BG9)/収穫予測!$G$6)*0.1,0) -> 112 | BJ9: =ROUND((SUM(AE9:$BG9)/収穫予測!$G$6)*0.1,0) -> 112 | BK9: =ROUND((SUM(AF9:$BG9)/収穫予測!$G$6)*0.1,0) -> 112 | BL9: =ROUND((SUM(AG9:$BG9)/収穫予測!$G$6)*0.1,0) -> 112 | BM9: =ROUND((SUM(AH9:$BG9)/収穫予測!$G$6)*0.1,0) -> 112 | BN9: =ROUND((SUM(AI9:$BG9)/収穫予測!$G$6)*0.1,0) -> 112 | BO9: =ROUND((SUM(AJ9:$BG9)/収穫予測!$G$6)*0.1,0) -> 112 | BP9: =ROUND((SUM(AK9:$BG9)/収穫予測!$G$6)*0.1,0) -> 106 | BQ9: =ROUND((SUM(AL9:$BG9)/収穫予測!$G$6)*0.1,0) -> 94 | BR9: =ROUND((SUM(AM9:$BG9)/収穫予測!$G$6)*0.1,0) -> 64 | BS9: =ROUND((SUM(AN9:$BG9)/収穫予測!$G$6)*0.1,0) -> 34 | BT9: =ROUND((SUM(AO9:$BG9)/収穫予測!$G$6)*0.1,0) -> 16 | BU9: =ROUND((SUM(AP9:$BG9)/収穫予測!$G$6)*0.1,0) -> 6 | BV9: =ROUND((SUM(AQ9:$BG9)/収穫予測!$G$6)*0.1,0) -> 0 | BW9: =ROUND((SUM(AR9:$BG9)/収穫予測!$G$6)*0.1,0) -> 0 | BX9: =ROUND((SUM(AS9:$BG9)/収穫予測!$G$6)*0.1,0) -> 0 | BY9: =ROUND((SUM(AT9:$BG9)/収穫予測!$G$6)*0.1,0) -> 0 | BZ9: =ROUND((SUM(AU9:$BG9)/収穫予測!$G$6)*0.1,0) -> 0 | CA9: =ROUND((SUM(AV9:$BG9)/収穫予測!$G$6)*0.1,0) -> 0 | CB9: =ROUND((SUM(AW9:$BG9)/収穫予測!$G$6)*0.1,0) -> 0 | CC9: =ROUND((SUM(AX9:$BG9)/収穫予測!$G$6)*0.1,0) -> 0 | CD9: =ROUND((SUM(AY9:$BG9)/収穫予測!$G$6)*0.1,0) -> 0 | CE9: =ROUND((SUM(AZ9:$BG9)/収穫予測!$G$6)*0.1,0) -> 0 | CF9: =ROUND((SUM(BA9:$BG9)/収穫予測!$G$6)*0.1,0) -> 0 | CG9: =ROUND((SUM(BB9:$BG9)/収穫予測!$G$6)*0.1,0) -> 0 | CH9: =ROUND((SUM(BC9:$BG9)/収穫予測!$G$6)*0.1,0) -> 0 | CI9: =ROUND((SUM(BD9:$BG9)/収穫予測!$G$6)*0.1,0) -> 0 | CJ9: =ROUND((SUM(BE9:$BG9)/収穫予測!$G$6)*0.1,0) -> 0 | CK9: =ROUND((SUM(BF9:$BG9)/収穫予測!$G$6)*0.1,0) -> 0 | CL9: =ROUND((SUM(BG9:$BG9)/収穫予測!$G$6)*0.1,0) -> 0 | CM9: 1 | CN9: =IF($CM9>$BI$9,"",IF($CM9<=$CL$9,$CL$8,IF($CM9<=$CK$9,$CK$8,IF($CM9<=$CJ$9,$CJ$8,IF($CM9<=$CI$9,$CI$8,IF($CM9<=$CH$9,$CH$8,IF($CM9<=$CG$9,$CG$8,IF($CM9<=$CF$9,$CF$8,)))))))) -> 0 | CO9: =IF($CM9<=$CE$9,$CE$8,IF($CM9<$CD$9,$CD$8,IF($CM9<=$CC$9,$CC$8,IF($CM9<=$CB$9,$CB$8,IF($CM9<=$CA$9,$CA$8,IF($CM9<=$BZ$9,$BZ$8,IF($CM9<=$BY$9,$BY$8,IF($CM9<=$BX$9,$BX$8,)))))))) -> 0 | CP9: =IF($CM9<=$BW$9,$BW$8,IF($CM9<=$BV$9,$BV$8,IF($CM9<=$BU$9,$BU$8,IF($CM9<=$BT$9,$BT$8,IF($CM9<=$BS$9,$BS$8,IF($CM9<=$BR$9,$BR$8,IF($CM9<=$BQ$9,$BQ$8,IF($CM9<=$BP$9,$BP$8,)))))))) -> 25 | CQ9: =IF($CM9<=$BO$9,$BO$8,IF($CM9<=$BN$9,$BN$8,IF($CM9<=$BM$9,$BM$8,IF($CM9<=$BL$9,$BL$8,IF($CM9<=$BK$9,$BK$8,IF($CM9<=$BJ$9,$BJ$8,IF($CM9<=$BI$9,$BI$8,""))))))) -> 13 | CR9: =IF(MAX(CN9:CQ9)=0,"",MAX(CN9:CQ9)) -> 25
B10: 11 | C10: =(0.993/0.053-(0.993/0.053-0.097^(1-0.102))*EXP(-(1-0.102)*0.053*B10))^(1/(1-0.102))*$C$8/21.8651888434175 -> 8.56 | D10: 26 | E10: =(0.993/0.053-(0.993/0.053-0.097^(1-0.102))*EXP(-(1-0.102)*0.053*D10))^(1/(1-0.102))*$C$8/21.8651888434175 -> 15.76 | F10: 41 | G10: =(0.993/0.053-(0.993/0.053-0.097^(1-0.102))*EXP(-(1-0.102)*0.053*F10))^(1/(1-0.102))*$C$8/21.8651888434175 -> 19.43 | H10: 56 | I10: =(0.993/0.053-(0.993/0.053-0.097^(1-0.102))*EXP(-(1-0.102)*0.053*H10))^(1/(1-0.102))*$C$8/21.8651888434175 -> 21.25 | J10: 71 | K10: =(0.993/0.053-(0.993/0.053-0.097^(1-0.102))*EXP(-(1-0.102)*0.053*J10))^(1/(1-0.102))*$C$8/21.8651888434175 -> 22.15 | L10: 86 | M10: =(0.993/0.053-(0.993/0.053-0.097^(1-0.102))*EXP(-(1-0.102)*0.053*L10))^(1/(1-0.102))*$C$8/21.8651888434175 -> 22.59 | O10: 35 | P10: 17.0668133 | Q10: 18.96312589 | R10: 20.85943848 | S10: 22.75575107 | T10: 24.65206365 | U10: 26.54837624 | V10: 28.44468883 | W10: 18.25857451 | CM10: 2 | CN10: =IF($CM10>$BI$9,"",IF($CM10<=$CL$9,$CL$8,IF($CM10<=$CK$9,$CK$8,IF($CM10<=$CJ$9,$CJ$8,IF($CM10<=$CI$9,$CI$8,IF($CM10<=$CH$9,$CH$8,IF($CM10<=$CG$9,$CG$8,IF($CM10<=$CF$9,$CF$8,)))))))) -> 0 | CO10: =IF($CM10<=$CE$9,$CE$8,IF($CM10<$CD$9,$CD$8,IF($CM10<=$CC$9,$CC$8,IF($CM10<=$CB$9,$CB$8,IF($CM10<=$CA$9,$CA$8,IF($CM10<=$BZ$9,$BZ$8,IF($CM10<=$BY$9,$BY$8,IF($CM10<=$BX$9,$BX$8,)))))))) -> 0 | CP10: =IF($CM10<=$BW$9,$BW$8,IF($CM10<=$BV$9,$BV$8,IF($CM10<=$BU$9,$BU$8,IF($CM10<=$BT$9,$BT$8,IF($CM10<=$BS$9,$BS$8,IF($CM10<=$BR$9,$BR$8,IF($CM10<=$BQ$9,$BQ$8,IF($CM10<=$BP$9,$BP$8,)))))))) -> 25 | CQ10: =IF($CM10<=$BO$9,$BO$8,IF($CM10<=$BN$9,$BN$8,IF($CM10<=$BM$9,$BM$8,IF($CM10<=$BL$9,$BL$8,IF($CM10<=$BK$9,$BK$8,IF($CM10<=$BJ$9,$BJ$8,IF($CM10<=$BI$9,$BI$8,""))))))) -> 13 | CR10: =IF(MAX(CN10:CQ10)=0,"",MAX(CN10:CQ10)) -> 25
B11: =B10+1 -> 12 | C11: =(0.993/0.053-(0.993/0.053-0.097^(1-0.102))*EXP(-(1-0.102)*0.053*B11))^(1/(1-0.102))*$C$8/21.8651888434175 -> 9.20 | D11: =D10+1 -> 27 | E11: 16.09 | F11: =F10+1 -> 42 | G11: 19.60 | H11: =H10+1 -> 57 | I11: 21.33 | J11: =J10+1 -> 72 | K11: 22.19 | L11: =L10+1 -> 87 | M11: 22.61 | O11: 40 | P11: 18 | Q11: 20 | R11: 22 | S11: 24 | T11: 26 | U11: 28 | V11: 30 | W11: 19.25692485 | CM11: 3 | CN11: 0 | CO11: 0 | CP11: =IF($CM11<=$BW$9,$BW$8,IF($CM11<=$BV$9,$BV$8,IF($CM11<=$BU$9,$BU$8,IF($CM11<=$BT$9,$BT$8,IF($CM11<=$BS$9,$BS$8,IF($CM11<=$BR$9,$BR$8,IF($CM11<=$BQ$9,$BQ$8,IF($CM11<=$BP$9,$BP$8,)))))))) -> 25 | CQ11: 13 | CR11: 25
B12: 13 | C12: 9.81 | D12: 28 | E12: 16.41 | F12: 43 | G12: 19.75 | H12: 58 | I12: 21.41 | J12: 73 | K12: 22.23 | L12: 88 | M12: 22.63 | O12: 45 | P12: 18.73907005 | Q12: 20.82118894 | R12: 22.90330784 | S12: 24.98542673 | T12: 27.06754563 | U12: 29.14966452 | V12: 31.23178341 | W12: 20.04760354 | CM12: 4 | CN12: 0 | CO12: 0 | CP12: 25 | CQ12: 13 | CR12: 25
B13: 14 | C13: 10.40 | D13: 29 | E13: 16.71 | F13: 44 | G13: 19.90 | H13: 59 | I13: 21.49 | J13: 74 | K13: 22.27 | L13: 89 | M13: 22.65 | O13: 50 | P13: 19.32373347 | Q13: 21.47081497 | R13: 23.61789647 | S13: 25.76497796 | T13: 27.91205946 | U13: 30.05914096 | V13: 32.20622245 | W13: 20.67309352 | CM13: 5 | CN13: 0 | CO13: 0 | CP13: 25 | CQ13: 13 | CR13: 25
B14: 15 | C14: 10.96 | D14: 30 | E14: 17.00 | F14: 45 | G14: 20.05 | H14: 60 | I14: 21.56 | J14: 75 | K14: 22.30 | L14: 90 | M14: 22.67 | O14: 55 | P14: 19.78585847 | Q14: 21.98428719 | R14: 24.18271591 | S14: 26.38114463 | T14: 28.57957335 | U14: 30.77800207 | V14: 32.97643079 | W14: 21.16748832 | CM14: 6 | CN14: 0 | CO14: 0 | CP14: 25 | CQ14: 13 | CR14: 25
B15: 16 | C15: 11.50 | D15: 31 | E15: 17.28 | F15: 46 | G15: 20.18 | H15: 61 | I15: 21.63 | J15: 76 | K15: 22.33 | L15: 91 | M15: 22.68 | O15: 60 | P15: 20.1508964 | Q15: 22.38988489 | R15: 24.62887338 | S15: 26.86786187 | T15: 29.10685036 | U15: 31.34583885 | V15: 33.58482734 | W15: 21.55801654 | CM15: 7 | CN15: 0 | CO15: 0 | CP15: 23 | CQ15: 13 | CR15: 23
B16: 17 | C16: 12.01 | D16: 32 | E16: 17.54 | F16: 47 | G16: 20.32 | H16: 62 | I16: 21.69 | J16: 77 | K16: 22.37 | L16: 92 | M16: 22.70 | O16: 65 | P16: 20.43910566 | Q16: 22.7101174 | R16: 24.98112914 | S16: 27.25214088 | T16: 29.52315262 | U16: 31.79416436 | V16: 34.0651761 | W16: 21.86635121 | CM16: 8 | CN16: 0 | CO16: 0 | CP16: 23 | CQ16: 13 | CR16: 23
B17: 18 | C17: 12.51 | D17: 33 | E17: 17.79 | F17: 48 | G17: 20.44 | H17: 63 | I17: 21.75 | J17: 78 | K17: 22.40 | L17: 93 | M17: 22.71 | O17: 70 | P17: 20.66657259 | Q17: 22.96285844 | R17: 25.25914428 | S17: 27.55543013 | T17: 29.85171597 | U17: 32.14800181 | V17: 34.44428766 | W17: 22.10970197 | CM17: 9 | CN17: 0 | CO17: 0 | CP17: 23 | CQ17: 13 | CR17: 23
B18: 19 | C18: 12.98 | D18: 34 | E18: 18.03 | F18: 49 | G18: 20.56 | H18: 64 | I18: 21.81 | J18: 79 | K18: 22.43 | L18: 94 | M18: 22.73 | O18: 75 | P18: 20.84604831 | Q18: 23.1622759 | R18: 25.47850349 | S18: 27.79473108 | T18: 30.11095867 | U18: 32.42718626 | V18: 34.74341385 | W18: 22.30171032 | CM18: 10 | CN18: 0 | CO18: 0 | CP18: 23 | CQ18: 13 | CR18: 23
B19: 20 | C19: 13.43 | D19: 35 | E19: 18.26 | F19: 50 | G19: 20.67 | H19: 65 | I19: 21.87 | J19: 80 | K19: 22.45 | L19: 95 | M19: 22.74 | O19: 80 | P19: 20.98762703 | Q19: 23.31958559 | R19: 25.65154415 | S19: 27.98350271 | T19: 30.31546127 | U19: 32.64741983 | V19: 34.97937839 | W19: 22.45317536 | CM19: 11 | CN19: 0 | CO19: 0 | CP19: 23 | CQ19: 13 | CR19: 23
B20: 21 | C20: 13.87 | D20: 36 | E20: 18.48 | F20: 51 | G20: 20.78 | H20: 66 | I20: 21.92 | J20: 81 | K20: 22.48 | L20: 96 | M20: 22.75 | O20: 85 | P20: =(0.993/0.053-(0.993/0.053-0.097^(1-0.102))*EXP(-(1-0.102)*0.053*$O20))^(1/(1-0.102))*P$3/21.8651888434175 -> 21.09929184 | Q20: 23.4436576 | R20: 25.78802336 | S20: 28.13238912 | T20: 30.47675488 | U20: 32.82112064 | V20: 35.16548639 | W20: 22.57263763 | CM20: 12 | CN20: 0 | CO20: 0 | CP20: 23 | CQ20: 13 | CR20: 23
B21: 22 | C21: 14.28 | D21: 37 | E21: 18.69 | F21: 52 | G21: 20.88 | H21: 67 | I21: 21.97 | J21: 82 | K21: 22.50 | L21: 97 | M21: 22.77 | O21: 90 | P21: 21.1873515 | Q21: 23.54150166 | R21: 25.89565183 | S21: 28.24980199 | T21: 30.60395216 | U21: 32.95810233 | V21: 35.31225249 | W21: 22.66684642 | CM21: 13 | CN21: 0 | CO21: 0 | CP21: 23 | CQ21: 13 | CR21: 23
B22: 23 | C22: 14.68 | D22: 38 | E22: 18.89 | F22: 53 | G22: 20.98 | H22: 68 | I22: 22.02 | J22: 83 | K22: 22.53 | L22: 98 | M22: 22.78 | O22: 95 | P22: 21.25678876 | Q22: 23.61865418 | R22: 25.9805196 | S22: 28.34238502 | T22: 30.70425044 | U22: 33.06611586 | V22: 35.42798127 | W22: 22.74113243 | CM22: 14 | CN22: 0 | CO22: 0 | CP22: 23 | CQ22: 13 | CR22: 23
B23: 24 | C23: 15.05 | D23: 39 | E23: 19.08 | F23: 54 | G23: 21.08 | H23: 69 | I23: 22.07 | J23: 84 | K23: 22.55 | L23: 99 | M23: 22.79 | O23: 100 | P23: 21.31153736 | Q23: 23.67948596 | R23: 26.04743455 | S23: 28.41538315 | T23: 30.78333175 | U23: 33.15128034 | V23: 35.51922894 | W23: 22.79970408 | CM23: 15 | CN23: 0 | CO23: 0 | CP23: 23 | CQ23: 13 | CR23: 23
B24: 25 | C24: 15.42 | D24: 40 | E24: 19.26 | F24: 55 | G24: 21.17 | H24: 70 | I24: 22.11 | J24: 85 | K24: 22.57 | L24: 100 | M24: 22.80 | CM24: 16 | CN24: 0 | CO24: 0 | CP24: 23 | CQ24: 13 | CR24: 23
CM25: 17 | CN25: 0 | CO25: 0 | CP25: 21 | CQ25: 13 | CR25: 21
CM26: 18 | CN26: 0 | CO26: 0 | CP26: 21 | CQ26: 13 | CR26: 21
CM27: 19 | CN27: 0 | CO27: 0 | CP27: 21 | CQ27: 13 | CR27: 21
CM28: 20 | CN28: 0 | CO28: 0 | CP28: 21 | CQ28: 13 | CR28: 21
CM29: 21 | CN29: 0 | CO29: 0 | CP29: 21 | CQ29: 13 | CR29: 21
CM30: 22 | CN30: 0 | CO30: 0 | CP30: 21 | CQ30: 13 | CR30: 21
CM31: 23 | CN31: 0 | CO31: 0 | CP31: 21 | CQ31: 13 | CR31: 21
CM32: 24 | CN32: 0 | CO32: 0 | CP32: 21 | CQ32: 13 | CR32: 21
CM33: 25 | CN33: 0 | CO33: 0 | CP33: 21 | CQ33: 13 | CR33: 21
CM34: 26 | CN34: 0 | CO34: 0 | CP34: 21 | CQ34: 13 | CR34: 21
CM35: 27 | CN35: 0 | CO35: 0 | CP35: 21 | CQ35: 13 | CR35: 21
CM36: 28 | CN36: 0 | CO36: 0 | CP36: 21 | CQ36: 13 | CR36: 21
CM37: 29 | CN37: 0 | CO37: 0 | CP37: 21 | CQ37: 13 | CR37: 21
CM38: 30 | CN38: 0 | CO38: 0 | CP38: 21 | CQ38: 13 | CR38: 21
CM39: 31 | CN39: 0 | CO39: 0 | CP39: 21 | CQ39: 13 | CR39: 21
CM40: 32 | CN40: 0 | CO40: 0 | CP40: 21 | CQ40: 13 | CR40: 21
CM41: 33 | CN41: 0 | CO41: 0 | CP41: 21 | CQ41: 13 | CR41: 21
CM42: 34 | CN42: 0 | CO42: 0 | CP42: 21 | CQ42: 13 | CR42: 21
CM43: 35 | CN43: 0 | CO43: 0 | CP43: 19 | CQ43: 13 | CR43: 19
CM44: 36 | CN44: 0 | CO44: 0 | CP44: 19 | CQ44: 13 | CR44: 19
CM45: 37 | CN45: 0 | CO45: 0 | CP45: 19 | CQ45: 13 | CR45: 19
CM46: 38 | CN46: 0 | CO46: 0 | CP46: 19 | CQ46: 13 | CR46: 19
CM47: 39 | CN47: 0 | CO47: 0 | CP47: 19 | CQ47: 13 | CR47: 19
CM48: 40 | CN48: 0 | CO48: 0 | CP48: 19 | CQ48: 13 | CR48: 19
CM49: 41 | CN49: 0 | CO49: 0 | CP49: 19 | CQ49: 13 | CR49: 19
CM50: 42 | CN50: 0 | CO50: 0 | CP50: 19 | CQ50: 13 | CR50: 19
CM51: 43 | CN51: 0 | CO51: 0 | CP51: 19 | CQ51: 13 | CR51: 19
CM52: 44 | CN52: 0 | CO52: 0 | CP52: 19 | CQ52: 13 | CR52: 19
CM53: 45 | CN53: 0 | CO53: 0 | CP53: 19 | CQ53: 13 | CR53: 19
CM54: 46 | CN54: 0 | CO54: 0 | CP54: 19 | CQ54: 13 | CR54: 19
CM55: 47 | CN55: 0 | CO55: 0 | CP55: 19 | CQ55: 13 | CR55: 19
CM56: 48 | CN56: 0 | CO56: 0 | CP56: 19 | CQ56: 13 | CR56: 19
CM57: 49 | CN57: 0 | CO57: 0 | CP57: 19 | CQ57: 13 | CR57: 19
CM58: 50 | CN58: 0 | CO58: 0 | CP58: 19 | CQ58: 13 | CR58: 19
CM59: 51 | CN59: 0 | CO59: 0 | CP59: 19 | CQ59: 13 | CR59: 19
CM60: 52 | CN60: 0 | CO60: 0 | CP60: 19 | CQ60: 13 | CR60: 19
CM61: 53 | CN61: 0 | CO61: 0 | CP61: 19 | CQ61: 13 | CR61: 19
CM62: 54 | CN62: 0 | CO62: 0 | CP62: 19 | CQ62: 13 | CR62: 19
CM63: 55 | CN63: 0 | CO63: 0 | CP63: 19 | CQ63: 13 | CR63: 19
CM64: 56 | CN64: 0 | CO64: 0 | CP64: 19 | CQ64: 13 | CR64: 19
CM65: 57 | CN65: 0 | CO65: 0 | CP65: 19 | CQ65: 13 | CR65: 19
CM66: 58 | CN66: 0 | CO66: 0 | CP66: 19 | CQ66: 13 | CR66: 19
CM67: 59 | CN67: 0 | CO67: 0 | CP67: 19 | CQ67: 13 | CR67: 19
CM68: 60 | CN68: 0 | CO68: 0 | CP68: 19 | CQ68: 13 | CR68: 19
CM69: 61 | CN69: 0 | CO69: 0 | CP69: 19 | CQ69: 13 | CR69: 19
CM70: 62 | CN70: 0 | CO70: 0 | CP70: 19 | CQ70: 13 | CR70: 19
CM71: 63 | CN71: 0 | CO71: 0 | CP71: 19 | CQ71: 13 | CR71: 19
CM72: 64 | CN72: 0 | CO72: 0 | CP72: 19 | CQ72: 13 | CR72: 19
CM73: 65 | CN73: 0 | CO73: 0 | CP73: 17 | CQ73: 13 | CR73: 17
CM74: 66 | CN74: =IF($CM74>$BI$9,"",IF($CM74<=$CL$9,$CL$8,IF($CM74<=$CK$9,$CK$8,IF($CM74<=$CJ$9,$CJ$8,IF($CM74<=$CI$9,$CI$8,IF($CM74<=$CH$9,$CH$8,IF($CM74<=$CG$9,$CG$8,IF($CM74<=$CF$9,$CF$8,)))))))) -> 0 | CO74: =IF($CM74<=$CE$9,$CE$8,IF($CM74<$CD$9,$CD$8,IF($CM74<=$CC$9,$CC$8,IF($CM74<=$CB$9,$CB$8,IF($CM74<=$CA$9,$CA$8,IF($CM74<=$BZ$9,$BZ$8,IF($CM74<=$BY$9,$BY$8,IF($CM74<=$BX$9,$BX$8,)))))))) -> 0 | CP74: 17 | CQ74: =IF($CM74<=$BO$9,$BO$8,IF($CM74<=$BN$9,$BN$8,IF($CM74<=$BM$9,$BM$8,IF($CM74<=$BL$9,$BL$8,IF($CM74<=$BK$9,$BK$8,IF($CM74<=$BJ$9,$BJ$8,IF($CM74<=$BI$9,$BI$8,""))))))) -> 13 | CR74: =IF(MAX(CN74:CQ74)=0,"",MAX(CN74:CQ74)) -> 17
CM75: 67 | CN75: 0 | CO75: 0 | CP75: =IF($CM75<=$BW$9,$BW$8,IF($CM75<=$BV$9,$BV$8,IF($CM75<=$BU$9,$BU$8,IF($CM75<=$BT$9,$BT$8,IF($CM75<=$BS$9,$BS$8,IF($CM75<=$BR$9,$BR$8,IF($CM75<=$BQ$9,$BQ$8,IF($CM75<=$BP$9,$BP$8,)))))))) -> 17 | CQ75: 13 | CR75: 17
CM76: 68 | CN76: 0 | CO76: 0 | CP76: 17 | CQ76: 13 | CR76: 17
CM77: 69 | CN77: 0 | CO77: 0 | CP77: 17 | CQ77: 13 | CR77: 17
CM78: 70 | CN78: 0 | CO78: 0 | CP78: 17 | CQ78: 13 | CR78: 17
CM79: 71 | CN79: 0 | CO79: 0 | CP79: 17 | CQ79: 13 | CR79: 17
CM80: 72 | CN80: 0 | CO80: 0 | CP80: 17 | CQ80: 13 | CR80: 17
CM81: 73 | CN81: 0 | CO81: 0 | CP81: 17 | CQ81: 13 | CR81: 17
CM82: 74 | CN82: 0 | CO82: 0 | CP82: 17 | CQ82: 13 | CR82: 17
CM83: 75 | CN83: 0 | CO83: 0 | CP83: 17 | CQ83: 13 | CR83: 17
CM84: 76 | CN84: 0 | CO84: 0 | CP84: 17 | CQ84: 13 | CR84: 17
CM85: 77 | CN85: 0 | CO85: 0 | CP85: 17 | CQ85: 13 | CR85: 17
CM86: 78 | CN86: 0 | CO86: 0 | CP86: 17 | CQ86: 13 | CR86: 17
CM87: 79 | CN87: 0 | CO87: 0 | CP87: 17 | CQ87: 13 | CR87: 17
CM88: 80 | CN88: 0 | CO88: 0 | CP88: 17 | CQ88: 13 | CR88: 17
CM89: 81 | CN89: 0 | CO89: 0 | CP89: 17 | CQ89: 13 | CR89: 17
CM90: 82 | CN90: 0 | CO90: 0 | CP90: 17 | CQ90: 13 | CR90: 17
CM91: 83 | CN91: 0 | CO91: 0 | CP91: 17 | CQ91: 13 | CR91: 17
CM92: 84 | CN92: 0 | CO92: 0 | CP92: 17 | CQ92: 13 | CR92: 17
CM93: 85 | CN93: 0 | CO93: 0 | CP93: 17 | CQ93: 13 | CR93: 17
CM94: 86 | CN94: 0 | CO94: 0 | CP94: 17 | CQ94: 13 | CR94: 17
CM95: 87 | CN95: 0 | CO95: 0 | CP95: 17 | CQ95: 13 | CR95: 17
CM96: 88 | CN96: 0 | CO96: 0 | CP96: 17 | CQ96: 13 | CR96: 17
CM97: 89 | CN97: 0 | CO97: 0 | CP97: 17 | CQ97: 13 | CR97: 17
CM98: 90 | CN98: 0 | CO98: 0 | CP98: 17 | CQ98: 13 | CR98: 17
CM99: 91 | CN99: 0 | CO99: 0 | CP99: 17 | CQ99: 13 | CR99: 17
CM100: 92 | CN100: 0 | CO100: 0 | CP100: 17 | CQ100: 13 | CR100: 17
CM101: 93 | CN101: 0 | CO101: 0 | CP101: 17 | CQ101: 13 | CR101: 17
CM102: 94 | CN102: 0 | CO102: 0 | CP102: 17 | CQ102: 13 | CR102: 17
CM103: 95 | CN103: 0 | CO103: 0 | CP103: 15 | CQ103: 13 | CR103: 15
CM104: 96 | CN104: 0 | CO104: 0 | CP104: 15 | CQ104: 13 | CR104: 15
CM105: 97 | CN105: 0 | CO105: 0 | CP105: 15 | CQ105: 13 | CR105: 15
CM106: 98 | CN106: 0 | CO106: 0 | CP106: 15 | CQ106: 13 | CR106: 15
CM107: 99 | CN107: 0 | CO107: 0 | CP107: 15 | CQ107: 13 | CR107: 15
CM108: 100 | CN108: 0 | CO108: 0 | CP108: 15 | CQ108: 13 | CR108: 15
CM109: 101 | CN109: 0 | CO109: 0 | CP109: 15 | CQ109: 13 | CR109: 15
CM110: 102 | CN110: 0 | CO110: 0 | CP110: 15 | CQ110: 13 | CR110: 15
CM111: 103 | CN111: 0 | CO111: 0 | CP111: 15 | CQ111: 13 | CR111: 15
CM112: 104 | CN112: 0 | CO112: 0 | CP112: 15 | CQ112: 13 | CR112: 15
CM113: 105 | CN113: 0 | CO113: 0 | CP113: 15 | CQ113: 13 | CR113: 15
CM114: 106 | CN114: 0 | CO114: 0 | CP114: 15 | CQ114: 13 | CR114: 15
CM115: 107 | CN115: 0 | CO115: 0 | CP115: 0 | CQ115: 13 | CR115: 13
CM116: 108 | CN116: 0 | CO116: 0 | CP116: 0 | CQ116: 13 | CR116: 13
CM117: 109 | CN117: 0 | CO117: 0 | CP117: 0 | CQ117: 13 | CR117: 13
CM118: 110 | CN118: 0 | CO118: 0 | CP118: 0 | CQ118: 13 | CR118: 13
CM119: 111 | CN119: 0 | CO119: 0 | CP119: 0 | CQ119: 13 | CR119: 13
CM120: 112 | CN120: 0 | CO120: 0 | CP120: 0 | CQ120: 13 | CR120: 13
CM121: 113 | CO121: 0 | CP121: 0
CM122: 114 | CO122: 0 | CP122: 0
CM123: 115 | CO123: 0 | CP123: 0
CM124: 116 | CO124: 0 | CP124: 0
CM125: 117 | CO125: 0 | CP125: 0
CM126: 118 | CO126: 0 | CP126: 0
CM127: 119 | CO127: 0 | CP127: 0
CM128: 120 | CO128: 0 | CP128: 0
CM129: 121 | CO129: 0 | CP129: 0
CM130: 122 | CO130: 0 | CP130: 0
CM131: 123 | CO131: 0 | CP131: 0
CM132: 124 | CO132: 0 | CP132: 0
CM133: 125 | CO133: 0 | CP133: 0
CM134: 126 | CO134: 0 | CP134: 0
CM135: 127 | CO135: 0 | CP135: 0
CM136: 128 | CO136: 0 | CP136: 0
CM137: 129 | CO137: 0 | CP137: 0
CM138: 130 | CN138: =IF($CM138>$BI$9,"",IF($CM138<=$CL$9,$CL$8,IF($CM138<=$CK$9,$CK$8,IF($CM138<=$CJ$9,$CJ$8,IF($CM138<=$CI$9,$CI$8,IF($CM138<=$CH$9,$CH$8,IF($CM138<=$CG$9,$CG$8,IF($CM138<=$CF$9,$CF$8,)))))))) ->  | CO138: =IF($CM138<=$CE$9,$CE$8,IF($CM138<$CD$9,$CD$8,IF($CM138<=$CC$9,$CC$8,IF($CM138<=$CB$9,$CB$8,IF($CM138<=$CA$9,$CA$8,IF($CM138<=$BZ$9,$BZ$8,IF($CM138<=$BY$9,$BY$8,IF($CM138<=$BX$9,$BX$8,)))))))) -> 0 | CP138: 0 | CQ138: =IF($CM138<=$BO$9,$BO$8,IF($CM138<=$BN$9,$BN$8,IF($CM138<=$BM$9,$BM$8,IF($CM138<=$BL$9,$BL$8,IF($CM138<=$BK$9,$BK$8,IF($CM138<=$BJ$9,$BJ$8,IF($CM138<=$BI$9,$BI$8,""))))))) ->  | CR138: =IF(MAX(CN138:CQ138)=0,"",MAX(CN138:CQ138)) -> 
CM139: 131 | CO139: 0 | CP139: =IF($CM139<=$BW$9,$BW$8,IF($CM139<=$BV$9,$BV$8,IF($CM139<=$BU$9,$BU$8,IF($CM139<=$BT$9,$BT$8,IF($CM139<=$BS$9,$BS$8,IF($CM139<=$BR$9,$BR$8,IF($CM139<=$BQ$9,$BQ$8,IF($CM139<=$BP$9,$BP$8,)))))))) -> 0
CM140: 132 | CO140: 0 | CP140: 0
CM141: 133 | CO141: 0 | CP141: 0
CM142: 134 | CO142: 0 | CP142: 0
CM143: 135 | CO143: 0 | CP143: 0
CM144: 136 | CO144: 0 | CP144: 0
CM145: 137 | CO145: 0 | CP145: 0
CM146: 138 | CO146: 0 | CP146: 0
CM147: 139 | CO147: 0 | CP147: 0
CM148: 140 | CO148: 0 | CP148: 0
CM149: 141 | CO149: 0 | CP149: 0
CM150: 142 | CO150: 0 | CP150: 0
CM151: 143 | CO151: 0 | CP151: 0
CM152: 144 | CO152: 0 | CP152: 0
CM153: 145 | CO153: 0 | CP153: 0
CM154: 146 | CO154: 0 | CP154: 0
CM155: 147 | CO155: 0 | CP155: 0
CM156: 148 | CO156: 0 | CP156: 0
CM157: 149 | CO157: 0 | CP157: 0
CM158: 150 | CO158: 0 | CP158: 0
CM159: 151 | CO159: 0 | CP159: 0
CM160: 152 | CO160: 0 | CP160: 0
CM161: 153 | CO161: 0 | CP161: 0
CM162: 154 | CO162: 0 | CP162: 0
CM163: 155 | CO163: 0 | CP163: 0
CM164: 156 | CO164: 0 | CP164: 0
CM165: 157 | CO165: 0 | CP165: 0
CM166: 158 | CO166: 0 | CP166: 0
CM167: 159 | CO167: 0 | CP167: 0
CM168: 160 | CO168: 0 | CP168: 0
CM169: 161 | CO169: 0 | CP169: 0
CM170: 162 | CO170: 0 | CP170: 0
CM171: 163 | CO171: 0 | CP171: 0
CM172: 164 | CO172: 0 | CP172: 0
CM173: 165 | CO173: 0 | CP173: 0
CM174: 166 | CO174: 0 | CP174: 0
CM175: 167 | CO175: 0 | CP175: 0
CM176: 168 | CO176: 0 | CP176: 0
CM177: 169 | CO177: 0 | CP177: 0
CM178: 170 | CO178: 0 | CP178: 0
CM179: 171 | CO179: 0 | CP179: 0
CM180: 172 | CO180: 0 | CP180: 0
CM181: 173 | CO181: 0 | CP181: 0
CM182: 174 | CO182: 0 | CP182: 0
CM183: 175 | CO183: 0 | CP183: 0
CM184: 176 | CO184: 0 | CP184: 0
CM185: 177 | CO185: 0 | CP185: 0
CM186: 178 | CO186: 0 | CP186: 0
CM187: 179 | CO187: 0 | CP187: 0
CM188: 180 | CO188: 0 | CP188: 0
CM189: 181 | CO189: 0 | CP189: 0
CM190: 182 | CO190: 0 | CP190: 0
CM191: 183 | CO191: 0 | CP191: 0
CM192: 184 | CO192: 0 | CP192: 0
CM193: 185 | CO193: 0 | CP193: 0
CM194: 186 | CO194: 0 | CP194: 0
CM195: 187 | CO195: 0 | CP195: 0
CM196: 188 | CO196: 0 | CP196: 0
CM197: 189 | CO197: 0 | CP197: 0
CM198: 190 | CO198: 0 | CP198: 0
CM199: 191 | CO199: 0 | CP199: 0
CM200: 192 | CO200: 0 | CP200: 0
... 108 more rows

Sheet 収穫予測
B1: 道立総合研究機構 森林研究本部 林業試験場
B2: 立木データ | F2: 林分データ | O2: 入力セル | AK2: 作成年月日 | AL2: 2016-11-07 | AP2: 0 | AQ2: 1 | AR2: データなし | AS2: 入力方法1 | AT2: 2
B3: 胸高直径 | C3: データなし | F3: 地位指数 | G3: 25 | AK3: 場所 | AL3: 美唄市 | AP3: 1 | AQ3: 2 | AR3: データあり | AS3: 入力方法2 | AU3: 容積密度 | AW3: 拡大係数 | BA3: 地下部・地上部比
B4: 樹高 | C4: データなし | F4: 植栽本数 | G4: 2500 | H4: 本/ha | N4: データありの地位指数 | P4: =+IF(C3="データなし","",IF(OR(C4="データなし",C5="入力方法2"),Sheet1!U222,Sheet1!U221)) ->  | W4: =+F3 -> 地位指数 | Z4: =+G3 -> 25 | AB4: =+F4 -> 植栽本数 | AD4: =+G4 -> 2500 | AE4: =+H4 -> 本/ha | AK4: 氏名 | AL4: 林業試験場 | AU4: 0.404 | AV4: t/m3 | AW4: 1.325 | AX4: (1.50と1.15の平均値） | BA4: 0.29 | BD4: 編集可能
B5: 入力方法 | C5: 入力方法1 | F5: 林齢 | G5: 20 | H5: 年生 | S5: 収穫予測
F6: 調査面積 | G6: 0.1 | H6: ha | N6: ※樹高データないときは推定値 | U6: 主副林木（間伐前） | AA6: 主林木（間伐後） | AD6: 副林木（間伐木） | AI6: 総収穫 | AK6: 幹材積連年成長量 | AL6: 幹材積年平均成長量 | AO6: 主林木CO2貯蔵量 | AW6: 主林木CO2吸収量 | AZ6: 主副林木CO2貯蔵量 | BC6: 主副林木CO2吸収量
U7: 平均 | W7: ha当たり | AA7: ha当たり | AD7: ha当たり | AO7: ha当たり | AW7: ha当たり／年 | AZ7: ha当たり | BC7: ha当たり／年
B8: 入力方法１ | F8: 入力方法２ | N8: 間伐スケジュール | S8: 林齢 | T8: 上層 高 | U8: 幹 材積 | V8: 胸高 直径 | W8: 立木本数 | X8: 幹 材積 | Y8: 収量比数 | Z8: 形状 比 | AA8: 立木本数 | AB8: 幹材積 | AC8: 収量比数 | AD8: 立木 本数 | AE8: 本数 比率 | AF8: 幹 材積 | AG8: 幹材積比率 | AH8: 胸高 直径 | AI8: 幹材積副林木 | AJ8: 主副林木幹材積 | AK8: 主副合計 | AL8: 主林木 | AM8: 主副合計 | AN8: 総収量 | AO8: 地上部 | AU8: 地下部 | AV8: 合計 | AW8: 地上部 | AX8: 地下部 | AY8: 合計 | AZ8: 地上部 | BA8: 地下部 | BB8: 合計 | BC8: 地上部 | BD8: 地下部 | BE8: 合計
B9: 立木 | C9: 胸高直径 | D9: 樹高 | F9: 胸高直径階 | H9: 立木 | N9: 林齢 | O9: 本数間伐率（％）
B10: No. | C10: cm | D10: m | F10: cm以上 | G10: cm未満 | H10: 本数 | J10: 間伐有無 | K10: 回数 | N10: 年 | O10: 全層 | P10: 上層 | Q10: 下層 | S10: 年 | T10: m | U10: m３ | V10: cm | W10: 本 | X10: m３ | Y10: Ry | Z10: H/D | AA10: 本 | AB10: m３ | AC10: Ry | AD10: 本 | AE10: % | AF10: m３ | AG10: % | AH10: cm | AI10: m３ | AK10: m３ | AL10: m３ | AO10: t-CO2 | AW10: t-CO2 | AZ10: t-CO2 | BC10: t-CO2
B11: 1 | C11: 18 | D11: 16 | F11: 0 | G11: =+$AT$2 -> 2 | J11: =IF(O11+P11+Q11=0,"",1) -> 1 | K11: =+IF(J11="","",SUM(J$11:J11)) -> 1 | M11: =SUM(O11:Q11) -> 30 | N11: =IF(Sheet1!E9="","",Sheet1!E9) -> 10 | O11: 30 | S11: =Sheet1!N9 -> 10 | T11: =IF(S11="","",Sheet1!O9) -> 10.2 | U11: =IFERROR(IF(S11="","",Sheet1!P9),"") -> 0.040 | V11: =IFERROR(IF(S11="","",Sheet1!Q9),"") -> 9.1 | W11: =IFERROR(IF(S11="","",Sheet1!R9),"") -> 2260 | X11: =IFERROR(IF(S11="","",Sheet1!S9),"") -> 90 | Y11: =IFERROR(IF(S11="","",Sheet1!AA9),"") -> 0.73 | Z11: =IF(Y11="","",IFERROR(100*(0.9668*T11- 1.6905)/V11,"")) -> 90 | AA11: =+IF(S11="","",IF(SUM(O11:Q11)=0,"",Sheet1!T9)) -> 1600 | AB11: =+IF(S11="","",IF(SUM(O11:Q11)=0,"",Sheet1!U9)) -> 70 | AC11: =+IF(S11="","",IF(SUM(O11:Q11)=0,"",Sheet1!AB9)) -> 0.60 | AD11: =IF(Sheet1!W9=0,"",IF(S11="","",Sheet1!W9)) -> 660 | AE11: =IF(Sheet1!Y9=0,"",IF(S11="","",Sheet1!Y9)) -> 29 | AF11: =IF(Sheet1!X9=0,"",IF(S11="","",Sheet1!X9)) -> 20 | AG11: =IF(Sheet1!Z9=0,"",IF(S11="","",Sheet1!Z9)) -> 23 | AH11: =+IF(S11="","",Sheet1!V9) -> 9.0 | AI11: =IF(AF11="","",SUM(AF$11:AF11)) -> 20 | AJ11: =+IF(S11="","",X11) -> 90 | AK11: =+IF(S11="","",IF(AJ12="","",(AJ12-AJ11)/(S12-S11))) -> 13.8 | AL11: =+IF(AD11="","",AB11/S11) -> 7.0 | AM11: =+IF(T11="","",IF(S11="","",X11/S11)) -> 9.0 | AN11: =IF(T11="","",IF(S11="","",AJ11/S11)) -> 9.0 | AO11: =IF(T11="","",+$X11*$AU$4*$AW$4*0.5*3.67) -> 88 | AU11: =+IF(T11="","",$X11*$AU$4*$AW$4*$BA$4*0.5*3.67) -> 26 | AV11: =+IF(T11="","",AO11+AU11) -> 114 | AW11: =+IF(T11="","",(AO12-AO11)/(S12-S11)) -> 3.5 | AX11: =+IF(T11="","",(AU12-AU11)/(S12-S11)) -> 1.0 | AY11: =+IF(T11="","",AW11+AX11) -> 4.5 | AZ11: =+IF(T11="","",$AJ11*$AU$4*$AW$4*0.5*3.67) -> 88 | BA11: =+IF(T11="","",$AJ11*$AU$4*$AW$4*$BA$4*0.5*3.67) -> 26 | BB11: =+IF(T11="","",AZ11+BA11) -> 114 | BC11: =+IF(T11="","",(AZ12-AZ11)/(S12-S11)) -> 13.6 | BD11: =+IF(T11="","",(BA12-BA11)/(S12-S11)) -> 3.9 | BE11: =+IF(T11="","",BC11+BD11) -> 17.5
B12: 2 | C12: 18 | D12: 16 | F12: =+F11+$AT$2 -> 2 | G12: =+G11+$AT$2 -> 4 | K12: =+IF(J12="","",SUM(J$11:J12)) ->  | M12: =SUM(O12:Q12) -> 0 | N12: =IF(Sheet1!E10="","",Sheet1!E10) -> 12 | S12: =Sheet1!N10 -> 12 | T12: =IF(S12="","",Sheet1!O10) -> 11.9 | U12: =IFERROR(IF(S12="","",Sheet1!P10),"") -> 0.061 | V12: =IFERROR(IF(S12="","",Sheet1!Q10),"") -> 10.9 | W12: =IFERROR(IF(S12="","",Sheet1!R10),"") -> 1600 | X12: =IFERROR(IF(S12="","",Sheet1!S10),"") -> 97 | Y12: =IFERROR(IF(S12="","",Sheet1!AA10),"") -> 0.68 | Z12: =IF(Y12="","",IFERROR(100*(0.9668*T12- 1.6905)/V12,"")) -> 90 | AA12: =+IF(S12="","",IF(SUM(O12:Q12)=0,"",Sheet1!T10)) ->  | AB12: =+IF(S12="","",IF(SUM(O12:Q12)=0,"",Sheet1!U10)) ->  | AC12: =+IF(S12="","",IF(SUM(O12:Q12)=0,"",Sheet1!AB10)) ->  | AD12: =IF(Sheet1!W10=0,"",IF(S12="","",Sheet1!W10)) ->  | AE12: =IF(Sheet1!Y10=0,"",IF(S12="","",Sheet1!Y10)) ->  | AF12: =IF(Sheet1!X10=0,"",IF(S12="","",Sheet1!X10)) ->  | AG12: =IF(Sheet1!Z10=0,"",IF(S12="","",Sheet1!Z10)) ->  | AH12: =+IF(S12="","",Sheet1!V10) ->  | AI12: =IF(AF12="","",SUM(AF$11:AF12)) ->  | AJ12: =+IF(T12="","",IF(S12="","",X12+SUM(AF$11:AF11))) -> 118 | AK12: 15.7 | AM12: =+IF(T12="","",IF(S12="","",X12/S12)) -> 8.1 | AN12: =IF(T12="","",IF(S12="","",AJ12/S12)) -> 9.8 | AO12: =IF(T12="","",+$X12*$AU$4*$AW$4*0.5*3.67) -> 95 | AU12: =+IF(T12="","",$X12*$AU$4*$AW$4*$BA$4*0.5*3.67) -> 28 | AV12: =+IF(T12="","",AO12+AU12) -> 123 | AW12: =+IF(T12="","",(AO13-AO12)/(S13-S12)) -> 15.5 | AX12: =+IF(T12="","",(AU13-AU12)/(S13-S12)) -> 4.5 | AY12: =+IF(T12="","",AW12+AX12) -> 20.0 | AZ12: =+IF(T12="","",$AJ12*$AU$4*$AW$4*0.5*3.67) -> 116 | BA12: =+IF(T12="","",$AJ12*$AU$4*$AW$4*$BA$4*0.5*3.67) -> 34 | BB12: =+IF(T12="","",AZ12+BA12) -> 149 | BC12: =+IF(T12="","",(AZ13-AZ12)/(S13-S12)) -> 15.5 | BD12: =+IF(T12="","",(BA13-BA12)/(S13-S12)) -> 4.5 | BE12: =+IF(T12="","",BC12+BD12) -> 20.0
B13: 3 | C13: 18 | D13: 16 | F13: 4 | G13: 6 | K13: =+IF(J13="","",SUM(J$11:J13)) ->  | M13: 0 | N13: =IF(Sheet1!E11="","",Sheet1!E11) -> 14 | S13: =Sheet1!N11 -> 14 | T13: =IF(S13="","",Sheet1!O11) -> 13.5 | U13: =IFERROR(IF(S13="","",Sheet1!P11),"") -> 0.080 | V13: =IFERROR(IF(S13="","",Sheet1!Q11),"") -> 11.9 | W13: =IFERROR(IF(S13="","",Sheet1!R11),"") -> 1600 | X13: =IFERROR(IF(S13="","",Sheet1!S11),"") -> 129 | Y13: =IFERROR(IF(S13="","",Sheet1!AA11),"") -> 0.75 | Z13: 95 | AA13: =+IF(S13="","",IF(SUM(O13:Q13)=0,"",Sheet1!T11)) ->  | AB13: =+IF(S13="","",IF(SUM(O13:Q13)=0,"",Sheet1!U11)) ->  | AC13: =+IF(S13="","",IF(SUM(O13:Q13)=0,"",Sheet1!AB11)) ->  | AD13: =IF(Sheet1!W11=0,"",IF(S13="","",Sheet1!W11)) ->  | AE13: =IF(Sheet1!Y11=0,"",IF(S13="","",Sheet1!Y11)) ->  | AF13: =IF(Sheet1!X11=0,"",IF(S13="","",Sheet1!X11)) ->  | AG13: =IF(Sheet1!Z11=0,"",IF(S13="","",Sheet1!Z11)) ->  | AH13: =+IF(S13="","",Sheet1!V11) ->  | AI13: =IF(AF13="","",SUM(AF$11:AF13)) ->  | AJ13: =+IF(T13="","",IF(S13="","",X13+SUM(AF$11:AF12))) -> 149 | AK13: 16.0 | AM13: 9.2 | AN13: 10.7 | AO13: 126 | AU13: 37 | AV13: 163 | AW13: 15.7 | AX13: 4.6 | AY13: 20.3 | AZ13: 146 | BA13: 42 | BB13: 189 | BC13: 15.7 | BD13: 4.6 | BE13: 20.3
B14: 4 | C14: 18 | D14: 15 | F14: 6 | G14: 8 | K14: =+IF(J14="","",SUM(J$11:J14)) ->  | M14: 0 | N14: =IF(Sheet1!E12="","",Sheet1!E12) -> 16 | S14: =Sheet1!N12 -> 16 | T14: =IF(S14="","",Sheet1!O12) -> 14.9 | U14: =IFERROR(IF(S14="","",Sheet1!P12),"") -> 0.100 | V14: =IFERROR(IF(S14="","",Sheet1!Q12),"") -> 12.8 | W14: =IFERROR(IF(S14="","",Sheet1!R12),"") -> 1600 | X14: =IFERROR(IF(S14="","",Sheet1!S12),"") -> 161 | Y14: =IFERROR(IF(S14="","",Sheet1!AA12),"") -> 0.80 | Z14: 99 | AA14: =+IF(S14="","",IF(SUM(O14:Q14)=0,"",Sheet1!T12)) ->  | AB14: =+IF(S14="","",IF(SUM(O14:Q14)=0,"",Sheet1!U12)) ->  | AC14: =+IF(S14="","",IF(SUM(O14:Q14)=0,"",Sheet1!AB12)) ->  | AD14: =IF(Sheet1!W12=0,"",IF(S14="","",Sheet1!W12)) ->  | AE14: =IF(Sheet1!Y12=0,"",IF(S14="","",Sheet1!Y12)) ->  | AF14: =IF(Sheet1!X12=0,"",IF(S14="","",Sheet1!X12)) ->  | AG14: =IF(Sheet1!Z12=0,"",IF(S14="","",Sheet1!Z12)) ->  | AH14: =+IF(S14="","",Sheet1!V12) ->  | AI14: =IF(AF14="","",SUM(AF$11:AF14)) ->  | AJ14: =+IF(T14="","",IF(S14="","",X14+SUM(AF$11:AF13))) -> 181 | AK14: 15.7 | AM14: 10.0 | AN14: 11.3 | AO14: 158 | AU14: 46 | AV14: 203 | AW14: 15.4 | AX14: 4.5 | AY14: 19.9 | AZ14: 178 | BA14: 52 | BB14: 229 | BC14: 15.4 | BD14: 4.5 | BE14: 19.9
B15: 5 | C15: 18 | D15: 15 | F15: 8 | G15: 10 | K15: =+IF(J15="","",SUM(J$11:J15)) ->  | M15: 0 | N15: =IF(Sheet1!E13="","",Sheet1!E13) -> 18 | S15: =Sheet1!N13 -> 18 | T15: =IF(S15="","",Sheet1!O13) -> 16.2 | U15: =IFERROR(IF(S15="","",Sheet1!P13),"") -> 0.120 | V15: =IFERROR(IF(S15="","",Sheet1!Q13),"") -> 13.5 | W15: =IFERROR(IF(S15="","",Sheet1!R13),"") -> 1600 | X15: =IFERROR(IF(S15="","",Sheet1!S13),"") -> 192 | Y15: =IFERROR(IF(S15="","",Sheet1!AA13),"") -> 0.84 | Z15: 104 | AA15: =+IF(S15="","",IF(SUM(O15:Q15)=0,"",Sheet1!T13)) ->  | AB15: =+IF(S15="","",IF(SUM(O15:Q15)=0,"",Sheet1!U13)) ->  | AC15: =+IF(S15="","",IF(SUM(O15:Q15)=0,"",Sheet1!AB13)) ->  | AD15: =IF(Sheet1!W13=0,"",IF(S15="","",Sheet1!W13)) ->  | AE15: =IF(Sheet1!Y13=0,"",IF(S15="","",Sheet1!Y13)) ->  | AF15: =IF(Sheet1!X13=0,"",IF(S15="","",Sheet1!X13)) ->  | AG15: =IF(Sheet1!Z13=0,"",IF(S15="","",Sheet1!Z13)) ->  | AH15: =+IF(S15="","",Sheet1!V13) ->  | AI15: =IF(AF15="","",SUM(AF$11:AF15)) ->  | AJ15: =+IF(T15="","",IF(S15="","",X15+SUM(AF$11:AF14))) -> 212 | AK15: 15.1 | AM15: 10.7 | AN15: 11.8 | AO15: 189 | AU15: 55 | AV15: 243 | AW15: 14.8 | AX15: 4.3 | AY15: 19.2 | AZ15: 209 | BA15: 61 | BB15: 269 | BC15: 14.8 | BD15: 4.3 | BE15: 19.2
B16: 6 | C16: 17 | D16: 14 | F16: 10 | G16: 12 | J16: 1 | K16: =+IF(J16="","",SUM(J$11:J16)) -> 2 | M16: 30 | N16: =IF(Sheet1!E14="","",Sheet1!E14) -> 20 | O16: 30 | S16: =Sheet1!N14 -> 20 | T16: =IF(S16="","",Sheet1!O14) -> 17.4 | U16: =IFERROR(IF(S16="","",Sheet1!P14),"") -> 0.139 | V16: =IFERROR(IF(S16="","",Sheet1!Q14),"") -> 14.0 | W16: =IFERROR(IF(S16="","",Sheet1!R14),"") -> 1600 | X16: =IFERROR(IF(S16="","",Sheet1!S14),"") -> 222 | Y16: =IFERROR(IF(S16="","",Sheet1!AA14),"") -> 0.88 | Z16: 108 | AA16: =+IF(S16="","",IF(SUM(O16:Q16)=0,"",Sheet1!T14)) -> 1140 | AB16: =+IF(S16="","",IF(SUM(O16:Q16)=0,"",Sheet1!U14)) -> 170 | AC16: =+IF(S16="","",IF(SUM(O16:Q16)=0,"",Sheet1!AB14)) -> 0.74 | AD16: =IF(Sheet1!W14=0,"",IF(S16="","",Sheet1!W14)) -> 460 | AE16: =IF(Sheet1!Y14=0,"",IF(S16="","",Sheet1!Y14)) -> 29 | AF16: =IF(Sheet1!X14=0,"",IF(S16="","",Sheet1!X14)) -> 52 | AG16: =IF(Sheet1!Z14=0,"",IF(S16="","",Sheet1!Z14)) -> 24 | AH16: =+IF(S16="","",Sheet1!V14) -> 13.9 | AI16: =IF(AF16="","",SUM(AF$11:AF16)) -> 73 | AJ16: =+IF(T16="","",IF(S16="","",X16+SUM(AF$11:AF15))) -> 243 | AK16: 13.1 | AL16: 8.5 | AM16: 11.1 | AN16: 12.1 | AO16: 218 | AU16: 63 | AV16: 282 | AW16: -12.9 | AX16: -3.7 | AY16: -16.6 | AZ16: 238 | BA16: 69 | BB16: 308 | BC16: 12.8 | BD16: 3.7 | BE16: 16.6
B17: 7 | C17: 17 | D17: 15 | F17: 12 | G17: 14 | H17: 6 | K17: =+IF(J17="","",SUM(J$11:J17)) ->  | M17: 0 | N17: =IF(Sheet1!E15="","",Sheet1!E15) -> 22 | S17: =Sheet1!N15 -> 22 | T17: =IF(S17="","",Sheet1!O15) -> 18.5 | U17: =IFERROR(IF(S17="","",Sheet1!P15),"") -> 0.172 | V17: =IFERROR(IF(S17="","",Sheet1!Q15),"") -> 15.6 | W17: =IFERROR(IF(S17="","",Sheet1!R15),"") -> 1140 | X17: =IFERROR(IF(S17="","",Sheet1!S15),"") -> 196 | Y17: =IFERROR(IF(S17="","",Sheet1!AA15),"") -> 0.78 | Z17: 104 | AA17: =+IF(S17="","",IF(SUM(O17:Q17)=0,"",Sheet1!T15)) ->  | AB17: =+IF(S17="","",IF(SUM(O17:Q17)=0,"",Sheet1!U15)) ->  | AC17: =+IF(S17="","",IF(SUM(O17:Q17)=0,"",Sheet1!AB15)) ->  | AD17: =IF(Sheet1!W15=0,"",IF(S17="","",Sheet1!W15)) ->  | AE17: =IF(Sheet1!Y15=0,"",IF(S17="","",Sheet1!Y15)) ->  | AF17: =IF(Sheet1!X15=0,"",IF(S17="","",Sheet1!X15)) ->  | AG17: =IF(Sheet1!Z15=0,"",IF(S17="","",Sheet1!Z15)) ->  | AH17: =+IF(S17="","",Sheet1!V15) ->  | AI17: =IF(AF17="","",SUM(AF$11:AF17)) ->  | AJ17: =+IF(T17="","",IF(S17="","",X17+SUM(AF$11:AF16))) -> 269 | AK17: 13.3 | AM17: 8.9 | AN17: 12.2 | AO17: 193 | AU17: 56 | AV17: 248 | AW17: 13.0 | AX17: 3.8 | AY17: 16.8 | AZ17: 264 | BA17: 77 | BB17: 341 | BC17: 13.0 | BD17: 3.8 | BE17: 16.8
B18: 8 | C18: 17 | D18: 13 | F18: 14 | G18: 16 | H18: 12 | K18: =+IF(J18="","",SUM(J$11:J18)) ->  | M18: 0 | N18: =IF(Sheet1!E16="","",Sheet1!E16) -> 24 | S18: =Sheet1!N16 -> 24 | T18: =IF(S18="","",Sheet1!O16) -> 19.5 | U18: =IFERROR(IF(S18="","",Sheet1!P16),"") -> 0.195 | V18: =IFERROR(IF(S18="","",Sheet1!Q16),"") -> 16.2 | W18: =IFERROR(IF(S18="","",Sheet1!R16),"") -> 1140 | X18: =IFERROR(IF(S18="","",Sheet1!S16),"") -> 223 | Y18: =IFERROR(IF(S18="","",Sheet1!AA16),"") -> 0.81 | Z18: 106 | AA18: =+IF(S18="","",IF(SUM(O18:Q18)=0,"",Sheet1!T16)) ->  | AB18: =+IF(S18="","",IF(SUM(O18:Q18)=0,"",Sheet1!U16)) ->  | AC18: =+IF(S18="","",IF(SUM(O18:Q18)=0,"",Sheet1!AB16)) ->  | AD18: =IF(Sheet1!W16=0,"",IF(S18="","",Sheet1!W16)) ->  | AE18: =IF(Sheet1!Y16=0,"",IF(S18="","",Sheet1!Y16)) ->  | AF18: =IF(Sheet1!X16=0,"",IF(S18="","",Sheet1!X16)) ->  | AG18: =IF(Sheet1!Z16=0,"",IF(S18="","",Sheet1!Z16)) ->  | AH18: =+IF(S18="","",Sheet1!V16) ->  | AI18: =IF(AF18="","",SUM(AF$11:AF18)) ->  | AJ18: =+IF(T18="","",IF(S18="","",X18+SUM(AF$11:AF17))) -> 295 | AK18: 12.7 | AM18: 9.3 | AN18: 12.3 | AO18: 219 | AU18: 63 | AV18: 282 | AW18: 12.5 | AX18: 3.6 | AY18: 16.1 | AZ18: 290 | BA18: 84 | BB18: 374 | BC18: 12.5 | BD18: 3.6 | BE18: 16.1
B19: 9 | C19: 17 | D19: 14 | F19: 16 | G19: 18 | H19: 30 | K19: =+IF(J19="","",SUM(J$11:J19)) ->  | M19: 0 | N19: =IF(Sheet1!E17="","",Sheet1!E17) -> 26 | S19: =Sheet1!N17 -> 26 | T19: =IF(S19="","",Sheet1!O17) -> 20.4 | U19: =IFERROR(IF(S19="","",Sheet1!P17),"") -> 0.218 | V19: =IFERROR(IF(S19="","",Sheet1!Q17),"") -> 16.8 | W19: =IFERROR(IF(S19="","",Sheet1!R17),"") -> 1140 | X19: =IFERROR(IF(S19="","",Sheet1!S17),"") -> 248 | Y19: =IFERROR(IF(S19="","",Sheet1!AA17),"") -> 0.84 | Z19: 107 | AA19: =+IF(S19="","",IF(SUM(O19:Q19)=0,"",Sheet1!T17)) ->  | AB19: =+IF(S19="","",IF(SUM(O19:Q19)=0,"",Sheet1!U17)) ->  | AC19: =+IF(S19="","",IF(SUM(O19:Q19)=0,"",Sheet1!AB17)) ->  | AD19: =IF(Sheet1!W17=0,"",IF(S19="","",Sheet1!W17)) ->  | AE19: =IF(Sheet1!Y17=0,"",IF(S19="","",Sheet1!Y17)) ->  | AF19: =IF(Sheet1!X17=0,"",IF(S19="","",Sheet1!X17)) ->  | AG19: =IF(Sheet1!Z17=0,"",IF(S19="","",Sheet1!Z17)) ->  | AH19: =+IF(S19="","",Sheet1!V17) ->  | AI19: =IF(AF19="","",SUM(AF$11:AF19)) ->  | AJ19: =+IF(T19="","",IF(S19="","",X19+SUM(AF$11:AF18))) -> 321 | AK19: 12.1 | AM19: 9.5 | AN19: 12.3 | AO19: 244 | AU19: 71 | AV19: 314 | AW19: 11.9 | AX19: 3.5 | AY19: 15.4 | AZ19: 315 | BA19: 91 | BB19: 407 | BC19: 11.9 | BD19: 3.5 | BE19: 15.4
B20: 10 | C20: 17 | D20: 14 | F20: 18 | G20: 20 | H20: 30 | K20: =+IF(J20="","",SUM(J$11:J20)) ->  | M20: 0 | N20: =IF(Sheet1!E18="","",Sheet1!E18) -> 28 | S20: =Sheet1!N18 -> 28 | T20: =IF(S20="","",Sheet1!O18) -> 21.3 | U20: =IFERROR(IF(S20="","",Sheet1!P18),"") -> 0.239 | V20: =IFERROR(IF(S20="","",Sheet1!Q18),"") -> 17.4 | W20: =IFERROR(IF(S20="","",Sheet1!R18),"") -> 1140 | X20: =IFERROR(IF(S20="","",Sheet1!S18),"") -> 272 | Y20: =IFERROR(IF(S20="","",Sheet1!AA18),"") -> 0.86 | Z20: 109 | AA20: =+IF(S20="","",IF(SUM(O20:Q20)=0,"",Sheet1!T18)) ->  | AB20: =+IF(S20="","",IF(SUM(O20:Q20)=0,"",Sheet1!U18)) ->  | AC20: =+IF(S20="","",IF(SUM(O20:Q20)=0,"",Sheet1!AB18)) ->  | AD20: =IF(Sheet1!W18=0,"",IF(S20="","",Sheet1!W18)) ->  | AE20: =IF(Sheet1!Y18=0,"",IF(S20="","",Sheet1!Y18)) ->  | AF20: =IF(Sheet1!X18=0,"",IF(S20="","",Sheet1!X18)) ->  | AG20: =IF(Sheet1!Z18=0,"",IF(S20="","",Sheet1!Z18)) ->  | AH20: =+IF(S20="","",Sheet1!V18) ->  | AI20: =IF(AF20="","",SUM(AF$11:AF20)) ->  | AJ20: =+IF(T20="","",IF(S20="","",X20+SUM(AF$11:AF19))) -> 345 | AK20: 11.5 | AM20: 9.7 | AN20: 12.3 | AO20: 268 | AU20: 78 | AV20: 345 | AW20: 11.3 | AX20: 3.3 | AY20: 14.6 | AZ20: 339 | BA20: 98 | BB20: 437 | BC20: 11.3 | BD20: 3.3 | BE20: 14.6
B21: 11 | C21: 17 | D21: 14 | F21: 20 | G21: 22 | H21: 18 | J21: 1 | K21: =+IF(J21="","",SUM(J$11:J21)) -> 3 | M21: 30 | N21: =IF(Sheet1!E19="","",Sheet1!E19) -> 30 | O21: 30 | S21: =Sheet1!N19 -> 30 | T21: =IF(S21="","",Sheet1!O19) -> 22.0 | U21: =IFERROR(IF(S21="","",Sheet1!P19),"") -> 0.259 | V21: =IFERROR(IF(S21="","",Sheet1!Q19),"") -> 17.8 | W21: =IFERROR(IF(S21="","",Sheet1!R19),"") -> 1140 | X21: =IFERROR(IF(S21="","",Sheet1!S19),"") -> 295 | Y21: =IFERROR(IF(S21="","",Sheet1!AA19),"") -> 0.88 | Z21: 110 | AA21: =+IF(S21="","",IF(SUM(O21:Q21)=0,"",Sheet1!T19)) -> 810 | AB21: =+IF(S21="","",IF(SUM(O21:Q21)=0,"",Sheet1!U19)) -> 224 | AC21: =+IF(S21="","",IF(SUM(O21:Q21)=0,"",Sheet1!AB19)) -> 0.74 | AD21: =IF(Sheet1!W19=0,"",IF(S21="","",Sheet1!W19)) -> 330 | AE21: =IF(Sheet1!Y19=0,"",IF(S21="","",Sheet1!Y19)) -> 29 | AF21: =IF(Sheet1!X19=0,"",IF(S21="","",Sheet1!X19)) -> 71 | AG21: =IF(Sheet1!Z19=0,"",IF(S21="","",Sheet1!Z19)) -> 24 | AH21: =+IF(S21="","",Sheet1!V19) -> 17.5 | AI21: =IF(AF21="","",SUM(AF$11:AF21)) -> 144 | AJ21: =+IF(T21="","",IF(S21="","",X21+SUM(AF$11:AF20))) -> 368 | AK21: 10.5 | AL21: 7.5 | AM21: 9.8 | AN21: 12.3 | AO21: 290 | AU21: 84 | AV21: 374 | AW21: -24.8 | AX21: -7.2 | AY21: -32.0 | AZ21: 362 | BA21: 105 | BB21: 467 | BC21: 10.3 | BD21: 3.0 | BE21: 13.3
B22: 12 | C22: 17 | D22: 15 | F22: 22 | G22: 24 | H22: 10 | K22: =+IF(J22="","",SUM(J$11:J22)) ->  | M22: 0 | N22: =IF(Sheet1!E20="","",Sheet1!E20) -> 32 | S22: =Sheet1!N20 -> 32 | T22: =IF(S22="","",Sheet1!O20) -> 22.7 | U22: =IFERROR(IF(S22="","",Sheet1!P20),"") -> 0.302 | V22: =IFERROR(IF(S22="","",Sheet1!Q20),"") -> 19.3 | W22: =IFERROR(IF(S22="","",Sheet1!R20),"") -> 810 | X22: =IFERROR(IF(S22="","",Sheet1!S20),"") -> 245 | Y22: =IFERROR(IF(S22="","",Sheet1!AA20),"") -> 0.76 | Z22: 105 | AA22: =+IF(S22="","",IF(SUM(O22:Q22)=0,"",Sheet1!T20)) ->  | AB22: =+IF(S22="","",IF(SUM(O22:Q22)=0,"",Sheet1!U20)) ->  | AC22: =+IF(S22="","",IF(SUM(O22:Q22)=0,"",Sheet1!AB20)) ->  | AD22: =IF(Sheet1!W20=0,"",IF(S22="","",Sheet1!W20)) ->  | AE22: =IF(Sheet1!Y20=0,"",IF(S22="","",Sheet1!Y20)) ->  | AF22: =IF(Sheet1!X20=0,"",IF(S22="","",Sheet1!X20)) ->  | AG22: =IF(Sheet1!Z20=0,"",IF(S22="","",Sheet1!Z20)) ->  | AH22: =+IF(S22="","",Sheet1!V20) ->  | AI22: =IF(AF22="","",SUM(AF$11:AF22)) ->  | AJ22: =+IF(T22="","",IF(S22="","",X22+SUM(AF$11:AF21))) -> 389 | AK22: 10.4 | AM22: 7.7 | AN22: 12.2 | AO22: 241 | AU22: 70 | AV22: 310 | AW22: 10.2 | AX22: 3.0 | AY22: 13.2 | AZ22: 382 | BA22: 111 | BB22: 493 | BC22: 10.2 | BD22: 3.0 | BE22: 13.2
B23: 13 | C23: 17 | D23: 14 | F23: 24 | G23: 26 | H23: 6 | K23: =+IF(J23="","",SUM(J$11:J23)) ->  | M23: 0 | N23: =IF(Sheet1!E21="","",Sheet1!E21) -> 34 | S23: =Sheet1!N21 -> 34 | T23: =IF(S23="","",Sheet1!O21) -> 23.4 | U23: =IFERROR(IF(S23="","",Sheet1!P21),"") -> 0.328 | V23: =IFERROR(IF(S23="","",Sheet1!Q21),"") -> 19.9 | W23: =IFERROR(IF(S23="","",Sheet1!R21),"") -> 810 | X23: =IFERROR(IF(S23="","",Sheet1!S21),"") -> 266 | Y23: =IFERROR(IF(S23="","",Sheet1!AA21),"") -> 0.78 | Z23: 105 | AA23: =+IF(S23="","",IF(SUM(O23:Q23)=0,"",Sheet1!T21)) ->  | AB23: =+IF(S23="","",IF(SUM(O23:Q23)=0,"",Sheet1!U21)) ->  | AC23: =+IF(S23="","",IF(SUM(O23:Q23)=0,"",Sheet1!AB21)) ->  | AD23: =IF(Sheet1!W21=0,"",IF(S23="","",Sheet1!W21)) ->  | AE23: =IF(Sheet1!Y21=0,"",IF(S23="","",Sheet1!Y21)) ->  | AF23: =IF(Sheet1!X21=0,"",IF(S23="","",Sheet1!X21)) ->  | AG23: =IF(Sheet1!Z21=0,"",IF(S23="","",Sheet1!Z21)) ->  | AH23: =+IF(S23="","",Sheet1!V21) ->  | AI23: =IF(AF23="","",SUM(AF$11:AF23)) ->  | AJ23: =+IF(T23="","",IF(S23="","",X23+SUM(AF$11:AF22))) -> 410 | AK23: 10.1 | AM23: 7.8 | AN23: 12.1 | AO23: 261 | AU23: 76 | AV23: 337 | AW23: 9.9 | AX23: 2.9 | AY23: 12.7 | AZ23: 403 | BA23: 117 | BB23: 520 | BC23: 9.9 | BD23: 2.9 | BE23: 12.7
B24: 14 | C24: 17 | D24: 14 | F24: 26 | G24: 28 | K24: =+IF(J24="","",SUM(J$11:J24)) ->  | M24: 0 | N24: =IF(Sheet1!E22="","",Sheet1!E22) -> 36 | S24: =Sheet1!N22 -> 36 | T24: =IF(S24="","",Sheet1!O22) -> 23.9 | U24: =IFERROR(IF(S24="","",Sheet1!P22),"") -> 0.353 | V24: =IFERROR(IF(S24="","",Sheet1!Q22),"") -> 20.3 | W24: =IFERROR(IF(S24="","",Sheet1!R22),"") -> 810 | X24: =IFERROR(IF(S24="","",Sheet1!S22),"") -> 286 | Y24: =IFERROR(IF(S24="","",Sheet1!AA22),"") -> 0.80 | Z24: 106 | AA24: =+IF(S24="","",IF(SUM(O24:Q24)=0,"",Sheet1!T22)) ->  | AB24: =+IF(S24="","",IF(SUM(O24:Q24)=0,"",Sheet1!U22)) ->  | AC24: =+IF(S24="","",IF(SUM(O24:Q24)=0,"",Sheet1!AB22)) ->  | AD24: =IF(Sheet1!W22=0,"",IF(S24="","",Sheet1!W22)) ->  | AE24: =IF(Sheet1!Y22=0,"",IF(S24="","",Sheet1!Y22)) ->  | AF24: =IF(Sheet1!X22=0,"",IF(S24="","",Sheet1!X22)) ->  | AG24: =IF(Sheet1!Z22=0,"",IF(S24="","",Sheet1!Z22)) ->  | AH24: =+IF(S24="","",Sheet1!V22) ->  | AI24: =IF(AF24="","",SUM(AF$11:AF24)) ->  | AJ24: =+IF(T24="","",IF(S24="","",X24+SUM(AF$11:AF23))) -> 430 | AK24: 9.6 | AM24: 7.9 | AN24: 11.9 | AO24: 281 | AU24: 81 | AV24: 362 | AW24: 9.5 | AX24: 2.7 | AY24: 12.2 | AZ24: 422 | BA24: 123 | BB24: 545 | BC24: 9.5 | BD24: 2.7 | BE24: 12.2
B25: 15 | C25: 17 | D25: 13 | F25: 28 | G25: 30 | K25: =+IF(J25="","",SUM(J$11:J25)) ->  | M25: 0 | N25: =IF(Sheet1!E23="","",Sheet1!E23) -> 38 | S25: =Sheet1!N23 -> 38 | T25: =IF(S25="","",Sheet1!O23) -> 24.5 | U25: =IFERROR(IF(S25="","",Sheet1!P23),"") -> 0.377 | V25: =IFERROR(IF(S25="","",Sheet1!Q23),"") -> 20.8 | W25: =IFERROR(IF(S25="","",Sheet1!R23),"") -> 810 | X25: =IFERROR(IF(S25="","",Sheet1!S23),"") -> 305 | Y25: =IFERROR(IF(S25="","",Sheet1!AA23),"") -> 0.82 | Z25: 106 | AA25: =+IF(S25="","",IF(SUM(O25:Q25)=0,"",Sheet1!T23)) ->  | AB25: =+IF(S25="","",IF(SUM(O25:Q25)=0,"",Sheet1!U23)) ->  | AC25: =+IF(S25="","",IF(SUM(O25:Q25)=0,"",Sheet1!AB23)) ->  | AD25: =IF(Sheet1!W23=0,"",IF(S25="","",Sheet1!W23)) ->  | AE25: =IF(Sheet1!Y23=0,"",IF(S25="","",Sheet1!Y23)) ->  | AF25: =IF(Sheet1!X23=0,"",IF(S25="","",Sheet1!X23)) ->  | AG25: =IF(Sheet1!Z23=0,"",IF(S25="","",Sheet1!Z23)) ->  | AH25: =+IF(S25="","",Sheet1!V23) ->  | AI25: =IF(AF25="","",SUM(AF$11:AF25)) ->  | AJ25: =+IF(T25="","",IF(S25="","",X25+SUM(AF$11:AF24))) -> 449 | AK25: 9.2 | AM25: 8.0 | AN25: 11.8 | AO25: 300 | AU25: 87 | AV25: 387 | AW25: 9.1 | AX25: 2.6 | AY25: 11.7 | AZ25: 441 | BA25: 128 | BB25: 569 | BC25: 9.1 | BD25: 2.6 | BE25: 11.7
B26: 16 | C26: 17 | D26: 14 | F26: 30 | G26: 32 | J26: 1 | K26: =+IF(J26="","",SUM(J$11:J26)) -> 4 | M26: 30 | N26: =IF(Sheet1!E24="","",Sheet1!E24) -> 40 | O26: 30 | S26: =Sheet1!N24 -> 40 | T26: =IF(S26="","",Sheet1!O24) -> 25.0 | U26: =IFERROR(IF(S26="","",Sheet1!P24),"") -> 0.399 | V26: =IFERROR(IF(S26="","",Sheet1!Q24),"") -> 21.2 | W26: =IFERROR(IF(S26="","",Sheet1!R24),"") -> 810 | X26: =IFERROR(IF(S26="","",Sheet1!S24),"") -> 324 | Y26: =IFERROR(IF(S26="","",Sheet1!AA24),"") -> 0.83 | Z26: 106 | AA26: =+IF(S26="","",IF(SUM(O26:Q26)=0,"",Sheet1!T24)) -> 580 | AB26: =+IF(S26="","",IF(SUM(O26:Q26)=0,"",Sheet1!U24)) -> 246 | AC26: =+IF(S26="","",IF(SUM(O26:Q26)=0,"",Sheet1!AB24)) -> 0.69 | AD26: =IF(Sheet1!W24=0,"",IF(S26="","",Sheet1!W24)) -> 230 | AE26: =IF(Sheet1!Y24=0,"",IF(S26="","",Sheet1!Y24)) -> 28 | AF26: =IF(Sheet1!X24=0,"",IF(S26="","",Sheet1!X24)) -> 77 | AG26: =IF(Sheet1!Z24=0,"",IF(S26="","",Sheet1!Z24)) -> 24 | AH26: =+IF(S26="","",Sheet1!V24) -> 20.7 | AI26: =IF(AF26="","",SUM(AF$11:AF26)) -> 222 | AJ26: =+IF(T26="","",IF(S26="","",X26+SUM(AF$11:AF25))) -> 468 | AK26: 8.6 | AL26: 6.2 | AM26: 8.1 | AN26: 11.7 | AO26: 318 | AU26: 92 | AV26: 410 | AW26: -29.6 | AX26: -8.6 | AY26: -38.2 | AZ26: 460 | BA26: 133 | BB26: 593 | BC26: 8.4 | BD26: 2.4 | BE26: 10.9
B27: 17 | C27: 17 | D27: 14 | F27: 32 | G27: 34 | K27: =+IF(J27="","",SUM(J$11:J27)) ->  | M27: 0 | N27: =IF(Sheet1!E25="","",Sheet1!E25) -> 42 | S27: =Sheet1!N25 -> 42 | T27: =IF(S27="","",Sheet1!O25) -> 25.4 | U27: =IFERROR(IF(S27="","",Sheet1!P25),"") -> 0.454 | V27: =IFERROR(IF(S27="","",Sheet1!Q25),"") -> 22.6 | W27: =IFERROR(IF(S27="","",Sheet1!R25),"") -> 580 | X27: =IFERROR(IF(S27="","",Sheet1!S25),"") -> 263 | Y27: =IFERROR(IF(S27="","",Sheet1!AA25),"") -> 0.71 | Z27: 101 | AA27: =+IF(S27="","",IF(SUM(O27:Q27)=0,"",Sheet1!T25)) ->  | AB27: =+IF(S27="","",IF(SUM(O27:Q27)=0,"",Sheet1!U25)) ->  | AC27: =+IF(S27="","",IF(SUM(O27:Q27)=0,"",Sheet1!AB25)) ->  | AD27: =IF(Sheet1!W25=0,"",IF(S27="","",Sheet1!W25)) ->  | AE27: =IF(Sheet1!Y25=0,"",IF(S27="","",Sheet1!Y25)) ->  | AF27: =IF(Sheet1!X25=0,"",IF(S27="","",Sheet1!X25)) ->  | AG27: =IF(Sheet1!Z25=0,"",IF(S27="","",Sheet1!Z25)) ->  | AH27: =+IF(S27="","",Sheet1!V25) ->  | AI27: =IF(AF27="","",SUM(AF$11:AF27)) ->  | AJ27: =+IF(T27="","",IF(S27="","",X27+SUM(AF$11:AF26))) -> 485 | AK27: 8.6 | AM27: 6.3 | AN27: 11.5 | AO27: 259 | AU27: 75 | AV27: 334 | AW27: 8.4 | AX27: 2.4 | AY27: 10.9 | AZ27: 476 | BA27: 138 | BB27: 615 | BC27: 8.4 | BD27: 2.4 | BE27: 10.9
B28: 18 | C28: 17 | D28: 13 | F28: 34 | G28: 36 | K28: =+IF(J28="","",SUM(J$11:J28)) ->  | M28: 0 | N28: =IF(Sheet1!E26="","",Sheet1!E26) -> 44 | S28: =Sheet1!N26 -> 44 | T28: =IF(S28="","",Sheet1!O26) -> 25.8 | U28: =IFERROR(IF(S28="","",Sheet1!P26),"") -> 0.484 | V28: =IFERROR(IF(S28="","",Sheet1!Q26),"") -> 23.2 | W28: =IFERROR(IF(S28="","",Sheet1!R26),"") -> 580 | X28: =IFERROR(IF(S28="","",Sheet1!S26),"") -> 281 | Y28: =IFERROR(IF(S28="","",Sheet1!AA26),"") -> 0.73 | Z28: 100 | AA28: =+IF(S28="","",IF(SUM(O28:Q28)=0,"",Sheet1!T26)) ->  | AB28: =+IF(S28="","",IF(SUM(O28:Q28)=0,"",Sheet1!U26)) ->  | AC28: =+IF(S28="","",IF(SUM(O28:Q28)=0,"",Sheet1!AB26)) ->  | AD28: =IF(Sheet1!W26=0,"",IF(S28="","",Sheet1!W26)) ->  | AE28: =IF(Sheet1!Y26=0,"",IF(S28="","",Sheet1!Y26)) ->  | AF28: =IF(Sheet1!X26=0,"",IF(S28="","",Sheet1!X26)) ->  | AG28: =IF(Sheet1!Z26=0,"",IF(S28="","",Sheet1!Z26)) ->  | AH28: =+IF(S28="","",Sheet1!V26) ->  | AI28: =IF(AF28="","",SUM(AF$11:AF28)) ->  | AJ28: =+IF(T28="","",IF(S28="","",X28+SUM(AF$11:AF27))) -> 502 | AK28: 8.4 | AM28: 6.4 | AN28: 11.4 | AO28: 276 | AU28: 80 | AV28: 355 | AW28: 8.3 | AX28: 2.4 | AY28: 10.7 | AZ28: 493 | BA28: 143 | BB28: 636 | BC28: 8.3 | BD28: 2.4 | BE28: 10.7
B29: 19 | C29: 16 | D29: 15 | F29: 36 | G29: 38 | K29: =+IF(J29="","",SUM(J$11:J29)) ->  | M29: 0 | N29: =IF(Sheet1!E27="","",Sheet1!E27) -> 46 | S29: =Sheet1!N27 -> 46 | T29: =IF(S29="","",Sheet1!O27) -> 26.2 | U29: =IFERROR(IF(S29="","",Sheet1!P27),"") -> 0.513 | V29: =IFERROR(IF(S29="","",Sheet1!Q27),"") -> 23.7 | W29: =IFERROR(IF(S29="","",Sheet1!R27),"") -> 580 | X29: =IFERROR(IF(S29="","",Sheet1!S27),"") -> 297 | Y29: =IFERROR(IF(S29="","",Sheet1!AA27),"") -> 0.74 | Z29: 99 | AA29: =+IF(S29="","",IF(SUM(O29:Q29)=0,"",Sheet1!T27)) ->  | AB29: =+IF(S29="","",IF(SUM(O29:Q29)=0,"",Sheet1!U27)) ->  | AC29: =+IF(S29="","",IF(SUM(O29:Q29)=0,"",Sheet1!AB27)) ->  | AD29: =IF(Sheet1!W27=0,"",IF(S29="","",Sheet1!W27)) ->  | AE29: =IF(Sheet1!Y27=0,"",IF(S29="","",Sheet1!Y27)) ->  | AF29: =IF(Sheet1!X27=0,"",IF(S29="","",Sheet1!X27)) ->  | AG29: =IF(Sheet1!Z27=0,"",IF(S29="","",Sheet1!Z27)) ->  | AH29: =+IF(S29="","",Sheet1!V27) ->  | AI29: =IF(AF29="","",SUM(AF$11:AF29)) ->  | AJ29: =+IF(T29="","",IF(S29="","",X29+SUM(AF$11:AF28))) -> 519 | AK29: 8.2 | AM29: 6.5 | AN29: 11.3 | AO29: 292 | AU29: 85 | AV29: 377 | AW29: 8.1 | AX29: 2.3 | AY29: 10.4 | AZ29: 510 | BA29: 148 | BB29: 658 | BC29: 8.1 | BD29: 2.3 | BE29: 10.4
B30: 20 | C30: 16 | D30: 14 | F30: 38 | G30: 40 | K30: =+IF(J30="","",SUM(J$11:J30)) ->  | M30: 0 | N30: =IF(Sheet1!E28="","",Sheet1!E28) -> 48 | S30: =Sheet1!N28 -> 48 | T30: =IF(S30="","",Sheet1!O28) -> 26.5 | U30: =IFERROR(IF(S30="","",Sheet1!P28),"") -> 0.541 | V30: =IFERROR(IF(S30="","",Sheet1!Q28),"") -> 24.3 | W30: =IFERROR(IF(S30="","",Sheet1!R28),"") -> 580 | X30: =IFERROR(IF(S30="","",Sheet1!S28),"") -> 314 | Y30: =IFERROR(IF(S30="","",Sheet1!AA28),"") -> 0.75 | Z30: 99 | AA30: =+IF(S30="","",IF(SUM(O30:Q30)=0,"",Sheet1!T28)) ->  | AB30: =+IF(S30="","",IF(SUM(O30:Q30)=0,"",Sheet1!U28)) ->  | AC30: =+IF(S30="","",IF(SUM(O30:Q30)=0,"",Sheet1!AB28)) ->  | AD30: =IF(Sheet1!W28=0,"",IF(S30="","",Sheet1!W28)) ->  | AE30: =IF(Sheet1!Y28=0,"",IF(S30="","",Sheet1!Y28)) ->  | AF30: =IF(Sheet1!X28=0,"",IF(S30="","",Sheet1!X28)) ->  | AG30: =IF(Sheet1!Z28=0,"",IF(S30="","",Sheet1!Z28)) ->  | AH30: =+IF(S30="","",Sheet1!V28) ->  | AI30: =IF(AF30="","",SUM(AF$11:AF30)) ->  | AJ30: =+IF(T30="","",IF(S30="","",X30+SUM(AF$11:AF29))) -> 535 | AK30: 8.0 | AM30: 6.5 | AN30: 11.2 | AO30: 308 | AU30: 89 | AV30: 398 | AW30: 7.9 | AX30: 2.3 | AY30: 10.2 | AZ30: 526 | BA30: 153 | BB30: 678 | BC30: 7.9 | BD30: 2.3 | BE30: 10.2
B31: 21 | C31: 16 | D31: 13 | F31: 40 | G31: 42 | J31: 1 | K31: =+IF(J31="","",SUM(J$11:J31)) -> 5 | M31: 30 | N31: =IF(Sheet1!E29="","",Sheet1!E29) -> 50 | O31: 30 | S31: =Sheet1!N29 -> 50 | T31: =IF(S31="","",Sheet1!O29) -> 26.8 | U31: =IFERROR(IF(S31="","",Sheet1!P29),"") -> 0.569 | V31: =IFERROR(IF(S31="","",Sheet1!Q29),"") -> 24.7 | W31: =IFERROR(IF(S31="","",Sheet1!R29),"") -> 580 | X31: =IFERROR(IF(S31="","",Sheet1!S29),"") -> 330 | Y31: =IFERROR(IF(S31="","",Sheet1!AA29),"") -> 0.77 | Z31: 98 | AA31: =+IF(S31="","",IF(SUM(O31:Q31)=0,"",Sheet1!T29)) -> 420 | AB31: =+IF(S31="","",IF(SUM(O31:Q31)=0,"",Sheet1!U29)) -> 252 | AC31: =+IF(S31="","",IF(SUM(O31:Q31)=0,"",Sheet1!AB29)) -> 0.63 | AD31: =IF(Sheet1!W29=0,"",IF(S31="","",Sheet1!W29)) -> 160 | AE31: =IF(Sheet1!Y29=0,"",IF(S31="","",Sheet1!Y29)) -> 28 | AF31: =IF(Sheet1!X29=0,"",IF(S31="","",Sheet1!X29)) -> 78 | AG31: =IF(Sheet1!Z29=0,"",IF(S31="","",Sheet1!Z29)) -> 24 | AH31: =+IF(S31="","",Sheet1!V29) -> 24.1 | AI31: =IF(AF31="","",SUM(AF$11:AF31)) -> 300 | AJ31: =+IF(T31="","",IF(S31="","",X31+SUM(AF$11:AF30))) -> 552 | AK31: 7.4 | AL31: 5.0 | AM31: 6.6 | AN31: 11.0 | AO31: 324 | AU31: 94 | AV31: 418 | AW31: -31.0 | AX31: -9.0 | AY31: -40.0 | AZ31: 542 | BA31: 157 | BB31: 699 | BC31: 7.3 | BD31: 2.1 | BE31: 9.4
B32: 22 | C32: 16 | D32: 13 | F32: 42 | G32: 44 | K32: =+IF(J32="","",SUM(J$11:J32)) ->  | M32: 0 | N32: =IF(Sheet1!E30="","",Sheet1!E30) -> 52 | S32: =Sheet1!N30 -> 52 | T32: =IF(S32="","",Sheet1!O30) -> 27.1 | U32: =IFERROR(IF(S32="","",Sheet1!P30),"") -> 0.635 | V32: =IFERROR(IF(S32="","",Sheet1!Q30),"") -> 26.0 | W32: =IFERROR(IF(S32="","",Sheet1!R30),"") -> 420 | X32: =IFERROR(IF(S32="","",Sheet1!S30),"") -> 267 | Y32: =IFERROR(IF(S32="","",Sheet1!AA30),"") -> 0.65 | Z32: 94 | AA32: =+IF(S32="","",IF(SUM(O32:Q32)=0,"",Sheet1!T30)) ->  | AB32: =+IF(S32="","",IF(SUM(O32:Q32)=0,"",Sheet1!U30)) ->  | AC32: =+IF(S32="","",IF(SUM(O32:Q32)=0,"",Sheet1!AB30)) ->  | AD32: =IF(Sheet1!W30=0,"",IF(S32="","",Sheet1!W30)) ->  | AE32: =IF(Sheet1!Y30=0,"",IF(S32="","",Sheet1!Y30)) ->  | AF32: =IF(Sheet1!X30=0,"",IF(S32="","",Sheet1!X30)) ->  | AG32: =IF(Sheet1!Z30=0,"",IF(S32="","",Sheet1!Z30)) ->  | AH32: =+IF(S32="","",Sheet1!V30) ->  | AI32: =IF(AF32="","",SUM(AF$11:AF32)) ->  | AJ32: =+IF(T32="","",IF(S32="","",X32+SUM(AF$11:AF31))) -> 566 | AK32: 7.5 | AM32: 5.1 | AN32: 10.9 | AO32: 262 | AU32: 76 | AV32: 338 | AW32: 7.4 | AX32: 2.1 | AY32: 9.5 | AZ32: 556 | BA32: 161 | BB32: 718 | BC32: 7.4 | BD32: 2.1 | BE32: 9.5
B33: 23 | C33: 16 | D33: 13 | F33: 44 | G33: 46 | K33: =+IF(J33="","",SUM(J$11:J33)) ->  | M33: 0 | N33: =IF(Sheet1!E31="","",Sheet1!E31) -> 54 | S33: =Sheet1!N31 -> 54 | T33: =IF(S33="","",Sheet1!O31) -> 27.3 | U33: =IFERROR(IF(S33="","",Sheet1!P31),"") -> 0.671 | V33: =IFERROR(IF(S33="","",Sheet1!Q31),"") -> 26.6 | W33: =IFERROR(IF(S33="","",Sheet1!R31),"") -> 420 | X33: =IFERROR(IF(S33="","",Sheet1!S31),"") -> 282 | Y33: =IFERROR(IF(S33="","",Sheet1!AA31),"") -> 0.66 | Z33: 93 | AA33: =+IF(S33="","",IF(SUM(O33:Q33)=0,"",Sheet1!T31)) ->  | AB33: =+IF(S33="","",IF(SUM(O33:Q33)=0,"",Sheet1!U31)) ->  | AC33: =+IF(S33="","",IF(SUM(O33:Q33)=0,"",Sheet1!AB31)) ->  | AD33: =IF(Sheet1!W31=0,"",IF(S33="","",Sheet1!W31)) ->  | AE33: =IF(Sheet1!Y31=0,"",IF(S33="","",Sheet1!Y31)) ->  | AF33: =IF(Sheet1!X31=0,"",IF(S33="","",Sheet1!X31)) ->  | AG33: =IF(Sheet1!Z31=0,"",IF(S33="","",Sheet1!Z31)) ->  | AH33: =+IF(S33="","",Sheet1!V31) ->  | AI33: =IF(AF33="","",SUM(AF$11:AF33)) ->  | AJ33: =+IF(T33="","",IF(S33="","",X33+SUM(AF$11:AF32))) -> 581 | AK33: 7.4 | AM33: 5.2 | AN33: 10.8 | AO33: 277 | AU33: 80 | AV33: 357 | AW33: 7.3 | AX33: 2.1 | AY33: 9.4 | AZ33: 571 | BA33: 166 | BB33: 737 | BC33: 7.3 | BD33: 2.1 | BE33: 9.4
B34: 24 | C34: 16 | D34: 13 | F34: 46 | G34: 48 | K34: =+IF(J34="","",SUM(J$11:J34)) ->  | M34: 0 | N34: =IF(Sheet1!E32="","",Sheet1!E32) -> 56 | S34: =Sheet1!N32 -> 56 | T34: =IF(S34="","",Sheet1!O32) -> 27.5 | U34: =IFERROR(IF(S34="","",Sheet1!P32),"") -> 0.706 | V34: =IFERROR(IF(S34="","",Sheet1!Q32),"") -> 27.1 | W34: =IFERROR(IF(S34="","",Sheet1!R32),"") -> 420 | X34: =IFERROR(IF(S34="","",Sheet1!S32),"") -> 297 | Y34: =IFERROR(IF(S34="","",Sheet1!AA32),"") -> 0.67 | Z34: 92 | AA34: =+IF(S34="","",IF(SUM(O34:Q34)=0,"",Sheet1!T32)) ->  | AB34: =+IF(S34="","",IF(SUM(O34:Q34)=0,"",Sheet1!U32)) ->  | AC34: =+IF(S34="","",IF(SUM(O34:Q34)=0,"",Sheet1!AB32)) ->  | AD34: =IF(Sheet1!W32=0,"",IF(S34="","",Sheet1!W32)) ->  | AE34: =IF(Sheet1!Y32=0,"",IF(S34="","",Sheet1!Y32)) ->  | AF34: =IF(Sheet1!X32=0,"",IF(S34="","",Sheet1!X32)) ->  | AG34: =IF(Sheet1!Z32=0,"",IF(S34="","",Sheet1!Z32)) ->  | AH34: =+IF(S34="","",Sheet1!V32) ->  | AI34: =IF(AF34="","",SUM(AF$11:AF34)) ->  | AJ34: =+IF(T34="","",IF(S34="","",X34+SUM(AF$11:AF33))) -> 596 | AK34: 7.4 | AM34: 5.3 | AN34: 10.6 | AO34: 291 | AU34: 85 | AV34: 376 | AW34: 7.3 | AX34: 2.1 | AY34: 9.4 | AZ34: 586 | BA34: 170 | BB34: 755 | BC34: 7.3 | BD34: 2.1 | BE34: 9.4
B35: 25 | C35: 16 | D35: 15 | F35: 48 | G35: 50 | K35: =+IF(J35="","",SUM(J$11:J35)) ->  | M35: 0 | N35: =IF(Sheet1!E33="","",Sheet1!E33) -> 58 | S35: =Sheet1!N33 -> 58 | T35: =IF(S35="","",Sheet1!O33) -> 27.8 | U35: =IFERROR(IF(S35="","",Sheet1!P33),"") -> 0.742 | V35: =IFERROR(IF(S35="","",Sheet1!Q33),"") -> 27.7 | W35: =IFERROR(IF(S35="","",Sheet1!R33),"") -> 420 | X35: =IFERROR(IF(S35="","",Sheet1!S33),"") -> 311 | Y35: =IFERROR(IF(S35="","",Sheet1!AA33),"") -> 0.69 | Z35: 91 | AA35: =+IF(S35="","",IF(SUM(O35:Q35)=0,"",Sheet1!T33)) ->  | AB35: =+IF(S35="","",IF(SUM(O35:Q35)=0,"",Sheet1!U33)) ->  | AC35: =+IF(S35="","",IF(SUM(O35:Q35)=0,"",Sheet1!AB33)) ->  | AD35: =IF(Sheet1!W33=0,"",IF(S35="","",Sheet1!W33)) ->  | AE35: =IF(Sheet1!Y33=0,"",IF(S35="","",Sheet1!Y33)) ->  | AF35: =IF(Sheet1!X33=0,"",IF(S35="","",Sheet1!X33)) ->  | AG35: =IF(Sheet1!Z33=0,"",IF(S35="","",Sheet1!Z33)) ->  | AH35: =+IF(S35="","",Sheet1!V33) ->  | AI35: =IF(AF35="","",SUM(AF$11:AF35)) ->  | AJ35: =+IF(T35="","",IF(S35="","",X35+SUM(AF$11:AF34))) -> 611 | AK35: 7.3 | AM35: 5.4 | AN35: 10.5 | AO35: 306 | AU35: 89 | AV35: 395 | AW35: 7.2 | AX35: 2.1 | AY35: 9.3 | AZ35: 600 | BA35: 174 | BB35: 774 | BC35: 7.2 | BD35: 2.1 | BE35: 9.3
B36: 26 | C36: 16 | D36: 15 | F36: 50 | G36: 52 | K36: =+IF(J36="","",SUM(J$11:J36)) ->  | M36: 0 | N36: =IF(Sheet1!E34="","",Sheet1!E34) -> 60 | S36: =Sheet1!N34 -> 60 | T36: =IF(S36="","",Sheet1!O34) -> 27.9 | U36: =IFERROR(IF(S36="","",Sheet1!P34),"") -> 0.777 | V36: =IFERROR(IF(S36="","",Sheet1!Q34),"") -> 28.3 | W36: =IFERROR(IF(S36="","",Sheet1!R34),"") -> 420 | X36: =IFERROR(IF(S36="","",Sheet1!S34),"") -> 326 | Y36: =IFERROR(IF(S36="","",Sheet1!AA34),"") -> 0.70 | Z36: 90 | AA36: =+IF(S36="","",IF(SUM(O36:Q36)=0,"",Sheet1!T34)) ->  | AB36: =+IF(S36="","",IF(SUM(O36:Q36)=0,"",Sheet1!U34)) ->  | AC36: =+IF(S36="","",IF(SUM(O36:Q36)=0,"",Sheet1!AB34)) ->  | AD36: =IF(Sheet1!W34=0,"",IF(S36="","",Sheet1!W34)) ->  | AE36: =IF(Sheet1!Y34=0,"",IF(S36="","",Sheet1!Y34)) ->  | AF36: =IF(Sheet1!X34=0,"",IF(S36="","",Sheet1!X34)) ->  | AG36: =IF(Sheet1!Z34=0,"",IF(S36="","",Sheet1!Z34)) ->  | AH36: =+IF(S36="","",Sheet1!V34) ->  | AI36: =IF(AF36="","",SUM(AF$11:AF36)) ->  | AJ36: =+IF(T36="","",IF(S36="","",X36+SUM(AF$11:AF35))) -> 626 | AK36: 7.3 | AM36: 5.4 | AN36: 10.4 | AO36: 320 | AU36: 93 | AV36: 413 | AW36: 7.2 | AX36: 2.1 | AY36: 9.3 | AZ36: 615 | BA36: 178 | BB36: 793 | BC36: 7.2 | BD36: 2.1 | BE36: 9.3
B37: 27 | C37: 16 | D37: 14 | F37: 52 | G37: 54 | K37: =+IF(J37="","",SUM(J$11:J37)) ->  | M37: 0 | N37: =IF(Sheet1!E35="","",Sheet1!E35) -> 62 | S37: =Sheet1!N35 -> 62 | T37: =IF(S37="","",Sheet1!O35) -> 28.1 | U37: =IFERROR(IF(S37="","",Sheet1!P35),"") -> 0.811 | V37: =IFERROR(IF(S37="","",Sheet1!Q35),"") -> 28.8 | W37: =IFERROR(IF(S37="","",Sheet1!R35),"") -> 420 | X37: =IFERROR(IF(S37="","",Sheet1!S35),"") -> 341 | Y37: =IFERROR(IF(S37="","",Sheet1!AA35),"") -> 0.71 | Z37: 88 | AA37: =+IF(S37="","",IF(SUM(O37:Q37)=0,"",Sheet1!T35)) ->  | AB37: =+IF(S37="","",IF(SUM(O37:Q37)=0,"",Sheet1!U35)) ->  | AC37: =+IF(S37="","",IF(SUM(O37:Q37)=0,"",Sheet1!AB35)) ->  | AD37: =IF(Sheet1!W35=0,"",IF(S37="","",Sheet1!W35)) ->  | AE37: =IF(Sheet1!Y35=0,"",IF(S37="","",Sheet1!Y35)) ->  | AF37: =IF(Sheet1!X35=0,"",IF(S37="","",Sheet1!X35)) ->  | AG37: =IF(Sheet1!Z35=0,"",IF(S37="","",Sheet1!Z35)) ->  | AH37: =+IF(S37="","",Sheet1!V35) ->  | AI37: =IF(AF37="","",SUM(AF$11:AF37)) ->  | AJ37: =+IF(T37="","",IF(S37="","",X37+SUM(AF$11:AF36))) -> 640 | AK37: 7.3 | AM37: 5.5 | AN37: 10.3 | AO37: 335 | AU37: 97 | AV37: 432 | AW37: 7.1 | AX37: 2.1 | AY37: 9.2 | AZ37: 629 | BA37: 182 | BB37: 811 | BC37: 7.1 | BD37: 2.1 | BE37: 9.2
B38: 28 | C38: 16 | D38: 13 | F38: 54 | G38: 56 | K38: =+IF(J38="","",SUM(J$11:J38)) ->  | M38: 0 | N38: =IF(Sheet1!E36="","",Sheet1!E36) -> 64 | S38: =Sheet1!N36 -> 64 | T38: =IF(S38="","",Sheet1!O36) -> 28.3 | U38: =IFERROR(IF(S38="","",Sheet1!P36),"") -> 0.846 | V38: =IFERROR(IF(S38="","",Sheet1!Q36),"") -> 29.2 | W38: =IFERROR(IF(S38="","",Sheet1!R36),"") -> 420 | X38: =IFERROR(IF(S38="","",Sheet1!S36),"") -> 355 | Y38: =IFERROR(IF(S38="","",Sheet1!AA36),"") -> 0.72 | Z38: 88 | AA38: =+IF(S38="","",IF(SUM(O38:Q38)=0,"",Sheet1!T36)) ->  | AB38: =+IF(S38="","",IF(SUM(O38:Q38)=0,"",Sheet1!U36)) ->  | AC38: =+IF(S38="","",IF(SUM(O38:Q38)=0,"",Sheet1!AB36)) ->  | AD38: =IF(Sheet1!W36=0,"",IF(S38="","",Sheet1!W36)) ->  | AE38: =IF(Sheet1!Y36=0,"",IF(S38="","",Sheet1!Y36)) ->  | AF38: =IF(Sheet1!X36=0,"",IF(S38="","",Sheet1!X36)) ->  | AG38: =IF(Sheet1!Z36=0,"",IF(S38="","",Sheet1!Z36)) ->  | AH38: =+IF(S38="","",Sheet1!V36) ->  | AI38: =IF(AF38="","",SUM(AF$11:AF38)) ->  | AJ38: =+IF(T38="","",IF(S38="","",X38+SUM(AF$11:AF37))) -> 655 | AK38: 7.2 | AM38: 5.6 | AN38: 10.2 | AO38: 349 | AU38: 101 | AV38: 450 | AW38: 7.1 | AX38: 2.0 | AY38: 9.1 | AZ38: 643 | BA38: 187 | BB38: 830 | BC38: 7.1 | BD38: 2.0 | BE38: 9.1
B39: 29 | C39: 16 | D39: 14 | F39: 56 | G39: 58 | K39: =+IF(J39="","",SUM(J$11:J39)) ->  | M39: 0 | N39: =IF(Sheet1!E37="","",Sheet1!E37) -> 66 | S39: =Sheet1!N37 -> 66 | T39: =IF(S39="","",Sheet1!O37) -> 28.4 | U39: =IFERROR(IF(S39="","",Sheet1!P37),"") -> 0.880 | V39: =IFERROR(IF(S39="","",Sheet1!Q37),"") -> 29.8 | W39: =IFERROR(IF(S39="","",Sheet1!R37),"") -> 420 | X39: =IFERROR(IF(S39="","",Sheet1!S37),"") -> 370 | Y39: =IFERROR(IF(S39="","",Sheet1!AA37),"") -> 0.73 | Z39: 86 | AA39: =+IF(S39="","",IF(SUM(O39:Q39)=0,"",Sheet1!T37)) ->  | AB39: =+IF(S39="","",IF(SUM(O39:Q39)=0,"",Sheet1!U37)) ->  | AC39: =+IF(S39="","",IF(SUM(O39:Q39)=0,"",Sheet1!AB37)) ->  | AD39: =IF(Sheet1!W37=0,"",IF(S39="","",Sheet1!W37)) ->  | AE39: =IF(Sheet1!Y37=0,"",IF(S39="","",Sheet1!Y37)) ->  | AF39: =IF(Sheet1!X37=0,"",IF(S39="","",Sheet1!X37)) ->  | AG39: =IF(Sheet1!Z37=0,"",IF(S39="","",Sheet1!Z37)) ->  | AH39: =+IF(S39="","",Sheet1!V37) ->  | AI39: =IF(AF39="","",SUM(AF$11:AF39)) ->  | AJ39: =+IF(T39="","",IF(S39="","",X39+SUM(AF$11:AF38))) -> 669 | AK39: 7.2 | AM39: 5.6 | AN39: 10.1 | AO39: 363 | AU39: 105 | AV39: 468 | AW39: 7.0 | AX39: 2.0 | AY39: 9.1 | AZ39: 657 | BA39: 191 | BB39: 848 | BC39: 7.0 | BD39: 2.0 | BE39: 9.1
B40: 30 | C40: 16 | D40: 13 | F40: 58 | G40: 60 | K40: =+IF(J40="","",SUM(J$11:J40)) ->  | M40: 0 | N40: =IF(Sheet1!E38="","",Sheet1!E38) -> 68 | S40: =Sheet1!N38 -> 68 | T40: =IF(S40="","",Sheet1!O38) -> 28.5 | U40: =IFERROR(IF(S40="","",Sheet1!P38),"") -> 0.914 | V40: =IFERROR(IF(S40="","",Sheet1!Q38),"") -> 30.2 | W40: =IFERROR(IF(S40="","",Sheet1!R38),"") -> 420 | X40: =IFERROR(IF(S40="","",Sheet1!S38),"") -> 384 | Y40: =IFERROR(IF(S40="","",Sheet1!AA38),"") -> 0.74 | Z40: 86 | AA40: =+IF(S40="","",IF(SUM(O40:Q40)=0,"",Sheet1!T38)) ->  | AB40: =+IF(S40="","",IF(SUM(O40:Q40)=0,"",Sheet1!U38)) ->  | AC40: =+IF(S40="","",IF(SUM(O40:Q40)=0,"",Sheet1!AB38)) ->  | AD40: =IF(Sheet1!W38=0,"",IF(S40="","",Sheet1!W38)) ->  | AE40: =IF(Sheet1!Y38=0,"",IF(S40="","",Sheet1!Y38)) ->  | AF40: =IF(Sheet1!X38=0,"",IF(S40="","",Sheet1!X38)) ->  | AG40: =IF(Sheet1!Z38=0,"",IF(S40="","",Sheet1!Z38)) ->  | AH40: =+IF(S40="","",Sheet1!V38) ->  | AI40: =IF(AF40="","",SUM(AF$11:AF40)) ->  | AJ40: =+IF(T40="","",IF(S40="","",X40+SUM(AF$11:AF39))) -> 684 | AK40: 7.1 | AM40: 5.6 | AN40: 10.1 | AO40: 377 | AU40: 109 | AV40: 487 | AW40: 7.0 | AX40: 2.0 | AY40: 9.0 | AZ40: 671 | BA40: 195 | BB40: 866 | BC40: 7.0 | BD40: 2.0 | BE40: 9.0
B41: 31 | C41: 16 | D41: 15 | K41: =+IF(J41="","",SUM(J$11:J41)) ->  | M41: 0 | N41: =IF(Sheet1!E39="","",Sheet1!E39) -> 70 | S41: =Sheet1!N39 -> 70 | T41: =IF(S41="","",Sheet1!O39) -> 28.7 | U41: =IFERROR(IF(S41="","",Sheet1!P39),"") -> 0.948 | V41: =IFERROR(IF(S41="","",Sheet1!Q39),"") -> 30.7 | W41: =IFERROR(IF(S41="","",Sheet1!R39),"") -> 420 | X41: =IFERROR(IF(S41="","",Sheet1!S39),"") -> 398 | Y41: =IFERROR(IF(S41="","",Sheet1!AA39),"") -> 0.74 | Z41: 85 | AA41: =+IF(S41="","",IF(SUM(O41:Q41)=0,"",Sheet1!T39)) ->  | AB41: =+IF(S41="","",IF(SUM(O41:Q41)=0,"",Sheet1!U39)) ->  | AC41: =+IF(S41="","",IF(SUM(O41:Q41)=0,"",Sheet1!AB39)) ->  | AD41: =IF(Sheet1!W39=0,"",IF(S41="","",Sheet1!W39)) ->  | AE41: =IF(Sheet1!Y39=0,"",IF(S41="","",Sheet1!Y39)) ->  | AF41: =IF(Sheet1!X39=0,"",IF(S41="","",Sheet1!X39)) ->  | AG41: =IF(Sheet1!Z39=0,"",IF(S41="","",Sheet1!Z39)) ->  | AH41: =+IF(S41="","",Sheet1!V39) ->  | AI41: =IF(AF41="","",SUM(AF$11:AF41)) ->  | AJ41: =+IF(T41="","",IF(S41="","",X41+SUM(AF$11:AF40))) -> 698 | AK41: 7.1 | AM41: 5.7 | AN41: 10.0 | AO41: 391 | AU41: 113 | AV41: 505 | AW41: 6.9 | AX41: 2.0 | AY41: 9.0 | AZ41: 685 | BA41: 199 | BB41: 884 | BC41: 6.9 | BD41: 2.0 | BE41: 9.0
B42: 32 | C42: 16 | D42: 15 | K42: =+IF(J42="","",SUM(J$11:J42)) ->  | M42: 0 | N42: =IF(Sheet1!E40="","",Sheet1!E40) -> 72 | S42: =Sheet1!N40 -> 72 | T42: =IF(S42="","",Sheet1!O40) -> 28.8 | U42: =IFERROR(IF(S42="","",Sheet1!P40),"") -> 0.982 | V42: =IFERROR(IF(S42="","",Sheet1!Q40),"") -> 31.1 | W42: =IFERROR(IF(S42="","",Sheet1!R40),"") -> 420 | X42: =IFERROR(IF(S42="","",Sheet1!S40),"") -> 412 | Y42: =IFERROR(IF(S42="","",Sheet1!AA40),"") -> 0.75 | Z42: 84 | AA42: =+IF(S42="","",IF(SUM(O42:Q42)=0,"",Sheet1!T40)) ->  | AB42: =+IF(S42="","",IF(SUM(O42:Q42)=0,"",Sheet1!U40)) ->  | AC42: =+IF(S42="","",IF(SUM(O42:Q42)=0,"",Sheet1!AB40)) ->  | AD42: =IF(Sheet1!W40=0,"",IF(S42="","",Sheet1!W40)) ->  | AE42: =IF(Sheet1!Y40=0,"",IF(S42="","",Sheet1!Y40)) ->  | AF42: =IF(Sheet1!X40=0,"",IF(S42="","",Sheet1!X40)) ->  | AG42: =IF(Sheet1!Z40=0,"",IF(S42="","",Sheet1!Z40)) ->  | AH42: =+IF(S42="","",Sheet1!V40) ->  | AI42: =IF(AF42="","",SUM(AF$11:AF42)) ->  | AJ42: =+IF(T42="","",IF(S42="","",X42+SUM(AF$11:AF41))) -> 712 | AK42: 7.0 | AM42: 5.7 | AN42: 9.9 | AO42: 405 | AU42: 117 | AV42: 522 | AW42: 6.9 | AX42: 2.0 | AY42: 8.9 | AZ42: 699 | BA42: 203 | BB42: 902 | BC42: 6.9 | BD42: 2.0 | BE42: 8.9
B43: 33 | C43: 16 | D43: 15 | K43: =+IF(J43="","",SUM(J$11:J43)) ->  | M43: 0 | N43: =IF(Sheet1!E41="","",Sheet1!E41) -> 74 | S43: =Sheet1!N41 -> 74 | T43: =IF(S43="","",Sheet1!O41) -> 28.9 | U43: =IFERROR(IF(S43="","",Sheet1!P41),"") -> 1.015 | V43: =IFERROR(IF(S43="","",Sheet1!Q41),"") -> 31.5 | W43: =IFERROR(IF(S43="","",Sheet1!R41),"") -> 420 | X43: =IFERROR(IF(S43="","",Sheet1!S41),"") -> 426 | Y43: =IFERROR(IF(S43="","",Sheet1!AA41),"") -> 0.76 | Z43: 83 | AA43: =+IF(S43="","",IF(SUM(O43:Q43)=0,"",Sheet1!T41)) ->  | AB43: =+IF(S43="","",IF(SUM(O43:Q43)=0,"",Sheet1!U41)) ->  | AC43: =+IF(S43="","",IF(SUM(O43:Q43)=0,"",Sheet1!AB41)) ->  | AD43: =IF(Sheet1!W41=0,"",IF(S43="","",Sheet1!W41)) ->  | AE43: =IF(Sheet1!Y41=0,"",IF(S43="","",Sheet1!Y41)) ->  | AF43: =IF(Sheet1!X41=0,"",IF(S43="","",Sheet1!X41)) ->  | AG43: =IF(Sheet1!Z41=0,"",IF(S43="","",Sheet1!Z41)) ->  | AH43: =+IF(S43="","",Sheet1!V41) ->  | AI43: =IF(AF43="","",SUM(AF$11:AF43)) ->  | AJ43: =+IF(T43="","",IF(S43="","",X43+SUM(AF$11:AF42))) -> 726 | AK43: 7.0 | AM43: 5.8 | AN43: 9.8 | AO43: 419 | AU43: 121 | AV43: 540 | AW43: 6.9 | AX43: 2.0 | AY43: 8.8 | AZ43: 713 | BA43: 207 | BB43: 920 | BC43: 6.9 | BD43: 2.0 | BE43: 8.8
B44: 34 | C44: 16 | D44: 15 | K44: =+IF(J44="","",SUM(J$11:J44)) ->  | M44: 0 | N44: =IF(Sheet1!E42="","",Sheet1!E42) -> 76 | S44: =Sheet1!N42 -> 76 | T44: =IF(S44="","",Sheet1!O42) -> 28.9 | U44: =IFERROR(IF(S44="","",Sheet1!P42),"") -> 1.048 | V44: =IFERROR(IF(S44="","",Sheet1!Q42),"") -> 32.0 | W44: =IFERROR(IF(S44="","",Sheet1!R42),"") -> 420 | X44: =IFERROR(IF(S44="","",Sheet1!S42),"") -> 440 | Y44: =IFERROR(IF(S44="","",Sheet1!AA42),"") -> 0.77 | Z44: 82 | AA44: =+IF(S44="","",IF(SUM(O44:Q44)=0,"",Sheet1!T42)) ->  | AB44: =+IF(S44="","",IF(SUM(O44:Q44)=0,"",Sheet1!U42)) ->  | AC44: =+IF(S44="","",IF(SUM(O44:Q44)=0,"",Sheet1!AB42)) ->  | AD44: =IF(Sheet1!W42=0,"",IF(S44="","",Sheet1!W42)) ->  | AE44: =IF(Sheet1!Y42=0,"",IF(S44="","",Sheet1!Y42)) ->  | AF44: =IF(Sheet1!X42=0,"",IF(S44="","",Sheet1!X42)) ->  | AG44: =IF(Sheet1!Z42=0,"",IF(S44="","",Sheet1!Z42)) ->  | AH44: =+IF(S44="","",Sheet1!V42) ->  | AI44: =IF(AF44="","",SUM(AF$11:AF44)) ->  | AJ44: =+IF(T44="","",IF(S44="","",X44+SUM(AF$11:AF43))) -> 740 | AK44: 7.0 | AM44: 5.8 | AN44: 9.7 | AO44: 432 | AU44: 125 | AV44: 558 | AW44: 6.8 | AX44: 2.0 | AY44: 8.8 | AZ44: 727 | BA44: 211 | BB44: 937 | BC44: 6.8 | BD44: 2.0 | BE44: 8.8
B45: 35 | C45: 16 | D45: 14 | K45: =+IF(J45="","",SUM(J$11:J45)) ->  | M45: 0 | N45: =IF(Sheet1!E43="","",Sheet1!E43) -> 78 | S45: =Sheet1!N43 -> 78 | T45: =IF(S45="","",Sheet1!O43) -> 29.0 | U45: =IFERROR(IF(S45="","",Sheet1!P43),"") -> 1.081 | V45: =IFERROR(IF(S45="","",Sheet1!Q43),"") -> 32.5 | W45: =IFERROR(IF(S45="","",Sheet1!R43),"") -> 420 | X45: =IFERROR(IF(S45="","",Sheet1!S43),"") -> 454 | Y45: =IFERROR(IF(S45="","",Sheet1!AA43),"") -> 0.78 | Z45: 81 | AA45: =+IF(S45="","",IF(SUM(O45:Q45)=0,"",Sheet1!T43)) ->  | AB45: =+IF(S45="","",IF(SUM(O45:Q45)=0,"",Sheet1!U43)) ->  | AC45: =+IF(S45="","",IF(SUM(O45:Q45)=0,"",Sheet1!AB43)) ->  | AD45: =IF(Sheet1!W43=0,"",IF(S45="","",Sheet1!W43)) ->  | AE45: =IF(Sheet1!Y43=0,"",IF(S45="","",Sheet1!Y43)) ->  | AF45: =IF(Sheet1!X43=0,"",IF(S45="","",Sheet1!X43)) ->  | AG45: =IF(Sheet1!Z43=0,"",IF(S45="","",Sheet1!Z43)) ->  | AH45: =+IF(S45="","",Sheet1!V43) ->  | AI45: =IF(AF45="","",SUM(AF$11:AF45)) ->  | AJ45: =+IF(T45="","",IF(S45="","",X45+SUM(AF$11:AF44))) -> 754 | AK45: 6.9 | AM45: 5.8 | AN45: 9.7 | AO45: 446 | AU45: 129 | AV45: 576 | AW45: 6.8 | AX45: 2.0 | AY45: 8.8 | AZ45: 740 | BA45: 215 | BB45: 955 | BC45: 6.8 | BD45: 2.0 | BE45: 8.8
B46: 36 | C46: 16 | D46: 13 | K46: =+IF(J46="","",SUM(J$11:J46)) ->  | M46: 0 | N46: =IF(Sheet1!E44="","",Sheet1!E44) -> 80 | S46: =Sheet1!N44 -> 80 | T46: =IF(S46="","",Sheet1!O44) -> 29.1 | U46: =IFERROR(IF(S46="","",Sheet1!P44),"") -> 1.115 | V46: =IFERROR(IF(S46="","",Sheet1!Q44),"") -> 32.8 | W46: =IFERROR(IF(S46="","",Sheet1!R44),"") -> 420 | X46: =IFERROR(IF(S46="","",Sheet1!S44),"") -> 468 | Y46: =IFERROR(IF(S46="","",Sheet1!AA44),"") -> 0.78 | Z46: 81 | AA46: =+IF(S46="","",IF(SUM(O46:Q46)=0,"",Sheet1!T44)) ->  | AB46: =+IF(S46="","",IF(SUM(O46:Q46)=0,"",Sheet1!U44)) ->  | AC46: =+IF(S46="","",IF(SUM(O46:Q46)=0,"",Sheet1!AB44)) ->  | AD46: =IF(Sheet1!W44=0,"",IF(S46="","",Sheet1!W44)) ->  | AE46: =IF(Sheet1!Y44=0,"",IF(S46="","",Sheet1!Y44)) ->  | AF46: =IF(Sheet1!X44=0,"",IF(S46="","",Sheet1!X44)) ->  | AG46: =IF(Sheet1!Z44=0,"",IF(S46="","",Sheet1!Z44)) ->  | AH46: =+IF(S46="","",Sheet1!V44) ->  | AI46: =IF(AF46="","",SUM(AF$11:AF46)) ->  | AJ46: =+IF(T46="","",IF(S46="","",X46+SUM(AF$11:AF45))) -> 768 | AK46: =+IF(S46="","",IF(AE47="","",(AE47-AJ46)/(N48-S46))) ->  | AM46: 5.9 | AN46: 9.6 | AO46: 460 | AU46: 133 | AV46: 593 | AZ46: 754 | BA46: 219 | BB46: 973
B47: 37 | C47: 16 | D47: 13 | S47: ・立木データは胸高直径の大きい順に入力してください。
B48: 38 | C48: 16 | D48: 13 | J48: =SUM(J11:J46) -> 5 | S48: ・対象林分の地位指数（40年生時の上層高），植栽本数が不明の場合は地域の標準的な値を選択してください。
B49: 39 | C49: 15 | D49: 15 | J49: 回数 | K49: =+S8 -> 林齢 | L49: 間伐率 | M49: 直径 | S49: ・データありの地位指数は、樹高データがないときは推定値です。
B50: 40 | C50: 15 | D50: 13 | J50: 1 | K50: =IF(J50>J$48,"",VLOOKUP(J50,$K$11:$AH$46,4,0)) -> 10 | L50: =IF(J50>J$48,"",VLOOKUP(J50,$K$11:$AH$46,3,0)) -> 30 | M50: =IF(J50>J$48,"",VLOOKUP(J50,$K$11:$AH$46,12,0)) -> 9.079646018 | S50: ・地位指数はⅠ等地24，Ⅱ等地21，Ⅲ等地18を目安として選択してください。
B51: 41 | C51: 15 | D51: 14 | J51: 2 | K51: 20 | L51: 30 | M51: 14.0375 | S51: ・立木データがある場合は林齢（10年生～）、調査面積を入力してください。無い場合は空欄にしてください。
B52: 42 | C52: 15 | D52: 13 | J52: 3 | K52: 30 | L52: 30 | M52: 17.84210526 | S52: ・立木データが300以上ある場合は入力方法2を使用してください。
B53: 43 | C53: 15 | D53: 14 | J53: 4 | K53: 40 | L53: 30 | M53: 21.22222222 | S53: ・皆伐を入力する場合は全層の列に100を入力してください。
B54: 44 | C54: 15 | D54: 14 | J54: 5 | K54: 50 | L54: 30 | M54: 24.68965517 | S54: ・CO2貯蔵量および吸収量の算定には（独）森林総合研究所公表の容積密度、拡大係数、地上部・地下部比を使用しました。
B55: 45 | C55: 15 | D55: 14 | J55: 6 | S55: ・拡大係数は20年生以下の1.50と21年生以上の1.15の平均値1.325を用いました。
B56: 46 | C56: 15 | D56: 12 | J56: 7
B57: 47 | C57: 15 | D57: 14 | J57: 8
B58: 48 | C58: 15 | D58: 13
B59: 49 | C59: 15 | D59: 12
B60: 50 | C60: 15 | D60: 15 | J60: 15 | K60: 1000
B61: 51 | C61: 15 | D61: 12 | J61: 16 | K61: 1250
B62: 52 | C62: 15 | D62: 13 | J62: 17 | K62: 1500
B63: 53 | C63: 15 | D63: 14 | J63: 18 | K63: 1750
B64: 54 | C64: 15 | D64: 12 | J64: 19 | K64: 2000
B65: 55 | C65: 15 | D65: 13 | J65: 20 | K65: 2250
B66: 56 | C66: 15 | D66: 14 | J66: 21 | K66: 2500
B67: 57 | C67: 14 | D67: 13 | J67: 22 | K67: 2750
B68: 58 | C68: 14 | D68: 12 | J68: 23 | K68: 3000
B69: 59 | C69: 14 | D69: 13 | J69: 24
B70: 60 | C70: 14 | D70: 14 | J70: 25
B71: 61 | C71: 14 | D71: 13 | J71: 26
B72: 62 | C72: 14 | D72: 13 | J72: 27
B73: 63 | C73: 14 | D73: 14 | J73: 28
B74: 64 | C74: 14 | D74: 15 | J74: 29
B75: 65 | C75: 14 | D75: 12 | J75: 30
B76: 66 | C76: 14 | D76: 14 | J76: 31
B77: 67 | C77: 14 | D77: 12 | J77: 32
B78: 68 | C78: 14 | D78: 14
B79: 69 | C79: 14 | D79: 14
B80: 70 | C80: 14 | D80: 14
B81: 71 | C81: 14 | D81: 13
B82: 72 | C82: 14 | D82: 13
B83: 73 | C83: 14 | D83: 13
B84: 74 | C84: 14 | D84: 13
B85: 75 | C85: 14 | D85: 13
B86: 76 | C86: 14 | D86: 13
B87: 77 | C87: 14 | D87: 14
B88: 78 | C88: 14 | D88: 14
B89: 79 | C89: 14 | D89: 14
B90: 80 | C90: 14 | D90: 14
B91: 81 | C91: 14 | D91: 14
B92: 82 | C92: 14 | D92: 13
B93: 83 | C93: 14 | D93: 13
B94: 84 | C94: 14 | D94: 14
B95: 85 | C95: 14 | D95: 14
B96: 86 | C96: 14 | D96: 12
B97: 87 | C97: 14 | D97: 14
B98: 88 | C98: 14 | D98: 13
B99: 89 | C99: 13 | D99: 13
B100: 90 | C100: 13 | D100: 15
B101: 91 | C101: 13 | D101: 14
B102: 92 | C102: 13 | D102: 13
B103: 93 | C103: 13 | D103: 15
B104: 94 | C104: 13 | D104: 14
B105: 95 | C105: 13 | D105: 13
B106: 96 | C106: 13 | D106: 13
B107: 97 | C107: 13 | D107: 13
B108: 98 | C108: 13 | D108: 13
B109: 99 | C109: 13 | D109: 11
B110: 100 | C110: 13 | D110: 13
B111: 101 | C111: 13 | D111: 12
B112: 102 | C112: 13 | D112: 12
B113: 103 | C113: 13 | D113: 14
B114: 104 | C114: 13 | D114: 13
B115: 105 | C115: 13 | D115: 14
B116: 106 | C116: 13 | D116: 12
B117: 107 | C117: 13 | D117: 13
B118: 108 | C118: 13 | D118: 13
B119: 109 | C119: 13 | D119: 14
B120: 110 | C120: 13 | D120: 12
B121: 111 | C121: 13 | D121: 13
B122: 112 | C122: 12 | D122: 13
B123: 113 | C123: 12 | D123: 13
B124: 114 | C124: 12 | D124: 12
B125: 115 | C125: 12 | D125: 12
B126: 116 | C126: 12 | D126: 12
B127: 117 | C127: 12 | D127: 13
B128: 118 | C128: 12 | D128: 14
B129: 119 | C129: 12 | D129: 12
B130: 120 | C130: 12 | D130: 15
B131: 121 | C131: 12 | D131: 14
B132: 122 | C132: 12 | D132: 7
B133: 123 | C133: 12 | D133: 13
B134: 124 | C134: 12 | D134: 12
B135: 125 | C135: 12 | D135: 12
B136: 126 | C136: 12 | D136: 12
B137: 127 | C137: 12 | D137: 13
B138: 128 | C138: 12 | D138: 13
B139: 129 | C139: 12 | D139: 14
B140: 130 | C140: 12 | D140: 13
B141: 131 | C141: 12 | D141: 13
B142: 132 | C142: 12 | D142: 13
B143: 133 | C143: 12 | D143: 13
B144: 134 | C144: 12 | D144: 10
B145: 135 | C145: 12 | D145: 10
B146: 136 | C146: 12 | D146: 12
B147: 137 | C147: 12 | D147: 11
B148: 138 | C148: 12 | D148: 12
B149: 139 | C149: 12 | D149: 12
B150: 140 | C150: 12 | D150: 13
B151: 141 | C151: 12 | D151: 13
B152: 142 | C152: 11 | D152: 12
B153: 143 | C153: 11 | D153: 13
B154: 144 | C154: 11 | D154: 11
B155: 145 | C155: 11 | D155: 14
B156: 146 | C156: 11 | D156: 12
B157: 147 | C157: 11 | D157: 9
B158: 148 | C158: 11 | D158: 13
B159: 149 | C159: 11 | D159: 13
B160: 150 | C160: 11 | D160: 13
B161: 151 | C161: 11 | D161: 13
B162: 152 | C162: 11 | D162: 13
B163: 153 | C163: 11 | D163: 12
B164: 154 | C164: 11 | D164: 12
B165: 155 | C165: 11 | D165: 12
B166: 156 | C166: 11 | D166: 12
B167: 157 | C167: 11 | D167: 12
B168: 158 | C168: 11 | D168: 13
B169: 159 | C169: 11 | D169: 12
B170: 160 | C170: 11 | D170: 12
B171: 161 | C171: 11 | D171: 12
B172: 162 | C172: 11 | D172: 12
B173: 163 | C173: 11 | D173: 11
B174: 164 | C174: 11 | D174: 10
B175: 165 | C175: 11 | D175: 12
B176: 166 | C176: 11 | D176: 12
B177: 167 | C177: 11 | D177: 12
B178: 168 | C178: 11 | D178: 12
B179: 169 | C179: 10 | D179: 12
B180: 170 | C180: 10 | D180: 11
B181: 171 | C181: 10 | D181: 12
B182: 172 | C182: 10 | D182: 13
B183: 173 | C183: 10 | D183: 12
B184: 174 | C184: 10 | D184: 7
B185: 175 | C185: 10 | D185: 13
B186: 176 | C186: 10 | D186: 12
B187: 177 | C187: 10 | D187: 11
B188: 178 | C188: 10 | D188: 13
B189: 179 | C189: 10 | D189: 11
B190: 180 | C190: 10 | D190: 12
B191: 181 | C191: 10 | D191: 10
B192: 182 | C192: 10 | D192: 11
B193: 183 | C193: 10 | D193: 12
B194: 184 | C194: 10 | D194: 11
B195: 185 | C195: 10 | D195: 12
B196: 186 | C196: 10 | D196: 13
B197: 187 | C197: 10 | D197: 13
B198: 188 | C198: 10 | D198: 12
B199: 189 | C199: 9 | D199: 11
B200: 190 | C200: 9 | D200: 12
... 110 more rows

Sheet 胸高直径別立木本数
A1: 道立総合研究機構 森林研究本部 林業試験場 | AA1: =+収穫予測!AK2 -> 作成年月日 | AC1: =+収穫予測!AL2 -> 2016-11-07
A2: 胸高直径別立木本数 | AA2: =+収穫予測!AK3 -> 場所 | AC2: =+収穫予測!AL3 -> 美唄市
F3: =+収穫予測!W4 -> 地位指数 | H3: =+収穫予測!Z4 -> 25 | J3: 直径階 | L3: 2 | M3: cm | AA3: =+収穫予測!AK4 -> 氏名 | AC3: =+収穫予測!AL4 -> 林業試験場
B4: 間伐前胸高直径
B5: cm以上 | C5: =+Sheet1!AE8 -> 0 | D5: =+Sheet1!AF8 -> 2 | E5: =+Sheet1!AG8 -> 4 | F5: =+Sheet1!AH8 -> 6 | G5: =+Sheet1!AI8 -> 8 | H5: =+Sheet1!AJ8 -> 10 | I5: =+Sheet1!AK8 -> 12 | J5: =+Sheet1!AL8 -> 14 | K5: =+Sheet1!AM8 -> 16 | L5: =+Sheet1!AN8 -> 18 | M5: =+Sheet1!AO8 -> 20 | N5: =+Sheet1!AP8 -> 22 | O5: =+Sheet1!AQ8 -> 24 | P5: =+Sheet1!AR8 -> 26 | Q5: =+Sheet1!AS8 -> 28 | R5: =+Sheet1!AT8 -> 30 | S5: =+Sheet1!AU8 -> 32 | T5: =+Sheet1!AV8 -> 34 | U5: =+Sheet1!AW8 -> 36 | V5: =+Sheet1!AX8 -> 38 | W5: =+Sheet1!AY8 -> 40 | X5: =+Sheet1!AZ8 -> 42 | Y5: =+Sheet1!BA8 -> 44 | Z5: =+Sheet1!BB8 -> 46 | AA5: =+Sheet1!BC8 -> 48 | AB5: =+Sheet1!BD8 -> 50 | AC5: =+Sheet1!BE8 -> 52 | AD5: =+Sheet1!BF8 -> 54 | AE5: =+Sheet1!BG8 -> 56 | AF5: 2
B6: cm未満 | C6: =+Sheet1!AF8 -> 2 | D6: =+Sheet1!AG8 -> 4 | E6: =+Sheet1!AH8 -> 6 | F6: =+Sheet1!AI8 -> 8 | G6: =+Sheet1!AJ8 -> 10 | H6: =+Sheet1!AK8 -> 12 | I6: =+Sheet1!AL8 -> 14 | J6: =+Sheet1!AM8 -> 16 | K6: =+Sheet1!AN8 -> 18 | L6: =+Sheet1!AO8 -> 20 | M6: =+Sheet1!AP8 -> 22 | N6: =+Sheet1!AQ8 -> 24 | O6: =+Sheet1!AR8 -> 26 | P6: =+Sheet1!AS8 -> 28 | Q6: =+Sheet1!AT8 -> 30 | R6: =+Sheet1!AU8 -> 32 | S6: =+Sheet1!AV8 -> 34 | T6: =+Sheet1!AW8 -> 36 | U6: =+Sheet1!AX8 -> 38 | V6: =+Sheet1!AY8 -> 40 | W6: =+Sheet1!AZ8 -> 42 | X6: =+Sheet1!BA8 -> 44 | Y6: =+Sheet1!BB8 -> 46 | Z6: =+Sheet1!BC8 -> 48 | AA6: =+Sheet1!BD8 -> 50 | AB6: =+Sheet1!BE8 -> 52 | AC6: =+Sheet1!BF8 -> 54 | AD6: =+Sheet1!BG8 -> 56 | AE6: 以上 | AF6: 3 | AJ6: 2 | AK6: 4 | AL6: 6 | AM6: 8 | AN6: 10 | AO6: 12 | AP6: 14 | AQ6: 16 | AR6: 18 | AS6: 20 | AT6: 22 | AU6: 24 | AV6: 26 | AW6: 28 | AX6: 30 | AY6: 32 | AZ6: 34 | BA6: 36 | BB6: 38 | BC6: 40 | BD6: 42 | BE6: 44 | BF6: 46 | BG6: 48 | BH6: 50 | BI6: 52 | BJ6: 54 | BK6: 56 | BL6: 以上
A7: 林 | B7: =+収穫予測!S11 -> 10 | C7: =+Sheet1!AE169 -> 0 | D7: =+Sheet1!AF169 -> 0 | E7: =+Sheet1!AG169 -> 190 | F7: =+Sheet1!AH169 -> 610 | G7: =+Sheet1!AI169 -> 650 | H7: =+Sheet1!AJ169 -> 540 | I7: =+Sheet1!AK169 -> 270 | J7: =+Sheet1!AL169 -> 0 | K7: =+Sheet1!AM169 -> 0 | L7: =+Sheet1!AN169 -> 0 | M7: =+Sheet1!AO169 -> 0 | N7: =+Sheet1!AP169 -> 0 | O7: =+Sheet1!AQ169 -> 0 | P7: =+Sheet1!AR169 -> 0 | Q7: =+Sheet1!AS169 -> 0 | R7: =+Sheet1!AT169 -> 0 | S7: =+Sheet1!AU169 -> 0 | T7: =+Sheet1!AV169 -> 0 | U7: =+Sheet1!AW169 -> 0 | V7: =+Sheet1!AX169 -> 0 | W7: =+Sheet1!AY169 -> 0 | X7: =+Sheet1!AZ169 -> 0 | Y7: =+Sheet1!BA169 -> 0 | Z7: =+Sheet1!BB169 -> 0 | AA7: =+Sheet1!BC169 -> 0 | AB7: =+Sheet1!BD169 -> 0 | AC7: =+Sheet1!BE169 -> 0 | AD7: =+Sheet1!BF169 -> 0 | AE7: =+Sheet1!BG169 -> 0 | AF7: 4 | AH7: =SUM(C7:AE7) -> 2,260 | AJ7: 0 | AK7: 0 | AL7: 0 | AM7: 0 | AN7: 0 | AO7: 0 | AP7: 0 | AQ7: 120 | AR7: 160 | AS7: 150 | AT7: 140 | AU7: 130 | AV7: 80 | AW7: 70 | AX7: 20 | AY7: 0 | AZ7: 0 | BA7: 0 | BB7: 0 | BC7: 0 | BD7: 0 | BE7: 0 | BF7: 0 | BG7: 0 | BH7: 0 | BI7: 0 | BJ7: 0 | BK7: 0 | BL7: 0
B8: =+収穫予測!S12 -> 12 | C8: =+Sheet1!AE170 -> 0 | D8: =+Sheet1!AF170 -> 0 | E8: =+Sheet1!AG170 -> 0 | F8: =+Sheet1!AH170 -> 220 | G8: =+Sheet1!AI170 -> 390 | H8: =+Sheet1!AJ170 -> 420 | I8: =+Sheet1!AK170 -> 370 | J8: =+Sheet1!AL170 -> 200 | K8: =+Sheet1!AM170 -> 0 | L8: =+Sheet1!AN170 -> 0 | M8: =+Sheet1!AO170 -> 0 | N8: =+Sheet1!AP170 -> 0 | O8: =+Sheet1!AQ170 -> 0 | P8: =+Sheet1!AR170 -> 0 | Q8: =+Sheet1!AS170 -> 0 | R8: =+Sheet1!AT170 -> 0 | S8: =+Sheet1!AU170 -> 0 | T8: =+Sheet1!AV170 -> 0 | U8: =+Sheet1!AW170 -> 0 | V8: =+Sheet1!AX170 -> 0 | W8: =+Sheet1!AY170 -> 0 | X8: =+Sheet1!AZ170 -> 0 | Y8: =+Sheet1!BA170 -> 0 | Z8: =+Sheet1!BB170 -> 0 | AA8: =+Sheet1!BC170 -> 0 | AB8: =+Sheet1!BD170 -> 0 | AC8: =+Sheet1!BE170 -> 0 | AD8: =+Sheet1!BF170 -> 0 | AE8: =+Sheet1!BG170 -> 0 | AJ8: 0 | AK8: 0 | AL8: 0 | AM8: 0 | AN8: 0 | AO8: 0 | AP8: 0 | AQ8: 40 | AR8: 50 | AS8: 40 | AT8: 40 | AU8: 40 | AV8: 30 | AW8: 20 | AX8: 0 | AY8: 0 | AZ8: 0 | BA8: 0 | BB8: 0 | BC8: 0 | BD8: 0 | BE8: 0 | BF8: 0 | BG8: 0 | BH8: 0 | BI8: 0 | BJ8: 0 | BK8: 0 | BL8: 0
A9: 齢 | B9: =+収穫予測!S13 -> 14 | C9: =+Sheet1!AE171 -> 0 | D9: =+Sheet1!AF171 -> 0 | E9: =+Sheet1!AG171 -> 0 | F9: =+Sheet1!AH171 -> 90 | G9: =+Sheet1!AI171 -> 350 | H9: =+Sheet1!AJ171 -> 390 | I9: =+Sheet1!AK171 -> 370 | J9: =+Sheet1!AL171 -> 290 | K9: =+Sheet1!AM171 -> 110 | L9: =+Sheet1!AN171 -> 0 | M9: =+Sheet1!AO171 -> 0 | N9: =+Sheet1!AP171 -> 0 | O9: =+Sheet1!AQ171 -> 0 | P9: =+Sheet1!AR171 -> 0 | Q9: =+Sheet1!AS171 -> 0 | R9: =+Sheet1!AT171 -> 0 | S9: =+Sheet1!AU171 -> 0 | T9: =+Sheet1!AV171 -> 0 | U9: =+Sheet1!AW171 -> 0 | V9: =+Sheet1!AX171 -> 0 | W9: =+Sheet1!AY171 -> 0 | X9: =+Sheet1!AZ171 -> 0 | Y9: =+Sheet1!BA171 -> 0 | Z9: =+Sheet1!BB171 -> 0 | AA9: =+Sheet1!BC171 -> 0 | AB9: =+Sheet1!BD171 -> 0 | AC9: =+Sheet1!BE171 -> 0 | AD9: =+Sheet1!BF171 -> 0 | AE9: =+Sheet1!BG171 -> 0 | AQ9: =+AQ7*0.3 -> 36 | AR9: =+AR7*0.3 -> 48 | AS9: 45 | AT9: 42 | AU9: 39 | AV9: 24 | AW9: 21
B10: =+収穫予測!S14 -> 16 | C10: =+Sheet1!AE172 -> 0 | D10: =+Sheet1!AF172 -> 0 | E10: =+Sheet1!AG172 -> 0 | F10: =+Sheet1!AH172 -> 0 | G10: =+Sheet1!AI172 -> 320 | H10: =+Sheet1!AJ172 -> 360 | I10: =+Sheet1!AK172 -> 360 | J10: =+Sheet1!AL172 -> 320 | K10: =+Sheet1!AM172 -> 210 | L10: =+Sheet1!AN172 -> 30 | M10: =+Sheet1!AO172 -> 0 | N10: =+Sheet1!AP172 -> 0 | O10: =+Sheet1!AQ172 -> 0 | P10: =+Sheet1!AR172 -> 0 | Q10: =+Sheet1!AS172 -> 0 | R10: =+Sheet1!AT172 -> 0 | S10: =+Sheet1!AU172 -> 0 | T10: =+Sheet1!AV172 -> 0 | U10: =+Sheet1!AW172 -> 0 | V10: =+Sheet1!AX172 -> 0 | W10: =+Sheet1!AY172 -> 0 | X10: =+Sheet1!AZ172 -> 0 | Y10: =+Sheet1!BA172 -> 0 | Z10: =+Sheet1!BB172 -> 0 | AA10: =+Sheet1!BC172 -> 0 | AB10: =+Sheet1!BD172 -> 0 | AC10: =+Sheet1!BE172 -> 0 | AD10: =+Sheet1!BF172 -> 0 | AE10: =+Sheet1!BG172 -> 0 | AJ10: 2 | AK10: 4 | AL10: 6 | AM10: 8 | AN10: 10 | AO10: 12 | AP10: 14 | AQ10: 16 | AR10: 18 | AS10: 20 | AT10: 22 | AU10: 24 | AV10: 26 | AW10: 28 | AX10: 30 | AY10: 32 | AZ10: 34 | BA10: 36 | BB10: 38 | BC10: 40 | BD10: 42 | BE10: 44 | BF10: 46 | BG10: 48 | BH10: 50 | BI10: 52 | BJ10: 54 | BK10: 56 | BL10: 58
A11: （年） | B11: =+収穫予測!S15 -> 18 | C11: =+Sheet1!AE173 -> 0 | D11: =+Sheet1!AF173 -> 0 | E11: =+Sheet1!AG173 -> 0 | F11: =+Sheet1!AH173 -> 0 | G11: =+Sheet1!AI173 -> 220 | H11: =+Sheet1!AJ173 -> 350 | I11: =+Sheet1!AK173 -> 350 | J11: =+Sheet1!AL173 -> 320 | K11: =+Sheet1!AM173 -> 250 | L11: =+Sheet1!AN173 -> 110 | M11: =+Sheet1!AO173 -> 0 | N11: =+Sheet1!AP173 -> 0 | O11: =+Sheet1!AQ173 -> 0 | P11: =+Sheet1!AR173 -> 0 | Q11: =+Sheet1!AS173 -> 0 | R11: =+Sheet1!AT173 -> 0 | S11: =+Sheet1!AU173 -> 0 | T11: =+Sheet1!AV173 -> 0 | U11: =+Sheet1!AW173 -> 0 | V11: =+Sheet1!AX173 -> 0 | W11: =+Sheet1!AY173 -> 0 | X11: =+Sheet1!AZ173 -> 0 | Y11: =+Sheet1!BA173 -> 0 | Z11: =+Sheet1!BB173 -> 0 | AA11: =+Sheet1!BC173 -> 0 | AB11: =+Sheet1!BD173 -> 0 | AC11: =+Sheet1!BE173 -> 0 | AD11: =+Sheet1!BF173 -> 0 | AE11: =+Sheet1!BG173 -> 0 | AQ11: 40 | AR11: 50 | AS11: 40 | AT11: 40 | AU11: 40 | AV11: 30 | AW11: 20
B12: =+収穫予測!S16 -> 20 | C12: =+Sheet1!AE174 -> 0 | D12: =+Sheet1!AF174 -> 0 | E12: =+Sheet1!AG174 -> 0 | F12: =+Sheet1!AH174 -> 0 | G12: =+Sheet1!AI174 -> 150 | H12: =+Sheet1!AJ174 -> 330 | I12: =+Sheet1!AK174 -> 340 | J12: =+Sheet1!AL174 -> 320 | K12: =+Sheet1!AM174 -> 270 | L12: =+Sheet1!AN174 -> 160 | M12: =+Sheet1!AO174 -> 30 | N12: =+Sheet1!AP174 -> 0 | O12: =+Sheet1!AQ174 -> 0 | P12: =+Sheet1!AR174 -> 0 | Q12: =+Sheet1!AS174 -> 0 | R12: =+Sheet1!AT174 -> 0 | S12: =+Sheet1!AU174 -> 0 | T12: =+Sheet1!AV174 -> 0 | U12: =+Sheet1!AW174 -> 0 | V12: =+Sheet1!AX174 -> 0 | W12: =+Sheet1!AY174 -> 0 | X12: =+Sheet1!AZ174 -> 0 | Y12: =+Sheet1!BA174 -> 0 | Z12: =+Sheet1!BB174 -> 0 | AA12: =+Sheet1!BC174 -> 0 | AB12: =+Sheet1!BD174 -> 0 | AC12: =+Sheet1!BE174 -> 0 | AD12: =+Sheet1!BF174 -> 0 | AE12: =+Sheet1!BG174 -> 0
B13: =+収穫予測!S17 -> 22 | C13: =+Sheet1!AE175 -> 0 | D13: =+Sheet1!AF175 -> 0 | E13: =+Sheet1!AG175 -> 0 | F13: =+Sheet1!AH175 -> 0 | G13: =+Sheet1!AI175 -> 0 | H13: =+Sheet1!AJ175 -> 160 | I13: =+Sheet1!AK175 -> 230 | J13: =+Sheet1!AL175 -> 240 | K13: =+Sheet1!AM175 -> 220 | L13: =+Sheet1!AN175 -> 180 | M13: =+Sheet1!AO175 -> 110 | N13: =+Sheet1!AP175 -> 0 | O13: =+Sheet1!AQ175 -> 0 | P13: =+Sheet1!AR175 -> 0 | Q13: =+Sheet1!AS175 -> 0 | R13: =+Sheet1!AT175 -> 0 | S13: =+Sheet1!AU175 -> 0 | T13: =+Sheet1!AV175 -> 0 | U13: =+Sheet1!AW175 -> 0 | V13: =+Sheet1!AX175 -> 0 | W13: =+Sheet1!AY175 -> 0 | X13: =+Sheet1!AZ175 -> 0 | Y13: =+Sheet1!BA175 -> 0 | Z13: =+Sheet1!BB175 -> 0 | AA13: =+Sheet1!BC175 -> 0 | AB13: =+Sheet1!BD175 -> 0 | AC13: =+Sheet1!BE175 -> 0 | AD13: =+Sheet1!BF175 -> 0 | AE13: =+Sheet1!BG175 -> 0
B14: =+収穫予測!S18 -> 24 | C14: =+Sheet1!AE176 -> 0 | D14: =+Sheet1!AF176 -> 0 | E14: =+Sheet1!AG176 -> 0 | F14: =+Sheet1!AH176 -> 0 | G14: =+Sheet1!AI176 -> 0 | H14: =+Sheet1!AJ176 -> 110 | I14: =+Sheet1!AK176 -> 220 | J14: =+Sheet1!AL176 -> 230 | K14: =+Sheet1!AM176 -> 220 | L14: =+Sheet1!AN176 -> 190 | M14: =+Sheet1!AO176 -> 130 | N14: =+Sheet1!AP176 -> 40 | O14: =+Sheet1!AQ176 -> 0 | P14: =+Sheet1!AR176 -> 0 | Q14: =+Sheet1!AS176 -> 0 | R14: =+Sheet1!AT176 -> 0 | S14: =+Sheet1!AU176 -> 0 | T14: =+Sheet1!AV176 -> 0 | U14: =+Sheet1!AW176 -> 0 | V14: =+Sheet1!AX176 -> 0 | W14: =+Sheet1!AY176 -> 0 | X14: =+Sheet1!AZ176 -> 0 | Y14: =+Sheet1!BA176 -> 0 | Z14: =+Sheet1!BB176 -> 0 | AA14: =+Sheet1!BC176 -> 0 | AB14: =+Sheet1!BD176 -> 0 | AC14: =+Sheet1!BE176 -> 0 | AD14: =+Sheet1!BF176 -> 0 | AE14: =+Sheet1!BG176 -> 0
B15: =+収穫予測!S19 -> 26 | C15: =+Sheet1!AE177 -> 0 | D15: =+Sheet1!AF177 -> 0 | E15: =+Sheet1!AG177 -> 0 | F15: =+Sheet1!AH177 -> 0 | G15: =+Sheet1!AI177 -> 0 | H15: =+Sheet1!AJ177 -> 60 | I15: =+Sheet1!AK177 -> 210 | J15: =+Sheet1!AL177 -> 230 | K15: =+Sheet1!AM177 -> 220 | L15: =+Sheet1!AN177 -> 190 | M15: =+Sheet1!AO177 -> 150 | N15: =+Sheet1!AP177 -> 80 | O15: =+Sheet1!AQ177 -> 0 | P15: =+Sheet1!AR177 -> 0 | Q15: =+Sheet1!AS177 -> 0 | R15: =+Sheet1!AT177 -> 0 | S15: =+Sheet1!AU177 -> 0 | T15: =+Sheet1!AV177 -> 0 | U15: =+Sheet1!AW177 -> 0 | V15: =+Sheet1!AX177 -> 0 | W15: =+Sheet1!AY177 -> 0 | X15: =+Sheet1!AZ177 -> 0 | Y15: =+Sheet1!BA177 -> 0 | Z15: =+Sheet1!BB177 -> 0 | AA15: =+Sheet1!BC177 -> 0 | AB15: =+Sheet1!BD177 -> 0 | AC15: =+Sheet1!BE177 -> 0 | AD15: =+Sheet1!BF177 -> 0 | AE15: =+Sheet1!BG177 -> 0
B16: =+収穫予測!S20 -> 28 | C16: =+Sheet1!AE178 -> 0 | D16: =+Sheet1!AF178 -> 0 | E16: =+Sheet1!AG178 -> 0 | F16: =+Sheet1!AH178 -> 0 | G16: =+Sheet1!AI178 -> 0 | H16: =+Sheet1!AJ178 -> 20 | I16: =+Sheet1!AK178 -> 200 | J16: =+Sheet1!AL178 -> 220 | K16: =+Sheet1!AM178 -> 220 | L16: =+Sheet1!AN178 -> 200 | M16: =+Sheet1!AO178 -> 160 | N16: =+Sheet1!AP178 -> 100 | O16: =+Sheet1!AQ178 -> 20 | P16: =+Sheet1!AR178 -> 0 | Q16: =+Sheet1!AS178 -> 0 | R16: =+Sheet1!AT178 -> 0 | S16: =+Sheet1!AU178 -> 0 | T16: =+Sheet1!AV178 -> 0 | U16: =+Sheet1!AW178 -> 0 | V16: =+Sheet1!AX178 -> 0 | W16: =+Sheet1!AY178 -> 0 | X16: =+Sheet1!AZ178 -> 0 | Y16: =+Sheet1!BA178 -> 0 | Z16: =+Sheet1!BB178 -> 0 | AA16: =+Sheet1!BC178 -> 0 | AB16: =+Sheet1!BD178 -> 0 | AC16: =+Sheet1!BE178 -> 0 | AD16: =+Sheet1!BF178 -> 0 | AE16: =+Sheet1!BG178 -> 0
B17: =+収穫予測!S21 -> 30 | C17: =+Sheet1!AE179 -> 0 | D17: =+Sheet1!AF179 -> 0 | E17: =+Sheet1!AG179 -> 0 | F17: =+Sheet1!AH179 -> 0 | G17: =+Sheet1!AI179 -> 0 | H17: =+Sheet1!AJ179 -> 0 | I17: =+Sheet1!AK179 -> 180 | J17: =+Sheet1!AL179 -> 220 | K17: =+Sheet1!AM179 -> 220 | L17: =+Sheet1!AN179 -> 190 | M17: =+Sheet1!AO179 -> 170 | N17: =+Sheet1!AP179 -> 110 | O17: =+Sheet1!AQ179 -> 50 | P17: =+Sheet1!AR179 -> 0 | Q17: =+Sheet1!AS179 -> 0 | R17: =+Sheet1!AT179 -> 0 | S17: =+Sheet1!AU179 -> 0 | T17: =+Sheet1!AV179 -> 0 | U17: =+Sheet1!AW179 -> 0 | V17: =+Sheet1!AX179 -> 0 | W17: =+Sheet1!AY179 -> 0 | X17: =+Sheet1!AZ179 -> 0 | Y17: =+Sheet1!BA179 -> 0 | Z17: =+Sheet1!BB179 -> 0 | AA17: =+Sheet1!BC179 -> 0 | AB17: =+Sheet1!BD179 -> 0 | AC17: =+Sheet1!BE179 -> 0 | AD17: =+Sheet1!BF179 -> 0 | AE17: =+Sheet1!BG179 -> 0
B18: =+収穫予測!S22 -> 32 | C18: =+Sheet1!AE180 -> 0 | D18: =+Sheet1!AF180 -> 0 | E18: =+Sheet1!AG180 -> 0 | F18: =+Sheet1!AH180 -> 0 | G18: =+Sheet1!AI180 -> 0 | H18: =+Sheet1!AJ180 -> 0 | I18: =+Sheet1!AK180 -> 20 | J18: =+Sheet1!AL180 -> 150 | K18: =+Sheet1!AM180 -> 150 | L18: =+Sheet1!AN180 -> 150 | M18: =+Sheet1!AO180 -> 140 | N18: =+Sheet1!AP180 -> 120 | O18: =+Sheet1!AQ180 -> 70 | P18: =+Sheet1!AR180 -> 10 | Q18: =+Sheet1!AS180 -> 0 | R18: =+Sheet1!AT180 -> 0 | S18: =+Sheet1!AU180 -> 0 | T18: =+Sheet1!AV180 -> 0 | U18: =+Sheet1!AW180 -> 0 | V18: =+Sheet1!AX180 -> 0 | W18: =+Sheet1!AY180 -> 0 | X18: =+Sheet1!AZ180 -> 0 | Y18: =+Sheet1!BA180 -> 0 | Z18: =+Sheet1!BB180 -> 0 | AA18: =+Sheet1!BC180 -> 0 | AB18: =+Sheet1!BD180 -> 0 | AC18: =+Sheet1!BE180 -> 0 | AD18: =+Sheet1!BF180 -> 0 | AE18: =+Sheet1!BG180 -> 0
B19: =+収穫予測!S23 -> 34 | C19: =+Sheet1!AE181 -> 0 | D19: =+Sheet1!AF181 -> 0 | E19: =+Sheet1!AG181 -> 0 | F19: =+Sheet1!AH181 -> 0 | G19: =+Sheet1!AI181 -> 0 | H19: =+Sheet1!AJ181 -> 0 | I19: =+Sheet1!AK181 -> 0 | J19: =+Sheet1!AL181 -> 130 | K19: =+Sheet1!AM181 -> 150 | L19: =+Sheet1!AN181 -> 150 | M19: =+Sheet1!AO181 -> 140 | N19: =+Sheet1!AP181 -> 120 | O19: =+Sheet1!AQ181 -> 90 | P19: =+Sheet1!AR181 -> 30 | Q19: =+Sheet1!AS181 -> 0 | R19: =+Sheet1!AT181 -> 0 | S19: =+Sheet1!AU181 -> 0 | T19: =+Sheet1!AV181 -> 0 | U19: =+Sheet1!AW181 -> 0 | V19: =+Sheet1!AX181 -> 0 | W19: =+Sheet1!AY181 -> 0 | X19: =+Sheet1!AZ181 -> 0 | Y19: =+Sheet1!BA181 -> 0 | Z19: =+Sheet1!BB181 -> 0 | AA19: =+Sheet1!BC181 -> 0 | AB19: =+Sheet1!BD181 -> 0 | AC19: =+Sheet1!BE181 -> 0 | AD19: =+Sheet1!BF181 -> 0 | AE19: =+Sheet1!BG181 -> 0
B20: =+収穫予測!S24 -> 36 | C20: =+Sheet1!AE182 -> 0 | D20: =+Sheet1!AF182 -> 0 | E20: =+Sheet1!AG182 -> 0 | F20: =+Sheet1!AH182 -> 0 | G20: =+Sheet1!AI182 -> 0 | H20: =+Sheet1!AJ182 -> 0 | I20: =+Sheet1!AK182 -> 0 | J20: =+Sheet1!AL182 -> 100 | K20: =+Sheet1!AM182 -> 150 | L20: =+Sheet1!AN182 -> 150 | M20: =+Sheet1!AO182 -> 140 | N20: =+Sheet1!AP182 -> 120 | O20: =+Sheet1!AQ182 -> 100 | P20: =+Sheet1!AR182 -> 50 | Q20: =+Sheet1!AS182 -> 0 | R20: =+Sheet1!AT182 -> 0 | S20: =+Sheet1!AU182 -> 0 | T20: =+Sheet1!AV182 -> 0 | U20: =+Sheet1!AW182 -> 0 | V20: =+Sheet1!AX182 -> 0 | W20: =+Sheet1!AY182 -> 0 | X20: =+Sheet1!AZ182 -> 0 | Y20: =+Sheet1!BA182 -> 0 | Z20: =+Sheet1!BB182 -> 0 | AA20: =+Sheet1!BC182 -> 0 | AB20: =+Sheet1!BD182 -> 0 | AC20: =+Sheet1!BE182 -> 0 | AD20: =+Sheet1!BF182 -> 0 | AE20: =+Sheet1!BG182 -> 0
B21: =+収穫予測!S25 -> 38 | C21: =+Sheet1!AE183 -> 0 | D21: =+Sheet1!AF183 -> 0 | E21: =+Sheet1!AG183 -> 0 | F21: =+Sheet1!AH183 -> 0 | G21: =+Sheet1!AI183 -> 0 | H21: =+Sheet1!AJ183 -> 0 | I21: =+Sheet1!AK183 -> 0 | J21: =+Sheet1!AL183 -> 70 | K21: =+Sheet1!AM183 -> 150 | L21: =+Sheet1!AN183 -> 140 | M21: =+Sheet1!AO183 -> 150 | N21: =+Sheet1!AP183 -> 120 | O21: =+Sheet1!AQ183 -> 100 | P21: =+Sheet1!AR183 -> 60 | Q21: =+Sheet1!AS183 -> 20 | R21: =+Sheet1!AT183 -> 0 | S21: =+Sheet1!AU183 -> 0 | T21: =+Sheet1!AV183 -> 0 | U21: =+Sheet1!AW183 -> 0 | V21: =+Sheet1!AX183 -> 0 | W21: =+Sheet1!AY183 -> 0 | X21: =+Sheet1!AZ183 -> 0 | Y21: =+Sheet1!BA183 -> 0 | Z21: =+Sheet1!BB183 -> 0 | AA21: =+Sheet1!BC183 -> 0 | AB21: =+Sheet1!BD183 -> 0 | AC21: =+Sheet1!BE183 -> 0 | AD21: =+Sheet1!BF183 -> 0 | AE21: =+Sheet1!BG183 -> 0
B22: =+収穫予測!S26 -> 40 | C22: =+Sheet1!AE184 -> 0 | D22: =+Sheet1!AF184 -> 0 | E22: =+Sheet1!AG184 -> 0 | F22: =+Sheet1!AH184 -> 0 | G22: =+Sheet1!AI184 -> 0 | H22: =+Sheet1!AJ184 -> 0 | I22: =+Sheet1!AK184 -> 0 | J22: =+Sheet1!AL184 -> 50 | K22: =+Sheet1!AM184 -> 140 | L22: =+Sheet1!AN184 -> 150 | M22: =+Sheet1!AO184 -> 140 | N22: =+Sheet1!AP184 -> 120 | O22: =+Sheet1!AQ184 -> 110 | P22: =+Sheet1!AR184 -> 70 | Q22: =+Sheet1!AS184 -> 30 | R22: =+Sheet1!AT184 -> 0 | S22: =+Sheet1!AU184 -> 0 | T22: =+Sheet1!AV184 -> 0 | U22: =+Sheet1!AW184 -> 0 | V22: =+Sheet1!AX184 -> 0 | W22: =+Sheet1!AY184 -> 0 | X22: =+Sheet1!AZ184 -> 0 | Y22: =+Sheet1!BA184 -> 0 | Z22: =+Sheet1!BB184 -> 0 | AA22: =+Sheet1!BC184 -> 0 | AB22: =+Sheet1!BD184 -> 0 | AC22: =+Sheet1!BE184 -> 0 | AD22: =+Sheet1!BF184 -> 0 | AE22: =+Sheet1!BG184 -> 0
B23: =+収穫予測!S27 -> 42 | C23: =+Sheet1!AE185 -> 0 | D23: =+Sheet1!AF185 -> 0 | E23: =+Sheet1!AG185 -> 0 | F23: =+Sheet1!AH185 -> 0 | G23: =+Sheet1!AI185 -> 0 | H23: =+Sheet1!AJ185 -> 0 | I23: =+Sheet1!AK185 -> 0 | J23: =+Sheet1!AL185 -> 0 | K23: =+Sheet1!AM185 -> 60 | L23: =+Sheet1!AN185 -> 100 | M23: =+Sheet1!AO185 -> 110 | N23: =+Sheet1!AP185 -> 100 | O23: =+Sheet1!AQ185 -> 90 | P23: =+Sheet1!AR185 -> 70 | Q23: =+Sheet1!AS185 -> 50 | R23: =+Sheet1!AT185 -> 0 | S23: =+Sheet1!AU185 -> 0 | T23: =+Sheet1!AV185 -> 0 | U23: =+Sheet1!AW185 -> 0 | V23: =+Sheet1!AX185 -> 0 | W23: =+Sheet1!AY185 -> 0 | X23: =+Sheet1!AZ185 -> 0 | Y23: =+Sheet1!BA185 -> 0 | Z23: =+Sheet1!BB185 -> 0 | AA23: =+Sheet1!BC185 -> 0 | AB23: =+Sheet1!BD185 -> 0 | AC23: =+Sheet1!BE185 -> 0 | AD23: =+Sheet1!BF185 -> 0 | AE23: =+Sheet1!BG185 -> 0
B24: =+収穫予測!S28 -> 44 | C24: =+Sheet1!AE186 -> 0 | D24: =+Sheet1!AF186 -> 0 | E24: =+Sheet1!AG186 -> 0 | F24: =+Sheet1!AH186 -> 0 | G24: =+Sheet1!AI186 -> 0 | H24: =+Sheet1!AJ186 -> 0 | I24: =+Sheet1!AK186 -> 0 | J24: =+Sheet1!AL186 -> 0 | K24: =+Sheet1!AM186 -> 30 | L24: =+Sheet1!AN186 -> 110 | M24: =+Sheet1!AO186 -> 100 | N24: =+Sheet1!AP186 -> 100 | O24: =+Sheet1!AQ186 -> 90 | P24: =+Sheet1!AR186 -> 80 | Q24: =+Sheet1!AS186 -> 60 | R24: =+Sheet1!AT186 -> 10 | S24: =+Sheet1!AU186 -> 0 | T24: =+Sheet1!AV186 -> 0 | U24: =+Sheet1!AW186 -> 0 | V24: =+Sheet1!AX186 -> 0 | W24: =+Sheet1!AY186 -> 0 | X24: =+Sheet1!AZ186 -> 0 | Y24: =+Sheet1!BA186 -> 0 | Z24: =+Sheet1!BB186 -> 0 | AA24: =+Sheet1!BC186 -> 0 | AB24: =+Sheet1!BD186 -> 0 | AC24: =+Sheet1!BE186 -> 0 | AD24: =+Sheet1!BF186 -> 0 | AE24: =+Sheet1!BG186 -> 0
B25: =+収穫予測!S29 -> 46 | C25: =+Sheet1!AE187 -> 0 | D25: =+Sheet1!AF187 -> 0 | E25: =+Sheet1!AG187 -> 0 | F25: =+Sheet1!AH187 -> 0 | G25: =+Sheet1!AI187 -> 0 | H25: =+Sheet1!AJ187 -> 0 | I25: =+Sheet1!AK187 -> 0 | J25: =+Sheet1!AL187 -> 0 | K25: =+Sheet1!AM187 -> 10 | L25: =+Sheet1!AN187 -> 100 | M25: =+Sheet1!AO187 -> 110 | N25: =+Sheet1!AP187 -> 100 | O25: =+Sheet1!AQ187 -> 90 | P25: =+Sheet1!AR187 -> 80 | Q25: =+Sheet1!AS187 -> 60 | R25: =+Sheet1!AT187 -> 30 | S25: =+Sheet1!AU187 -> 0 | T25: =+Sheet1!AV187 -> 0 | U25: =+Sheet1!AW187 -> 0 | V25: =+Sheet1!AX187 -> 0 | W25: =+Sheet1!AY187 -> 0 | X25: =+Sheet1!AZ187 -> 0 | Y25: =+Sheet1!BA187 -> 0 | Z25: =+Sheet1!BB187 -> 0 | AA25: =+Sheet1!BC187 -> 0 | AB25: =+Sheet1!BD187 -> 0 | AC25: =+Sheet1!BE187 -> 0 | AD25: =+Sheet1!BF187 -> 0 | AE25: =+Sheet1!BG187 -> 0
B26: =+収穫予測!S30 -> 48 | C26: =+Sheet1!AE188 -> 0 | D26: =+Sheet1!AF188 -> 0 | E26: =+Sheet1!AG188 -> 0 | F26: =+Sheet1!AH188 -> 0 | G26: =+Sheet1!AI188 -> 0 | H26: =+Sheet1!AJ188 -> 0 | I26: =+Sheet1!AK188 -> 0 | J26: =+Sheet1!AL188 -> 0 | K26: =+Sheet1!AM188 -> 0 | L26: =+Sheet1!AN188 -> 90 | M26: =+Sheet1!AO188 -> 100 | N26: =+Sheet1!AP188 -> 100 | O26: =+Sheet1!AQ188 -> 100 | P26: =+Sheet1!AR188 -> 80 | Q26: =+Sheet1!AS188 -> 60 | R26: =+Sheet1!AT188 -> 40 | S26: =+Sheet1!AU188 -> 10 | T26: =+Sheet1!AV188 -> 0 | U26: =+Sheet1!AW188 -> 0 | V26: =+Sheet1!AX188 -> 0 | W26: =+Sheet1!AY188 -> 0 | X26: =+Sheet1!AZ188 -> 0 | Y26: =+Sheet1!BA188 -> 0 | Z26: =+Sheet1!BB188 -> 0 | AA26: =+Sheet1!BC188 -> 0 | AB26: =+Sheet1!BD188 -> 0 | AC26: =+Sheet1!BE188 -> 0 | AD26: =+Sheet1!BF188 -> 0 | AE26: =+Sheet1!BG188 -> 0
B27: =+収穫予測!S31 -> 50 | C27: =+Sheet1!AE189 -> 0 | D27: =+Sheet1!AF189 -> 0 | E27: =+Sheet1!AG189 -> 0 | F27: =+Sheet1!AH189 -> 0 | G27: =+Sheet1!AI189 -> 0 | H27: =+Sheet1!AJ189 -> 0 | I27: =+Sheet1!AK189 -> 0 | J27: =+Sheet1!AL189 -> 0 | K27: =+Sheet1!AM189 -> 0 | L27: =+Sheet1!AN189 -> 70 | M27: =+Sheet1!AO189 -> 100 | N27: =+Sheet1!AP189 -> 100 | O27: =+Sheet1!AQ189 -> 100 | P27: =+Sheet1!AR189 -> 80 | Q27: =+Sheet1!AS189 -> 70 | R27: =+Sheet1!AT189 -> 40 | S27: =+Sheet1!AU189 -> 20 | T27: =+Sheet1!AV189 -> 0 | U27: =+Sheet1!AW189 -> 0 | V27: =+Sheet1!AX189 -> 0 | W27: =+Sheet1!AY189 -> 0 | X27: =+Sheet1!AZ189 -> 0 | Y27: =+Sheet1!BA189 -> 0 | Z27: =+Sheet1!BB189 -> 0 | AA27: =+Sheet1!BC189 -> 0 | AB27: =+Sheet1!BD189 -> 0 | AC27: =+Sheet1!BE189 -> 0 | AD27: =+Sheet1!BF189 -> 0 | AE27: =+Sheet1!BG189 -> 0
B28: =+収穫予測!S32 -> 52 | C28: =+Sheet1!AE190 -> 0 | D28: =+Sheet1!AF190 -> 0 | E28: =+Sheet1!AG190 -> 0 | F28: =+Sheet1!AH190 -> 0 | G28: =+Sheet1!AI190 -> 0 | H28: =+Sheet1!AJ190 -> 0 | I28: =+Sheet1!AK190 -> 0 | J28: =+Sheet1!AL190 -> 0 | K28: =+Sheet1!AM190 -> 0 | L28: =+Sheet1!AN190 -> 0 | M28: =+Sheet1!AO190 -> 70 | N28: =+Sheet1!AP190 -> 70 | O28: =+Sheet1!AQ190 -> 80 | P28: =+Sheet1!AR190 -> 70 | Q28: =+Sheet1!AS190 -> 60 | R28: =+Sheet1!AT190 -> 50 | S28: =+Sheet1!AU190 -> 20 | T28: =+Sheet1!AV190 -> 0 | U28: =+Sheet1!AW190 -> 0 | V28: =+Sheet1!AX190 -> 0 | W28: =+Sheet1!AY190 -> 0 | X28: =+Sheet1!AZ190 -> 0 | Y28: =+Sheet1!BA190 -> 0 | Z28: =+Sheet1!BB190 -> 0 | AA28: =+Sheet1!BC190 -> 0 | AB28: =+Sheet1!BD190 -> 0 | AC28: =+Sheet1!BE190 -> 0 | AD28: =+Sheet1!BF190 -> 0 | AE28: =+Sheet1!BG190 -> 0
B29: =+収穫予測!S33 -> 54 | C29: =+Sheet1!AE191 -> 0 | D29: =+Sheet1!AF191 -> 0 | E29: =+Sheet1!AG191 -> 0 | F29: =+Sheet1!AH191 -> 0 | G29: =+Sheet1!AI191 -> 0 | H29: =+Sheet1!AJ191 -> 0 | I29: =+Sheet1!AK191 -> 0 | J29: =+Sheet1!AL191 -> 0 | K29: =+Sheet1!AM191 -> 0 | L29: =+Sheet1!AN191 -> 0 | M29: =+Sheet1!AO191 -> 50 | N29: =+Sheet1!AP191 -> 70 | O29: =+Sheet1!AQ191 -> 80 | P29: =+Sheet1!AR191 -> 70 | Q29: =+Sheet1!AS191 -> 60 | R29: =+Sheet1!AT191 -> 50 | S29: =+Sheet1!AU191 -> 40 | T29: =+Sheet1!AV191 -> 0 | U29: =+Sheet1!AW191 -> 0 | V29: =+Sheet1!AX191 -> 0 | W29: =+Sheet1!AY191 -> 0 | X29: =+Sheet1!AZ191 -> 0 | Y29: =+Sheet1!BA191 -> 0 | Z29: =+Sheet1!BB191 -> 0 | AA29: =+Sheet1!BC191 -> 0 | AB29: =+Sheet1!BD191 -> 0 | AC29: =+Sheet1!BE191 -> 0 | AD29: =+Sheet1!BF191 -> 0 | AE29: =+Sheet1!BG191 -> 0
B30: =+収穫予測!S34 -> 56 | C30: =+Sheet1!AE192 -> 0 | D30: =+Sheet1!AF192 -> 0 | E30: =+Sheet1!AG192 -> 0 | F30: =+Sheet1!AH192 -> 0 | G30: =+Sheet1!AI192 -> 0 | H30: =+Sheet1!AJ192 -> 0 | I30: =+Sheet1!AK192 -> 0 | J30: =+Sheet1!AL192 -> 0 | K30: =+Sheet1!AM192 -> 0 | L30: =+Sheet1!AN192 -> 0 | M30: =+Sheet1!AO192 -> 30 | N30: =+Sheet1!AP192 -> 70 | O30: =+Sheet1!AQ192 -> 80 | P30: =+Sheet1!AR192 -> 70 | Q30: =+Sheet1!AS192 -> 60 | R30: =+Sheet1!AT192 -> 60 | S30: =+Sheet1!AU192 -> 40 | T30: =+Sheet1!AV192 -> 10 | U30: =+Sheet1!AW192 -> 0 | V30: =+Sheet1!AX192 -> 0 | W30: =+Sheet1!AY192 -> 0 | X30: =+Sheet1!AZ192 -> 0 | Y30: =+Sheet1!BA192 -> 0 | Z30: =+Sheet1!BB192 -> 0 | AA30: =+Sheet1!BC192 -> 0 | AB30: =+Sheet1!BD192 -> 0 | AC30: =+Sheet1!BE192 -> 0 | AD30: =+Sheet1!BF192 -> 0 | AE30: =+Sheet1!BG192 -> 0
B31: =+収穫予測!S35 -> 58 | C31: =+Sheet1!AE193 -> 0 | D31: =+Sheet1!AF193 -> 0 | E31: =+Sheet1!AG193 -> 0 | F31: =+Sheet1!AH193 -> 0 | G31: =+Sheet1!AI193 -> 0 | H31: =+Sheet1!AJ193 -> 0 | I31: =+Sheet1!AK193 -> 0 | J31: =+Sheet1!AL193 -> 0 | K31: =+Sheet1!AM193 -> 0 | L31: =+Sheet1!AN193 -> 0 | M31: =+Sheet1!AO193 -> 10 | N31: =+Sheet1!AP193 -> 80 | O31: =+Sheet1!AQ193 -> 70 | P31: =+Sheet1!AR193 -> 70 | Q31: =+Sheet1!AS193 -> 70 | R31: =+Sheet1!AT193 -> 50 | S31: =+Sheet1!AU193 -> 40 | T31: =+Sheet1!AV193 -> 30 | U31: =+Sheet1!AW193 -> 0 | V31: =+Sheet1!AX193 -> 0 | W31: =+Sheet1!AY193 -> 0 | X31: =+Sheet1!AZ193 -> 0 | Y31: =+Sheet1!BA193 -> 0 | Z31: =+Sheet1!BB193 -> 0 | AA31: =+Sheet1!BC193 -> 0 | AB31: =+Sheet1!BD193 -> 0 | AC31: =+Sheet1!BE193 -> 0 | AD31: =+Sheet1!BF193 -> 0 | AE31: =+Sheet1!BG193 -> 0
B32: =+収穫予測!S36 -> 60 | C32: =+Sheet1!AE194 -> 0 | D32: =+Sheet1!AF194 -> 0 | E32: =+Sheet1!AG194 -> 0 | F32: =+Sheet1!AH194 -> 0 | G32: =+Sheet1!AI194 -> 0 | H32: =+Sheet1!AJ194 -> 0 | I32: =+Sheet1!AK194 -> 0 | J32: =+Sheet1!AL194 -> 0 | K32: =+Sheet1!AM194 -> 0 | L32: =+Sheet1!AN194 -> 0 | M32: =+Sheet1!AO194 -> 0 | N32: =+Sheet1!AP194 -> 70 | O32: =+Sheet1!AQ194 -> 70 | P32: =+Sheet1!AR194 -> 70 | Q32: =+Sheet1!AS194 -> 70 | R32: =+Sheet1!AT194 -> 60 | S32: =+Sheet1!AU194 -> 40 | T32: =+Sheet1!AV194 -> 30 | U32: =+Sheet1!AW194 -> 10 | V32: =+Sheet1!AX194 -> 0 | W32: =+Sheet1!AY194 -> 0 | X32: =+Sheet1!AZ194 -> 0 | Y32: =+Sheet1!BA194 -> 0 | Z32: =+Sheet1!BB194 -> 0 | AA32: =+Sheet1!BC194 -> 0 | AB32: =+Sheet1!BD194 -> 0 | AC32: =+Sheet1!BE194 -> 0 | AD32: =+Sheet1!BF194 -> 0 | AE32: =+Sheet1!BG194 -> 0
B33: =+収穫予測!S37 -> 62 | C33: =+Sheet1!AE195 -> 0 | D33: =+Sheet1!AF195 -> 0 | E33: =+Sheet1!AG195 -> 0 | F33: =+Sheet1!AH195 -> 0 | G33: =+Sheet1!AI195 -> 0 | H33: =+Sheet1!AJ195 -> 0 | I33: =+Sheet1!AK195 -> 0 | J33: =+Sheet1!AL195 -> 0 | K33: =+Sheet1!AM195 -> 0 | L33: =+Sheet1!AN195 -> 0 | M33: =+Sheet1!AO195 -> 0 | N33: =+Sheet1!AP195 -> 50 | O33: =+Sheet1!AQ195 -> 70 | P33: =+Sheet1!AR195 -> 80 | Q33: =+Sheet1!AS195 -> 60 | R33: =+Sheet1!AT195 -> 60 | S33: =+Sheet1!AU195 -> 50 | T33: =+Sheet1!AV195 -> 30 | U33: =+Sheet1!AW195 -> 20 | V33: =+Sheet1!AX195 -> 0 | W33: =+Sheet1!AY195 -> 0 | X33: =+Sheet1!AZ195 -> 0 | Y33: =+Sheet1!BA195 -> 0 | Z33: =+Sheet1!BB195 -> 0 | AA33: =+Sheet1!BC195 -> 0 | AB33: =+Sheet1!BD195 -> 0 | AC33: =+Sheet1!BE195 -> 0 | AD33: =+Sheet1!BF195 -> 0 | AE33: =+Sheet1!BG195 -> 0
B34: =+収穫予測!S38 -> 64 | C34: =+Sheet1!AE196 -> 0 | D34: =+Sheet1!AF196 -> 0 | E34: =+Sheet1!AG196 -> 0 | F34: =+Sheet1!AH196 -> 0 | G34: =+Sheet1!AI196 -> 0 | H34: =+Sheet1!AJ196 -> 0 | I34: =+Sheet1!AK196 -> 0 | J34: =+Sheet1!AL196 -> 0 | K34: =+Sheet1!AM196 -> 0 | L34: =+Sheet1!AN196 -> 0 | M34: =+Sheet1!AO196 -> 0 | N34: =+Sheet1!AP196 -> 40 | O34: =+Sheet1!AQ196 -> 70 | P34: =+Sheet1!AR196 -> 70 | Q34: =+Sheet1!AS196 -> 70 | R34: =+Sheet1!AT196 -> 60 | S34: =+Sheet1!AU196 -> 50 | T34: =+Sheet1!AV196 -> 30 | U34: =+Sheet1!AW196 -> 30 | V34: =+Sheet1!AX196 -> 0 | W34: =+Sheet1!AY196 -> 0 | X34: =+Sheet1!AZ196 -> 0 | Y34: =+Sheet1!BA196 -> 0 | Z34: =+Sheet1!BB196 -> 0 | AA34: =+Sheet1!BC196 -> 0 | AB34: =+Sheet1!BD196 -> 0 | AC34: =+Sheet1!BE196 -> 0 | AD34: =+Sheet1!BF196 -> 0 | AE34: =+Sheet1!BG196 -> 0
B35: =+収穫予測!S39 -> 66 | C35: =+Sheet1!AE197 -> 0 | D35: =+Sheet1!AF197 -> 0 | E35: =+Sheet1!AG197 -> 0 | F35: =+Sheet1!AH197 -> 0 | G35: =+Sheet1!AI197 -> 0 | H35: =+Sheet1!AJ197 -> 0 | I35: =+Sheet1!AK197 -> 0 | J35: =+Sheet1!AL197 -> 0 | K35: =+Sheet1!AM197 -> 0 | L35: =+Sheet1!AN197 -> 0 | M35: =+Sheet1!AO197 -> 0 | N35: =+Sheet1!AP197 -> 20 | O35: =+Sheet1!AQ197 -> 70 | P35: =+Sheet1!AR197 -> 70 | Q35: =+Sheet1!AS197 -> 70 | R35: =+Sheet1!AT197 -> 60 | S35: =+Sheet1!AU197 -> 50 | T35: =+Sheet1!AV197 -> 50 | U35: =+Sheet1!AW197 -> 20 | V35: =+Sheet1!AX197 -> 10 | W35: =+Sheet1!AY197 -> 0 | X35: =+Sheet1!AZ197 -> 0 | Y35: =+Sheet1!BA197 -> 0 | Z35: =+Sheet1!BB197 -> 0 | AA35: =+Sheet1!BC197 -> 0 | AB35: =+Sheet1!BD197 -> 0 | AC35: =+Sheet1!BE197 -> 0 | AD35: =+Sheet1!BF197 -> 0 | AE35: =+Sheet1!BG197 -> 0
B36: =+収穫予測!S40 -> 68 | C36: =+Sheet1!AE198 -> 0 | D36: =+Sheet1!AF198 -> 0 | E36: =+Sheet1!AG198 -> 0 | F36: =+Sheet1!AH198 -> 0 | G36: =+Sheet1!AI198 -> 0 | H36: =+Sheet1!AJ198 -> 0 | I36: =+Sheet1!AK198 -> 0 | J36: =+Sheet1!AL198 -> 0 | K36: =+Sheet1!AM198 -> 0 | L36: =+Sheet1!AN198 -> 0 | M36: =+Sheet1!AO198 -> 0 | N36: =+Sheet1!AP198 -> 10 | O36: =+Sheet1!AQ198 -> 70 | P36: =+Sheet1!AR198 -> 70 | Q36: =+Sheet1!AS198 -> 70 | R36: =+Sheet1!AT198 -> 60 | S36: =+Sheet1!AU198 -> 50 | T36: =+Sheet1!AV198 -> 40 | U36: =+Sheet1!AW198 -> 30 | V36: =+Sheet1!AX198 -> 20 | W36: =+Sheet1!AY198 -> 0 | X36: =+Sheet1!AZ198 -> 0 | Y36: =+Sheet1!BA198 -> 0 | Z36: =+Sheet1!BB198 -> 0 | AA36: =+Sheet1!BC198 -> 0 | AB36: =+Sheet1!BD198 -> 0 | AC36: =+Sheet1!BE198 -> 0 | AD36: =+Sheet1!BF198 -> 0 | AE36: =+Sheet1!BG198 -> 0
B37: =+収穫予測!S41 -> 70 | C37: =+Sheet1!AE199 -> 0 | D37: =+Sheet1!AF199 -> 0 | E37: =+Sheet1!AG199 -> 0 | F37: =+Sheet1!AH199 -> 0 | G37: =+Sheet1!AI199 -> 0 | H37: =+Sheet1!AJ199 -> 0 | I37: =+Sheet1!AK199 -> 0 | J37: =+Sheet1!AL199 -> 0 | K37: =+Sheet1!AM199 -> 0 | L37: =+Sheet1!AN199 -> 0 | M37: =+Sheet1!AO199 -> 0 | N37: =+Sheet1!AP199 -> 0 | O37: =+Sheet1!AQ199 -> 60 | P37: =+Sheet1!AR199 -> 70 | Q37: =+Sheet1!AS199 -> 70 | R37: =+Sheet1!AT199 -> 70 | S37: =+Sheet1!AU199 -> 50 | T37: =+Sheet1!AV199 -> 40 | U37: =+Sheet1!AW199 -> 40 | V37: =+Sheet1!AX199 -> 20 | W37: =+Sheet1!AY199 -> 0 | X37: =+Sheet1!AZ199 -> 0 | Y37: =+Sheet1!BA199 -> 0 | Z37: =+Sheet1!BB199 -> 0 | AA37: =+Sheet1!BC199 -> 0 | AB37: =+Sheet1!BD199 -> 0 | AC37: =+Sheet1!BE199 -> 0 | AD37: =+Sheet1!BF199 -> 0 | AE37: =+Sheet1!BG199 -> 0
B38: =+収穫予測!S42 -> 72 | C38: =+Sheet1!AE200 -> 0 | D38: =+Sheet1!AF200 -> 0 | E38: =+Sheet1!AG200 -> 0 | F38: =+Sheet1!AH200 -> 0 | G38: =+Sheet1!AI200 -> 0 | H38: =+Sheet1!AJ200 -> 0 | I38: =+Sheet1!AK200 -> 0 | J38: =+Sheet1!AL200 -> 0 | K38: =+Sheet1!AM200 -> 0 | L38: =+Sheet1!AN200 -> 0 | M38: =+Sheet1!AO200 -> 0 | N38: =+Sheet1!AP200 -> 0 | O38: =+Sheet1!AQ200 -> 50 | P38: =+Sheet1!AR200 -> 70 | Q38: =+Sheet1!AS200 -> 70 | R38: =+Sheet1!AT200 -> 60 | S38: =+Sheet1!AU200 -> 60 | T38: =+Sheet1!AV200 -> 40 | U38: =+Sheet1!AW200 -> 40 | V38: =+Sheet1!AX200 -> 20 | W38: =+Sheet1!AY200 -> 10 | X38: =+Sheet1!AZ200 -> 0 | Y38: =+Sheet1!BA200 -> 0 | Z38: =+Sheet1!BB200 -> 0 | AA38: =+Sheet1!BC200 -> 0 | AB38: =+Sheet1!BD200 -> 0 | AC38: =+Sheet1!BE200 -> 0 | AD38: =+Sheet1!BF200 -> 0 | AE38: =+Sheet1!BG200 -> 0
B39: =+収穫予測!S43 -> 74 | C39: =+Sheet1!AE201 -> 0 | D39: =+Sheet1!AF201 -> 0 | E39: =+Sheet1!AG201 -> 0 | F39: =+Sheet1!AH201 -> 0 | G39: =+Sheet1!AI201 -> 0 | H39: =+Sheet1!AJ201 -> 0 | I39: =+Sheet1!AK201 -> 0 | J39: =+Sheet1!AL201 -> 0 | K39: =+Sheet1!AM201 -> 0 | L39: =+Sheet1!AN201 -> 0 | M39: =+Sheet1!AO201 -> 0 | N39: =+Sheet1!AP201 -> 0 | O39: =+Sheet1!AQ201 -> 40 | P39: =+Sheet1!AR201 -> 70 | Q39: =+Sheet1!AS201 -> 70 | R39: =+Sheet1!AT201 -> 60 | S39: =+Sheet1!AU201 -> 60 | T39: =+Sheet1!AV201 -> 40 | U39: =+Sheet1!AW201 -> 40 | V39: =+Sheet1!AX201 -> 30 | W39: =+Sheet1!AY201 -> 10 | X39: =+Sheet1!AZ201 -> 0 | Y39: =+Sheet1!BA201 -> 0 | Z39: =+Sheet1!BB201 -> 0 | AA39: =+Sheet1!BC201 -> 0 | AB39: =+Sheet1!BD201 -> 0 | AC39: =+Sheet1!BE201 -> 0 | AD39: =+Sheet1!BF201 -> 0 | AE39: =+Sheet1!BG201 -> 0
B40: =+収穫予測!S44 -> 76 | C40: =+Sheet1!AE202 -> 0 | D40: =+Sheet1!AF202 -> 0 | E40: =+Sheet1!AG202 -> 0 | F40: =+Sheet1!AH202 -> 0 | G40: =+Sheet1!AI202 -> 0 | H40: =+Sheet1!AJ202 -> 0 | I40: =+Sheet1!AK202 -> 0 | J40: =+Sheet1!AL202 -> 0 | K40: =+Sheet1!AM202 -> 0 | L40: =+Sheet1!AN202 -> 0 | M40: =+Sheet1!AO202 -> 0 | N40: =+Sheet1!AP202 -> 0 | O40: =+Sheet1!AQ202 -> 20 | P40: =+Sheet1!AR202 -> 70 | Q40: =+Sheet1!AS202 -> 70 | R40: =+Sheet1!AT202 -> 70 | S40: =+Sheet1!AU202 -> 50 | T40: =+Sheet1!AV202 -> 50 | U40: =+Sheet1!AW202 -> 40 | V40: =+Sheet1!AX202 -> 30 | W40: =+Sheet1!AY202 -> 20 | X40: =+Sheet1!AZ202 -> 0 | Y40: =+Sheet1!BA202 -> 0 | Z40: =+Sheet1!BB202 -> 0 | AA40: =+Sheet1!BC202 -> 0 | AB40: =+Sheet1!BD202 -> 0 | AC40: =+Sheet1!BE202 -> 0 | AD40: =+Sheet1!BF202 -> 0 | AE40: =+Sheet1!BG202 -> 0
B41: =+収穫予測!S45 -> 78 | C41: =+Sheet1!AE203 -> 0 | D41: =+Sheet1!AF203 -> 0 | E41: =+Sheet1!AG203 -> 0 | F41: =+Sheet1!AH203 -> 0 | G41: =+Sheet1!AI203 -> 0 | H41: =+Sheet1!AJ203 -> 0 | I41: =+Sheet1!AK203 -> 0 | J41: =+Sheet1!AL203 -> 0 | K41: =+Sheet1!AM203 -> 0 | L41: =+Sheet1!AN203 -> 0 | M41: =+Sheet1!AO203 -> 0 | N41: =+Sheet1!AP203 -> 0 | O41: =+Sheet1!AQ203 -> 10 | P41: =+Sheet1!AR203 -> 70 | Q41: =+Sheet1!AS203 -> 70 | R41: =+Sheet1!AT203 -> 60 | S41: =+Sheet1!AU203 -> 60 | T41: =+Sheet1!AV203 -> 50 | U41: =+Sheet1!AW203 -> 40 | V41: =+Sheet1!AX203 -> 30 | W41: =+Sheet1!AY203 -> 30 | X41: =+Sheet1!AZ203 -> 0 | Y41: =+Sheet1!BA203 -> 0 | Z41: =+Sheet1!BB203 -> 0 | AA41: =+Sheet1!BC203 -> 0 | AB41: =+Sheet1!BD203 -> 0 | AC41: =+Sheet1!BE203 -> 0 | AD41: =+Sheet1!BF203 -> 0 | AE41: =+Sheet1!BG203 -> 0
B42: =+収穫予測!S46 -> 80 | C42: =+Sheet1!AE204 -> 0 | D42: =+Sheet1!AF204 -> 0 | E42: =+Sheet1!AG204 -> 0 | F42: =+Sheet1!AH204 -> 0 | G42: =+Sheet1!AI204 -> 0 | H42: =+Sheet1!AJ204 -> 0 | I42: =+Sheet1!AK204 -> 0 | J42: =+Sheet1!AL204 -> 0 | K42: =+Sheet1!AM204 -> 0 | L42: =+Sheet1!AN204 -> 0 | M42: =+Sheet1!AO204 -> 0 | N42: =+Sheet1!AP204 -> 0 | O42: =+Sheet1!AQ204 -> 0 | P42: =+Sheet1!AR204 -> 70 | Q42: =+Sheet1!AS204 -> 70 | R42: =+Sheet1!AT204 -> 60 | S42: =+Sheet1!AU204 -> 60 | T42: =+Sheet1!AV204 -> 50 | U42: =+Sheet1!AW204 -> 40 | V42: =+Sheet1!AX204 -> 40 | W42: =+Sheet1!AY204 -> 30 | X42: =+Sheet1!AZ204 -> 0 | Y42: =+Sheet1!BA204 -> 0 | Z42: =+Sheet1!BB204 -> 0 | AA42: =+Sheet1!BC204 -> 0 | AB42: =+Sheet1!BD204 -> 0 | AC42: =+Sheet1!BE204 -> 0 | AD42: =+Sheet1!BF204 -> 0 | AE42: =+Sheet1!BG204 -> 0
B46: 間伐木胸高直径 | AI46: 径級別材積 | BM46: 間伐木材積計算
B47: cm以上 | C47: =+C5 -> 0 | D47: 2 | E47: 4 | F47: 6 | G47: 8 | H47: 10 | I47: 12 | J47: 14 | K47: 16 | L47: 18 | M47: 20 | N47: 22 | O47: 24 | P47: 26 | Q47: 28 | R47: 30 | S47: 32 | T47: 34 | U47: 36 | V47: 38 | W47: 40 | X47: 42 | Y47: 44 | Z47: 46 | AA47: 48 | AB47: 50 | AC47: 52 | AD47: 54 | AE47: 56 | AI47: 0 | AJ47: 2 | AK47: 4 | AL47: 6 | AM47: 8 | AN47: 10 | AO47: 12 | AP47: 14 | AQ47: 16 | AR47: 18 | AS47: 20 | AT47: 22 | AU47: 24 | AV47: 26 | AW47: 28 | AX47: 30 | AY47: 32 | AZ47: 34 | BA47: 36 | BB47: 38 | BC47: 40 | BD47: 42 | BE47: 44 | BF47: 46 | BG47: 48 | BH47: 50 | BI47: 52 | BJ47: 54 | BK47: 56 | BM47: 0 | BN47: 2 | BO47: 4 | BP47: 6 | BQ47: 8 | BR47: 10 | BS47: 12 | BT47: 14 | BU47: 16 | BV47: 18 | BW47: 20 | BX47: 22 | BY47: 24 | BZ47: 26 | CA47: 28 | CB47: 30 | CC47: 32 | CD47: 34 | CE47: 36 | CF47: 38 | CG47: 40 | CH47: 42 | CI47: 44 | CJ47: 46 | CK47: 48 | CL47: 50 | CM47: 52 | CN47: 54 | CO47: 56 | CQ47: 間伐材積調整
B48: cm未満 | C48: =+C6 -> 2 | D48: 4 | E48: 6 | F48: 8 | G48: 10 | H48: 12 | I48: 14 | J48: 16 | K48: 18 | L48: 20 | M48: 22 | N48: 24 | O48: 26 | P48: 28 | Q48: 30 | R48: 32 | S48: 34 | T48: 36 | U48: 38 | V48: 40 | W48: 42 | X48: 44 | Y48: 46 | Z48: 48 | AA48: 50 | AB48: 52 | AC48: 54 | AD48: 56 | AE48: 以上 | AI48: 2 | AJ48: 4 | AK48: 6 | AL48: 8 | AM48: 10 | AN48: 12 | AO48: 14 | AP48: 16 | AQ48: 18 | AR48: 20 | AS48: 22 | AT48: 24 | AU48: 26 | AV48: 28 | AW48: 30 | AX48: 32 | AY48: 34 | AZ48: 36 | BA48: 38 | BB48: 40 | BC48: 42 | BD48: 44 | BE48: 46 | BF48: 48 | BG48: 50 | BH48: 52 | BI48: 54 | BJ48: 56 | BK48: 以上 | BM48: 2 | BN48: 4 | BO48: 6 | BP48: 8 | BQ48: 10 | BR48: 12 | BS48: 14 | BT48: 16 | BU48: 18 | BV48: 20 | BW48: 22 | BX48: 24 | BY48: 26 | BZ48: 28 | CA48: 30 | CB48: 32 | CC48: 34 | CD48: 36 | CE48: 38 | CF48: 40 | CG48: 42 | CH48: 44 | CI48: 46 | CJ48: 48 | CK48: 50 | CL48: 52 | CM48: 54 | CN48: 56 | CO48: 以上 | CQ48: 1
A49: 林 | B49: =+収穫予測!N11 -> 10 | C49: =+Sheet1!AE89 -> 0 | D49: =+Sheet1!AF89 -> 0 | E49: =+Sheet1!AG89 -> 50 | F49: =+Sheet1!AH89 -> 190 | G49: =+Sheet1!AI89 -> 190 | H49: =+Sheet1!AJ89 -> 160 | I49: =+Sheet1!AK89 -> 70 | J49: =+Sheet1!AL89 -> 0 | K49: =+Sheet1!AM89 -> 0 | L49: =+Sheet1!AN89 -> 0 | M49: =+Sheet1!AO89 -> 0 | N49: =+Sheet1!AP89 -> 0 | O49: =+Sheet1!AQ89 -> 0 | P49: =+Sheet1!AR89 -> 0 | Q49: =+Sheet1!AS89 -> 0 | R49: =+Sheet1!AT89 -> 0 | S49: =+Sheet1!AU89 -> 0 | T49: =+Sheet1!AV89 -> 0 | U49: =+Sheet1!AW89 -> 0 | V49: =+Sheet1!AX89 -> 0 | W49: =+Sheet1!AY89 -> 0 | X49: =+Sheet1!AZ89 -> 0 | Y49: =+Sheet1!BA89 -> 0 | Z49: =+Sheet1!BB89 -> 0 | AA49: =+Sheet1!BC89 -> 0 | AB49: =+Sheet1!BD89 -> 0 | AC49: =+Sheet1!BE89 -> 0 | AD49: =+Sheet1!BF89 -> 0 | AE49: =+Sheet1!BG89 -> 0 | AI49: =+直径階分布の計算!FM11 -> 0.0001 | AJ49: =+直径階分布の計算!FN11 -> 0.0015 | AK49: =+直径階分布の計算!FO11 -> 0.0060 | AL49: =+直径階分布の計算!FP11 -> 0.01480874223 | AM49: =+直径階分布の計算!FQ11 -> 0.02799994767 | AN49: =+直径階分布の計算!FR11 -> 0.04565089156 | AO49: =+直径階分布の計算!FS11 -> 0.06778870039 | AP49: =+直径階分布の計算!FT11 -> 0.09442713104 | AQ49: =+直径階分布の計算!FU11 -> 0.1255738786 | AR49: =+直径階分布の計算!FV11 -> 0.1612335765 | AS49: =+直径階分布の計算!FW11 -> 0.2014091789 | AT49: =+直径階分布の計算!FX11 -> 0.2461026574 | AU49: =+直径階分布の計算!FY11 -> 0.2953153775 | AV49: =+直径階分布の計算!FZ11 -> 0.3490483148 | AW49: =+直径階分布の計算!GA11 -> 0.4073021848 | AX49: =+直径階分布の計算!GB11 -> 0.470077524 | AY49: =+直径階分布の計算!GC11 -> 0.5373747426 | AZ49: =+直径階分布の計算!GD11 -> 0.6091941597 | BA49: =+直径階分布の計算!GE11 -> 0.685536027 | BB49: =+直径階分布の計算!GF11 -> 0.766400546 | BC49: =+直径階分布の計算!GG11 -> 0.8517878796 | BD49: =+直径階分布の計算!GH11 -> 0.9416981611 | BE49: =+直径階分布の計算!GI11 -> 1.036131501 | BF49: =+直径階分布の計算!GJ11 -> 1.13508799 | BG49: =+直径階分布の計算!GK11 -> 1.238567706 | BH49: =+直径階分布の計算!GL11 -> 1.346570715 | BI49: =+直径階分布の計算!GM11 -> 1.45909707 | BJ49: =+直径階分布の計算!GN11 -> 1.576146821 | BK49: =+直径階分布の計算!GO11 -> 1.697720008 | BM49: =+C49*AI49 -> 0 | BN49: =+D49*AJ49 -> 0 | BO49: 0.3008057717 | BP49: 2.813661023 | BQ49: 5.319990057 | BR49: 7.30414265 | BS49: 4.745209028 | BT49: 0 | BU49: 0 | BV49: 0 | BW49: 0 | BX49: 0 | BY49: 0 | BZ49: 0 | CA49: 0 | CB49: 0 | CC49: 0 | CD49: 0 | CE49: 0 | CF49: 0 | CG49: 0 | CH49: 0 | CI49: 0 | CJ49: 0 | CK49: 0 | CL49: 0 | CM49: 0 | CN49: 0 | CO49: 0 | CP49: =+B49 -> 10 | CQ49: =SUM(BM49:CO49)*$CQ$48 -> 20.48380853
B50: =+収穫予測!N12 -> 12 | C50: =+Sheet1!AE90 -> 0 | D50: =+Sheet1!AF90 -> 0 | E50: =+Sheet1!AG90 -> 0 | F50: =+Sheet1!AH90 -> 0 | G50: =+Sheet1!AI90 -> 0 | H50: =+Sheet1!AJ90 -> 0 | I50: =+Sheet1!AK90 -> 0 | J50: =+Sheet1!AL90 -> 0 | K50: =+Sheet1!AM90 -> 0 | L50: =+Sheet1!AN90 -> 0 | M50: =+Sheet1!AO90 -> 0 | N50: =+Sheet1!AP90 -> 0 | O50: =+Sheet1!AQ90 -> 0 | P50: =+Sheet1!AR90 -> 0 | Q50: =+Sheet1!AS90 -> 0 | R50: =+Sheet1!AT90 -> 0 | S50: =+Sheet1!AU90 -> 0 | T50: =+Sheet1!AV90 -> 0 | U50: =+Sheet1!AW90 -> 0 | V50: =+Sheet1!AX90 -> 0 | W50: =+Sheet1!AY90 -> 0 | X50: =+Sheet1!AZ90 -> 0 | Y50: =+Sheet1!BA90 -> 0 | Z50: =+Sheet1!BB90 -> 0 | AA50: =+Sheet1!BC90 -> 0 | AB50: =+Sheet1!BD90 -> 0 | AC50: =+Sheet1!BE90 -> 0 | AD50: =+Sheet1!BF90 -> 0 | AE50: =+Sheet1!BG90 -> 0 | AI50: =+直径階分布の計算!FM12 -> 0.0001 | AJ50: =+直径階分布の計算!FN12 -> 0.0014 | AK50: =+直径階分布の計算!FO12 -> 0.0057 | AL50: =+直径階分布の計算!FP12 -> 0.01459623237 | AM50: =+直径階分布の計算!FQ12 -> 0.0282427751 | AN50: =+直径階分布の計算!FR12 -> 0.0467669878 | AO50: =+直径階分布の計算!FS12 -> 0.07021581272 | AP50: =+直径階分布の計算!FT12 -> 0.09861354986 | AQ50: =+直径階分布の計算!FU12 -> 0.1319739862 | AR50: =+直径階分布の計算!FV12 -> 0.1703055107 | AS50: =+直径階分布の計算!FW12 -> 0.2136135157 | AT50: =+直径階分布の計算!FX12 -> 0.2619016229 | AU50: =+直径階分布の計算!FY12 -> 0.3151723539 | AV50: =+直径階分布の計算!FZ12 -> 0.3734275183 | AW50: =+直径階分布の計算!GA12 -> 0.4366684482 | AX50: =+直径階分布の計算!GB12 -> 0.5048961455 | AY50: =+直径階分布の計算!GC12 -> 0.5781113786 | AZ50: =+直径階分布の計算!GD12 -> 0.6563147462 | BA50: =+直径階分布の計算!GE12 -> 0.739506722 | BB50: =+直径階分布の計算!GF12 -> 0.8276876856 | BC50: =+直径階分布の計算!GG12 -> 0.9208579448 | BD50: =+直径階分布の計算!GH12 -> 1.019017752 | BE50: =+直径階分布の計算!GI12 -> 1.122167315 | BF50: =+直径階分布の計算!GJ12 -> 1.230306807 | BG50: =+直径階分布の計算!GK12 -> 1.343436377 | BH50: =+直径階分布の計算!GL12 -> 1.461556146 | BI50: =+直径階分布の計算!GM12 -> 1.584666221 | BJ50: =+直径階分布の計算!GN12 -> 1.712766692 | BK50: =+直径階分布の計算!GO12 -> 1.845857637 | BM50: =+C50*AI50 -> 0 | BN50: 0 | BO50: 0 | BP50: 0 | BQ50: 0 | BR50: 0 | BS50: 0 | BT50: 0 | BU50: 0 | BV50: 0 | BW50: 0 | BX50: 0 | BY50: 0 | BZ50: 0 | CA50: 0 | CB50: 0 | CC50: 0 | CD50: 0 | CE50: 0 | CF50: 0 | CG50: 0 | CH50: 0 | CI50: 0 | CJ50: 0 | CK50: 0 | CL50: 0 | CM50: 0 | CN50: 0 | CO50: 0 | CP50: =+B50 -> 12 | CQ50: =SUM(BM50:CO50)*$CQ$48 -> 0
A51: 齢 | B51: =+収穫予測!N13 -> 14 | C51: =+Sheet1!AE91 -> 0 | D51: =+Sheet1!AF91 -> 0 | E51: =+Sheet1!AG91 -> 0 | F51: =+Sheet1!AH91 -> 0 | G51: =+Sheet1!AI91 -> 0 | H51: =+Sheet1!AJ91 -> 0 | I51: =+Sheet1!AK91 -> 0 | J51: =+Sheet1!AL91 -> 0 | K51: =+Sheet1!AM91 -> 0 | L51: =+Sheet1!AN91 -> 0 | M51: =+Sheet1!AO91 -> 0 | N51: =+Sheet1!AP91 -> 0 | O51: =+Sheet1!AQ91 -> 0 | P51: =+Sheet1!AR91 -> 0 | Q51: =+Sheet1!AS91 -> 0 | R51: =+Sheet1!AT91 -> 0 | S51: =+Sheet1!AU91 -> 0 | T51: =+Sheet1!AV91 -> 0 | U51: =+Sheet1!AW91 -> 0 | V51: =+Sheet1!AX91 -> 0 | W51: =+Sheet1!AY91 -> 0 | X51: =+Sheet1!AZ91 -> 0 | Y51: =+Sheet1!BA91 -> 0 | Z51: =+Sheet1!BB91 -> 0 | AA51: =+Sheet1!BC91 -> 0 | AB51: =+Sheet1!BD91 -> 0 | AC51: =+Sheet1!BE91 -> 0 | AD51: =+Sheet1!BF91 -> 0 | AE51: =+Sheet1!BG91 -> 0 | AI51: =+直径階分布の計算!FM13 -> 0.0001 | AJ51: =+直径階分布の計算!FN13 -> 0.0014 | AK51: =+直径階分布の計算!FO13 -> 0.0059 | AL51: =+直径階分布の計算!FP13 -> 0.01536120177 | AM51: =+直径階分布の計算!FQ13 -> 0.03023790879 | AN51: =+直径階分布の計算!FR13 -> 0.05063047512 | AO51: =+直径階分布の計算!FS13 -> 0.076607271 | AP51: =+直径階分布の計算!FT13 -> 0.1082040597 | AQ51: =+直径階分布の計算!FU13 -> 0.1454412827 | AR51: =+直径階分布の計算!FV13 -> 0.1883314471 | AS51: =+直径階分布の計算!FW13 -> 0.2368826267 | AT51: =+直径階分布の計算!FX13 -> 0.291100263 | AU51: =+直径階分布の計算!FY13 -> 0.3509881555 | AV51: =+直径階分布の計算!FZ13 -> 0.4165490372 | AW51: =+直径階分布の計算!GA13 -> 0.4877849237 | AX51: =+直径階分布の計算!GB13 -> 0.5646973338 | AY51: =+直径階分布の計算!GC13 -> 0.647287434 | AZ51: =+直径階分布の計算!GD13 -> 0.7355561345 | BA51: =+直径階分布の計算!GE13 -> 0.8295041561 | BB51: =+直径階分布の計算!GF13 -> 0.9291320772 | BC51: =+直径階分布の計算!GG13 -> 1.034440367 | BD51: =+直径階分布の計算!GH13 -> 1.14542941 | BE51: =+直径階分布の計算!GI13 -> 1.262099524 | BF51: =+直径階分布の計算!GJ13 -> 1.384450976 | BG51: =+直径階分布の計算!GK13 -> 1.51248399 | BH51: =+直径階分布の計算!GL13 -> 1.646198753 | BI51: =+直径階分布の計算!GM13 -> 1.785595429 | BJ51: =+直径階分布の計算!GN13 -> 1.930674156 | BK51: =+直径階分布の計算!GO13 -> 2.081435053 | BM51: 0 | BN51: 0 | BO51: 0 | BP51: 0 | BQ51: 0 | BR51: 0 | BS51: 0 | BT51: 0 | BU51: 0 | BV51: 0 | BW51: 0 | BX51: 0 | BY51: 0 | BZ51: 0 | CA51: 0 | CB51: 0 | CC51: 0 | CD51: 0 | CE51: 0 | CF51: 0 | CG51: 0 | CH51: 0 | CI51: 0 | CJ51: 0 | CK51: 0 | CL51: 0 | CM51: 0 | CN51: 0 | CO51: 0 | CP51: 14 | CQ51: 0
B52: =+収穫予測!N14 -> 16 | C52: =+Sheet1!AE92 -> 0 | D52: =+Sheet1!AF92 -> 0 | E52: =+Sheet1!AG92 -> 0 | F52: =+Sheet1!AH92 -> 0 | G52: =+Sheet1!AI92 -> 0 | H52: =+Sheet1!AJ92 -> 0 | I52: =+Sheet1!AK92 -> 0 | J52: =+Sheet1!AL92 -> 0 | K52: =+Sheet1!AM92 -> 0 | L52: =+Sheet1!AN92 -> 0 | M52: =+Sheet1!AO92 -> 0 | N52: =+Sheet1!AP92 -> 0 | O52: =+Sheet1!AQ92 -> 0 | P52: =+Sheet1!AR92 -> 0 | Q52: =+Sheet1!AS92 -> 0 | R52: =+Sheet1!AT92 -> 0 | S52: =+Sheet1!AU92 -> 0 | T52: =+Sheet1!AV92 -> 0 | U52: =+Sheet1!AW92 -> 0 | V52: =+Sheet1!AX92 -> 0 | W52: =+Sheet1!AY92 -> 0 | X52: =+Sheet1!AZ92 -> 0 | Y52: =+Sheet1!BA92 -> 0 | Z52: =+Sheet1!BB92 -> 0 | AA52: =+Sheet1!BC92 -> 0 | AB52: =+Sheet1!BD92 -> 0 | AC52: =+Sheet1!BE92 -> 0 | AD52: =+Sheet1!BF92 -> 0 | AE52: =+Sheet1!BG92 -> 0 | AI52: =+直径階分布の計算!FM14 -> 0.0001 | AJ52: =+直径階分布の計算!FN14 -> 0.0013 | AK52: =+直径階分布の計算!FO14 -> 0.0059 | AL52: =+直径階分布の計算!FP14 -> 0.01591280492 | AM52: =+直径階分布の計算!FQ14 -> 0.03181082642 | AN52: =+直径階分布の計算!FR14 -> 0.05380156155 | AO52: =+直径階分布の計算!FS14 -> 0.08197776383 | AP52: =+直径階分布の計算!FT14 -> 0.1163884204 | AQ52: =+直径階分布の計算!FU14 -> 0.1570617214 | AR52: =+直径階分布の計算!FV14 -> 0.2040150023 | AS52: =+直径階分布の計算!FW14 -> 0.2572594974 | AT52: =+直径階分布の計算!FX14 -> 0.3168028018 | AU52: =+直径階分布の計算!FY14 -> 0.3826502326 | AV52: =+直径階分布の計算!FZ14 -> 0.4548056222 | AW52: =+直径階分布の計算!GA14 -> 0.5332718021 | AX52: =+直径階分布の計算!GB14 -> 0.6180509096 | AY52: =+直径階分布の計算!GC14 -> 0.7091445877 | AZ52: =+直径階分布の計算!GD14 -> 0.8065541206 | BA52: =+直径階分布の計算!GE14 -> 0.910280526 | BB52: =+直径階分布の計算!GF14 -> 1.020324621 | BC52: =+直径階分布の計算!GG14 -> 1.13668707 | BD52: =+直径階分布の計算!GH14 -> 1.259368416 | BE52: =+直径階分布の計算!GI14 -> 1.388369111 | BF52: =+直径階分布の計算!GJ14 -> 1.523689532 | BG52: =+直径階分布の計算!GK14 -> 1.665329996 | BH52: =+直径階分布の計算!GL14 -> 1.813290771 | BI52: =+直径階分布の計算!GM14 -> 1.967572086 | BJ52: =+直径階分布の計算!GN14 -> 2.12817414 | BK52: =+直径階分布の計算!GO14 -> 2.295097102 | BM52: 0 | BN52: 0 | BO52: 0 | BP52: 0 | BQ52: 0 | BR52: 0 | BS52: 0 | BT52: 0 | BU52: 0 | BV52: 0 | BW52: 0 | BX52: 0 | BY52: 0 | BZ52: 0 | CA52: 0 | CB52: 0 | CC52: 0 | CD52: 0 | CE52: 0 | CF52: 0 | CG52: 0 | CH52: 0 | CI52: 0 | CJ52: 0 | CK52: 0 | CL52: 0 | CM52: 0 | CN52: 0 | CO52: 0 | CP52: 16 | CQ52: 0
A53: （年） | B53: =+収穫予測!N15 -> 18 | C53: =+Sheet1!AE93 -> 0 | D53: =+Sheet1!AF93 -> 0 | E53: =+Sheet1!AG93 -> 0 | F53: =+Sheet1!AH93 -> 0 | G53: =+Sheet1!AI93 -> 0 | H53: =+Sheet1!AJ93 -> 0 | I53: =+Sheet1!AK93 -> 0 | J53: =+Sheet1!AL93 -> 0 | K53: =+Sheet1!AM93 -> 0 | L53: =+Sheet1!AN93 -> 0 | M53: =+Sheet1!AO93 -> 0 | N53: =+Sheet1!AP93 -> 0 | O53: =+Sheet1!AQ93 -> 0 | P53: =+Sheet1!AR93 -> 0 | Q53: =+Sheet1!AS93 -> 0 | R53: =+Sheet1!AT93 -> 0 | S53: =+Sheet1!AU93 -> 0 | T53: =+Sheet1!AV93 -> 0 | U53: =+Sheet1!AW93 -> 0 | V53: =+Sheet1!AX93 -> 0 | W53: =+Sheet1!AY93 -> 0 | X53: =+Sheet1!AZ93 -> 0 | Y53: =+Sheet1!BA93 -> 0 | Z53: =+Sheet1!BB93 -> 0 | AA53: =+Sheet1!BC93 -> 0 | AB53: =+Sheet1!BD93 -> 0 | AC53: =+Sheet1!BE93 -> 0 | AD53: =+Sheet1!BF93 -> 0 | AE53: =+Sheet1!BG93 -> 0 | AI53: =+直径階分布の計算!FM15 -> 0.0001 | AJ53: =+直径階分布の計算!FN15 -> 0.0013 | AK53: =+直径階分布の計算!FO15 -> 0.0059 | AL53: =+直径階分布の計算!FP15 -> 0.01629856083 | AM53: =+直径階分布の計算!FQ15 -> 0.03303849744 | AN53: =+直径階分布の計算!FR15 -> 0.05638843024 | AO53: =+直径階分布の計算!FS15 -> 0.0864676872 | AP53: =+直径階分布の計算!FT15 -> 0.1233398503 | AQ53: =+直径階分布の計算!FU15 -> 0.1670417355 | AR53: =+直径階分布の計算!FV15 -> 0.217596087 | AS53: =+直径階分布の計算!FW15 -> 0.2750176964 | AT53: =+直径階分布の計算!FX15 -> 0.3393165921 | AU53: =+直径階分布の計算!FY15 -> 0.4104998109 | AV53: =+直径階分布の計算!FZ15 -> 0.4885724344 | AW53: =+直径階分布の計算!GA15 -> 0.5735382234 | AX53: =+直径階分布の計算!GB15 -> 0.6654000201 | AY53: =+直径階分布の計算!GC15 -> 0.7641600126 | AZ53: =+直径階分布の計算!GD15 -> 0.8698199123 | BA53: =+直径階分布の計算!GE15 -> 0.9823810774 | BB53: =+直径階分布の計算!GF15 -> 1.101844599 | BC53: =+直径階分布の計算!GG15 -> 1.228211364 | BD53: =+直径階分布の計算!GH15 -> 1.3614821 | BE53: =+直径階分布の計算!GI15 -> 1.501657412 | BF53: =+直径階分布の計算!GJ15 -> 1.648737802 | BG53: =+直径階分布の計算!GK15 -> 1.802723696 | BH53: =+直径階分布の計算!GL15 -> 1.963615455 | BI53: =+直径階分布の計算!GM15 -> 2.131413385 | BJ53: =+直径階分布の計算!GN15 -> 2.30611775 | BK53: =+直径階分布の計算!GO15 -> 2.48772878 | BM53: 0 | BN53: 0 | BO53: 0 | BP53: 0 | BQ53: 0 | BR53: 0 | BS53: 0 | BT53: 0 | BU53: 0 | BV53: 0 | BW53: 0 | BX53: 0 | BY53: 0 | BZ53: 0 | CA53: 0 | CB53: 0 | CC53: 0 | CD53: 0 | CE53: 0 | CF53: 0 | CG53: 0 | CH53: 0 | CI53: 0 | CJ53: 0 | CK53: 0 | CL53: 0 | CM53: 0 | CN53: 0 | CO53: 0 | CP53: 18 | CQ53: 0
B54: =+収穫予測!N16 -> 20 | C54: =+Sheet1!AE94 -> 0 | D54: =+Sheet1!AF94 -> 0 | E54: =+Sheet1!AG94 -> 0 | F54: =+Sheet1!AH94 -> 0 | G54: =+Sheet1!AI94 -> 40 | H54: =+Sheet1!AJ94 -> 100 | I54: =+Sheet1!AK94 -> 100 | J54: =+Sheet1!AL94 -> 100 | K54: =+Sheet1!AM94 -> 80 | L54: =+Sheet1!AN94 -> 40 | M54: =+Sheet1!AO94 -> 0 | N54: =+Sheet1!AP94 -> 0 | O54: =+Sheet1!AQ94 -> 0 | P54: =+Sheet1!AR94 -> 0 | Q54: =+Sheet1!AS94 -> 0 | R54: =+Sheet1!AT94 -> 0 | S54: =+Sheet1!AU94 -> 0 | T54: =+Sheet1!AV94 -> 0 | U54: =+Sheet1!AW94 -> 0 | V54: =+Sheet1!AX94 -> 0 | W54: =+Sheet1!AY94 -> 0 | X54: =+Sheet1!AZ94 -> 0 | Y54: =+Sheet1!BA94 -> 0 | Z54: =+Sheet1!BB94 -> 0 | AA54: =+Sheet1!BC94 -> 0 | AB54: =+Sheet1!BD94 -> 0 | AC54: =+Sheet1!BE94 -> 0 | AD54: =+Sheet1!BF94 -> 0 | AE54: =+Sheet1!BG94 -> 0 | AI54: =+直径階分布の計算!FM16 -> 0.0001 | AJ54: =+直径階分布の計算!FN16 -> 0.0013 | AK54: =+直径階分布の計算!FO16 -> 0.0059 | AL54: =+直径階分布の計算!FP16 -> 0.01655773458 | AM54: =+直径階分布の計算!FQ16 -> 0.03398846976 | AN54: =+直径階分布の計算!FR16 -> 0.05849060207 | AO54: =+直径階分布の計算!FS16 -> 0.0902114861 | AP54: =+直径階分布の計算!FT16 -> 0.1292302756 | AQ54: =+直径階分布の計算!FU16 -> 0.1755930628 | AR54: =+直径階分布の計算!FV16 -> 0.2293284417 | AS54: =+直径階分布の計算!FW16 -> 0.2904550685 | AT54: =+直径階分布の計算!FX16 -> 0.3589856241 | AU54: =+直径階分布の計算!FY16 -> 0.4349290253 | AV54: =+直径階分布の計算!FZ16 -> 0.5182917224 | AW54: =+直径階分布の計算!GA16 -> 0.6090784961 | AX54: =+直径階分布の計算!GB16 -> 0.7072929642 | AY54: =+直径階分布の計算!GC16 -> 0.8129379148 | AZ54: =+直径階分布の計算!GD16 -> 0.9260155307 | BA54: =+直径階分布の計算!GE16 -> 1.046527546 | BB54: =+直径階分布の計算!GF16 -> 1.174475353 | BC54: =+直径階分布の計算!GG16 -> 1.309860087 | BD54: =+直径階分布の計算!GH16 -> 1.452682679 | BE54: =+直径階分布の計算!GI16 -> 1.602943901 | BF54: =+直径階分布の計算!GJ16 -> 1.760644399 | BG54: =+直径階分布の計算!GK16 -> 1.925784716 | BH54: =+直径階分布の計算!GL16 -> 2.098365315 | BI54: =+直径階分布の計算!GM16 -> 2.278386589 | BJ54: =+直径階分布の計算!GN16 -> 2.465848878 | BK54: =+直径階分布の計算!GO16 -> 2.660752473 | BM54: 0 | BN54: 0 | BO54: 0 | BP54: 0 | BQ54: 1.35953879 | BR54: 5.849060207 | BS54: 9.02114861 | BT54: 12.92302756 | BU54: 14.04744503 | BV54: 9.17313767 | BW54: 0 | BX54: 0 | BY54: 0 | BZ54: 0 | CA54: 0 | CB54: 0 | CC54: 0 | CD54: 0 | CE54: 0 | CF54: 0 | CG54: 0 | CH54: 0 | CI54: 0 | CJ54: 0 | CK54: 0 | CL54: 0 | CM54: 0 | CN54: 0 | CO54: 0 | CP54: 20 | CQ54: 52.37335787
B55: =+収穫予測!N17 -> 22 | C55: =+Sheet1!AE95 -> 0 | D55: =+Sheet1!AF95 -> 0 | E55: =+Sheet1!AG95 -> 0 | F55: =+Sheet1!AH95 -> 0 | G55: =+Sheet1!AI95 -> 0 | H55: =+Sheet1!AJ95 -> 0 | I55: =+Sheet1!AK95 -> 0 | J55: =+Sheet1!AL95 -> 0 | K55: =+Sheet1!AM95 -> 0 | L55: =+Sheet1!AN95 -> 0 | M55: =+Sheet1!AO95 -> 0 | N55: =+Sheet1!AP95 -> 0 | O55: =+Sheet1!AQ95 -> 0 | P55: =+Sheet1!AR95 -> 0 | Q55: =+Sheet1!AS95 -> 0 | R55: =+Sheet1!AT95 -> 0 | S55: =+Sheet1!AU95 -> 0 | T55: =+Sheet1!AV95 -> 0 | U55: =+Sheet1!AW95 -> 0 | V55: =+Sheet1!AX95 -> 0 | W55: =+Sheet1!AY95 -> 0 | X55: =+Sheet1!AZ95 -> 0 | Y55: =+Sheet1!BA95 -> 0 | Z55: =+Sheet1!BB95 -> 0 | AA55: =+Sheet1!BC95 -> 0 | AB55: =+Sheet1!BD95 -> 0 | AC55: =+Sheet1!BE95 -> 0 | AD55: =+Sheet1!BF95 -> 0 | AE55: =+Sheet1!BG95 -> 0 | AI55: =+直径階分布の計算!FM17 -> 0.0001 | AJ55: =+直径階分布の計算!FN17 -> 0.0013 | AK55: =+直径階分布の計算!FO17 -> 0.0055 | AL55: =+直径階分布の計算!FP17 -> 0.01562844173 | AM55: =+直径階分布の計算!FQ17 -> 0.03252180922 | AN55: =+直径階分布の計算!FR17 -> 0.05651168895 | AO55: =+直径階分布の計算!FS17 -> 0.08777377489 | AP55: =+直径階分布の計算!FT17 -> 0.1264036259 | AQ55: =+直径階分布の計算!FU17 -> 0.1724573569 | AR55: =+直径階分布の計算!FV17 -> 0.2259699928 | AS55: =+直径階分布の計算!FW17 -> 0.2869644926 | AT55: =+直径階分布の計算!FX17 -> 0.3554565196 | AU55: =+直径階分布の計算!FY17 -> 0.4314571203 | AV55: =+直径階分布の計算!FZ17 -> 0.5149743056 | AW55: =+直径階分布の計算!GA17 -> 0.6060140251 | AX55: =+直径階分布の計算!GB17 -> 0.7045807893 | AY55: =+直径階分布の計算!GC17 -> 0.8106780794 | AZ55: =+直径階分布の計算!GD17 -> 0.9243086248 | BA55: =+直径階分布の計算!GE17 -> 1.045474595 | BB55: =+直径階分布の計算!GF17 -> 1.174177738 | BC55: =+直径階分布の計算!GG17 -> 1.310419474 | BD55: =+直径階分布の計算!GH17 -> 1.454200974 | BE55: =+直径階分布の計算!GI17 -> 1.605523207 | BF55: =+直径階分布の計算!GJ17 -> 1.764386984 | BG55: =+直径階分布の計算!GK17 -> 1.930792992 | BH55: =+直径階分布の計算!GL17 -> 2.104741809 | BI55: =+直径階分布の計算!GM17 -> 2.286233933 | BJ55: =+直径階分布の計算!GN17 -> 2.475269791 | BK55: =+直径階分布の計算!GO17 -> 2.671849751 | BM55: 0 | BN55: 0 | BO55: 0 | BP55: 0 | BQ55: 0 | BR55: 0 | BS55: 0 | BT55: 0 | BU55: 0 | BV55: 0 | BW55: 0 | BX55: 0 | BY55: 0 | BZ55: 0 | CA55: 0 | CB55: 0 | CC55: 0 | CD55: 0 | CE55: 0 | CF55: 0 | CG55: 0 | CH55: 0 | CI55: 0 | CJ55: 0 | CK55: 0 | CL55: 0 | CM55: 0 | CN55: 0 | CO55: 0 | CP55: 22 | CQ55: 0
B56: =+収穫予測!N18 -> 24 | C56: =+Sheet1!AE96 -> 0 | D56: =+Sheet1!AF96 -> 0 | E56: =+Sheet1!AG96 -> 0 | F56: =+Sheet1!AH96 -> 0 | G56: =+Sheet1!AI96 -> 0 | H56: =+Sheet1!AJ96 -> 0 | I56: =+Sheet1!AK96 -> 0 | J56: =+Sheet1!AL96 -> 0 | K56: =+Sheet1!AM96 -> 0 | L56: =+Sheet1!AN96 -> 0 | M56: =+Sheet1!AO96 -> 0 | N56: =+Sheet1!AP96 -> 0 | O56: =+Sheet1!AQ96 -> 0 | P56: =+Sheet1!AR96 -> 0 | Q56: =+Sheet1!AS96 -> 0 | R56: =+Sheet1!AT96 -> 0 | S56: =+Sheet1!AU96 -> 0 | T56: =+Sheet1!AV96 -> 0 | U56: =+Sheet1!AW96 -> 0 | V56: =+Sheet1!AX96 -> 0 | W56: =+Sheet1!AY96 -> 0 | X56: =+Sheet1!AZ96 -> 0 | Y56: =+Sheet1!BA96 -> 0 | Z56: =+Sheet1!BB96 -> 0 | AA56: =+Sheet1!BC96 -> 0 | AB56: =+Sheet1!BD96 -> 0 | AC56: =+Sheet1!BE96 -> 0 | AD56: =+Sheet1!BF96 -> 0 | AE56: =+Sheet1!BG96 -> 0 | AI56: =+直径階分布の計算!FM18 -> 0.0001 | AJ56: =+直径階分布の計算!FN18 -> 0.0013 | AK56: =+直径階分布の計算!FO18 -> 0.0054 | AL56: =+直径階分布の計算!FP18 -> 0.01569717989 | AM56: =+直径階分布の計算!FQ18 -> 0.03299897745 | AN56: =+直径階分布の計算!FR18 -> 0.05773136289 | AO56: =+直径階分布の計算!FS18 -> 0.09009811226 | AP56: =+直径階分布の計算!FT18 -> 0.1302108059 | AQ56: =+直径階分布の計算!FU18 -> 0.1781352734 | AR56: =+直径階分布の計算!FV18 -> 0.233912745 | AS56: =+直径階分布の計算!FW18 -> 0.2975703187 | AT56: =+直径階分布の計算!FX18 -> 0.3691265211 | AU56: =+直径階分布の計算!FY18 -> 0.4485944398 | AV56: =+直径階分布の計算!FZ18 -> 0.53598358 | AW56: =+直径階分布の計算!GA18 -> 0.6313010093 | AX56: =+直径階分布の計算!GB18 -> 0.7345520914 | AY56: =+直径階分布の計算!GC18 -> 0.8457409697 | AZ56: =+直径階分布の計算!GD18 -> 0.9648708951 | BA56: =+直径階分布の計算!GE18 -> 1.091944454 | BB56: =+直径階分布の計算!GF18 -> 1.22696373 | BC56: =+直径階分布の計算!GG18 -> 1.36993042 | BD56: =+直径階分布の計算!GH18 -> 1.52084592 | BE56: =+直径階分布の計算!GI18 -> 1.679711388 | BF56: =+直径階分布の計算!GJ18 -> 1.846527794 | BG56: =+直径階分布の計算!GK18 -> 2.021295958 | BH56: =+直径階分布の計算!GL18 -> 2.204016572 | BI56: =+直径階分布の計算!GM18 -> 2.394690232 | BJ56: =+直径階分布の計算!GN18 -> 2.593317447 | BK56: =+直径階分布の計算!GO18 -> 2.79989866 | BM56: 0 | BN56: 0 | BO56: 0 | BP56: 0 | BQ56: 0 | BR56: 0 | BS56: 0 | BT56: 0 | BU56: 0 | BV56: 0 | BW56: 0 | BX56: 0 | BY56: 0 | BZ56: 0 | CA56: 0 | CB56: 0 | CC56: 0 | CD56: 0 | CE56: 0 | CF56: 0 | CG56: 0 | CH56: 0 | CI56: 0 | CJ56: 0 | CK56: 0 | CL56: 0 | CM56: 0 | CN56: 0 | CO56: 0 | CP56: 24 | CQ56: 0
B57: =+収穫予測!N19 -> 26 | C57: =+Sheet1!AE97 -> 0 | D57: =+Sheet1!AF97 -> 0 | E57: =+Sheet1!AG97 -> 0 | F57: =+Sheet1!AH97 -> 0 | G57: =+Sheet1!AI97 -> 0 | H57: =+Sheet1!AJ97 -> 0 | I57: =+Sheet1!AK97 -> 0 | J57: =+Sheet1!AL97 -> 0 | K57: =+Sheet1!AM97 -> 0 | L57: =+Sheet1!AN97 -> 0 | M57: =+Sheet1!AO97 -> 0 | N57: =+Sheet1!AP97 -> 0 | O57: =+Sheet1!AQ97 -> 0 | P57: =+Sheet1!AR97 -> 0 | Q57: =+Sheet1!AS97 -> 0 | R57: =+Sheet1!AT97 -> 0 | S57: =+Sheet1!AU97 -> 0 | T57: =+Sheet1!AV97 -> 0 | U57: =+Sheet1!AW97 -> 0 | V57: =+Sheet1!AX97 -> 0 | W57: =+Sheet1!AY97 -> 0 | X57: =+Sheet1!AZ97 -> 0 | Y57: =+Sheet1!BA97 -> 0 | Z57: =+Sheet1!BB97 -> 0 | AA57: =+Sheet1!BC97 -> 0 | AB57: =+Sheet1!BD97 -> 0 | AC57: =+Sheet1!BE97 -> 0 | AD57: =+Sheet1!BF97 -> 0 | AE57: =+Sheet1!BG97 -> 0 | AI57: =+直径階分布の計算!FM19 -> 0.0001 | AJ57: =+直径階分布の計算!FN19 -> 0.0013 | AK57: =+直径階分布の計算!FO19 -> 0.0054 | AL57: =+直径階分布の計算!FP19 -> 0.01571915228 | AM57: =+直径階分布の計算!FQ19 -> 0.03335048942 | AN57: =+直径階分布の計算!FR19 -> 0.05870714128 | AO57: =+直径階分布の計算!FS19 -> 0.0920206066 | AP57: =+直径階分布の計算!FT19 -> 0.1334184283 | AQ57: =+直径階分布の計算!FU19 -> 0.1829761747 | AR57: =+直径階分布の計算!FV19 -> 0.2407413247 | AS57: =+直径階分布の計算!FW19 -> 0.3067451587 | AT57: =+直径階分布の計算!FX19 -> 0.3810091035 | AU57: =+直径階分布の計算!FY19 -> 0.4635483196 | AV57: =+直径階分布の計算!FZ19 -> 0.5543738317 | AW57: =+直径階分布の計算!GA19 -> 0.6534938464 | AX57: =+直径階分布の計算!GB19 -> 0.7609145974 | AY57: =+直径階分布の計算!GC19 -> 0.8766409042 | AZ57: =+直径階分布の計算!GD19 -> 1.000676551 | BA57: =+直径階分布の計算!GE19 -> 1.13302455 | BB57: =+直径階分布の計算!GF19 -> 1.27368733 | BC57: =+直径階分布の計算!GG19 -> 1.422666869 | BD57: =+直径階分布の計算!GH19 -> 1.579964795 | BE57: =+直径階分布の計算!GI19 -> 1.74558246 | BF57: =+直径階分布の計算!GJ19 -> 1.919520997 | BG57: =+直径階分布の計算!GK19 -> 2.10178136 | BH57: =+直径階分布の計算!GL19 -> 2.292364363 | BI57: =+直径階分布の計算!GM19 -> 2.491270697 | BJ57: =+直径階分布の計算!GN19 -> 2.698500961 | BK57: =+直径階分布の計算!GO19 -> 2.914055671 | BM57: 0 | BN57: 0 | BO57: 0 | BP57: 0 | BQ57: 0 | BR57: 0 | BS57: 0 | BT57: 0 | BU57: 0 | BV57: 0 | BW57: 0 | BX57: 0 | BY57: 0 | BZ57: 0 | CA57: 0 | CB57: 0 | CC57: 0 | CD57: 0 | CE57: 0 | CF57: 0 | CG57: 0 | CH57: 0 | CI57: 0 | CJ57: 0 | CK57: 0 | CL57: 0 | CM57: 0 | CN57: 0 | CO57: 0 | CP57: 26 | CQ57: 0
B58: =+収穫予測!N20 -> 28 | C58: =+Sheet1!AE98 -> 0 | D58: =+Sheet1!AF98 -> 0 | E58: =+Sheet1!AG98 -> 0 | F58: =+Sheet1!AH98 -> 0 | G58: =+Sheet1!AI98 -> 0 | H58: =+Sheet1!AJ98 -> 0 | I58: =+Sheet1!AK98 -> 0 | J58: =+Sheet1!AL98 -> 0 | K58: =+Sheet1!AM98 -> 0 | L58: =+Sheet1!AN98 -> 0 | M58: =+Sheet1!AO98 -> 0 | N58: =+Sheet1!AP98 -> 0 | O58: =+Sheet1!AQ98 -> 0 | P58: =+Sheet1!AR98 -> 0 | Q58: =+Sheet1!AS98 -> 0 | R58: =+Sheet1!AT98 -> 0 | S58: =+Sheet1!AU98 -> 0 | T58: =+Sheet1!AV98 -> 0 | U58: =+Sheet1!AW98 -> 0 | V58: =+Sheet1!AX98 -> 0 | W58: =+Sheet1!AY98 -> 0 | X58: =+Sheet1!AZ98 -> 0 | Y58: =+Sheet1!BA98 -> 0 | Z58: =+Sheet1!BB98 -> 0 | AA58: =+Sheet1!BC98 -> 0 | AB58: =+Sheet1!BD98 -> 0 | AC58: =+Sheet1!BE98 -> 0 | AD58: =+Sheet1!BF98 -> 0 | AE58: =+Sheet1!BG98 -> 0 | AI58: =+直径階分布の計算!FM20 -> 0.0001 | AJ58: =+直径階分布の計算!FN20 -> 0.0014 | AK58: =+直径階分布の計算!FO20 -> 0.0053 | AL58: =+直径階分布の計算!FP20 -> 0.01570750935 | AM58: =+直径階分布の計算!FQ20 -> 0.03360403763 | AN58: =+直径階分布の計算!FR20 -> 0.05948572313 | AO58: =+直径階分布の計算!FS20 -> 0.09361108732 | AP58: =+直径階分布の計算!FT20 -> 0.1361233652 | AQ58: =+直径階分布の計算!FU20 -> 0.1871077536 | AR58: =+直径階分布の計算!FV20 -> 0.2466179344 | AS58: =+直径階分布の計算!FW20 -> 0.3146893529 | AT58: =+直径階分布の計算!FX20 -> 0.3913463313 | AU58: =+直径階分布の計算!FY20 -> 0.4766061033 | AV58: =+直径階分布の計算!FZ20 -> 0.570481216 | AW58: =+直径階分布の計算!GA20 -> 0.6729810186 | AX58: =+直径階分布の計算!GB20 -> 0.7841126189 | AY58: =+直径階分布の計算!GC20 -> 0.9038815161 | AZ58: =+直径階分布の計算!GD20 -> 1.032292031 | BA58: =+直径階分布の計算!GE20 -> 1.169347605 | BB58: =+直径階分布の計算!GF20 -> 1.315051013 | BC58: =+直径階分布の計算!GG20 -> 1.469404518 | BD58: =+直径階分布の計算!GH20 -> 1.632409983 | BE58: =+直径階分布の計算!GI20 -> 1.804068954 | BF58: =+直径階分布の計算!GJ20 -> 1.984382729 | BG58: =+直径階分布の計算!GK20 -> 2.173352401 | BH58: =+直径階分布の計算!GL20 -> 2.3709789 | BI58: =+直径階分布の計算!GM20 -> 2.57726302 | BJ58: =+直径階分布の計算!GN20 -> 2.792205447 | BK58: =+直径階分布の計算!GO20 -> 3.01580677 | BM58: 0 | BN58: 0 | BO58: 0 | BP58: 0 | BQ58: =+G58*AM58 -> 0 | BR58: =+H58*AN58 -> 0 | BS58: =+I58*AO58 -> 0 | BT58: =+J58*AP58 -> 0 | BU58: =+K58*AQ58 -> 0 | BV58: =+L58*AR58 -> 0 | BW58: =+M58*AS58 -> 0 | BX58: =+N58*AT58 -> 0 | BY58: =+O58*AU58 -> 0 | BZ58: =+P58*AV58 -> 0 | CA58: =+Q58*AW58 -> 0 | CB58: =+R58*AX58 -> 0 | CC58: =+S58*AY58 -> 0 | CD58: =+T58*AZ58 -> 0 | CE58: =+U58*BA58 -> 0 | CF58: =+V58*BB58 -> 0 | CG58: =+W58*BC58 -> 0 | CH58: =+X58*BD58 -> 0 | CI58: =+Y58*BE58 -> 0 | CJ58: =+Z58*BF58 -> 0 | CK58: =+AA58*BG58 -> 0 | CL58: =+AB58*BH58 -> 0 | CM58: =+AC58*BI58 -> 0 | CN58: =+AD58*BJ58 -> 0 | CO58: =+AE58*BK58 -> 0 | CP58: 28 | CQ58: 0
B59: =+収穫予測!N21 -> 30 | C59: =+Sheet1!AE99 -> 0 | D59: =+Sheet1!AF99 -> 0 | E59: =+Sheet1!AG99 -> 0 | F59: =+Sheet1!AH99 -> 0 | G59: =+Sheet1!AI99 -> 0 | H59: =+Sheet1!AJ99 -> 0 | I59: =+Sheet1!AK99 -> 60 | J59: =+Sheet1!AL99 -> 60 | K59: =+Sheet1!AM99 -> 70 | L59: =+Sheet1!AN99 -> 60 | M59: =+Sheet1!AO99 -> 50 | N59: =+Sheet1!AP99 -> 20 | O59: =+Sheet1!AQ99 -> 10 | P59: =+Sheet1!AR99 -> 0 | Q59: =+Sheet1!AS99 -> 0 | R59: =+Sheet1!AT99 -> 0 | S59: =+Sheet1!AU99 -> 0 | T59: =+Sheet1!AV99 -> 0 | U59: =+Sheet1!AW99 -> 0 | V59: =+Sheet1!AX99 -> 0 | W59: =+Sheet1!AY99 -> 0 | X59: =+Sheet1!AZ99 -> 0 | Y59: =+Sheet1!BA99 -> 0 | Z59: =+Sheet1!BB99 -> 0 | AA59: =+Sheet1!BC99 -> 0 | AB59: =+Sheet1!BD99 -> 0 | AC59: =+Sheet1!BE99 -> 0 | AD59: =+Sheet1!BF99 -> 0 | AE59: =+Sheet1!BG99 -> 0 | AI59: =+直径階分布の計算!FM21 -> 0.0001 | AJ59: =+直径階分布の計算!FN21 -> 0.0014 | AK59: =+直径階分布の計算!FO21 -> 0.0052 | AL59: =+直径階分布の計算!FP21 -> 0.0156722392 | AM59: =+直径階分布の計算!FQ21 -> 0.03378165369 | AN59: =+直径階分布の計算!FR21 -> 0.0601053074 | AO59: =+直径階分布の計算!FS21 -> 0.0949277914 | AP59: =+直径階分布の計算!FT21 -> 0.1384075983 | AQ59: =+直径階分布の計算!FU21 -> 0.1906393359 | AR59: =+直径階分布の計算!FV21 -> 0.2516827719 | AS59: =+直径階分布の計算!FW21 -> 0.3215774496 | AT59: =+直径階分布の計算!FX21 -> 0.4003505461 | AU59: =+直径階分布の計算!FY21 -> 0.4880213435 | AV59: =+直径階分布の計算!FZ21 -> 0.5846038949 | AW59: =+直径階分布の計算!GA21 -> 0.6901086816 | AX59: =+直径階分布の計算!GB21 -> 0.8045436781 | AY59: =+直径階分布の計算!GC21 -> 0.9279150582 | AZ59: =+直径階分布の計算!GD21 -> 1.060227676 | BA59: =+直径階分布の計算!GE21 -> 1.201485399 | BB59: =+直径階分布の計算!GF21 -> 1.351691348 | BC59: =+直径階分布の計算!GG21 -> 1.510848068 | BD59: =+直径階分布の計算!GH21 -> 1.678957656 | BE59: =+直径階分布の計算!GI21 -> 1.856021852 | BF59: =+直径階分布の計算!GJ21 -> 2.042042118 | BG59: =+直径階分布の計算!GK21 -> 2.237019685 | BH59: =+直径階分布の計算!GL21 -> 2.4409556 | BI59: =+直径階分布の計算!GM21 -> 2.65385076 | BJ59: =+直径階分布の計算!GN21 -> 2.875705935 | BK59: =+直径階分布の計算!GO21 -> 3.106521793 | BM59: 0 | BN59: =+D59*AJ59 -> 0 | BO59: =+E59*AK59 -> 0 | BP59: =+F59*AL59 -> 0 | BQ59: 0 | BR59: 0 | BS59: 5.695667484 | BT59: 8.3044559 | BU59: 13.34475351 | BV59: 15.10096632 | BW59: 16.07887248 | BX59: 8.007010922 | BY59: 4.880213435 | BZ59: 0 | CA59: 0 | CB59: 0 | CC59: 0 | CD59: 0 | CE59: 0 | CF59: 0 | CG59: 0 | CH59: 0 | CI59: 0 | CJ59: 0 | CK59: 0 | CL59: 0 | CM59: 0 | CN59: 0 | CO59: 0 | CP59: 30 | CQ59: 71.41194005
B60: =+収穫予測!N22 -> 32 | C60: =+Sheet1!AE100 -> 0 | D60: =+Sheet1!AF100 -> 0 | E60: =+Sheet1!AG100 -> 0 | F60: =+Sheet1!AH100 -> 0 | G60: =+Sheet1!AI100 -> 0 | H60: =+Sheet1!AJ100 -> 0 | I60: =+Sheet1!AK100 -> 0 | J60: =+Sheet1!AL100 -> 0 | K60: =+Sheet1!AM100 -> 0 | L60: =+Sheet1!AN100 -> 0 | M60: =+Sheet1!AO100 -> 0 | N60: =+Sheet1!AP100 -> 0 | O60: =+Sheet1!AQ100 -> 0 | P60: =+Sheet1!AR100 -> 0 | Q60: =+Sheet1!AS100 -> 0 | R60: =+Sheet1!AT100 -> 0 | S60: =+Sheet1!AU100 -> 0 | T60: =+Sheet1!AV100 -> 0 | U60: =+Sheet1!AW100 -> 0 | V60: =+Sheet1!AX100 -> 0 | W60: =+Sheet1!AY100 -> 0 | X60: =+Sheet1!AZ100 -> 0 | Y60: =+Sheet1!BA100 -> 0 | Z60: =+Sheet1!BB100 -> 0 | AA60: =+Sheet1!BC100 -> 0 | AB60: =+Sheet1!BD100 -> 0 | AC60: =+Sheet1!BE100 -> 0 | AD60: =+Sheet1!BF100 -> 0 | AE60: =+Sheet1!BG100 -> 0 | AI60: =+直径階分布の計算!FM22 -> 0.0001 | AJ60: =+直径階分布の計算!FN22 -> 0.0014 | AK60: =+直径階分布の計算!FO22 -> 0.0050 | AL60: =+直径階分布の計算!FP22 -> 0.01495229146 | AM60: =+直径階分布の計算!FQ22 -> 0.03249116585 | AN60: =+直径階分布の計算!FR22 -> 0.05816471487 | AO60: =+直径階分布の計算!FS22 -> 0.09228065988 | AP60: =+直径階分布の計算!FT22 -> 0.1350117895 | AQ60: =+直径階分布の計算!FU22 -> 0.1864618123 | AR60: =+直径階分布の計算!FV22 -> 0.2466965056 | AS60: =+直径階分布の計算!FW22 -> 0.31575952 | AT60: =+直径階分布の計算!FX22 -> 0.3936809269 | AU60: =+直径階分布の計算!FY22 -> 0.4804821028 | AV60: =+直径階分布の計算!FZ22 -> 0.5761786523 | AW60: =+直径階分布の計算!GA22 -> 0.680782229 | AX60: =+直径階分布の計算!GB22 -> 0.7943017097 | AY60: =+直径階分布の計算!GC22 -> 0.9167439737 | AZ60: =+直径階分布の計算!GD22 -> 1.048114434 | BA60: =+直径階分布の計算!GE22 -> 1.188417407 | BB60: =+直径階分布の計算!GF22 -> 1.337656378 | BC60: =+直径階分布の計算!GG22 -> 1.495834191 | BD60: =+直径階分布の計算!GH22 -> 1.66295319 | BE60: =+直径階分布の計算!GI22 -> 1.839015323 | BF60: =+直径階分布の計算!GJ22 -> 2.024022224 | BG60: =+直径階分布の計算!GK22 -> 2.217975272 | BH60: =+直径階分布の計算!GL22 -> 2.420875641 | BI60: =+直径階分布の計算!GM22 -> 2.632724333 | BJ60: =+直径階分布の計算!GN22 -> 2.853522214 | BK60: =+直径階分布の計算!GO22 -> 3.083270031 | BM60: 0 | BN60: 0 | BO60: 0 | BP60: 0 | BQ60: 0 | BR60: 0 | BS60: 0 | BT60: 0 | BU60: 0 | BV60: 0 | BW60: 0 | BX60: 0 | BY60: 0 | BZ60: 0 | CA60: 0 | CB60: 0 | CC60: 0 | CD60: 0 | CE60: 0 | CF60: 0 | CG60: 0 | CH60: 0 | CI60: 0 | CJ60: 0 | CK60: 0 | CL60: 0 | CM60: 0 | CN60: 0 | CO60: 0 | CP60: 32 | CQ60: 0
B61: =+収穫予測!N23 -> 34 | C61: =+Sheet1!AE101 -> 0 | D61: =+Sheet1!AF101 -> 0 | E61: =+Sheet1!AG101 -> 0 | F61: =+Sheet1!AH101 -> 0 | G61: =+Sheet1!AI101 -> 0 | H61: =+Sheet1!AJ101 -> 0 | I61: =+Sheet1!AK101 -> 0 | J61: =+Sheet1!AL101 -> 0 | K61: =+Sheet1!AM101 -> 0 | L61: =+Sheet1!AN101 -> 0 | M61: =+Sheet1!AO101 -> 0 | N61: =+Sheet1!AP101 -> 0 | O61: =+Sheet1!AQ101 -> 0 | P61: =+Sheet1!AR101 -> 0 | Q61: =+Sheet1!AS101 -> 0 | R61: =+Sheet1!AT101 -> 0 | S61: =+Sheet1!AU101 -> 0 | T61: =+Sheet1!AV101 -> 0 | U61: =+Sheet1!AW101 -> 0 | V61: =+Sheet1!AX101 -> 0 | W61: =+Sheet1!AY101 -> 0 | X61: =+Sheet1!AZ101 -> 0 | Y61: =+Sheet1!BA101 -> 0 | Z61: =+Sheet1!BB101 -> 0 | AA61: =+Sheet1!BC101 -> 0 | AB61: =+Sheet1!BD101 -> 0 | AC61: =+Sheet1!BE101 -> 0 | AD61: =+Sheet1!BF101 -> 0 | AE61: =+Sheet1!BG101 -> 0 | AI61: =+直径階分布の計算!FM23 -> 0.0001 | AJ61: =+直径階分布の計算!FN23 -> 0.0014 | AK61: =+直径階分布の計算!FO23 -> 0.0049 | AL61: =+直径階分布の計算!FP23 -> 0.01488893778 | AM61: =+直径階分布の計算!FQ23 -> 0.0325506246 | AN61: =+直径階分布の計算!FR23 -> 0.0585154587 | AO61: =+直径階分布の計算!FS23 -> 0.09311426236 | AP61: =+直径階分布の計算!FT23 -> 0.1365335959 | AQ61: =+直径階分布の計算!FU23 -> 0.188885765 | AR61: =+直径階分布の計算!FV23 -> 0.2502421549 | AS61: =+直径階分布の計算!FW23 -> 0.3206502166 | AT61: =+直径階分布の計算!FX23 -> 0.400142683 | AU61: =+直径階分布の計算!FY23 -> 0.4887428475 | AV61: =+直径階分布の計算!FZ23 -> 0.5864677291 | AW61: =+直径階分布の計算!GA23 -> 0.6933300477 | AX61: =+直径階分布の計算!GB23 -> 0.8093394981 | AY61: =+直径階分布の計算!GC23 -> 0.9345035978 | AZ61: =+直径階分布の計算!GD23 -> 1.068828265 | BA61: =+直径階分布の計算!GE23 -> 1.212318221 | BB61: =+直径階分布の計算!GF23 -> 1.36497728 | BC61: =+直径階分布の計算!GG23 -> 1.526808554 | BD61: =+直径階分布の計算!GH23 -> 1.697814609 | BE61: =+直径階分布の計算!GI23 -> 1.87799758 | BF61: =+直径階分布の計算!GJ23 -> 2.067359256 | BG61: =+直径階分布の計算!GK23 -> 2.265901148 | BH61: =+直径階分布の計算!GL23 -> 2.473624543 | BI61: =+直径階分布の計算!GM23 -> 2.690530541 | BJ61: =+直径階分布の計算!GN23 -> 2.916620088 | BK61: =+直径階分布の計算!GO23 -> 3.151894005 | BM61: 0 | BN61: 0 | BO61: 0 | BP61: 0 | BQ61: 0 | BR61: 0 | BS61: 0 | BT61: 0 | BU61: 0 | BV61: 0 | BW61: 0 | BX61: 0 | BY61: 0 | BZ61: 0 | CA61: 0 | CB61: 0 | CC61: 0 | CD61: 0 | CE61: 0 | CF61: 0 | CG61: 0 | CH61: 0 | CI61: 0 | CJ61: 0 | CK61: 0 | CL61: 0 | CM61: 0 | CN61: 0 | CO61: 0 | CP61: 34 | CQ61: 0
B62: =+収穫予測!N24 -> 36 | C62: =+Sheet1!AE102 -> 0 | D62: =+Sheet1!AF102 -> 0 | E62: =+Sheet1!AG102 -> 0 | F62: =+Sheet1!AH102 -> 0 | G62: =+Sheet1!AI102 -> 0 | H62: =+Sheet1!AJ102 -> 0 | I62: =+Sheet1!AK102 -> 0 | J62: =+Sheet1!AL102 -> 0 | K62: =+Sheet1!AM102 -> 0 | L62: =+Sheet1!AN102 -> 0 | M62: =+Sheet1!AO102 -> 0 | N62: =+Sheet1!AP102 -> 0 | O62: =+Sheet1!AQ102 -> 0 | P62: =+Sheet1!AR102 -> 0 | Q62: =+Sheet1!AS102 -> 0 | R62: =+Sheet1!AT102 -> 0 | S62: =+Sheet1!AU102 -> 0 | T62: =+Sheet1!AV102 -> 0 | U62: =+Sheet1!AW102 -> 0 | V62: =+Sheet1!AX102 -> 0 | W62: =+Sheet1!AY102 -> 0 | X62: =+Sheet1!AZ102 -> 0 | Y62: =+Sheet1!BA102 -> 0 | Z62: =+Sheet1!BB102 -> 0 | AA62: =+Sheet1!BC102 -> 0 | AB62: =+Sheet1!BD102 -> 0 | AC62: =+Sheet1!BE102 -> 0 | AD62: =+Sheet1!BF102 -> 0 | AE62: =+Sheet1!BG102 -> 0 | AI62: =+直径階分布の計算!FM24 -> 0.0001 | AJ62: =+直径階分布の計算!FN24 -> 0.0015 | AK62: =+直径階分布の計算!FO24 -> 0.0048 | AL62: =+直径階分布の計算!FP24 -> 0.01481936407 | AM62: =+直径階分布の計算!FQ24 -> 0.0325768731 | AN62: =+直径階分布の計算!FR24 -> 0.05878567845 | AO62: =+直径階分布の計算!FS24 -> 0.0937983671 | AP62: =+直径階分布の計算!FT24 -> 0.1378145561 | AQ62: =+直径階分布の計算!FU24 -> 0.1909547362 | AR62: =+直径階分布の計算!FV24 -> 0.2532956469 | AS62: =+直径階分布の計算!FW24 -> 0.3248883762 | AT62: =+直径階分布の計算!FX24 -> 0.4057682085 | AU62: =+直径階分布の計算!FY24 -> 0.4959602774 | AV62: =+直径階分布の計算!FZ24 -> 0.5954829616 | AW62: =+直径階分布の計算!GA24 -> 0.7043500062 | AX62: =+直径階分布の計算!GB24 -> 0.8225718942 | AY62: =+直径階分布の計算!GC24 -> 0.9501567579 | AZ62: =+直径階分布の計算!GD24 -> 1.087111002 | BA62: =+直径階分布の計算!GE24 -> 1.23343974 | BB62: =+直径階分布の計算!GF24 -> 1.389147101 | BC62: =+直径階分布の計算!GG24 -> 1.554236458 | BD62: =+直径階分布の計算!GH24 -> 1.728710591 | BE62: =+直径階分布の計算!GI24 -> 1.912571815 | BF62: =+直径階分布の計算!GJ24 -> 2.105822069 | BG62: =+直径階分布の計算!GK24 -> 2.308462993 | BH62: =+直径階分布の計算!GL24 -> 2.520495981 | BI62: =+直径階分布の計算!GM24 -> 2.741922227 | BJ62: =+直径階分布の計算!GN24 -> 2.972742759 | BK62: =+直径階分布の計算!GO24 -> 3.212958466 | BM62: 0 | BN62: 0 | BO62: 0 | BP62: 0 | BQ62: 0 | BR62: 0 | BS62: 0 | BT62: 0 | BU62: 0 | BV62: 0 | BW62: 0 | BX62: 0 | BY62: 0 | BZ62: 0 | CA62: 0 | CB62: 0 | CC62: 0 | CD62: 0 | CE62: 0 | CF62: 0 | CG62: 0 | CH62: 0 | CI62: 0 | CJ62: 0 | CK62: 0 | CL62: 0 | CM62: 0 | CN62: 0 | CO62: 0 | CP62: 36 | CQ62: 0
B63: =+収穫予測!N25 -> 38 | C63: =+Sheet1!AE103 -> 0 | D63: =+Sheet1!AF103 -> 0 | E63: =+Sheet1!AG103 -> 0 | F63: =+Sheet1!AH103 -> 0 | G63: =+Sheet1!AI103 -> 0 | H63: =+Sheet1!AJ103 -> 0 | I63: =+Sheet1!AK103 -> 0 | J63: =+Sheet1!AL103 -> 0 | K63: =+Sheet1!AM103 -> 0 | L63: =+Sheet1!AN103 -> 0 | M63: =+Sheet1!AO103 -> 0 | N63: =+Sheet1!AP103 -> 0 | O63: =+Sheet1!AQ103 -> 0 | P63: =+Sheet1!AR103 -> 0 | Q63: =+Sheet1!AS103 -> 0 | R63: =+Sheet1!AT103 -> 0 | S63: =+Sheet1!AU103 -> 0 | T63: =+Sheet1!AV103 -> 0 | U63: =+Sheet1!AW103 -> 0 | V63: =+Sheet1!AX103 -> 0 | W63: =+Sheet1!AY103 -> 0 | X63: =+Sheet1!AZ103 -> 0 | Y63: =+Sheet1!BA103 -> 0 | Z63: =+Sheet1!BB103 -> 0 | AA63: =+Sheet1!BC103 -> 0 | AB63: =+Sheet1!BD103 -> 0 | AC63: =+Sheet1!BE103 -> 0 | AD63: =+Sheet1!BF103 -> 0 | AE63: =+Sheet1!BG103 -> 0 | AI63: =+直径階分布の計算!FM25 -> 0.0001 | AJ63: =+直径階分布の計算!FN25 -> 0.0015 | AK63: =+直径階分布の計算!FO25 -> 0.0048 | AL63: =+直径階分布の計算!FP25 -> 0.01474656758 | AM63: =+直径階分布の計算!FQ25 -> 0.03257814313 | AN63: =+直径階分布の計算!FR25 -> 0.05899140052 | AO63: =+直径階分布の計算!FS25 -> 0.0943593337 | AP63: =+直径階分布の計算!FT25 -> 0.1388938734 | AQ63: =+直径階分布の計算!FU25 -> 0.1927232586 | AR63: =+直径階分布の計算!FV25 -> 0.2559293118 | AS63: =+直径階分布の計算!FW25 -> 0.3285665804 | AT63: =+直径階分布の計算!FX25 -> 0.4106727797 | AU63: =+直径階分布の計算!FY25 -> 0.5022747987 | AV63: =+直径階分布の計算!FZ25 -> 0.6033923146 | AW63: =+直径階分布の計算!GA25 -> 0.7140400529 | AX63: =+直径階分布の計算!GB25 -> 0.8342292498 | AY63: =+直径階分布の計算!GC25 -> 0.9639686266 | AZ63: =+直径階分布の計算!GD25 -> 1.103265055 | BA63: =+直径階分布の計算!GE25 -> 1.252124021 | BB63: =+直径階分布の計算!GF25 -> 1.410549958 | BC63: =+直径階分布の計算!GG25 -> 1.57854649 | BD63: =+直径階分布の計算!GH25 -> 1.756116601 | BE63: =+直径階分布の計算!GI25 -> 1.943262778 | BF63: =+直径階分布の計算!GJ25 -> 2.139987106 | BG63: =+直径階分布の計算!GK25 -> 2.346291347 | BH63: =+直径階分布の計算!GL25 -> 2.562177 | BI63: =+直径階分布の計算!GM25 -> 2.787645348 | BJ63: =+直径階分布の計算!GN25 -> 3.022697497 | BK63: =+直径階分布の計算!GO25 -> 3.267334402 | BM63: 0 | BN63: 0 | BO63: 0 | BP63: 0 | BQ63: 0 | BR63: 0 | BS63: 0 | BT63: 0 | BU63: 0 | BV63: 0 | BW63: 0 | BX63: 0 | BY63: 0 | BZ63: 0 | CA63: 0 | CB63: 0 | CC63: 0 | CD63: 0 | CE63: 0 | CF63: 0 | CG63: 0 | CH63: 0 | CI63: 0 | CJ63: 0 | CK63: 0 | CL63: 0 | CM63: 0 | CN63: 0 | CO63: 0 | CP63: 38 | CQ63: 0
B64: =+収穫予測!N26 -> 40 | C64: =+Sheet1!AE104 -> 0 | D64: =+Sheet1!AF104 -> 0 | E64: =+Sheet1!AG104 -> 0 | F64: =+Sheet1!AH104 -> 0 | G64: =+Sheet1!AI104 -> 0 | H64: =+Sheet1!AJ104 -> 0 | I64: =+Sheet1!AK104 -> 0 | J64: =+Sheet1!AL104 -> 20 | K64: =+Sheet1!AM104 -> 40 | L64: =+Sheet1!AN104 -> 40 | M64: =+Sheet1!AO104 -> 50 | N64: =+Sheet1!AP104 -> 30 | O64: =+Sheet1!AQ104 -> 30 | P64: =+Sheet1!AR104 -> 20 | Q64: =+Sheet1!AS104 -> 0 | R64: =+Sheet1!AT104 -> 0 | S64: =+Sheet1!AU104 -> 0 | T64: =+Sheet1!AV104 -> 0 | U64: =+Sheet1!AW104 -> 0 | V64: =+Sheet1!AX104 -> 0 | W64: =+Sheet1!AY104 -> 0 | X64: =+Sheet1!AZ104 -> 0 | Y64: =+Sheet1!BA104 -> 0 | Z64: =+Sheet1!BB104 -> 0 | AA64: =+Sheet1!BC104 -> 0 | AB64: =+Sheet1!BD104 -> 0 | AC64: =+Sheet1!BE104 -> 0 | AD64: =+Sheet1!BF104 -> 0 | AE64: =+Sheet1!BG104 -> 0 | AI64: =+直径階分布の計算!FM26 -> 0.0001 | AJ64: =+直径階分布の計算!FN26 -> 0.0015 | AK64: =+直径階分布の計算!FO26 -> 0.0047 | AL64: =+直径階分布の計算!FP26 -> 0.01467261542 | AM64: =+直径階分布の計算!FQ26 -> 0.03256058711 | AN64: =+直径階分布の計算!FR26 -> 0.05914502137 | AO64: =+直径階分布の計算!FS26 -> 0.09481796503 | AP64: =+直径階分布の計算!FT26 -> 0.1398029075 | AQ64: =+直径階分布の計算!FU26 -> 0.1942353866 | AR64: =+直径階分布の計算!FV26 -> 0.258202025 | AS64: =+直径階分布の計算!FW26 -> 0.3317606431 | AT64: =+直径階分布の計算!FX26 -> 0.4149512596 | AU64: =+直径階分布の計算!FY26 -> 0.5078024292 | AV64: =+直径階分布の計算!FZ26 -> 0.6103350616 | AW64: =+直径階分布の計算!GA26 -> 0.7225648142 | AX64: =+直径階分布の計算!GB26 -> 0.8445036399 | AY64: =+直径階分布の計算!GC26 -> 0.9761608201 | AZ64: =+直径階分布の計算!GD26 -> 1.11754367 | BA64: =+直径階分布の計算!GE26 -> 1.268658033 | BB64: =+直径階分布の計算!GF26 -> 1.429508633 | BC64: =+直径階分布の計算!GG26 -> 1.600099328 | BD64: =+直径階分布の計算!GH26 -> 1.780433302 | BE64: =+直径階分布の計算!GI26 -> 1.970513204 | BF64: =+直径階分布の計算!GJ26 -> 2.170341259 | BG64: =+直径階分布の計算!GK26 -> 2.379919343 | BH64: =+直径階分布の計算!GL26 -> 2.599249057 | BI64: =+直径階分布の計算!GM26 -> 2.82833177 | BJ64: =+直径階分布の計算!GN26 -> 3.06716866 | BK64: =+直径階分布の計算!GO26 -> 3.315760749 | BM64: 0 | BN64: 0 | BO64: 0 | BP64: 0 | BQ64: 0 | BR64: 0 | BS64: 0 | BT64: 2.796058149 | BU64: 7.769415465 | BV64: 10.328081 | BW64: 16.58803216 | BX64: 12.44853779 | BY64: 15.23407287 | BZ64: 12.20670123 | CA64: 0 | CB64: 0 | CC64: 0 | CD64: 0 | CE64: 0 | CF64: 0 | CG64: 0 | CH64: 0 | CI64: 0 | CJ64: 0 | CK64: 0 | CL64: 0 | CM64: 0 | CN64: 0 | CO64: 0 | CP64: 40 | CQ64: 77.37089867
B65: =+収穫予測!N27 -> 42 | C65: =+Sheet1!AE105 -> 0 | D65: =+Sheet1!AF105 -> 0 | E65: =+Sheet1!AG105 -> 0 | F65: =+Sheet1!AH105 -> 0 | G65: =+Sheet1!AI105 -> 0 | H65: =+Sheet1!AJ105 -> 0 | I65: =+Sheet1!AK105 -> 0 | J65: =+Sheet1!AL105 -> 0 | K65: =+Sheet1!AM105 -> 0 | L65: =+Sheet1!AN105 -> 0 | M65: =+Sheet1!AO105 -> 0 | N65: =+Sheet1!AP105 -> 0 | O65: =+Sheet1!AQ105 -> 0 | P65: =+Sheet1!AR105 -> 0 | Q65: =+Sheet1!AS105 -> 0 | R65: =+Sheet1!AT105 -> 0 | S65: =+Sheet1!AU105 -> 0 | T65: =+Sheet1!AV105 -> 0 | U65: =+Sheet1!AW105 -> 0 | V65: =+Sheet1!AX105 -> 0 | W65: =+Sheet1!AY105 -> 0 | X65: =+Sheet1!AZ105 -> 0 | Y65: =+Sheet1!BA105 -> 0 | Z65: =+Sheet1!BB105 -> 0 | AA65: =+Sheet1!BC105 -> 0 | AB65: =+Sheet1!BD105 -> 0 | AC65: =+Sheet1!BE105 -> 0 | AD65: =+Sheet1!BF105 -> 0 | AE65: =+Sheet1!BG105 -> 0 | AI65: =+直径階分布の計算!FM27 -> 0.0001 | AJ65: =+直径階分布の計算!FN27 -> 0.0016 | AK65: =+直径階分布の計算!FO27 -> 0.0046 | AL65: =+直径階分布の計算!FP27 -> 0.01421630659 | AM65: =+直径階分布の計算!FQ27 -> 0.03170063506 | AN65: =+直径階分布の計算!FR27 -> 0.05780771356 | AO65: =+直径階分布の計算!FS27 -> 0.09294614555 | AP65: =+直径階分布の計算!FT27 -> 0.1373501233 | AQ65: =+直径階分布の計算!FU27 -> 0.1911621853 | AR65: =+直径階分布の計算!FV27 -> 0.2544736635 | AS65: =+直径階分布の計算!FW27 -> 0.3273456416 | AT65: =+直径階分布の計算!FX27 -> 0.4098204618 | AU65: =+直径階分布の計算!FY27 -> 0.5019283743 | AV65: =+直径階分布の計算!FZ27 -> 0.6036915538 | AW65: =+直径階分布の計算!GA27 -> 0.7151266184 | AX65: =+直径階分布の計算!GB27 -> 0.8362462647 | AY65: =+直径階分布の計算!GC27 -> 0.9670603572 | AZ65: =+直径階分布の計算!GD27 -> 1.107576676 | BA65: =+直径階分布の計算!GE27 -> 1.257801437 | BB65: =+直径階分布の計算!GF27 -> 1.417739669 | BC65: =+直径階分布の計算!GG27 -> 1.58739548 | BD65: =+直径階分布の計算!GH27 -> 1.766772262 | BE65: =+直径階分布の計算!GI27 -> 1.955872839 | BF65: =+直径階分布の計算!GJ27 -> 2.154699579 | BG65: =+直径階分布の計算!GK27 -> 2.363254486 | BH65: =+直径階分布の計算!GL27 -> 2.581539265 | BI65: =+直径階分布の計算!GM27 -> 2.809555376 | BJ65: =+直径階分布の計算!GN27 -> 3.047304077 | BK65: =+直径階分布の計算!GO27 -> 3.294786458 | BM65: 0 | BN65: 0 | BO65: 0 | BP65: 0 | BQ65: 0 | BR65: 0 | BS65: 0 | BT65: 0 | BU65: 0 | BV65: 0 | BW65: 0 | BX65: 0 | BY65: 0 | BZ65: 0 | CA65: 0 | CB65: 0 | CC65: 0 | CD65: 0 | CE65: 0 | CF65: 0 | CG65: 0 | CH65: 0 | CI65: 0 | CJ65: 0 | CK65: 0 | CL65: 0 | CM65: 0 | CN65: 0 | CO65: 0 | CP65: 42 | CQ65: 0
B66: =+収穫予測!N28 -> 44 | C66: =+Sheet1!AE106 -> 0 | D66: =+Sheet1!AF106 -> 0 | E66: =+Sheet1!AG106 -> 0 | F66: =+Sheet1!AH106 -> 0 | G66: =+Sheet1!AI106 -> 0 | H66: =+Sheet1!AJ106 -> 0 | I66: =+Sheet1!AK106 -> 0 | J66: =+Sheet1!AL106 -> 0 | K66: =+Sheet1!AM106 -> 0 | L66: =+Sheet1!AN106 -> 0 | M66: =+Sheet1!AO106 -> 0 | N66: =+Sheet1!AP106 -> 0 | O66: =+Sheet1!AQ106 -> 0 | P66: =+Sheet1!AR106 -> 0 | Q66: =+Sheet1!AS106 -> 0 | R66: =+Sheet1!AT106 -> 0 | S66: =+Sheet1!AU106 -> 0 | T66: =+Sheet1!AV106 -> 0 | U66: =+Sheet1!AW106 -> 0 | V66: =+Sheet1!AX106 -> 0 | W66: =+Sheet1!AY106 -> 0 | X66: =+Sheet1!AZ106 -> 0 | Y66: =+Sheet1!BA106 -> 0 | Z66: =+Sheet1!BB106 -> 0 | AA66: =+Sheet1!BC106 -> 0 | AB66: =+Sheet1!BD106 -> 0 | AC66: =+Sheet1!BE106 -> 0 | AD66: =+Sheet1!BF106 -> 0 | AE66: =+Sheet1!BG106 -> 0 | AI66: =+直径階分布の計算!FM28 -> 0.0001 | AJ66: =+直径階分布の計算!FN28 -> 0.0016 | AK66: =+直径階分布の計算!FO28 -> 0.0046 | AL66: =+直径階分布の計算!FP28 -> 0.01414529889 | AM66: =+直径階分布の計算!FQ28 -> 0.03165704416 | AN66: =+直径階分布の計算!FR28 -> 0.05787756223 | AO66: =+直径階分布の計算!FS28 -> 0.09323165075 | AP66: =+直径階分布の計算!FT28 -> 0.1379634541 | AQ66: =+直径階分布の計算!FU28 -> 0.1922218475 | AR66: =+直径階分布の計算!FV28 -> 0.2561023542 | AS66: =+直径階分布の計算!FW28 -> 0.3296689287 | AT66: =+直径階分布の計算!FX28 -> 0.4129659399 | AU66: =+直径階分布の計算!FY28 -> 0.5060251081 | AV66: =+直径階分布の計算!FZ28 -> 0.608869698 | AW66: =+直径階分布の計算!GA28 -> 0.7215171534 | AX66: =+直径階分布の計算!GB28 -> 0.8439808069 | AY66: =+直径階分布の計算!GC28 -> 0.9762710208 | AZ66: =+直径階分布の計算!GD28 -> 1.11839597 | BA66: =+直径階分布の計算!GE28 -> 1.270362189 | BB66: =+直径階分布の計算!GF28 -> 1.432174963 | BC66: =+直径階分布の計算!GG28 -> 1.603838614 | BD66: =+直径階分布の計算!GH28 -> 1.785356708 | BE66: =+直径階分布の計算!GI28 -> 1.976732214 | BF66: =+直径階分布の計算!GJ28 -> 2.177967627 | BG66: =+直径階分布の計算!GK28 -> 2.389065054 | BH66: =+直径階分布の計算!GL28 -> 2.610026289 | BI66: =+直径階分布の計算!GM28 -> 2.840852869 | BJ66: =+直径階分布の計算!GN28 -> 3.081546119 | BK66: =+直径階分布の計算!GO28 -> 3.332107184 | BM66: 0 | BN66: 0 | BO66: 0 | BP66: 0 | BQ66: 0 | BR66: 0 | BS66: 0 | BT66: 0 | BU66: 0 | BV66: 0 | BW66: 0 | BX66: 0 | BY66: 0 | BZ66: 0 | CA66: 0 | CB66: 0 | CC66: 0 | CD66: 0 | CE66: 0 | CF66: 0 | CG66: 0 | CH66: 0 | CI66: 0 | CJ66: 0 | CK66: 0 | CL66: 0 | CM66: 0 | CN66: 0 | CO66: 0 | CP66: 44 | CQ66: 0
B67: =+収穫予測!N29 -> 46 | C67: =+Sheet1!AE107 -> 0 | D67: =+Sheet1!AF107 -> 0 | E67: =+Sheet1!AG107 -> 0 | F67: =+Sheet1!AH107 -> 0 | G67: =+Sheet1!AI107 -> 0 | H67: =+Sheet1!AJ107 -> 0 | I67: =+Sheet1!AK107 -> 0 | J67: =+Sheet1!AL107 -> 0 | K67: =+Sheet1!AM107 -> 0 | L67: =+Sheet1!AN107 -> 0 | M67: =+Sheet1!AO107 -> 0 | N67: =+Sheet1!AP107 -> 0 | O67: =+Sheet1!AQ107 -> 0 | P67: =+Sheet1!AR107 -> 0 | Q67: =+Sheet1!AS107 -> 0 | R67: =+Sheet1!AT107 -> 0 | S67: =+Sheet1!AU107 -> 0 | T67: =+Sheet1!AV107 -> 0 | U67: =+Sheet1!AW107 -> 0 | V67: =+Sheet1!AX107 -> 0 | W67: =+Sheet1!AY107 -> 0 | X67: =+Sheet1!AZ107 -> 0 | Y67: =+Sheet1!BA107 -> 0 | Z67: =+Sheet1!BB107 -> 0 | AA67: =+Sheet1!BC107 -> 0 | AB67: =+Sheet1!BD107 -> 0 | AC67: =+Sheet1!BE107 -> 0 | AD67: =+Sheet1!BF107 -> 0 | AE67: =+Sheet1!BG107 -> 0 | AI67: =+直径階分布の計算!FM29 -> 0.0001 | AJ67: =+直径階分布の計算!FN29 -> 0.0016 | AK67: =+直径階分布の計算!FO29 -> 0.0045 | AL67: =+直径階分布の計算!FP29 -> 0.01407602538 | AM67: =+直径階分布の計算!FQ29 -> 0.03160557465 | AN67: =+直径階分布の計算!FR29 -> 0.05791929796 | AO67: =+直径階分布の計算!FS29 -> 0.09345694698 | AP67: =+直径階分布の計算!FT29 -> 0.1384718972 | AQ67: =+直径階分布の計算!FU29 -> 0.1931189181 | AR67: =+直径階分布の計算!FV29 -> 0.2574974399 | AS67: =+直径階分布の計算!FW29 -> 0.3316740967 | AT67: =+直径階分布の計算!FX29 -> 0.4156951522 | AU67: =+直径階分布の計算!FY29 -> 0.5095937012 | AV67: =+直径階分布の計算!FZ29 -> 0.6133940294 | AW67: =+直径階分布の計算!GA29 -> 0.7271143541 | AX67: =+直径階分布の計算!GB29 -> 0.8507686037 | AY67: =+直径階分布の計算!GC29 -> 0.9843676078 | AZ67: =+直径階分布の計算!GD29 -> 1.127919912 | BA67: =+直径階分布の計算!GE29 -> 1.281432348 | BB67: =+直径階分布の計算!GF29 -> 1.444910445 | BC67: =+直径階分布の計算!GG29 -> 1.618358721 | BD67: =+直径階分布の計算!GH29 -> 1.80178091 | BE67: =+直径階分布の計算!GI29 -> 1.995180118 | BF67: =+直径階分布の計算!GJ29 -> 2.198558954 | BG67: =+直径階分布の計算!GK29 -> 2.411919625 | BH67: =+直径階分布の計算!GL29 -> 2.63526401 | BI67: =+直径階分布の計算!GM29 -> 2.868593716 | BJ67: =+直径階分布の計算!GN29 -> 3.111910131 | BK67: =+直径階分布の計算!GO29 -> 3.365214455 | BM67: 0 | BN67: 0 | BO67: 0 | BP67: 0 | BQ67: 0 | BR67: 0 | BS67: 0 | BT67: 0 | BU67: 0 | BV67: 0 | BW67: 0 | BX67: 0 | BY67: 0 | BZ67: 0 | CA67: 0 | CB67: 0 | CC67: 0 | CD67: 0 | CE67: 0 | CF67: 0 | CG67: 0 | CH67: 0 | CI67: 0 | CJ67: 0 | CK67: 0 | CL67: 0 | CM67: 0 | CN67: 0 | CO67: 0 | CP67: 46 | CQ67: 0
B68: =+収穫予測!N30 -> 48 | C68: =+Sheet1!AE108 -> 0 | D68: =+Sheet1!AF108 -> 0 | E68: =+Sheet1!AG108 -> 0 | F68: =+Sheet1!AH108 -> 0 | G68: =+Sheet1!AI108 -> 0 | H68: =+Sheet1!AJ108 -> 0 | I68: =+Sheet1!AK108 -> 0 | J68: =+Sheet1!AL108 -> 0 | K68: =+Sheet1!AM108 -> 0 | L68: =+Sheet1!AN108 -> 0 | M68: =+Sheet1!AO108 -> 0 | N68: =+Sheet1!AP108 -> 0 | O68: =+Sheet1!AQ108 -> 0 | P68: =+Sheet1!AR108 -> 0 | Q68: =+Sheet1!AS108 -> 0 | R68: =+Sheet1!AT108 -> 0 | S68: =+Sheet1!AU108 -> 0 | T68: =+Sheet1!AV108 -> 0 | U68: =+Sheet1!AW108 -> 0 | V68: =+Sheet1!AX108 -> 0 | W68: =+Sheet1!AY108 -> 0 | X68: =+Sheet1!AZ108 -> 0 | Y68: =+Sheet1!BA108 -> 0 | Z68: =+Sheet1!BB108 -> 0 | AA68: =+Sheet1!BC108 -> 0 | AB68: =+Sheet1!BD108 -> 0 | AC68: =+Sheet1!BE108 -> 0 | AD68: =+Sheet1!BF108 -> 0 | AE68: =+Sheet1!BG108 -> 0 | AI68: =+直径階分布の計算!FM30 -> 0.0001 | AJ68: =+直径階分布の計算!FN30 -> 0.0017 | AK68: =+直径階分布の計算!FO30 -> 0.0045 | AL68: =+直径階分布の計算!FP30 -> 0.01400903278 | AM68: =+直径階分布の計算!FQ30 -> 0.03154863214 | AN68: =+直径階分布の計算!FR30 -> 0.05793847866 | AO68: =+直径階分布の計算!FS30 -> 0.09363210119 | AP68: =+直径階分布の計算!FT30 -> 0.1388914156 | AQ68: =+直径階分布の計算!FU30 -> 0.193876659 | AR68: =+直径階分布の計算!FV30 -> 0.2586908929 | AS68: =+直径階分布の計算!FW30 -> 0.3334032452 | AT68: =+直径階分布の計算!FX30 -> 0.4180617447 | AU68: =+直径階分布の計算!FY30 -> 0.5127007684 | AV68: =+直径階分布の計算!FZ30 -> 0.6173455547 | AW68: =+直径階分布の計算!GA30 -> 0.7320150428 | AX68: =+直径階分布の計算!GB30 -> 0.8567237184 | AY68: =+直径階分布の計算!GC30 -> 0.9914828472 | AZ68: =+直径階分布の計算!GD30 -> 1.136301321 | BA68: =+直径階分布の計算!GE30 -> 1.291186252 | BB68: =+直径階分布の計算!GF30 -> 1.456143393 | BC68: =+直径階分布の計算!GG30 -> 1.631177452 | BD68: =+直径階分布の計算!GH30 -> 1.816292314 | BE68: =+直径階分布の計算!GI30 -> 2.011491216 | BF68: =+直径階分布の計算!GJ30 -> 2.216776874 | BG68: =+直径階分布の計算!GK30 -> 2.432151589 | BH68: =+直径階分布の計算!GL30 -> 2.657617317 | BI68: =+直径階分布の計算!GM30 -> 2.893175733 | BJ68: =+直径階分布の計算!GN30 -> 3.138828284 | BK68: =+直径階分布の計算!GO30 -> 3.394576221 | BM68: 0 | BN68: 0 | BO68: 0 | BP68: 0 | BQ68: 0 | BR68: 0 | BS68: 0 | BT68: 0 | BU68: 0 | BV68: 0 | BW68: 0 | BX68: 0 | BY68: 0 | BZ68: 0 | CA68: 0 | CB68: 0 | CC68: 0 | CD68: 0 | CE68: 0 | CF68: 0 | CG68: 0 | CH68: 0 | CI68: 0 | CJ68: 0 | CK68: 0 | CL68: 0 | CM68: 0 | CN68: 0 | CO68: 0 | CP68: 48 | CQ68: 0
B69: =+収穫予測!N31 -> 50 | C69: =+Sheet1!AE109 -> 0 | D69: =+Sheet1!AF109 -> 0 | E69: =+Sheet1!AG109 -> 0 | F69: =+Sheet1!AH109 -> 0 | G69: =+Sheet1!AI109 -> 0 | H69: =+Sheet1!AJ109 -> 0 | I69: =+Sheet1!AK109 -> 0 | J69: =+Sheet1!AL109 -> 0 | K69: =+Sheet1!AM109 -> 0 | L69: =+Sheet1!AN109 -> 20 | M69: =+Sheet1!AO109 -> 30 | N69: =+Sheet1!AP109 -> 30 | O69: =+Sheet1!AQ109 -> 30 | P69: =+Sheet1!AR109 -> 30 | Q69: =+Sheet1!AS109 -> 10 | R69: =+Sheet1!AT109 -> 10 | S69: =+Sheet1!AU109 -> 0 | T69: =+Sheet1!AV109 -> 0 | U69: =+Sheet1!AW109 -> 0 | V69: =+Sheet1!AX109 -> 0 | W69: =+Sheet1!AY109 -> 0 | X69: =+Sheet1!AZ109 -> 0 | Y69: =+Sheet1!BA109 -> 0 | Z69: =+Sheet1!BB109 -> 0 | AA69: =+Sheet1!BC109 -> 0 | AB69: =+Sheet1!BD109 -> 0 | AC69: =+Sheet1!BE109 -> 0 | AD69: =+Sheet1!BF109 -> 0 | AE69: =+Sheet1!BG109 -> 0 | AI69: =+直径階分布の計算!FM31 -> 0.0001 | AJ69: =+直径階分布の計算!FN31 -> 0.0017 | AK69: =+直径階分布の計算!FO31 -> 0.0045 | AL69: =+直径階分布の計算!FP31 -> 0.01394461304 | AM69: =+直径階分布の計算!FQ31 -> 0.03148793672 | AN69: =+直径階分布の計算!FR31 -> 0.05793933668 | AO69: =+直径階分布の計算!FS31 -> 0.09376500726 | AP69: =+直径階分布の計算!FT31 -> 0.1392347464 | AQ69: =+直径階分布の計算!FU31 -> 0.1945138506 | AR69: =+直径階分布の計算!FV31 -> 0.2597087465 | AS69: =+直径階分布の計算!FW31 -> 0.3348908769 | AT69: =+直径階分布の計算!FX31 -> 0.4201099103 | AU69: =+直径階分布の計算!FY31 -> 0.5154014159 | AV69: =+直径階分布の計算!FZ31 -> 0.6207915184 | AW69: =+直径階分布の計算!GA31 -> 0.7362998293 | AX69: =+直径階分布の計算!GB31 -> 0.8619413529 | AY69: =+直径階分布の計算!GC31 -> 0.9977277618 | AZ69: =+直径階分布の計算!GD31 -> 1.143668271 | BA69: =+直径階分布の計算!GE31 -> 1.299770251 | BB69: =+直径階分布の計算!GF31 -> 1.466039669 | BC69: =+直径階分布の計算!GG31 -> 1.642481404 | BD69: =+直径階分布の計算!GH31 -> 1.829099486 | BE69: =+直径階分布の計算!GI31 -> 2.025897272 | BF69: =+直径階分布の計算!GJ31 -> 2.232877581 | BG69: =+直径階分布の計算!GK31 -> 2.450042797 | BH69: =+直径階分布の計算!GL31 -> 2.677394951 | BI69: =+直径階分布の計算!GM31 -> 2.914935784 | BJ69: =+直径階分布の計算!GN31 -> 3.162666793 | BK69: =+直径階分布の計算!GO31 -> 3.420589278 | BM69: 0 | BN69: 0 | BO69: 0 | BP69: 0 | BQ69: 0 | BR69: 0 | BS69: 0 | BT69: 0 | BU69: 0 | BV69: 5.19417493 | BW69: 10.04672631 | BX69: 12.60329731 | BY69: 15.46204248 | BZ69: 18.62374555 | CA69: 7.362998293 | CB69: 8.619413529 | CC69: 0 | CD69: 0 | CE69: 0 | CF69: 0 | CG69: 0 | CH69: 0 | CI69: 0 | CJ69: 0 | CK69: 0 | CL69: 0 | CM69: 0 | CN69: 0 | CO69: 0 | CP69: 50 | CQ69: 77.9123984
B70: =+収穫予測!N32 -> 52 | C70: =+Sheet1!AE110 -> 0 | D70: =+Sheet1!AF110 -> 0 | E70: =+Sheet1!AG110 -> 0 | F70: =+Sheet1!AH110 -> 0 | G70: =+Sheet1!AI110 -> 0 | H70: =+Sheet1!AJ110 -> 0 | I70: =+Sheet1!AK110 -> 0 | J70: =+Sheet1!AL110 -> 0 | K70: =+Sheet1!AM110 -> 0 | L70: =+Sheet1!AN110 -> 0 | M70: =+Sheet1!AO110 -> 0 | N70: =+Sheet1!AP110 -> 0 | O70: =+Sheet1!AQ110 -> 0 | P70: =+Sheet1!AR110 -> 0 | Q70: =+Sheet1!AS110 -> 0 | R70: =+Sheet1!AT110 -> 0 | S70: =+Sheet1!AU110 -> 0 | T70: =+Sheet1!AV110 -> 0 | U70: =+Sheet1!AW110 -> 0 | V70: =+Sheet1!AX110 -> 0 | W70: =+Sheet1!AY110 -> 0 | X70: =+Sheet1!AZ110 -> 0 | Y70: =+Sheet1!BA110 -> 0 | Z70: =+Sheet1!BB110 -> 0 | AA70: =+Sheet1!BC110 -> 0 | AB70: =+Sheet1!BD110 -> 0 | AC70: =+Sheet1!BE110 -> 0 | AD70: =+Sheet1!BF110 -> 0 | AE70: =+Sheet1!BG110 -> 0 | AI70: =+直径階分布の計算!FM32 -> 0.0001 | AJ70: =+直径階分布の計算!FN32 -> 0.0018 | AK70: =+直径階分布の計算!FO32 -> 0.0044 | AL70: =+直径階分布の計算!FP32 -> 0.01366815791 | AM70: =+直径階分布の計算!FQ32 -> 0.03095624207 | AN70: =+直径階分布の計算!FR32 -> 0.05710488054 | AO70: =+直径階分布の計算!FS32 -> 0.09259197844 | AP70: =+直径階分布の計算!FT32 -> 0.1376950985 | AQ70: =+直径階分布の計算!FU32 -> 0.1925846938 | AR70: =+直径階分布の計算!FV32 -> 0.2573706963 | AS70: =+直径階分布の計算!FW32 -> 0.3321269967 | AT70: =+直径階分布の計算!FX32 -> 0.4169050168 | AU70: =+直径階分布の計算!FY32 -> 0.5117416111 | AV70: =+直径階分布の計算!FZ32 -> 0.6166638672 | AW70: =+直径階分布の計算!GA32 -> 0.7316921303 | AX70: =+直径階分布の計算!GB32 -> 0.8568419741 | AY70: =+直径階分布の計算!GC32 -> 0.9921255187 | AZ70: =+直径階分布の計算!GD32 -> 1.137552336 | BA70: =+直径階分布の計算!GE32 -> 1.293130085 | BB70: =+直径階分布の計算!GF32 -> 1.458864968 | BC70: =+直径階分布の計算!GG32 -> 1.634762055 | BD70: =+直径階分布の計算!GH32 -> 1.82082554 | BE70: =+直径階分布の計算!GI32 -> 2.017058912 | BF70: =+直径階分布の計算!GJ32 -> 2.223465105 | BG70: =+直径階分布の計算!GK32 -> 2.4400466 | BH70: =+直径階分布の計算!GL32 -> 2.666805508 | BI70: =+直径階分布の計算!GM32 -> 2.903743642 | BJ70: =+直径階分布の計算!GN32 -> 3.150862562 | BK70: =+直径階分布の計算!GO32 -> 3.408163619 | BM70: 0 | BN70: 0 | BO70: 0 | BP70: 0 | BQ70: 0 | BR70: 0 | BS70: 0 | BT70: 0 | BU70: 0 | BV70: 0 | BW70: 0 | BX70: 0 | BY70: 0 | BZ70: 0 | CA70: 0 | CB70: 0 | CC70: 0 | CD70: 0 | CE70: 0 | CF70: 0 | CG70: 0 | CH70: 0 | CI70: 0 | CJ70: 0 | CK70: 0 | CL70: 0 | CM70: 0 | CN70: 0 | CO70: 0 | CP70: 52 | CQ70: 0
B71: =+収穫予測!N33 -> 54 | C71: =+Sheet1!AE111 -> 0 | D71: =+Sheet1!AF111 -> 0 | E71: =+Sheet1!AG111 -> 0 | F71: =+Sheet1!AH111 -> 0 | G71: =+Sheet1!AI111 -> 0 | H71: =+Sheet1!AJ111 -> 0 | I71: =+Sheet1!AK111 -> 0 | J71: =+Sheet1!AL111 -> 0 | K71: =+Sheet1!AM111 -> 0 | L71: =+Sheet1!AN111 -> 0 | M71: =+Sheet1!AO111 -> 0 | N71: =+Sheet1!AP111 -> 0 | O71: =+Sheet1!AQ111 -> 0 | P71: =+Sheet1!AR111 -> 0 | Q71: =+Sheet1!AS111 -> 0 | R71: =+Sheet1!AT111 -> 0 | S71: =+Sheet1!AU111 -> 0 | T71: =+Sheet1!AV111 -> 0 | U71: =+Sheet1!AW111 -> 0 | V71: =+Sheet1!AX111 -> 0 | W71: =+Sheet1!AY111 -> 0 | X71: =+Sheet1!AZ111 -> 0 | Y71: =+Sheet1!BA111 -> 0 | Z71: =+Sheet1!BB111 -> 0 | AA71: =+Sheet1!BC111 -> 0 | AB71: =+Sheet1!BD111 -> 0 | AC71: =+Sheet1!BE111 -> 0 | AD71: =+Sheet1!BF111 -> 0 | AE71: =+Sheet1!BG111 -> 0 | AI71: =+直径階分布の計算!FM33 -> 0.0001 | AJ71: =+直径階分布の計算!FN33 -> 0.0018 | AK71: =+直径階分布の計算!FO33 -> 0.0044 | AL71: =+直径階分布の計算!FP33 -> 0.01361072081 | AM71: =+直径階分布の計算!FQ33 -> 0.0308933971 | AN71: =+直径階分布の計算!FR33 -> 0.05708025938 | AO71: =+直径階分布の計算!FS33 -> 0.09265980052 | AP71: =+直径階分布の計算!FT33 -> 0.1379162345 | AQ71: =+直径階分布の計算!FU33 -> 0.1930243083 | AR71: =+直径階分布の計算!FV33 -> 0.2580968223 | AS71: =+直径階分布の計算!FW33 -> 0.3332096454 | AT71: =+直径階分布の計算!FX33 -> 0.4184156048 | AU71: =+直径階分布の計算!FY33 -> 0.5137525783 | AV71: =+直径階分布の計算!FZ33 -> 0.6192484153 | AW71: =+直径階分布の計算!GA33 -> 0.7349240399 | AX71: =+直径階分布の計算!GB33 -> 0.8607954729 | AY71: =+直径階分布の計算!GC33 -> 0.9968751849 | AZ71: =+直径階分布の計算!GD33 -> 1.143173027 | BA71: =+直径階分布の計算!GE33 -> 1.299696883 | BB71: =+直径階分布の計算!GF33 -> 1.466453136 | BC71: =+直径階分布の計算!GG33 -> 1.64344701 | BD71: =+直径階分布の計算!GH33 -> 1.830682819 | BE71: =+直径階分布の計算!GI33 -> 2.02816416 | BF71: =+直径階分布の計算!GJ33 -> 2.235894053 | BG71: =+直径階分布の計算!GK33 -> 2.453875053 | BH71: =+直径階分布の計算!GL33 -> 2.682109337 | BI71: =+直径階分布の計算!GM33 -> 2.920598771 | BJ71: =+直径階分布の計算!GN33 -> 3.169344962 | BK71: =+直径階分布の計算!GO33 -> 3.428349303 | BM71: 0 | BN71: 0 | BO71: 0 | BP71: 0 | BQ71: 0 | BR71: 0 | BS71: 0 | BT71: 0 | BU71: 0 | BV71: 0 | BW71: 0 | BX71: 0 | BY71: 0 | BZ71: 0 | CA71: 0 | CB71: 0 | CC71: 0 | CD71: 0 | CE71: 0 | CF71: 0 | CG71: 0 | CH71: 0 | CI71: 0 | CJ71: 0 | CK71: 0 | CL71: 0 | CM71: 0 | CN71: 0 | CO71: 0 | CP71: 54 | CQ71: 0
B72: =+収穫予測!N34 -> 56 | C72: =+Sheet1!AE112 -> 0 | D72: =+Sheet1!AF112 -> 0 | E72: =+Sheet1!AG112 -> 0 | F72: =+Sheet1!AH112 -> 0 | G72: =+Sheet1!AI112 -> 0 | H72: =+Sheet1!AJ112 -> 0 | I72: =+Sheet1!AK112 -> 0 | J72: =+Sheet1!AL112 -> 0 | K72: =+Sheet1!AM112 -> 0 | L72: =+Sheet1!AN112 -> 0 | M72: =+Sheet1!AO112 -> 0 | N72: =+Sheet1!AP112 -> 0 | O72: =+Sheet1!AQ112 -> 0 | P72: =+Sheet1!AR112 -> 0 | Q72: =+Sheet1!AS112 -> 0 | R72: =+Sheet1!AT112 -> 0 | S72: =+Sheet1!AU112 -> 0 | T72: =+Sheet1!AV112 -> 0 | U72: =+Sheet1!AW112 -> 0 | V72: =+Sheet1!AX112 -> 0 | W72: =+Sheet1!AY112 -> 0 | X72: =+Sheet1!AZ112 -> 0 | Y72: =+Sheet1!BA112 -> 0 | Z72: =+Sheet1!BB112 -> 0 | AA72: =+Sheet1!BC112 -> 0 | AB72: =+Sheet1!BD112 -> 0 | AC72: =+Sheet1!BE112 -> 0 | AD72: =+Sheet1!BF112 -> 0 | AE72: =+Sheet1!BG112 -> 0 | AI72: =+直径階分布の計算!FM34 -> 0.0001 | AJ72: =+直径階分布の計算!FN34 -> 0.0018 | AK72: =+直径階分布の計算!FO34 -> 0.0043 | AL72: =+直径階分布の計算!FP34 -> 0.01355578971 | AM72: =+直径階分布の計算!FQ34 -> 0.03082936185 | AN72: =+直径階分布の計算!FR34 -> 0.05704491957 | AO72: =+直径階分布の計算!FS34 -> 0.09270062684 | AP72: =+直径階分布の計算!FT34 -> 0.1380867944 | AQ72: =+直径階分布の計算!FU34 -> 0.1933821139 | AR72: =+直径階分布の計算!FV34 -> 0.2587020243 | AS72: =+直径階分布の計算!FW34 -> 0.3341242173 | AT72: =+直径階分布の計算!FX34 -> 0.4197028149 | AU72: =+直径階分布の計算!FY34 -> 0.5154766391 | AV72: =+直径階分布の計算!FZ34 -> 0.6214742425 | AW72: =+直径階分布の計算!GA34 -> 0.7377170839 | AX72: =+直径階分布の計算!GB34 -> 0.8642215968 | AY72: =+直径階分布の計算!GC34 -> 1.001000576 | AZ72: =+直径階分布の計算!GD34 -> 1.148064131 | BA72: =+直径階分布の計算!GE34 -> 1.305420352 | BB72: =+直径階分布の計算!GF34 -> 1.473075792 | BC72: =+直径階分布の計算!GG34 -> 1.651035813 | BD72: =+直径階分布の計算!GH34 -> 1.839304846 | BE72: =+直径階分布の計算!GI34 -> 2.037886582 | BF72: =+直径階分布の計算!GJ34 -> 2.246784125 | BG72: =+直径階分布の計算!GK34 -> 2.466000097 | BH72: =+直径階分布の計算!GL34 -> 2.695536735 | BI72: =+直径階分布の計算!GM34 -> 2.935395955 | BJ72: =+直径階分布の計算!GN34 -> 3.185579408 | BK72: =+直径階分布の計算!GO34 -> 3.446088525 | BM72: 0 | BN72: 0 | BO72: 0 | BP72: 0 | BQ72: 0 | BR72: 0 | BS72: 0 | BT72: 0 | BU72: 0 | BV72: 0 | BW72: 0 | BX72: 0 | BY72: 0 | BZ72: 0 | CA72: 0 | CB72: 0 | CC72: 0 | CD72: 0 | CE72: 0 | CF72: 0 | CG72: 0 | CH72: 0 | CI72: 0 | CJ72: 0 | CK72: 0 | CL72: 0 | CM72: 0 | CN72: 0 | CO72: 0 | CP72: 56 | CQ72: 0
B73: =+収穫予測!N35 -> 58 | C73: =+Sheet1!AE113 -> 0 | D73: =+Sheet1!AF113 -> 0 | E73: =+Sheet1!AG113 -> 0 | F73: =+Sheet1!AH113 -> 0 | G73: =+Sheet1!AI113 -> 0 | H73: =+Sheet1!AJ113 -> 0 | I73: =+Sheet1!AK113 -> 0 | J73: =+Sheet1!AL113 -> 0 | K73: =+Sheet1!AM113 -> 0 | L73: =+Sheet1!AN113 -> 0 | M73: =+Sheet1!AO113 -> 0 | N73: =+Sheet1!AP113 -> 0 | O73: =+Sheet1!AQ113 -> 0 | P73: =+Sheet1!AR113 -> 0 | Q73: =+Sheet1!AS113 -> 0 | R73: =+Sheet1!AT113 -> 0 | S73: =+Sheet1!AU113 -> 0 | T73: =+Sheet1!AV113 -> 0 | U73: =+Sheet1!AW113 -> 0 | V73: =+Sheet1!AX113 -> 0 | W73: =+Sheet1!AY113 -> 0 | X73: =+Sheet1!AZ113 -> 0 | Y73: =+Sheet1!BA113 -> 0 | Z73: =+Sheet1!BB113 -> 0 | AA73: =+Sheet1!BC113 -> 0 | AB73: =+Sheet1!BD113 -> 0 | AC73: =+Sheet1!BE113 -> 0 | AD73: =+Sheet1!BF113 -> 0 | AE73: =+Sheet1!BG113 -> 0 | AI73: =+直径階分布の計算!FM35 -> 0.0001 | AJ73: =+直径階分布の計算!FN35 -> 0.0018 | AK73: =+直径階分布の計算!FO35 -> 0.0043 | AL73: =+直径階分布の計算!FP35 -> 0.01350332605 | AM73: =+直径階分布の計算!FQ35 -> 0.03076474103 | AN73: =+直径階分布の計算!FR35 -> 0.05700074962 | AO73: =+直径階分布の計算!FS35 -> 0.092718335 | AP73: =+直径階分布の計算!FT35 -> 0.1382133867 | AQ73: =+直径階分布の計算!FU35 -> 0.1936682135 | AR73: =+直径階分布の計算!FV35 -> 0.2592006774 | AS73: =+直径階分布の計算!FW35 -> 0.3348901453 | AT73: =+直径階分布の計算!FX35 -> 0.4207919309 | AU73: =+直径階分布の計算!FY35 -> 0.5169457252 | AV73: =+直径階分布の計算!FZ35 -> 0.6233807289 | AW73: =+直径階分布の計算!GA35 -> 0.740118893 | AX73: =+直径階分布の計算!GB35 -> 0.8671770317 | AY73: =+直径階分布の計算!GC35 -> 1.004568239 | AZ73: =+直径階分布の計算!GD35 -> 1.152302861 | BA73: =+直径階分布の計算!GE35 -> 1.310389181 | BB73: =+直径階分布の計算!GF35 -> 1.478833908 | BC73: =+直径階分布の計算!GG35 -> 1.657642531 | BD73: =+直径階分布の計算!GH35 -> 1.846819588 | BE73: =+直径階分布の計算!GI35 -> 2.04636886 | BF73: =+直径階分布の計算!GJ35 -> 2.256293524 | BG73: =+直径階分布の計算!GK35 -> 2.476596268 | BH73: =+直径階分布の計算!GL35 -> 2.707279381 | BI73: =+直径階分布の計算!GM35 -> 2.948344828 | BJ73: =+直径階分布の計算!GN35 -> 3.199794299 | BK73: =+直径階分布の計算!GO35 -> 3.461629261 | BM73: 0 | BN73: 0 | BO73: 0 | BP73: 0 | BQ73: 0 | BR73: 0 | BS73: 0 | BT73: 0 | BU73: 0 | BV73: 0 | BW73: 0 | BX73: 0 | BY73: 0 | BZ73: 0 | CA73: 0 | CB73: 0 | CC73: 0 | CD73: 0 | CE73: 0 | CF73: 0 | CG73: 0 | CH73: 0 | CI73: 0 | CJ73: 0 | CK73: 0 | CL73: 0 | CM73: 0 | CN73: 0 | CO73: 0 | CP73: 58 | CQ73: 0
B74: =+収穫予測!N36 -> 60 | C74: =+Sheet1!AE114 -> 0 | D74: =+Sheet1!AF114 -> 0 | E74: =+Sheet1!AG114 -> 0 | F74: =+Sheet1!AH114 -> 0 | G74: =+Sheet1!AI114 -> 0 | H74: =+Sheet1!AJ114 -> 0 | I74: =+Sheet1!AK114 -> 0 | J74: =+Sheet1!AL114 -> 0 | K74: =+Sheet1!AM114 -> 0 | L74: =+Sheet1!AN114 -> 0 | M74: =+Sheet1!AO114 -> 0 | N74: =+Sheet1!AP114 -> 0 | O74: =+Sheet1!AQ114 -> 0 | P74: =+Sheet1!AR114 -> 0 | Q74: =+Sheet1!AS114 -> 0 | R74: =+Sheet1!AT114 -> 0 | S74: =+Sheet1!AU114 -> 0 | T74: =+Sheet1!AV114 -> 0 | U74: =+Sheet1!AW114 -> 0 | V74: =+Sheet1!AX114 -> 0 | W74: =+Sheet1!AY114 -> 0 | X74: =+Sheet1!AZ114 -> 0 | Y74: =+Sheet1!BA114 -> 0 | Z74: =+Sheet1!BB114 -> 0 | AA74: =+Sheet1!BC114 -> 0 | AB74: =+Sheet1!BD114 -> 0 | AC74: =+Sheet1!BE114 -> 0 | AD74: =+Sheet1!BF114 -> 0 | AE74: =+Sheet1!BG114 -> 0 | AI74: =+直径階分布の計算!FM36 -> 0.0001 | AJ74: =+直径階分布の計算!FN36 -> 0.0018 | AK74: =+直径階分布の計算!FO36 -> 0.0043 | AL74: =+直径階分布の計算!FP36 -> 0.01345327372 | AM74: =+直径階分布の計算!FQ36 -> 0.03070003339 | AN74: =+直径階分布の計算!FR36 -> 0.05694938138 | AO74: =+直径階分布の計算!FS36 -> 0.09271633156 | AP74: =+直径階分布の計算!FT36 -> 0.1383018704 | AQ74: =+直径階分布の計算!FU36 -> 0.1938916181 | AR74: =+直径階分布の計算!FV36 -> 0.259605658 | AS74: =+直径階分布の計算!FW36 -> 0.3355248944 | AT74: =+直径階分布の計算!FX36 -> 0.4217057354 | AU74: =+直径階分布の計算!FY36 -> 0.5181886706 | AV74: =+直径階分布の計算!FZ36 -> 0.6250034963 | AW74: =+直径階分布の計算!GA36 -> 0.7421726167 | AX74: =+直径階分布の計算!GB36 -> 0.8697131962 | AY74: =+直径階分布の計算!GC36 -> 1.007638604 | AZ74: =+直径階分布の計算!GD36 -> 1.155959405 | BA74: =+直径階分布の計算!GE36 -> 1.314684059 | BB74: =+直径階分布の計算!GF36 -> 1.483819418 | BC74: =+直径階分布の計算!GG36 -> 1.663371091 | BD74: =+直径階分布の計算!GH36 -> 1.853343712 | BE74: =+直径階分布の計算!GI36 -> 2.053741145 | BF74: =+直径階分布の計算!GJ36 -> 2.264566636 | BG74: =+直径階分布の計算!GK36 -> 2.485822931 | BH74: =+直径階分布の計算!GL36 -> 2.717512372 | BI74: =+直径階分布の計算!GM36 -> 2.959636963 | BJ74: =+直径階分布の計算!GN36 -> 3.212198434 | BK74: =+直径階分布の計算!GO36 -> 3.475198284 | BM74: 0 | BN74: 0 | BO74: 0 | BP74: 0 | BQ74: 0 | BR74: 0 | BS74: 0 | BT74: 0 | BU74: 0 | BV74: 0 | BW74: 0 | BX74: 0 | BY74: 0 | BZ74: 0 | CA74: 0 | CB74: 0 | CC74: 0 | CD74: 0 | CE74: 0 | CF74: 0 | CG74: 0 | CH74: 0 | CI74: 0 | CJ74: 0 | CK74: 0 | CL74: 0 | CM74: 0 | CN74: 0 | CO74: 0 | CP74: 60 | CQ74: 0
B75: =+収穫予測!N37 -> 62 | C75: =+Sheet1!AE115 -> 0 | D75: =+Sheet1!AF115 -> 0 | E75: =+Sheet1!AG115 -> 0 | F75: =+Sheet1!AH115 -> 0 | G75: =+Sheet1!AI115 -> 0 | H75: =+Sheet1!AJ115 -> 0 | I75: =+Sheet1!AK115 -> 0 | J75: =+Sheet1!AL115 -> 0 | K75: =+Sheet1!AM115 -> 0 | L75: =+Sheet1!AN115 -> 0 | M75: =+Sheet1!AO115 -> 0 | N75: =+Sheet1!AP115 -> 0 | O75: =+Sheet1!AQ115 -> 0 | P75: =+Sheet1!AR115 -> 0 | Q75: =+Sheet1!AS115 -> 0 | R75: =+Sheet1!AT115 -> 0 | S75: =+Sheet1!AU115 -> 0 | T75: =+Sheet1!AV115 -> 0 | U75: =+Sheet1!AW115 -> 0 | V75: =+Sheet1!AX115 -> 0 | W75: =+Sheet1!AY115 -> 0 | X75: =+Sheet1!AZ115 -> 0 | Y75: =+Sheet1!BA115 -> 0 | Z75: =+Sheet1!BB115 -> 0 | AA75: =+Sheet1!BC115 -> 0 | AB75: =+Sheet1!BD115 -> 0 | AC75: =+Sheet1!BE115 -> 0 | AD75: =+Sheet1!BF115 -> 0 | AE75: =+Sheet1!BG115 -> 0 | AI75: =+直径階分布の計算!FM37 -> 0.0001 | AJ75: =+直径階分布の計算!FN37 -> 0.0019 | AK75: =+直径階分布の計算!FO37 -> 0.0043 | AL75: =+直径階分布の計算!FP37 -> 0.01340552625 | AM75: =+直径階分布の計算!FQ37 -> 0.03063555443 | AN75: =+直径階分布の計算!FR37 -> 0.05689204349 | AO75: =+直径階分布の計算!FS37 -> 0.09269730872 | AP75: =+直径階分布の計算!FT37 -> 0.138356986 | AQ75: =+直径階分布の計算!FU37 -> 0.194059722 | AR75: =+直径階分布の計算!FV37 -> 0.2599276332 | AS75: =+直径階分布の計算!FW37 -> 0.3360430324 | AT75: =+直径階分布の計算!FX37 -> 0.4224633311 | AU75: =+直径階分布の計算!FY37 -> 0.5192297514 | AV75: =+直径階分布の計算!FZ37 -> 0.6263726365 | AW75: =+直径階分布の計算!GA37 -> 0.7439148064 | AX75: =+直径階分布の計算!GB37 -> 0.8718737474 | AY75: =+直径階分布の計算!GC37 -> 1.010263081 | AZ75: =+直径階分布の計算!GD37 -> 1.159093575 | BA75: =+直径階分布の計算!GE37 -> 1.318373849 | BB75: =+直径階分布の計算!GF37 -> 1.488110888 | BC75: =+直径階分布の計算!GG37 -> 1.66831041 | BD75: =+直径階分布の計算!GH37 -> 1.858977139 | BE75: =+直径階分布の計算!GI37 -> 2.060115015 | BF75: =+直径階分布の計算!GJ37 -> 2.271727346 | BG75: =+直径階分布の計算!GK37 -> 2.493816935 | BH75: =+直径階分布の計算!GL37 -> 2.726386166 | BI75: =+直径階分布の計算!GM37 -> 2.969437087 | BJ75: =+直径階分布の計算!GN37 -> 3.22297146 | BK75: =+直径階分布の計算!GO37 -> 3.486990813 | BM75: 0 | BN75: 0 | BO75: 0 | BP75: 0 | BQ75: 0 | BR75: 0 | BS75: 0 | BT75: 0 | BU75: 0 | BV75: 0 | BW75: 0 | BX75: 0 | BY75: 0 | BZ75: 0 | CA75: 0 | CB75: 0 | CC75: 0 | CD75: 0 | CE75: 0 | CF75: 0 | CG75: 0 | CH75: 0 | CI75: 0 | CJ75: 0 | CK75: 0 | CL75: 0 | CM75: 0 | CN75: 0 | CO75: 0 | CP75: 62 | CQ75: 0
B76: =+収穫予測!N38 -> 64 | C76: =+Sheet1!AE116 -> 0 | D76: =+Sheet1!AF116 -> 0 | E76: =+Sheet1!AG116 -> 0 | F76: =+Sheet1!AH116 -> 0 | G76: =+Sheet1!AI116 -> 0 | H76: =+Sheet1!AJ116 -> 0 | I76: =+Sheet1!AK116 -> 0 | J76: =+Sheet1!AL116 -> 0 | K76: =+Sheet1!AM116 -> 0 | L76: =+Sheet1!AN116 -> 0 | M76: =+Sheet1!AO116 -> 0 | N76: =+Sheet1!AP116 -> 0 | O76: =+Sheet1!AQ116 -> 0 | P76: =+Sheet1!AR116 -> 0 | Q76: =+Sheet1!AS116 -> 0 | R76: =+Sheet1!AT116 -> 0 | S76: =+Sheet1!AU116 -> 0 | T76: =+Sheet1!AV116 -> 0 | U76: =+Sheet1!AW116 -> 0 | V76: =+Sheet1!AX116 -> 0 | W76: =+Sheet1!AY116 -> 0 | X76: =+Sheet1!AZ116 -> 0 | Y76: =+Sheet1!BA116 -> 0 | Z76: =+Sheet1!BB116 -> 0 | AA76: =+Sheet1!BC116 -> 0 | AB76: =+Sheet1!BD116 -> 0 | AC76: =+Sheet1!BE116 -> 0 | AD76: =+Sheet1!BF116 -> 0 | AE76: =+Sheet1!BG116 -> 0 | AI76: =+直径階分布の計算!FM38 -> 0.0001 | AJ76: =+直径階分布の計算!FN38 -> 0.0019 | AK76: =+直径階分布の計算!FO38 -> 0.0043 | AL76: =+直径階分布の計算!FP38 -> 0.01335999406 | AM76: =+直径階分布の計算!FQ38 -> 0.03057160753 | AN76: =+直径階分布の計算!FR38 -> 0.05682989108 | AO76: =+直径階分布の計算!FS38 -> 0.09266378975 | AP76: =+直径階分布の計算!FT38 -> 0.138383175 | AQ76: =+直径階分布の計算!FU38 -> 0.194179456 | AR76: =+直径階分布の計算!FV38 -> 0.2601766074 | AS76: =+直径階分布の計算!FW38 -> 0.3364582306 | AT76: =+直径階分布の計算!FX38 -> 0.4230826555 | AU76: =+直径階分布の計算!FY38 -> 0.5200917756 | AV76: =+直径階分布の計算!FZ38 -> 0.6275164351 | AW76: =+直径階分布の計算!GA38 -> 0.7453798352 | AX76: =+直径階分布の計算!GB38 -> 0.8736997574 | AY76: =+直径階分布の計算!GC38 -> 1.012490056 | AZ76: =+直径階分布の計算!GD38 -> 1.161761681 | BA76: =+直径階分布の計算!GE38 -> 1.321523403 | BB76: =+直径階分布の計算!GF38 -> 1.491782328 | BC76: =+直径階分布の計算!GG38 -> 1.672544273 | BD76: =+直径階分布の計算!GH38 -> 1.863814046 | BE76: =+直径階分布の計算!GI38 -> 2.065595654 | BF76: =+直径階分布の計算!GJ38 -> 2.277892467 | BG76: =+直径階分布の計算!GK38 -> 2.500707334 | BH76: =+直径階分布の計算!GL38 -> 2.734042684 | BI76: =+直径階分布の計算!GM38 -> 2.977900599 | BJ76: =+直径階分布の計算!GN38 -> 3.232282876 | BK76: =+直径階分布の計算!GO38 -> 3.497191068 | BM76: 0 | BN76: 0 | BO76: 0 | BP76: 0 | BQ76: 0 | BR76: 0 | BS76: 0 | BT76: 0 | BU76: 0 | BV76: 0 | BW76: 0 | BX76: 0 | BY76: 0 | BZ76: 0 | CA76: 0 | CB76: 0 | CC76: 0 | CD76: 0 | CE76: 0 | CF76: 0 | CG76: 0 | CH76: 0 | CI76: 0 | CJ76: 0 | CK76: 0 | CL76: 0 | CM76: 0 | CN76: 0 | CO76: 0 | CP76: 64 | CQ76: 0
B77: =+収穫予測!N39 -> 66 | C77: =+Sheet1!AE117 -> 0 | D77: =+Sheet1!AF117 -> 0 | E77: =+Sheet1!AG117 -> 0 | F77: =+Sheet1!AH117 -> 0 | G77: =+Sheet1!AI117 -> 0 | H77: =+Sheet1!AJ117 -> 0 | I77: =+Sheet1!AK117 -> 0 | J77: =+Sheet1!AL117 -> 0 | K77: =+Sheet1!AM117 -> 0 | L77: =+Sheet1!AN117 -> 0 | M77: =+Sheet1!AO117 -> 0 | N77: =+Sheet1!AP117 -> 0 | O77: =+Sheet1!AQ117 -> 0 | P77: =+Sheet1!AR117 -> 0 | Q77: =+Sheet1!AS117 -> 0 | R77: =+Sheet1!AT117 -> 0 | S77: =+Sheet1!AU117 -> 0 | T77: =+Sheet1!AV117 -> 0 | U77: =+Sheet1!AW117 -> 0 | V77: =+Sheet1!AX117 -> 0 | W77: =+Sheet1!AY117 -> 0 | X77: =+Sheet1!AZ117 -> 0 | Y77: =+Sheet1!BA117 -> 0 | Z77: =+Sheet1!BB117 -> 0 | AA77: =+Sheet1!BC117 -> 0 | AB77: =+Sheet1!BD117 -> 0 | AC77: =+Sheet1!BE117 -> 0 | AD77: =+Sheet1!BF117 -> 0 | AE77: =+Sheet1!BG117 -> 0 | AI77: =+直径階分布の計算!FM39 -> 0.0001 | AJ77: =+直径階分布の計算!FN39 -> 0.0019 | AK77: =+直径階分布の計算!FO39 -> 0.0042 | AL77: =+直径階分布の計算!FP39 -> 0.01331661173 | AM77: =+直径階分布の計算!FQ39 -> 0.03050850745 | AN77: =+直径階分布の計算!FR39 -> 0.05676405416 | AO77: =+直径階分布の計算!FS39 -> 0.09261821134 | AP77: =+直径階分布の計算!FT39 -> 0.1383847053 | AQ77: =+直径階分布の計算!FU39 -> 0.1942574642 | AR77: =+直径階分布の計算!FV39 -> 0.2603621593 | AS77: =+直径階分布の計算!FW39 -> 0.3367835694 | AT77: =+直径階分布の計算!FX39 -> 0.4235808647 | AU77: =+直径階分布の計算!FY39 -> 0.5207965527 | AV77: =+直径階分布の計算!FZ39 -> 0.6284619364 | AW77: =+直径階分布の計算!GA39 -> 0.7466005662 | AX77: =+直径階分布の計算!GB39 -> 0.8752304941 | AY77: =+直径階分布の計算!GC39 -> 1.014365786 | AZ77: =+直径階分布の計算!GD39 -> 1.164017563 | BA77: =+直径階分布の計算!GE39 -> 1.324194731 | BB77: =+直径階分布の計算!GF39 -> 1.494904507 | BC77: =+直径階分布の計算!GG39 -> 1.676152799 | BD77: =+直径階分布の計算!GH39 -> 1.867944492 | BE77: =+直径階分布の計算!GI39 -> 2.070283656 | BF77: =+直径階分布の計算!GJ39 -> 2.283173715 | BG77: =+直径階分布の計算!GK39 -> 2.506617564 | BH77: =+直径階分布の計算!GL39 -> 2.74061767 | BI77: =+直径階分布の計算!GM39 -> 2.985176149 | BJ77: =+直径階分布の計算!GN39 -> 3.240294826 | BK77: =+直径階分布の計算!GO39 -> 3.505975281 | BM77: 0 | BN77: 0 | BO77: 0 | BP77: 0 | BQ77: 0 | BR77: 0 | BS77: 0 | BT77: 0 | BU77: 0 | BV77: 0 | BW77: 0 | BX77: 0 | BY77: 0 | BZ77: 0 | CA77: 0 | CB77: 0 | CC77: 0 | CD77: 0 | CE77: 0 | CF77: 0 | CG77: 0 | CH77: 0 | CI77: 0 | CJ77: 0 | CK77: 0 | CL77: 0 | CM77: 0 | CN77: 0 | CO77: 0 | CP77: 66 | CQ77: 0
B78: =+収穫予測!N40 -> 68 | C78: =+Sheet1!AE118 -> 0 | D78: =+Sheet1!AF118 -> 0 | E78: =+Sheet1!AG118 -> 0 | F78: =+Sheet1!AH118 -> 0 | G78: =+Sheet1!AI118 -> 0 | H78: =+Sheet1!AJ118 -> 0 | I78: =+Sheet1!AK118 -> 0 | J78: =+Sheet1!AL118 -> 0 | K78: =+Sheet1!AM118 -> 0 | L78: =+Sheet1!AN118 -> 0 | M78: =+Sheet1!AO118 -> 0 | N78: =+Sheet1!AP118 -> 0 | O78: =+Sheet1!AQ118 -> 0 | P78: =+Sheet1!AR118 -> 0 | Q78: =+Sheet1!AS118 -> 0 | R78: =+Sheet1!AT118 -> 0 | S78: =+Sheet1!AU118 -> 0 | T78: =+Sheet1!AV118 -> 0 | U78: =+Sheet1!AW118 -> 0 | V78: =+Sheet1!AX118 -> 0 | W78: =+Sheet1!AY118 -> 0 | X78: =+Sheet1!AZ118 -> 0 | Y78: =+Sheet1!BA118 -> 0 | Z78: =+Sheet1!BB118 -> 0 | AA78: =+Sheet1!BC118 -> 0 | AB78: =+Sheet1!BD118 -> 0 | AC78: =+Sheet1!BE118 -> 0 | AD78: =+Sheet1!BF118 -> 0 | AE78: =+Sheet1!BG118 -> 0 | AI78: =+直径階分布の計算!FM40 -> 0.0001 | AJ78: =+直径階分布の計算!FN40 -> 0.0019 | AK78: =+直径階分布の計算!FO40 -> 0.0042 | AL78: =+直径階分布の計算!FP40 -> 0.01327514488 | AM78: =+直径階分布の計算!FQ40 -> 0.03044610103 | AN78: =+直径階分布の計算!FR40 -> 0.05669471923 | AO78: =+直径階分布の計算!FS40 -> 0.09256140233 | AP78: =+直径階分布の計算!FT40 -> 0.1383633773 | AQ78: =+直径階分布の計算!FU40 -> 0.1942968645 | AR78: =+直径階分布の計算!FV40 -> 0.2604890808 | AS78: =+直径階分布の計算!FW40 -> 0.337025879 | AT78: =+直径階分布の計算!FX40 -> 0.423967196 | AU78: =+直径階分布の計算!FY40 -> 0.5213561001 | AV78: =+直径階分布の計算!FZ40 -> 0.6292243132 | AW78: =+直径階分布の計算!GA40 -> 0.7475957051 | AX78: =+直径階分布の計算!GB40 -> 0.8764885749 | AY78: =+直径階分布の計算!GC40 -> 1.015917183 | AZ78: =+直径階分布の計算!GD40 -> 1.165892805 | BA78: =+直径階分布の計算!GE40 -> 1.326424471 | BB78: =+直径階分布の計算!GF40 -> 1.497519501 | BC78: =+直径階分布の計算!GG40 -> 1.679183887 | BD78: =+直径階分布の計算!GH40 -> 1.871422581 | BE78: =+直径階分布の計算!GI40 -> 2.074239715 | BF78: =+直径階分布の計算!GJ40 -> 2.287638759 | BG78: =+直径階分布の計算!GK40 -> 2.51162265 | BH78: =+直径階分布の計算!GL40 -> 2.746193893 | BI78: =+直径階分布の計算!GM40 -> 2.991354632 | BJ78: =+直径階分布の計算!GN40 -> 3.24710672 | BK78: =+直径階分布の計算!GO40 -> 3.513451759 | BM78: 0 | BN78: 0 | BO78: 0 | BP78: 0 | BQ78: 0 | BR78: 0 | BS78: 0 | BT78: 0 | BU78: 0 | BV78: 0 | BW78: 0 | BX78: 0 | BY78: 0 | BZ78: 0 | CA78: 0 | CB78: 0 | CC78: 0 | CD78: 0 | CE78: 0 | CF78: 0 | CG78: 0 | CH78: 0 | CI78: 0 | CJ78: 0 | CK78: 0 | CL78: 0 | CM78: 0 | CN78: 0 | CO78: 0 | CP78: 68 | CQ78: 0
B79: =+収穫予測!N41 -> 70 | C79: =+Sheet1!AE119 -> 0 | D79: =+Sheet1!AF119 -> 0 | E79: =+Sheet1!AG119 -> 0 | F79: =+Sheet1!AH119 -> 0 | G79: =+Sheet1!AI119 -> 0 | H79: =+Sheet1!AJ119 -> 0 | I79: =+Sheet1!AK119 -> 0 | J79: =+Sheet1!AL119 -> 0 | K79: =+Sheet1!AM119 -> 0 | L79: =+Sheet1!AN119 -> 0 | M79: =+Sheet1!AO119 -> 0 | N79: =+Sheet1!AP119 -> 0 | O79: =+Sheet1!AQ119 -> 0 | P79: =+Sheet1!AR119 -> 0 | Q79: =+Sheet1!AS119 -> 0 | R79: =+Sheet1!AT119 -> 0 | S79: =+Sheet1!AU119 -> 0 | T79: =+Sheet1!AV119 -> 0 | U79: =+Sheet1!AW119 -> 0 | V79: =+Sheet1!AX119 -> 0 | W79: =+Sheet1!AY119 -> 0 | X79: =+Sheet1!AZ119 -> 0 | Y79: =+Sheet1!BA119 -> 0 | Z79: =+Sheet1!BB119 -> 0 | AA79: =+Sheet1!BC119 -> 0 | AB79: =+Sheet1!BD119 -> 0 | AC79: =+Sheet1!BE119 -> 0 | AD79: =+Sheet1!BF119 -> 0 | AE79: =+Sheet1!BG119 -> 0 | AI79: =+直径階分布の計算!FM41 -> 0.0001 | AJ79: =+直径階分布の計算!FN41 -> 0.0019 | AK79: =+直径階分布の計算!FO41 -> 0.0042 | AL79: =+直径階分布の計算!FP41 -> 0.01323557259 | AM79: =+直径階分布の計算!FQ41 -> 0.03038472759 | AN79: =+直径階分布の計算!FR41 -> 0.05662297765 | AO79: =+直径階分布の計算!FS41 -> 0.09249565008 | AP79: =+直径階分布の計算!FT41 -> 0.1383231496 | AQ79: =+直径階分布の計算!FU41 -> 0.194303781 | AR79: =+直径階分布の計算!FV41 -> 0.2605661691 | AS79: =+直径階分布の計算!FW41 -> 0.3371971453 | AT79: =+直径階分布の計算!FX41 -> 0.424257346 | AU79: =+直径階分布の計算!FY41 -> 0.5217903511 | AV79: =+直径階分布の計算!FZ41 -> 0.6298282655 | AW79: =+直径階分布の計算!GA41 -> 0.7483952501 | AX79: =+直径階分布の計算!GB41 -> 0.8775098302 | AY79: =+直径階分布の計算!GC41 -> 1.017186443 | AZ79: =+直径階分布の計算!GD41 -> 1.167436507 | BA79: =+直径階分布の計算!GE41 -> 1.328269166 | BB79: =+直径階分布の計算!GF41 -> 1.499691832 | BC79: =+直径階分布の計算!GG41 -> 1.681710574 | BD79: =+直径階分布の計算!GH41 -> 1.874330409 | BE79: =+直径階分布の計算!GI41 -> 2.077555521 | BF79: =+直径階分布の計算!GJ41 -> 2.291389424 | BG79: =+直径階分布の計算!GK41 -> 2.515835095 | BH79: =+直径階分布の計算!GL41 -> 2.75089507 | BI79: =+直径階分布の計算!GM41 -> 2.996571523 | BJ79: =+直径階分布の計算!GN41 -> 3.252866329 | BK79: =+直径階分布の計算!GO41 -> 3.519781114 | BM79: 0 | BN79: 0 | BO79: 0 | BP79: 0 | BQ79: 0 | BR79: 0 | BS79: 0 | BT79: 0 | BU79: 0 | BV79: 0 | BW79: 0 | BX79: 0 | BY79: 0 | BZ79: 0 | CA79: 0 | CB79: 0 | CC79: 0 | CD79: 0 | CE79: 0 | CF79: 0 | CG79: 0 | CH79: 0 | CI79: 0 | CJ79: 0 | CK79: 0 | CL79: 0 | CM79: 0 | CN79: 0 | CO79: 0 | CP79: 70 | CQ79: 0
B80: =+収穫予測!N42 -> 72 | C80: =+Sheet1!AE120 -> 0 | D80: =+Sheet1!AF120 -> 0 | E80: =+Sheet1!AG120 -> 0 | F80: =+Sheet1!AH120 -> 0 | G80: =+Sheet1!AI120 -> 0 | H80: =+Sheet1!AJ120 -> 0 | I80: =+Sheet1!AK120 -> 0 | J80: =+Sheet1!AL120 -> 0 | K80: =+Sheet1!AM120 -> 0 | L80: =+Sheet1!AN120 -> 0 | M80: =+Sheet1!AO120 -> 0 | N80: =+Sheet1!AP120 -> 0 | O80: =+Sheet1!AQ120 -> 0 | P80: =+Sheet1!AR120 -> 0 | Q80: =+Sheet1!AS120 -> 0 | R80: =+Sheet1!AT120 -> 0 | S80: =+Sheet1!AU120 -> 0 | T80: =+Sheet1!AV120 -> 0 | U80: =+Sheet1!AW120 -> 0 | V80: =+Sheet1!AX120 -> 0 | W80: =+Sheet1!AY120 -> 0 | X80: =+Sheet1!AZ120 -> 0 | Y80: =+Sheet1!BA120 -> 0 | Z80: =+Sheet1!BB120 -> 0 | AA80: =+Sheet1!BC120 -> 0 | AB80: =+Sheet1!BD120 -> 0 | AC80: =+Sheet1!BE120 -> 0 | AD80: =+Sheet1!BF120 -> 0 | AE80: =+Sheet1!BG120 -> 0 | AI80: =+直径階分布の計算!FM42 -> 0.0001 | AJ80: =+直径階分布の計算!FN42 -> 0.0020 | AK80: =+直径階分布の計算!FO42 -> 0.0042 | AL80: =+直径階分布の計算!FP42 -> 0.01319769813 | AM80: =+直径階分布の計算!FQ42 -> 0.03032424843 | AN80: =+直径階分布の計算!FR42 -> 0.05654896285 | AO80: =+直径階分布の計算!FS42 -> 0.09242161392 | AP80: =+直径階分布の計算!FT42 -> 0.138265485 | AQ80: =+直径階分布の計算!FU42 -> 0.1942807732 | AR80: =+直径階分布の計算!FV42 -> 0.2605973828 | AS80: =+直径階分布の計算!FW42 -> 0.3373030358 | AT80: =+直径階分布の計算!FX42 -> 0.4244590053 | AU80: =+直径階分布の計算!FY42 -> 0.5221093376 | AV80: =+直径階分布の計算!FZ42 -> 0.6302864861 | AW80: =+直径階分布の計算!GA42 -> 0.7490148778 | AX80: =+直径階分布の計算!GB42 -> 0.8783132436 | AY80: =+直径階分布の計算!GC42 -> 1.018196184 | AZ80: =+直径階分布の計算!GD42 -> 1.168675244 | BA80: =+直径階分布の計算!GE42 -> 1.329759674 | BB80: =+直径階分布の計算!GF42 -> 1.50145697 | BC80: =+直径階分布の計算!GG42 -> 1.683773271 | BD80: =+直径階分布の計算!GH42 -> 1.876713651 | BE80: =+直径階分布の計算!GI42 -> 2.080282344 | BF80: =+直径階分布の計算!GJ42 -> 2.294482906 | BG80: =+直径階分布の計算!GK42 -> 2.519318346 | BH80: =+直径階分布の計算!GL42 -> 2.754791233 | BI80: =+直径階分布の計算!GM42 -> 3.000903764 | BJ80: =+直径階分布の計算!GN42 -> 3.257657837 | BK80: =+直径階分布の計算!GO42 -> 3.525055098 | BM80: 0 | BN80: 0 | BO80: 0 | BP80: 0 | BQ80: 0 | BR80: 0 | BS80: 0 | BT80: 0 | BU80: 0 | BV80: 0 | BW80: 0 | BX80: 0 | BY80: 0 | BZ80: 0 | CA80: 0 | CB80: 0 | CC80: 0 | CD80: 0 | CE80: 0 | CF80: 0 | CG80: 0 | CH80: 0 | CI80: 0 | CJ80: 0 | CK80: 0 | CL80: 0 | CM80: 0 | CN80: 0 | CO80: 0 | CP80: 72 | CQ80: 0
B81: =+収穫予測!N43 -> 74 | C81: =+Sheet1!AE121 -> 0 | D81: =+Sheet1!AF121 -> 0 | E81: =+Sheet1!AG121 -> 0 | F81: =+Sheet1!AH121 -> 0 | G81: =+Sheet1!AI121 -> 0 | H81: =+Sheet1!AJ121 -> 0 | I81: =+Sheet1!AK121 -> 0 | J81: =+Sheet1!AL121 -> 0 | K81: =+Sheet1!AM121 -> 0 | L81: =+Sheet1!AN121 -> 0 | M81: =+Sheet1!AO121 -> 0 | N81: =+Sheet1!AP121 -> 0 | O81: =+Sheet1!AQ121 -> 0 | P81: =+Sheet1!AR121 -> 0 | Q81: =+Sheet1!AS121 -> 0 | R81: =+Sheet1!AT121 -> 0 | S81: =+Sheet1!AU121 -> 0 | T81: =+Sheet1!AV121 -> 0 | U81: =+Sheet1!AW121 -> 0 | V81: =+Sheet1!AX121 -> 0 | W81: =+Sheet1!AY121 -> 0 | X81: =+Sheet1!AZ121 -> 0 | Y81: =+Sheet1!BA121 -> 0 | Z81: =+Sheet1!BB121 -> 0 | AA81: =+Sheet1!BC121 -> 0 | AB81: =+Sheet1!BD121 -> 0 | AC81: =+Sheet1!BE121 -> 0 | AD81: =+Sheet1!BF121 -> 0 | AE81: =+Sheet1!BG121 -> 0 | AI81: =+直径階分布の計算!FM43 -> 0.0001 | AJ81: =+直径階分布の計算!FN43 -> 0.0020 | AK81: =+直径階分布の計算!FO43 -> 0.0042 | AL81: =+直径階分布の計算!FP43 -> 0.013161461 | AM81: =+直径階分布の計算!FQ43 -> 0.03026483253 | AN81: =+直径階分布の計算!FR43 -> 0.05647336524 | AO81: =+直径階分布の計算!FS43 -> 0.09234084113 | AP81: =+直径階分布の計算!FT43 -> 0.1381931495 | AQ81: =+直径階分布の計算!FU43 -> 0.194232204 | AR81: =+直径階分布の計算!FV43 -> 0.2605890711 | AS81: =+直径階分布の計算!FW43 -> 0.3373522826 | AT81: =+直径階分布の計算!FX43 -> 0.4245836909 | AU81: =+直径階分布の計算!FY43 -> 0.5223277667 | AV81: =+直径階分布の計算!FZ43 -> 0.6306172813 | AW81: =+直径階分布の計算!GA43 -> 0.7494769036 | AX81: =+直径階分布の計算!GB43 -> 0.8789255524 | AY81: =+直径階分布の計算!GC43 -> 1.018977975 | AZ81: =+直径階分布の計算!GD43 -> 1.169645836 | BA81: =+直径階分布の計算!GE43 -> 1.33093848 | BB81: =+直径階分布の計算!GF43 -> 1.50286348 | BC81: =+直径階分布の計算!GG43 -> 1.685427039 | BD81: =+直径階分布の計算!GH43 -> 1.878634285 | BE81: =+直径階分布の計算!GI43 -> 2.082489494 | BF81: =+直径階分布の計算!GJ43 -> 2.296996261 | BG81: =+直径階分布の計算!GK43 -> 2.522157628 | BH81: =+直径階分布の計算!GL43 -> 2.757976188 | BI81: =+直径階分布の計算!GM43 -> 3.004454164 | BJ81: =+直径階分布の計算!GN43 -> 3.261593475 | BK81: =+直径階分布の計算!GO43 -> 3.529395781 | BM81: 0 | BN81: 0 | BO81: 0 | BP81: 0 | BQ81: 0 | BR81: 0 | BS81: 0 | BT81: 0 | BU81: 0 | BV81: 0 | BW81: 0 | BX81: 0 | BY81: 0 | BZ81: 0 | CA81: 0 | CB81: 0 | CC81: 0 | CD81: 0 | CE81: 0 | CF81: 0 | CG81: 0 | CH81: 0 | CI81: 0 | CJ81: 0 | CK81: 0 | CL81: 0 | CM81: 0 | CN81: 0 | CO81: 0 | CP81: 74 | CQ81: 0
B82: =+収穫予測!N44 -> 76 | C82: =+Sheet1!AE122 -> 0 | D82: =+Sheet1!AF122 -> 0 | E82: =+Sheet1!AG122 -> 0 | F82: =+Sheet1!AH122 -> 0 | G82: =+Sheet1!AI122 -> 0 | H82: =+Sheet1!AJ122 -> 0 | I82: =+Sheet1!AK122 -> 0 | J82: =+Sheet1!AL122 -> 0 | K82: =+Sheet1!AM122 -> 0 | L82: =+Sheet1!AN122 -> 0 | M82: =+Sheet1!AO122 -> 0 | N82: =+Sheet1!AP122 -> 0 | O82: =+Sheet1!AQ122 -> 0 | P82: =+Sheet1!AR122 -> 0 | Q82: =+Sheet1!AS122 -> 0 | R82: =+Sheet1!AT122 -> 0 | S82: =+Sheet1!AU122 -> 0 | T82: =+Sheet1!AV122 -> 0 | U82: =+Sheet1!AW122 -> 0 | V82: =+Sheet1!AX122 -> 0 | W82: =+Sheet1!AY122 -> 0 | X82: =+Sheet1!AZ122 -> 0 | Y82: =+Sheet1!BA122 -> 0 | Z82: =+Sheet1!BB122 -> 0 | AA82: =+Sheet1!BC122 -> 0 | AB82: =+Sheet1!BD122 -> 0 | AC82: =+Sheet1!BE122 -> 0 | AD82: =+Sheet1!BF122 -> 0 | AE82: =+Sheet1!BG122 -> 0 | AI82: =+直径階分布の計算!FM44 -> 0.0001 | AJ82: =+直径階分布の計算!FN44 -> 0.0020 | AK82: =+直径階分布の計算!FO44 -> 0.0042 | AL82: =+直径階分布の計算!FP44 -> 0.01312674831 | AM82: =+直径階分布の計算!FQ44 -> 0.0302064866 | AN82: =+直径階分布の計算!FR44 -> 0.05639653037 | AO82: =+直径階分布の計算!FS44 -> 0.09225427275 | AP82: =+直径階分布の計算!FT44 -> 0.1381079591 | AQ82: =+直径階分布の計算!FU44 -> 0.1941610585 | AR82: =+直径階分布の計算!FV44 -> 0.2605456917 | AS82: =+直径階分布の計算!FW44 -> 0.3373511261 | AT82: =+直径階分布の計算!FX44 -> 0.4246397405 | AU82: =+直径階分布の計算!FY44 -> 0.5224563918 | AV82: =+直径階分布の計算!FZ44 -> 0.6308341401 | AW82: =+直径階分布の計算!GA44 -> 0.7497978749 | AX82: =+直径階分布の計算!GB44 -> 0.8793666859 | AY82: =+直径階分布の計算!GC44 -> 1.019555455 | AZ82: =+直径階分布の計算!GD44 -> 1.170375954 | BA82: =+直径階分布の計算!GE44 -> 1.331837613 | BB82: =+直径階分布の計算!GF44 -> 1.503948078 | BC82: =+直径階分布の計算!GG44 -> 1.686713608 | BD82: =+直径階分布の計算!GH44 -> 1.88013938 | BE82: =+直径階分布の計算!GI44 -> 2.08422971 | BF82: =+直径階分布の計算!GJ44 -> 2.298988229 | BG82: =+直径階分布の計算!GK44 -> 2.524418005 | BH82: =+直径階分布の計算!GL44 -> 2.760521659 | BI82: =+直径階分布の計算!GM44 -> 3.007301434 | BJ82: =+直径階分布の計算!GN44 -> 3.264759266 | BK82: =+直径階分布の計算!GO44 -> 3.532896833 | BM82: 0 | BN82: 0 | BO82: 0 | BP82: 0 | BQ82: 0 | BR82: 0 | BS82: 0 | BT82: 0 | BU82: 0 | BV82: 0 | BW82: 0 | BX82: 0 | BY82: 0 | BZ82: 0 | CA82: 0 | CB82: 0 | CC82: 0 | CD82: 0 | CE82: 0 | CF82: 0 | CG82: 0 | CH82: 0 | CI82: 0 | CJ82: 0 | CK82: 0 | CL82: 0 | CM82: 0 | CN82: 0 | CO82: 0 | CP82: 76 | CQ82: 0
B83: =+収穫予測!N45 -> 78 | C83: =+Sheet1!AE123 -> 0 | D83: =+Sheet1!AF123 -> 0 | E83: =+Sheet1!AG123 -> 0 | F83: =+Sheet1!AH123 -> 0 | G83: =+Sheet1!AI123 -> 0 | H83: =+Sheet1!AJ123 -> 0 | I83: =+Sheet1!AK123 -> 0 | J83: =+Sheet1!AL123 -> 0 | K83: =+Sheet1!AM123 -> 0 | L83: =+Sheet1!AN123 -> 0 | M83: =+Sheet1!AO123 -> 0 | N83: =+Sheet1!AP123 -> 0 | O83: =+Sheet1!AQ123 -> 0 | P83: =+Sheet1!AR123 -> 0 | Q83: =+Sheet1!AS123 -> 0 | R83: =+Sheet1!AT123 -> 0 | S83: =+Sheet1!AU123 -> 0 | T83: =+Sheet1!AV123 -> 0 | U83: =+Sheet1!AW123 -> 0 | V83: =+Sheet1!AX123 -> 0 | W83: =+Sheet1!AY123 -> 0 | X83: =+Sheet1!AZ123 -> 0 | Y83: =+Sheet1!BA123 -> 0 | Z83: =+Sheet1!BB123 -> 0 | AA83: =+Sheet1!BC123 -> 0 | AB83: =+Sheet1!BD123 -> 0 | AC83: =+Sheet1!BE123 -> 0 | AD83: =+Sheet1!BF123 -> 0 | AE83: =+Sheet1!BG123 -> 0 | AI83: =+直径階分布の計算!FM45 -> 0.0001 | AJ83: =+直径階分布の計算!FN45 -> 0.0020 | AK83: =+直径階分布の計算!FO45 -> 0.0042 | AL83: =+直径階分布の計算!FP45 -> 0.01309336086 | AM83: =+直径階分布の計算!FQ45 -> 0.03014897133 | AN83: =+直径階分布の計算!FR45 -> 0.05631829853 | AO83: =+直径階分布の計算!FS45 -> 0.09216197786 | AP83: =+直径階分布の計算!FT45 -> 0.1380103792 | AQ83: =+直径階分布の計算!FU45 -> 0.1940683773 | AR83: =+直径階分布の計算!FV45 -> 0.2604690475 | AS83: =+直径階分布の計算!FW45 -> 0.3373023235 | AT83: =+直径階分布の計算!FX45 -> 0.4246310618 | AU83: =+直径階分布の計算!FY45 -> 0.5225004693 | AV83: =+直径階分布の計算!FZ45 -> 0.6309438687 | AW83: =+直径階分布の計算!GA45 -> 0.7499863497 | AX83: =+直径階分布の計算!GB45 -> 0.8796471573 | AY83: =+直径階分布の計算!GC45 -> 1.019941296 | AZ83: =+直径階分布の計算!GD45 -> 1.170880634 | BA83: =+直径階分布の計算!GE45 -> 1.332474681 | BB83: =+直径階分布の計算!GF45 -> 1.504731147 | BC83: =+直径階分布の計算!GG45 -> 1.687656343 | BD83: =+直径階分布の計算!GH45 -> 1.881255492 | BE83: =+直径階分布の計算!GI45 -> 2.085532947 | BF83: =+直径階分布の計算!GJ45 -> 2.300492366 | BG83: =+直径階分布の計算!GK45 -> 2.526136848 | BH83: =+直径階分布の計算!GL45 -> 2.762469034 | BI83: =+直径階分布の計算!GM45 -> 3.009491187 | BJ83: =+直径階分布の計算!GN45 -> 3.26720526 | BK83: =+直径階分布の計算!GO45 -> 3.535612946 | BM83: 0 | BN83: 0 | BO83: 0 | BP83: 0 | BQ83: 0 | BR83: 0 | BS83: 0 | BT83: 0 | BU83: 0 | BV83: 0 | BW83: 0 | BX83: 0 | BY83: 0 | BZ83: 0 | CA83: 0 | CB83: 0 | CC83: 0 | CD83: 0 | CE83: 0 | CF83: 0 | CG83: 0 | CH83: 0 | CI83: 0 | CJ83: 0 | CK83: 0 | CL83: 0 | CM83: 0 | CN83: 0 | CO83: 0 | CP83: 78 | CQ83: 0
B84: =+収穫予測!N46 -> 80 | C84: =+Sheet1!AE124 -> 0 | D84: =+Sheet1!AF124 -> 0 | E84: =+Sheet1!AG124 -> 0 | F84: =+Sheet1!AH124 -> 0 | G84: =+Sheet1!AI124 -> 0 | H84: =+Sheet1!AJ124 -> 0 | I84: =+Sheet1!AK124 -> 0 | J84: =+Sheet1!AL124 -> 0 | K84: =+Sheet1!AM124 -> 0 | L84: =+Sheet1!AN124 -> 0 | M84: =+Sheet1!AO124 -> 0 | N84: =+Sheet1!AP124 -> 0 | O84: =+Sheet1!AQ124 -> 0 | P84: =+Sheet1!AR124 -> 0 | Q84: =+Sheet1!AS124 -> 0 | R84: =+Sheet1!AT124 -> 0 | S84: =+Sheet1!AU124 -> 0 | T84: =+Sheet1!AV124 -> 0 | U84: =+Sheet1!AW124 -> 0 | V84: =+Sheet1!AX124 -> 0 | W84: =+Sheet1!AY124 -> 0 | X84: =+Sheet1!AZ124 -> 0 | Y84: =+Sheet1!BA124 -> 0 | Z84: =+Sheet1!BB124 -> 0 | AA84: =+Sheet1!BC124 -> 0 | AB84: =+Sheet1!BD124 -> 0 | AC84: =+Sheet1!BE124 -> 0 | AD84: =+Sheet1!BF124 -> 0 | AE84: =+Sheet1!BG124 -> 0 | AI84: =+直径階分布の計算!FM46 -> 0.0001 | AJ84: =+直径階分布の計算!FN46 -> 0.0020 | AK84: =+直径階分布の計算!FO46 -> 0.0042 | AL84: =+直径階分布の計算!FP46 -> 0.0130612431 | AM84: =+直径階分布の計算!FQ46 -> 0.0300923841 | AN84: =+直径階分布の計算!FR46 -> 0.0562391324 | AO84: =+直径階分布の計算!FS46 -> 0.09206503126 | AP84: =+直径階分布の計算!FT46 -> 0.1379023645 | AQ84: =+直径階分布の計算!FU46 -> 0.1939572763 | AR84: =+直径階分布の計算!FV46 -> 0.2603637054 | AS84: =+直径階分布の計算!FW46 -> 0.337212189 | AT84: =+直径階分布の計算!FX46 -> 0.4245660161 | AU84: =+直径階分布の計算!FY46 -> 0.5224707117 | AV84: =+直径階分布の計算!FZ46 -> 0.6309598362 | AW84: =+直径階分布の計算!GA46 -> 0.7500586612 | AX84: =+直径階分布の計算!GB46 -> 0.8797865724 | AY84: =+直径階分布の計算!GC46 -> 1.020158686 | AZ84: =+直径階分布の計算!GD46 -> 1.171186958 | BA84: =+直径階分布の計算!GE46 -> 1.33288097 | BB84: =+直径階分布の計算!GF46 -> 1.50524849 | BC84: =+直径階分布の計算!GG46 -> 1.688295879 | BD84: =+直径階分布の計算!GH46 -> 1.882028396 | BE84: =+直径階分布の計算!GI46 -> 2.086450431 | BF84: =+直径階分布の計算!GJ46 -> 2.301565669 | BG84: =+直径階分布の計算!GK46 -> 2.527377233 | BH84: =+直径階分布の計算!GL46 -> 2.763887785 | BI84: =+直径階分布の計算!GM46 -> 3.011099605 | BJ84: =+直径階分布の計算!GN46 -> 3.269014662 | BK84: =+直径階分布の計算!GO46 -> 3.537634661 | BM84: 0 | BN84: 0 | BO84: 0 | BP84: 0 | BQ84: 0 | BR84: 0 | BS84: 0 | BT84: 0 | BU84: 0 | BV84: 0 | BW84: 0 | BX84: 0 | BY84: 0 | BZ84: 0 | CA84: 0 | CB84: 0 | CC84: 0 | CD84: 0 | CE84: 0 | CF84: 0 | CG84: 0 | CH84: 0 | CI84: 0 | CJ84: 0 | CK84: 0 | CL84: 0 | CM84: 0 | CN84: 0 | CO84: 0 | CP84: 80 | CQ84: 0
B88: 間伐後胸高直径
B89: cm以上 | C89: =+C47 -> 0 | D89: 2 | E89: 4 | F89: 6 | G89: 8 | H89: 10 | I89: 12 | J89: 14 | K89: 16 | L89: 18 | M89: 20 | N89: 22 | O89: 24 | P89: 26 | Q89: 28 | R89: 30 | S89: 32 | T89: 34 | U89: 36 | V89: 38 | W89: 40 | X89: 42 | Y89: 44 | Z89: 46 | AA89: 48 | AB89: 50 | AC89: 52 | AD89: 54 | AE89: 56
B90: cm未満 | C90: =+C48 -> 2 | D90: 4 | E90: 6 | F90: 8 | G90: 10 | H90: 12 | I90: 14 | J90: 16 | K90: 18 | L90: 20 | M90: 22 | N90: 24 | O90: 26 | P90: 28 | Q90: 30 | R90: 32 | S90: 34 | T90: 36 | U90: 38 | V90: 40 | W90: 42 | X90: 44 | Y90: 46 | Z90: 48 | AA90: 50 | AB90: 52 | AC90: 54 | AD90: 56 | AE90: 以上
A91: 林 | B91: =+収穫予測!N11 -> 10 | C91: =+C7-C49 -> 0 | D91: =+D7-D49 -> 0 | E91: 140 | F91: 420 | G91: 460 | H91: 380 | I91: 200 | J91: 0 | K91: 0 | L91: 0 | M91: 0 | N91: 0 | O91: 0 | P91: 0 | Q91: 0 | R91: 0 | S91: 0 | T91: 0 | U91: 0 | V91: 0 | W91: 0 | X91: 0 | Y91: 0 | Z91: 0 | AA91: 0 | AB91: 0 | AC91: 0 | AD91: 0 | AE91: 0
B92: =+B50 -> 12 | C92: 0 | D92: =+D8-D50 -> 0 | E92: 0 | F92: 220 | G92: 390 | H92: 420 | I92: 370 | J92: 200 | K92: 0 | L92: 0 | M92: 0 | N92: 0 | O92: 0 | P92: 0 | Q92: 0 | R92: 0 | S92: 0 | T92: 0 | U92: 0 | V92: 0 | W92: 0 | X92: 0 | Y92: 0 | Z92: 0 | AA92: 0 | AB92: 0 | AC92: 0 | AD92: 0 | AE92: 0
A93: 齢 | B93: 14 | C93: 0 | D93: 0 | E93: 0 | F93: 90 | G93: 350 | H93: 390 | I93: 370 | J93: 290 | K93: 110 | L93: 0 | M93: 0 | N93: 0 | O93: 0 | P93: 0 | Q93: 0 | R93: 0 | S93: 0 | T93: 0 | U93: 0 | V93: 0 | W93: 0 | X93: 0 | Y93: 0 | Z93: 0 | AA93: 0 | AB93: 0 | AC93: 0 | AD93: 0 | AE93: 0
B94: 16 | C94: 0 | D94: 0 | E94: 0 | F94: 0 | G94: 320 | H94: 360 | I94: 360 | J94: 320 | K94: 210 | L94: 30 | M94: 0 | N94: 0 | O94: 0 | P94: 0 | Q94: 0 | R94: 0 | S94: 0 | T94: 0 | U94: 0 | V94: 0 | W94: 0 | X94: 0 | Y94: 0 | Z94: 0 | AA94: 0 | AB94: 0 | AC94: 0 | AD94: 0 | AE94: 0
A95: （年） | B95: 18 | C95: 0 | D95: 0 | E95: 0 | F95: 0 | G95: 220 | H95: 350 | I95: 350 | J95: 320 | K95: 250 | L95: 110 | M95: 0 | N95: 0 | O95: 0 | P95: 0 | Q95: 0 | R95: 0 | S95: 0 | T95: 0 | U95: 0 | V95: 0 | W95: 0 | X95: 0 | Y95: 0 | Z95: 0 | AA95: 0 | AB95: 0 | AC95: 0 | AD95: 0 | AE95: 0
B96: 20 | C96: 0 | D96: 0 | E96: 0 | F96: 0 | G96: 110 | H96: 230 | I96: 240 | J96: 220 | K96: 190 | L96: 120 | M96: 30 | N96: 0 | O96: 0 | P96: 0 | Q96: 0 | R96: 0 | S96: 0 | T96: 0 | U96: 0 | V96: 0 | W96: 0 | X96: 0 | Y96: 0 | Z96: 0 | AA96: 0 | AB96: 0 | AC96: 0 | AD96: 0 | AE96: 0
B97: 22 | C97: 0 | D97: 0 | E97: 0 | F97: 0 | G97: 0 | H97: 160 | I97: 230 | J97: 240 | K97: 220 | L97: 180 | M97: 110 | N97: 0 | O97: 0 | P97: 0 | Q97: 0 | R97: 0 | S97: 0 | T97: 0 | U97: 0 | V97: 0 | W97: 0 | X97: 0 | Y97: 0 | Z97: 0 | AA97: 0 | AB97: 0 | AC97: 0 | AD97: 0 | AE97: 0
B98: 24 | C98: 0 | D98: 0 | E98: 0 | F98: 0 | G98: 0 | H98: 110 | I98: 220 | J98: 230 | K98: 220 | L98: 190 | M98: 130 | N98: 40 | O98: 0 | P98: 0 | Q98: 0 | R98: 0 | S98: 0 | T98: 0 | U98: 0 | V98: 0 | W98: 0 | X98: 0 | Y98: 0 | Z98: 0 | AA98: 0 | AB98: 0 | AC98: 0 | AD98: 0 | AE98: 0
B99: 26 | C99: 0 | D99: 0 | E99: 0 | F99: 0 | G99: 0 | H99: 60 | I99: 210 | J99: 230 | K99: 220 | L99: 190 | M99: 150 | N99: 80 | O99: 0 | P99: 0 | Q99: 0 | R99: 0 | S99: 0 | T99: 0 | U99: 0 | V99: 0 | W99: 0 | X99: 0 | Y99: 0 | Z99: 0 | AA99: 0 | AB99: 0 | AC99: 0 | AD99: 0 | AE99: 0
B100: 28 | C100: 0 | D100: 0 | E100: 0 | F100: 0 | G100: 0 | H100: 20 | I100: 200 | J100: 220 | K100: 220 | L100: 200 | M100: 160 | N100: 100 | O100: 20 | P100: 0 | Q100: 0 | R100: 0 | S100: 0 | T100: 0 | U100: 0 | V100: =+V16-V58 -> 0 | W100: 0 | X100: 0 | Y100: 0 | Z100: 0 | AA100: 0 | AB100: 0 | AC100: 0 | AD100: 0 | AE100: 0
B101: 30 | C101: 0 | D101: 0 | E101: 0 | F101: 0 | G101: 0 | H101: 0 | I101: 120 | J101: 160 | K101: 150 | L101: 130 | M101: 120 | N101: 90 | O101: 40 | P101: 0 | Q101: 0 | R101: 0 | S101: 0 | T101: 0 | U101: 0 | V101: 0 | W101: 0 | X101: 0 | Y101: 0 | Z101: 0 | AA101: 0 | AB101: 0 | AC101: 0 | AD101: 0 | AE101: 0
B102: 32 | C102: 0 | D102: 0 | E102: 0 | F102: 0 | G102: 0 | H102: 0 | I102: 20 | J102: 150 | K102: 150 | L102: 150 | M102: 140 | N102: 120 | O102: 70 | P102: 10 | Q102: 0 | R102: 0 | S102: 0 | T102: 0 | U102: 0 | V102: 0 | W102: 0 | X102: 0 | Y102: 0 | Z102: 0 | AA102: 0 | AB102: 0 | AC102: 0 | AD102: 0 | AE102: 0
B103: 34 | C103: 0 | D103: 0 | E103: 0 | F103: 0 | G103: 0 | H103: 0 | I103: 0 | J103: 130 | K103: 150 | L103: 150 | M103: 140 | N103: 120 | O103: 90 | P103: 30 | Q103: 0 | R103: 0 | S103: 0 | T103: 0 | U103: 0 | V103: 0 | W103: 0 | X103: 0 | Y103: 0 | Z103: 0 | AA103: 0 | AB103: 0 | AC103: 0 | AD103: 0 | AE103: 0
B104: 36 | C104: 0 | D104: 0 | E104: 0 | F104: 0 | G104: 0 | H104: 0 | I104: 0 | J104: 100 | K104: 150 | L104: 150 | M104: 140 | N104: 120 | O104: 100 | P104: 50 | Q104: 0 | R104: 0 | S104: 0 | T104: 0 | U104: 0 | V104: 0 | W104: 0 | X104: 0 | Y104: 0 | Z104: 0 | AA104: 0 | AB104: 0 | AC104: 0 | AD104: 0 | AE104: 0
B105: 38 | C105: 0 | D105: 0 | E105: 0 | F105: 0 | G105: 0 | H105: 0 | I105: 0 | J105: 70 | K105: 150 | L105: 140 | M105: 150 | N105: 120 | O105: 100 | P105: 60 | Q105: 20 | R105: 0 | S105: 0 | T105: 0 | U105: 0 | V105: 0 | W105: 0 | X105: 0 | Y105: 0 | Z105: 0 | AA105: 0 | AB105: 0 | AC105: 0 | AD105: 0 | AE105: 0
B106: 40 | C106: 0 | D106: 0 | E106: 0 | F106: 0 | G106: 0 | H106: 0 | I106: 0 | J106: 30 | K106: 100 | L106: 110 | M106: 90 | N106: 90 | O106: 80 | P106: 50 | Q106: 30 | R106: 0 | S106: 0 | T106: 0 | U106: 0 | V106: 0 | W106: 0 | X106: 0 | Y106: 0 | Z106: 0 | AA106: 0 | AB106: 0 | AC106: 0 | AD106: 0 | AE106: 0
B107: 42 | C107: 0 | D107: 0 | E107: 0 | F107: 0 | G107: 0 | H107: 0 | I107: 0 | J107: 0 | K107: 60 | L107: 100 | M107: 110 | N107: 100 | O107: 90 | P107: 70 | Q107: 50 | R107: 0 | S107: 0 | T107: 0 | U107: 0 | V107: 0 | W107: 0 | X107: 0 | Y107: 0 | Z107: 0 | AA107: 0 | AB107: 0 | AC107: 0 | AD107: 0 | AE107: 0
B108: 44 | C108: 0 | D108: 0 | E108: 0 | F108: 0 | G108: 0 | H108: 0 | I108: 0 | J108: 0 | K108: 30 | L108: 110 | M108: 100 | N108: 100 | O108: 90 | P108: 80 | Q108: 60 | R108: 10 | S108: 0 | T108: 0 | U108: 0 | V108: 0 | W108: 0 | X108: 0 | Y108: 0 | Z108: 0 | AA108: 0 | AB108: 0 | AC108: 0 | AD108: 0 | AE108: 0
B109: 46 | C109: 0 | D109: 0 | E109: 0 | F109: 0 | G109: 0 | H109: 0 | I109: 0 | J109: 0 | K109: 10 | L109: 100 | M109: 110 | N109: 100 | O109: 90 | P109: 80 | Q109: 60 | R109: 30 | S109: 0 | T109: 0 | U109: 0 | V109: 0 | W109: 0 | X109: 0 | Y109: =+Y25-Y67 -> 0 | Z109: 0 | AA109: 0 | AB109: 0 | AC109: 0 | AD109: 0 | AE109: 0
B110: 48 | C110: 0 | D110: 0 | E110: 0 | F110: 0 | G110: 0 | H110: 0 | I110: 0 | J110: 0 | K110: 0 | L110: 90 | M110: 100 | N110: 100 | O110: 100 | P110: 80 | Q110: 60 | R110: 40 | S110: 10 | T110: 0 | U110: 0 | V110: 0 | W110: 0 | X110: 0 | Y110: 0 | Z110: 0 | AA110: 0 | AB110: 0 | AC110: 0 | AD110: 0 | AE110: 0
B111: 50 | C111: 0 | D111: 0 | E111: 0 | F111: 0 | G111: 0 | H111: 0 | I111: 0 | J111: 0 | K111: 0 | L111: 50 | M111: 70 | N111: 70 | O111: 70 | P111: 50 | Q111: 60 | R111: 30 | S111: 20 | T111: 0 | U111: 0 | V111: 0 | W111: 0 | X111: 0 | Y111: 0 | Z111: 0 | AA111: 0 | AB111: 0 | AC111: 0 | AD111: 0 | AE111: 0
B112: 52 | C112: 0 | D112: 0 | E112: 0 | F112: 0 | G112: 0 | H112: 0 | I112: 0 | J112: 0 | K112: 0 | L112: 0 | M112: 70 | N112: 70 | O112: 80 | P112: 70 | Q112: 60 | R112: 50 | S112: 20 | T112: 0 | U112: 0 | V112: 0 | W112: 0 | X112: 0 | Y112: 0 | Z112: 0 | AA112: 0 | AB112: 0 | AC112: 0 | AD112: 0 | AE112: 0
B113: 54 | C113: 0 | D113: 0 | E113: 0 | F113: 0 | G113: 0 | H113: 0 | I113: 0 | J113: 0 | K113: 0 | L113: 0 | M113: 50 | N113: 70 | O113: 80 | P113: 70 | Q113: 60 | R113: 50 | S113: 40 | T113: 0 | U113: 0 | V113: 0 | W113: 0 | X113: 0 | Y113: 0 | Z113: 0 | AA113: 0 | AB113: 0 | AC113: 0 | AD113: 0 | AE113: 0
B114: 56 | C114: 0 | D114: 0 | E114: 0 | F114: 0 | G114: 0 | H114: 0 | I114: 0 | J114: 0 | K114: 0 | L114: 0 | M114: 30 | N114: 70 | O114: 80 | P114: 70 | Q114: 60 | R114: 60 | S114: 40 | T114: 10 | U114: 0 | V114: 0 | W114: 0 | X114: 0 | Y114: 0 | Z114: 0 | AA114: 0 | AB114: 0 | AC114: 0 | AD114: 0 | AE114: 0
B115: 58 | C115: 0 | D115: 0 | E115: 0 | F115: 0 | G115: 0 | H115: 0 | I115: 0 | J115: 0 | K115: 0 | L115: 0 | M115: 10 | N115: 80 | O115: 70 | P115: 70 | Q115: 70 | R115: 50 | S115: 40 | T115: 30 | U115: 0 | V115: 0 | W115: 0 | X115: 0 | Y115: 0 | Z115: 0 | AA115: 0 | AB115: 0 | AC115: 0 | AD115: 0 | AE115: 0
B116: 60 | C116: 0 | D116: 0 | E116: 0 | F116: 0 | G116: 0 | H116: 0 | I116: 0 | J116: 0 | K116: 0 | L116: 0 | M116: 0 | N116: 70 | O116: 70 | P116: 70 | Q116: 70 | R116: 60 | S116: 40 | T116: 30 | U116: 10 | V116: 0 | W116: 0 | X116: 0 | Y116: 0 | Z116: 0 | AA116: 0 | AB116: 0 | AC116: 0 | AD116: 0 | AE116: 0
B117: 62 | C117: 0 | D117: =+D33-D75 -> 0 | E117: 0 | F117: 0 | G117: 0 | H117: 0 | I117: 0 | J117: 0 | K117: 0 | L117: 0 | M117: 0 | N117: 50 | O117: 70 | P117: 80 | Q117: 60 | R117: 60 | S117: =+S33-S75 -> 50 | T117: 30 | U117: 20 | V117: 0 | W117: 0 | X117: 0 | Y117: 0 | Z117: 0 | AA117: 0 | AB117: 0 | AC117: 0 | AD117: 0 | AE117: 0
B118: 64 | C118: =+C34-C76 -> 0 | D118: 0 | E118: 0 | F118: 0 | G118: 0 | H118: 0 | I118: 0 | J118: 0 | K118: 0 | L118: 0 | M118: 0 | N118: 40 | O118: 70 | P118: 70 | Q118: 70 | R118: 60 | S118: 50 | T118: 30 | U118: 30 | V118: 0 | W118: 0 | X118: 0 | Y118: 0 | Z118: 0 | AA118: 0 | AB118: 0 | AC118: 0 | AD118: 0 | AE118: 0
B119: 66 | C119: 0 | D119: 0 | E119: 0 | F119: 0 | G119: 0 | H119: 0 | I119: 0 | J119: 0 | K119: 0 | L119: 0 | M119: 0 | N119: 20 | O119: 70 | P119: 70 | Q119: 70 | R119: 60 | S119: 50 | T119: 50 | U119: 20 | V119: 10 | W119: 0 | X119: 0 | Y119: 0 | Z119: 0 | AA119: 0 | AB119: 0 | AC119: 0 | AD119: 0 | AE119: 0
B120: 68 | C120: 0 | D120: 0 | E120: 0 | F120: 0 | G120: 0 | H120: 0 | I120: 0 | J120: 0 | K120: 0 | L120: 0 | M120: 0 | N120: 10 | O120: 70 | P120: 70 | Q120: 70 | R120: 60 | S120: 50 | T120: 40 | U120: 30 | V120: 20 | W120: 0 | X120: 0 | Y120: 0 | Z120: 0 | AA120: 0 | AB120: 0 | AC120: 0 | AD120: 0 | AE120: 0
B121: 70 | C121: 0 | D121: 0 | E121: 0 | F121: 0 | G121: 0 | H121: 0 | I121: 0 | J121: 0 | K121: 0 | L121: 0 | M121: 0 | N121: 0 | O121: 60 | P121: 70 | Q121: 70 | R121: 70 | S121: 50 | T121: 40 | U121: 40 | V121: 20 | W121: 0 | X121: 0 | Y121: 0 | Z121: 0 | AA121: 0 | AB121: 0 | AC121: 0 | AD121: 0 | AE121: 0
B122: 72 | C122: 0 | D122: 0 | E122: 0 | F122: 0 | G122: 0 | H122: 0 | I122: 0 | J122: 0 | K122: 0 | L122: 0 | M122: 0 | N122: 0 | O122: 50 | P122: 70 | Q122: 70 | R122: 60 | S122: 60 | T122: 40 | U122: 40 | V122: 20 | W122: 10 | X122: 0 | Y122: 0 | Z122: 0 | AA122: 0 | AB122: 0 | AC122: 0 | AD122: 0 | AE122: 0
B123: 74 | C123: 0 | D123: 0 | E123: 0 | F123: 0 | G123: 0 | H123: 0 | I123: 0 | J123: 0 | K123: 0 | L123: 0 | M123: 0 | N123: 0 | O123: 40 | P123: 70 | Q123: 70 | R123: 60 | S123: 60 | T123: 40 | U123: 40 | V123: 30 | W123: 10 | X123: 0 | Y123: 0 | Z123: 0 | AA123: 0 | AB123: 0 | AC123: 0 | AD123: 0 | AE123: 0
B124: 76 | C124: 0 | D124: 0 | E124: 0 | F124: 0 | G124: 0 | H124: 0 | I124: 0 | J124: 0 | K124: 0 | L124: 0 | M124: 0 | N124: 0 | O124: 20 | P124: 70 | Q124: 70 | R124: 70 | S124: 50 | T124: 50 | U124: 40 | V124: 30 | W124: 20 | X124: 0 | Y124: 0 | Z124: 0 | AA124: 0 | AB124: 0 | AC124: 0 | AD124: 0 | AE124: 0
B125: 78 | C125: 0 | D125: 0 | E125: 0 | F125: 0 | G125: 0 | H125: 0 | I125: 0 | J125: 0 | K125: 0 | L125: 0 | M125: 0 | N125: 0 | O125: 10 | P125: 70 | Q125: 70 | R125: 60 | S125: 60 | T125: 50 | U125: 40 | V125: 30 | W125: 30 | X125: 0 | Y125: 0 | Z125: 0 | AA125: 0 | AB125: 0 | AC125: 0 | AD125: 0 | AE125: 0
B126: 80 | C126: 0 | D126: 0 | E126: 0 | F126: 0 | G126: 0 | H126: 0 | I126: 0 | J126: 0 | K126: 0 | L126: 0 | M126: 0 | N126: 0 | O126: 0 | P126: 70 | Q126: 70 | R126: 60 | S126: 60 | T126: 50 | U126: 40 | V126: 40 | W126: 30 | X126: 0 | Y126: 0 | Z126: =+Z42-Z84 -> 0 | AA126: 0 | AB126: 0 | AC126: 0 | AD126: 0 | AE126: 0

Sheet 間伐木末口径別丸太
P6: 末口径 | R6: 5 | S6: cm未満は黒
B7: 道立総合研究機構 森林研究本部 林業試験場 | M7: ユーザー入力 | P7: =+R6 -> 5 | Q7: 以上 | R7: 10 | S7: cm未満は青 | X7: ※デフォルトでは追い上げ0.3m、材長4mで入力
B8: 間伐木の末口径別丸太 | P8: =+R7 -> 10 | Q8: 以上 | R8: 15 | S8: cm未満は赤 | X8: ※採材長が肌色表示のセルは対象丸太がないとき
B9: 表－１ 採材パターン | P9: =+R8 -> 15 | Q9: 以上 | R9: 20 | S9: cm未満は黄 | X9: ※伐採高は0.3m
B10: 40 | C10: 年生 | D10: ← | E10: 間伐実施年をリストから入力 | K10: のび | L10: 0 | M10: cm | P10: =+R9 -> 20 | S10: cm以上は緑 | X10: ※のびを入力するとすべての丸太に適用
B11: 胸高直径 | C11: =+胸高直径別立木本数!B5 -> cm以上 | D11: 0 | E11: 2 | F11: 4 | G11: 6 | H11: 8 | I11: 10 | J11: 12 | K11: 14 | L11: 16 | M11: 18 | N11: 20 | O11: 22 | P11: 24 | Q11: 26 | R11: 28 | S11: 30 | T11: 32 | U11: 34 | V11: 36 | W11: 38 | X11: 40 | Y11: 42 | Z11: 44 | AA11: 46 | AB11: 48 | AC11: 50 | AD11: 52 | AE11: 54 | AF11: 56
C12: =+胸高直径別立木本数!B6 -> cm未満 | D12: 2 | E12: 4 | F12: 6 | G12: 8 | H12: 10 | I12: 12 | J12: 14 | K12: 16 | L12: 18 | M12: 20 | N12: 22 | O12: 24 | P12: 26 | Q12: 28 | R12: 30 | S12: 32 | T12: 34 | U12: 36 | V12: 38 | W12: 40 | X12: 42 | Y12: 44 | Z12: 46 | AA12: 48 | AB12: 50 | AC12: 52 | AD12: 54 | AE12: 56 | AF12: 58
B13: 立木本数 | C13: 本/ha | D13: =+IF(D62=0,"",D62) ->  | E13: =+IF(E62=0,"",E62) ->  | K13: 20 | L13: 40 | M13: 40 | N13: 50 | O13: 30 | P13: 30 | Q13: 20
B14: =+B63 -> 樹高 | C14: =+C63 -> m | D14: =IF(D13="","",IF(AND(収穫予測!$C3="データあり",収穫予測!$C4="データあり",$B10=収穫予測!$G5),LN(AVERAGE(D11:D12))*Sheet1!$B$310+Sheet1!$C$310,VLOOKUP($B$87,Sheet1!$AD$209:$BG$244,D$87))) ->  | E14: =IF(E13="","",IF(AND(収穫予測!$C3="データあり",収穫予測!$C4="データあり",$B10=収穫予測!$G5),LN(AVERAGE(E11:E12))*Sheet1!$B$310+Sheet1!$C$310,VLOOKUP($B$87,Sheet1!$AD$209:$BG$244,E$87))) ->  | F14: =IF(F13="","",IF(AND(収穫予測!$C3="データあり",収穫予測!$C4="データあり",$B10=収穫予測!$G5),LN(AVERAGE(F11:F12))*Sheet1!$B$310+Sheet1!$C$310,VLOOKUP($B$87,Sheet1!$AD$209:$BG$244,F$87))) ->  | G14: =IF(G13="","",IF(AND(収穫予測!$C3="データあり",収穫予測!$C4="データあり",$B10=収穫予測!$G5),LN(AVERAGE(G11:G12))*Sheet1!$B$310+Sheet1!$C$310,VLOOKUP($B$87,Sheet1!$AD$209:$BG$244,G$87))) ->  | H14: =IF(H13="","",IF(AND(収穫予測!$C3="データあり",収穫予測!$C4="データあり",$B10=収穫予測!$G5),LN(AVERAGE(H11:H12))*Sheet1!$B$310+Sheet1!$C$310,VLOOKUP($B$87,Sheet1!$AD$209:$BG$244,H$87))) ->  | I14: =IF(I13="","",IF(AND(収穫予測!$C3="データあり",収穫予測!$C4="データあり",$B10=収穫予測!$G5),LN(AVERAGE(I11:I12))*Sheet1!$B$310+Sheet1!$C$310,VLOOKUP($B$87,Sheet1!$AD$209:$BG$244,I$87))) ->  | J14: =IF(J13="","",IF(AND(収穫予測!$C3="データあり",収穫予測!$C4="データあり",$B10=収穫予測!$G5),LN(AVERAGE(J11:J12))*Sheet1!$B$310+Sheet1!$C$310,VLOOKUP($B$87,Sheet1!$AD$209:$BG$244,J$87))) ->  | K14: =IF(K13="","",IF(AND(収穫予測!$C3="データあり",収穫予測!$C4="データあり",$B10=収穫予測!$G5),LN(AVERAGE(K11:K12))*Sheet1!$B$310+Sheet1!$C$310,VLOOKUP($B$87,Sheet1!$AD$209:$BG$244,K$87))) -> 17 | L14: =IF(L13="","",IF(AND(収穫予測!$C3="データあり",収穫予測!$C4="データあり",$B10=収穫予測!$G5),LN(AVERAGE(L11:L12))*Sheet1!$B$310+Sheet1!$C$310,VLOOKUP($B$87,Sheet1!$AD$209:$BG$244,L$87))) -> 19 | M14: =IF(M13="","",IF(AND(収穫予測!$C3="データあり",収穫予測!$C4="データあり",$B10=収穫予測!$G5),LN(AVERAGE(M11:M12))*Sheet1!$B$310+Sheet1!$C$310,VLOOKUP($B$87,Sheet1!$AD$209:$BG$244,M$87))) -> 20 | N14: =IF(N13="","",IF(AND(収穫予測!$C3="データあり",収穫予測!$C4="データあり",$B10=収穫予測!$G5),LN(AVERAGE(N11:N12))*Sheet1!$B$310+Sheet1!$C$310,VLOOKUP($B$87,Sheet1!$AD$209:$BG$244,N$87))) -> 21 | O14: =IF(O13="","",IF(AND(収穫予測!$C3="データあり",収穫予測!$C4="データあり",$B10=収穫予測!$G5),LN(AVERAGE(O11:O12))*Sheet1!$B$310+Sheet1!$C$310,VLOOKUP($B$87,Sheet1!$AD$209:$BG$244,O$87))) -> 22 | P14: =IF(P13="","",IF(AND(収穫予測!$C3="データあり",収穫予測!$C4="データあり",$B10=収穫予測!$G5),LN(AVERAGE(P11:P12))*Sheet1!$B$310+Sheet1!$C$310,VLOOKUP($B$87,Sheet1!$AD$209:$BG$244,P$87))) -> 23 | Q14: =IF(Q13="","",IF(AND(収穫予測!$C3="データあり",収穫予測!$C4="データあり",$B10=収穫予測!$G5),LN(AVERAGE(Q11:Q12))*Sheet1!$B$310+Sheet1!$C$310,VLOOKUP($B$87,Sheet1!$AD$209:$BG$244,Q$87))) -> 24 | R14: =IF(R13="","",IF(AND(収穫予測!$C3="データあり",収穫予測!$C4="データあり",$B10=収穫予測!$G5),LN(AVERAGE(R11:R12))*Sheet1!$B$310+Sheet1!$C$310,VLOOKUP($B$87,Sheet1!$AD$209:$BG$244,R$87))) ->  | S14: =IF(S13="","",IF(AND(収穫予測!$C3="データあり",収穫予測!$C4="データあり",$B10=収穫予測!$G5),LN(AVERAGE(S11:S12))*Sheet1!$B$310+Sheet1!$C$310,VLOOKUP($B$87,Sheet1!$AD$209:$BG$244,S$87))) ->  | T14: =IF(T13="","",IF(AND(収穫予測!$C3="データあり",収穫予測!$C4="データあり",$B10=収穫予測!$G5),LN(AVERAGE(T11:T12))*Sheet1!$B$310+Sheet1!$C$310,VLOOKUP($B$87,Sheet1!$AD$209:$BG$244,T$87))) ->  | U14: =IF(U13="","",IF(AND(収穫予測!$C3="データあり",収穫予測!$C4="データあり",$B10=収穫予測!$G5),LN(AVERAGE(U11:U12))*Sheet1!$B$310+Sheet1!$C$310,VLOOKUP($B$87,Sheet1!$AD$209:$BG$244,U$87))) ->  | V14: =IF(V13="","",IF(AND(収穫予測!$C3="データあり",収穫予測!$C4="データあり",$B10=収穫予測!$G5),LN(AVERAGE(V11:V12))*Sheet1!$B$310+Sheet1!$C$310,VLOOKUP($B$87,Sheet1!$AD$209:$BG$244,V$87))) ->  | W14: =IF(W13="","",IF(AND(収穫予測!$C3="データあり",収穫予測!$C4="データあり",$B10=収穫予測!$G5),LN(AVERAGE(W11:W12))*Sheet1!$B$310+Sheet1!$C$310,VLOOKUP($B$87,Sheet1!$AD$209:$BG$244,W$87))) ->  | X14: =IF(X13="","",IF(AND(収穫予測!$C3="データあり",収穫予測!$C4="データあり",$B10=収穫予測!$G5),LN(AVERAGE(X11:X12))*Sheet1!$B$310+Sheet1!$C$310,VLOOKUP($B$87,Sheet1!$AD$209:$BG$244,X$87))) ->  | Y14: =IF(Y13="","",IF(AND(収穫予測!$C3="データあり",収穫予測!$C4="データあり",$B10=収穫予測!$G5),LN(AVERAGE(Y11:Y12))*Sheet1!$B$310+Sheet1!$C$310,VLOOKUP($B$87,Sheet1!$AD$209:$BG$244,Y$87))) ->  | Z14: =IF(Z13="","",IF(AND(収穫予測!$C3="データあり",収穫予測!$C4="データあり",$B10=収穫予測!$G5),LN(AVERAGE(Z11:Z12))*Sheet1!$B$310+Sheet1!$C$310,VLOOKUP($B$87,Sheet1!$AD$209:$BG$244,Z$87))) ->  | AA14: =IF(AA13="","",IF(AND(収穫予測!$C3="データあり",収穫予測!$C4="データあり",$B10=収穫予測!$G5),LN(AVERAGE(AA11:AA12))*Sheet1!$B$310+Sheet1!$C$310,VLOOKUP($B$87,Sheet1!$AD$209:$BG$244,AA$87))) ->  | AB14: =IF(AB13="","",IF(AND(収穫予測!$C3="データあり",収穫予測!$C4="データあり",$B10=収穫予測!$G5),LN(AVERAGE(AB11:AB12))*Sheet1!$B$310+Sheet1!$C$310,VLOOKUP($B$87,Sheet1!$AD$209:$BG$244,AB$87))) ->  | AC14: =IF(AC13="","",IF(AND(収穫予測!$C3="データあり",収穫予測!$C4="データあり",$B10=収穫予測!$G5),LN(AVERAGE(AC11:AC12))*Sheet1!$B$310+Sheet1!$C$310,VLOOKUP($B$87,Sheet1!$AD$209:$BG$244,AC$87))) ->  | AD14: =IF(AD13="","",IF(AND(収穫予測!$C3="データあり",収穫予測!$C4="データあり",$B10=収穫予測!$G5),LN(AVERAGE(AD11:AD12))*Sheet1!$B$310+Sheet1!$C$310,VLOOKUP($B$87,Sheet1!$AD$209:$BG$244,AD$87))) ->  | AE14: =IF(AE13="","",IF(AND(収穫予測!$C3="データあり",収穫予測!$C4="データあり",$B10=収穫予測!$G5),LN(AVERAGE(AE11:AE12))*Sheet1!$B$310+Sheet1!$C$310,VLOOKUP($B$87,Sheet1!$AD$209:$BG$244,AE$87))) ->  | AF14: =IF(AF13="","",IF(AND(収穫予測!$C3="データあり",収穫予測!$C4="データあり",$B10=収穫予測!$G5),LN(AVERAGE(AF11:AF12))*Sheet1!$B$310+Sheet1!$C$310,VLOOKUP($B$87,Sheet1!$AD$209:$BG$244,AF$87))) -> 
B15: 追上ｍ | C15: 0.3 | D15: =+$C15 -> 0.3 | E15: =+$C15 -> 0.3 | F15: 0.3 | G15: 0.3 | H15: 0.3 | I15: 0.3 | J15: 0.3 | K15: 0.3 | L15: 0.3 | M15: 0.3 | N15: 0.3 | O15: 0.3 | P15: 0.3 | Q15: 0.3 | R15: 0.3 | S15: 0.3 | T15: 0.3 | U15: 0.3 | V15: 0.3 | W15: 0.3 | X15: 0.3 | Y15: 0.3 | Z15: 0.3 | AA15: 0.3 | AB15: 0.3 | AC15: 0.3 | AD15: 0.3 | AE15: 0.3 | AF15: 0.3
B16: 材長ｍ | C16: 1番玉 | D16: 4 | E16: 4 | F16: 4 | G16: 4 | H16: 4 | I16: 4 | J16: 4 | K16: 4 | L16: 4 | M16: 4 | N16: 4 | O16: 4 | P16: 4 | Q16: 4 | R16: 4 | S16: 4 | T16: 4 | U16: 4 | V16: 4 | W16: 4 | X16: 4 | Y16: 4 | Z16: 4 | AA16: 4 | AB16: 4 | AC16: 4 | AD16: 4 | AE16: 4 | AF16: 4
C17: 2番玉 | D17: 4 | E17: 4 | F17: 4 | G17: 4 | H17: 4 | I17: 4 | J17: 4 | K17: 4 | L17: 4 | M17: 4 | N17: 4 | O17: 4 | P17: 4 | Q17: 4 | R17: 4 | S17: 4 | T17: 4 | U17: 4 | V17: 4 | W17: 4 | X17: 4 | Y17: 4 | Z17: 4 | AA17: 4 | AB17: 4 | AC17: 4 | AD17: 4 | AE17: 4 | AF17: 4
C18: 3番玉 | D18: 4 | E18: 4 | F18: 4 | G18: 4 | H18: 4 | I18: 4 | J18: 4 | K18: 4 | L18: 4 | M18: 4 | N18: 4 | O18: 4 | P18: 4 | Q18: 4 | R18: 4 | S18: 4 | T18: 4 | U18: 4 | V18: 4 | W18: 4 | X18: 4 | Y18: 4 | Z18: 4 | AA18: 4 | AB18: 4 | AC18: 4 | AD18: 4 | AE18: 4 | AF18: 4
C19: 4番玉 | D19: 4 | E19: 4 | F19: 4 | G19: 4 | H19: 4 | I19: 4 | J19: 4 | K19: 4 | L19: 4 | M19: 4 | N19: 4 | O19: 4 | P19: 4 | Q19: 4 | R19: 4 | S19: 4 | T19: 4 | U19: 4 | V19: 4 | W19: 4 | X19: 4 | Y19: 4 | Z19: 4 | AA19: 4 | AB19: 4 | AC19: 4 | AD19: 4 | AE19: 4 | AF19: 4
C20: 5番玉 | D20: 4 | E20: 4 | F20: 4 | G20: 4 | H20: 4 | I20: 4 | J20: 4 | K20: 4 | L20: 4 | M20: 4 | N20: 4 | O20: 4 | P20: 4 | Q20: 4 | R20: 4 | S20: 4 | T20: 4 | U20: 4 | V20: 4 | W20: 4 | X20: 4 | Y20: 4 | Z20: 4 | AA20: 4 | AB20: 4 | AC20: 4 | AD20: 4 | AE20: 4 | AF20: 4
C21: 6番玉 | D21: 4 | E21: 4 | F21: 4 | G21: 4 | H21: 4 | I21: 4 | J21: 4 | K21: 4 | L21: 4 | M21: 4 | N21: 4 | O21: 4 | P21: 4 | Q21: 4 | R21: 4 | S21: 4 | T21: 4 | U21: 4 | V21: 4 | W21: 4 | X21: 4 | Y21: 4 | Z21: 4 | AA21: 4 | AB21: 4 | AC21: 4 | AD21: 4 | AE21: 4 | AF21: 4
C22: 7番玉 | D22: 4 | E22: 4 | F22: 4 | G22: 4 | H22: 4 | I22: 4 | J22: 4 | K22: 4 | L22: 4 | M22: 4 | N22: 4 | O22: 4 | P22: 4 | Q22: 4 | R22: 4 | S22: 4 | T22: 4 | U22: 4 | V22: 4 | W22: 4 | X22: 4 | Y22: 4 | Z22: 4 | AA22: 4 | AB22: 4 | AC22: 4 | AD22: 4 | AE22: 4 | AF22: 4
C23: 8番玉 | D23: 4 | E23: 4 | F23: 4 | G23: 4 | H23: 4 | I23: 4 | J23: 4 | K23: 4 | L23: 4 | M23: 4 | N23: 4 | O23: 4 | P23: 4 | Q23: 4 | R23: 4 | S23: 4 | T23: 4 | U23: 4 | V23: 4 | W23: 4 | X23: 4 | Y23: 4 | Z23: 4 | AA23: 4 | AB23: 4 | AC23: 4 | AD23: 4 | AE23: 4 | AF23: 4
C24: 9番玉 | D24: 4 | E24: 4 | F24: 4 | G24: 4 | H24: 4 | I24: 4 | J24: 4 | K24: 4 | L24: 4 | M24: 4 | N24: 4 | O24: 4 | P24: 4 | Q24: 4 | R24: 4 | S24: 4 | T24: 4 | U24: 4 | V24: 4 | W24: 4 | X24: 4 | Y24: 4 | Z24: 4 | AA24: 4 | AB24: 4 | AC24: 4 | AD24: 4 | AE24: 4 | AF24: 4
C25: 10番玉 | D25: 4 | E25: 4 | F25: 4 | G25: 4 | H25: 4 | I25: 4 | J25: 4 | K25: 4 | L25: 4 | M25: 4 | N25: 4 | O25: 4 | P25: 4 | Q25: 4 | R25: 4 | S25: 4 | T25: 4 | U25: 4 | V25: 4 | W25: 4 | X25: 4 | Y25: 4 | Z25: 4 | AA25: 4 | AB25: 4 | AC25: 4 | AD25: 4 | AE25: 4 | AF25: 4
C26: 11番玉 | D26: 4 | E26: 4 | F26: 4 | G26: 4 | H26: 4 | I26: 4 | J26: 4 | K26: 4 | L26: 4 | M26: 4 | N26: 4 | O26: 4 | P26: 4 | Q26: 4 | R26: 4 | S26: 4 | T26: 4 | U26: 4 | V26: 4 | W26: 4 | X26: 4 | Y26: 4 | Z26: 4 | AA26: 4 | AB26: 4 | AC26: 4 | AD26: 4 | AE26: 4 | AF26: 4
C27: 12番玉 | D27: 4 | E27: 4 | F27: 4 | G27: 4 | H27: 4 | I27: 4 | J27: 4 | K27: 4 | L27: 4 | M27: 4 | N27: 4 | O27: 4 | P27: 4 | Q27: 4 | R27: 4 | S27: 4 | T27: 4 | U27: 4 | V27: 4 | W27: 4 | X27: 4 | Y27: 4 | Z27: 4 | AA27: 4 | AB27: 4 | AC27: 4 | AD27: 4 | AE27: 4 | AF27: 4
C28: 13番玉 | D28: 4 | E28: 4 | F28: 4 | G28: 4 | H28: 4 | I28: 4 | J28: 4 | K28: 4 | L28: 4 | M28: 4 | N28: 4 | O28: 4 | P28: 4 | Q28: 4 | R28: 4 | S28: 4 | T28: 4 | U28: 4 | V28: 4 | W28: 4 | X28: 4 | Y28: 4 | Z28: 4 | AA28: 4 | AB28: 4 | AC28: 4 | AD28: 4 | AE28: 4 | AF28: 4
C29: 14番玉 | D29: 4 | E29: 4 | F29: 4 | G29: 4 | H29: 4 | I29: 4 | J29: 4 | K29: 4 | L29: 4 | M29: 4 | N29: 4 | O29: 4 | P29: 4 | Q29: 4 | R29: 4 | S29: 4 | T29: 4 | U29: 4 | V29: 4 | W29: 4 | X29: 4 | Y29: 4 | Z29: 4 | AA29: 4 | AB29: 4 | AC29: 4 | AD29: 4 | AE29: 4 | AF29: 4
C30: 15番玉 | D30: 4 | E30: 4 | F30: 4 | G30: 4 | H30: 4 | I30: 4 | J30: 4 | K30: 4 | L30: 4 | M30: 4 | N30: 4 | O30: 4 | P30: 4 | Q30: 4 | R30: 4 | S30: 4 | T30: 4 | U30: 4 | V30: 4 | W30: 4 | X30: 4 | Y30: 4 | Z30: 4 | AA30: 4 | AB30: 4 | AC30: 4 | AD30: 4 | AE30: 4 | AF30: 4
C31: 16番玉 | D31: 4 | E31: 4 | F31: 4 | G31: 4 | H31: 4 | I31: 4 | J31: 4 | K31: 4 | L31: 4 | M31: 4 | N31: 4 | O31: 4 | P31: 4 | Q31: 4 | R31: 4 | S31: 4 | T31: 4 | U31: 4 | V31: 4 | W31: 4 | X31: 4 | Y31: 4 | Z31: 4 | AA31: 4 | AB31: 4 | AC31: 4 | AD31: 4 | AE31: 4 | AF31: 4
C32: 17番玉 | D32: 4 | E32: 4 | F32: 4 | G32: 4 | H32: 4 | I32: 4 | J32: 4 | K32: 4 | L32: 4 | M32: 4 | N32: 4 | O32: 4 | P32: 4 | Q32: 4 | R32: 4 | S32: 4 | T32: 4 | U32: 4 | V32: 4 | W32: 4 | X32: 4 | Y32: 4 | Z32: 4 | AA32: 4 | AB32: 4 | AC32: 4 | AD32: 4 | AE32: 4 | AF32: 4
C33: 18番玉 | D33: 4 | E33: 4 | F33: 4 | G33: 4 | H33: 4 | I33: 4 | J33: 4 | K33: 4 | L33: 4 | M33: 4 | N33: 4 | O33: 4 | P33: 4 | Q33: 4 | R33: 4 | S33: 4 | T33: 4 | U33: 4 | V33: 4 | W33: 4 | X33: 4 | Y33: 4 | Z33: 4 | AA33: 4 | AB33: 4 | AC33: 4 | AD33: 4 | AE33: 4 | AF33: 4
C34: 19番玉 | D34: 4 | E34: 4 | F34: 4 | G34: 4 | H34: 4 | I34: 4 | J34: 4 | K34: 4 | L34: 4 | M34: 4 | N34: 4 | O34: 4 | P34: 4 | Q34: 4 | R34: 4 | S34: 4 | T34: 4 | U34: 4 | V34: 4 | W34: 4 | X34: 4 | Y34: 4 | Z34: 4 | AA34: 4 | AB34: 4 | AC34: 4 | AD34: 4 | AE34: 4 | AF34: 4
C35: 20番玉 | D35: 4 | E35: 4 | F35: 4 | G35: 4 | H35: 4 | I35: 4 | J35: 4 | K35: 4 | L35: 4 | M35: 4 | N35: 4 | O35: 4 | P35: 4 | Q35: 4 | R35: 4 | S35: 4 | T35: 4 | U35: 4 | V35: 4 | W35: 4 | X35: 4 | Y35: 4 | Z35: 4 | AA35: 4 | AB35: 4 | AC35: 4 | AD35: 4 | AE35: 4 | AF35: 4
B36: 伐採＋追上 | C36: ｍ | D36: =SUM(D$15:D15)+$B$38 -> 0.6 | E36: =SUM(E$15:E15)+$B$38 -> 0.6 | F36: =SUM(F$15:F15)+$B$38 -> 0.6 | G36: =SUM(G$15:G15)+$B$38 -> 0.6 | H36: =SUM(H$15:H15)+$B$38 -> 0.6 | I36: =SUM(I$15:I15)+$B$38 -> 0.6 | J36: =SUM(J$15:J15)+$B$38 -> 0.6 | K36: =SUM(K$15:K15)+$B$38 -> 0.6 | L36: =SUM(L$15:L15)+$B$38 -> 0.6 | M36: =SUM(M$15:M15)+$B$38 -> 0.6 | N36: =SUM(N$15:N15)+$B$38 -> 0.6 | O36: =SUM(O$15:O15)+$B$38 -> 0.6 | P36: =SUM(P$15:P15)+$B$38 -> 0.6 | Q36: =SUM(Q$15:Q15)+$B$38 -> 0.6 | R36: =SUM(R$15:R15)+$B$38 -> 0.6 | S36: =SUM(S$15:S15)+$B$38 -> 0.6 | T36: =SUM(T$15:T15)+$B$38 -> 0.6 | U36: =SUM(U$15:U15)+$B$38 -> 0.6 | V36: =SUM(V$15:V15)+$B$38 -> 0.6 | W36: =SUM(W$15:W15)+$B$38 -> 0.6 | X36: =SUM(X$15:X15)+$B$38 -> 0.6 | Y36: =SUM(Y$15:Y15)+$B$38 -> 0.6 | Z36: =SUM(Z$15:Z15)+$B$38 -> 0.6 | AA36: =SUM(AA$15:AA15)+$B$38 -> 0.6 | AB36: =SUM(AB$15:AB15)+$B$38 -> 0.6 | AC36: =SUM(AC$15:AC15)+$B$38 -> 0.6 | AD36: =SUM(AD$15:AD15)+$B$38 -> 0.6 | AE36: =SUM(AE$15:AE15)+$B$38 -> 0.6 | AF36: =SUM(AF$15:AF15)+$B$38 -> 0.6
B37: 採材高ｍ | C37: 採材高1 | D37: =SUM(D$15:D16)+$B$38+$AJ37*$L$10/100 -> 4.6 | E37: =SUM(E$15:E16)+$B$38+$AJ37*$L$10/100 -> 4.6 | F37: =SUM(F$15:F16)+$B$38+$AJ37*$L$10/100 -> 4.6 | G37: =SUM(G$15:G16)+$B$38+$AJ37*$L$10/100 -> 4.6 | H37: =SUM(H$15:H16)+$B$38+$AJ37*$L$10/100 -> 4.6 | I37: =SUM(I$15:I16)+$B$38+$AJ37*$L$10/100 -> 4.6 | J37: =SUM(J$15:J16)+$B$38+$AJ37*$L$10/100 -> 4.6 | K37: =SUM(K$15:K16)+$B$38+$AJ37*$L$10/100 -> 4.6 | L37: =SUM(L$15:L16)+$B$38+$AJ37*$L$10/100 -> 4.6 | M37: =SUM(M$15:M16)+$B$38+$AJ37*$L$10/100 -> 4.6 | N37: =SUM(N$15:N16)+$B$38+$AJ37*$L$10/100 -> 4.6 | O37: =SUM(O$15:O16)+$B$38+$AJ37*$L$10/100 -> 4.6 | P37: =SUM(P$15:P16)+$B$38+$AJ37*$L$10/100 -> 4.6 | Q37: =SUM(Q$15:Q16)+$B$38+$AJ37*$L$10/100 -> 4.6 | R37: =SUM(R$15:R16)+$B$38+$AJ37*$L$10/100 -> 4.6 | S37: =SUM(S$15:S16)+$B$38+$AJ37*$L$10/100 -> 4.6 | T37: =SUM(T$15:T16)+$B$38+$AJ37*$L$10/100 -> 4.6 | U37: =SUM(U$15:U16)+$B$38+$AJ37*$L$10/100 -> 4.6 | V37: =SUM(V$15:V16)+$B$38+$AJ37*$L$10/100 -> 4.6 | W37: =SUM(W$15:W16)+$B$38+$AJ37*$L$10/100 -> 4.6 | X37: =SUM(X$15:X16)+$B$38+$AJ37*$L$10/100 -> 4.6 | Y37: =SUM(Y$15:Y16)+$B$38+$AJ37*$L$10/100 -> 4.6 | Z37: =SUM(Z$15:Z16)+$B$38+$AJ37*$L$10/100 -> 4.6 | AA37: =SUM(AA$15:AA16)+$B$38+$AJ37*$L$10/100 -> 4.6 | AB37: =SUM(AB$15:AB16)+$B$38+$AJ37*$L$10/100 -> 4.6 | AC37: =SUM(AC$15:AC16)+$B$38+$AJ37*$L$10/100 -> 4.6 | AD37: =SUM(AD$15:AD16)+$B$38+$AJ37*$L$10/100 -> 4.6 | AE37: =SUM(AE$15:AE16)+$B$38+$AJ37*$L$10/100 -> 4.6 | AF37: =SUM(AF$15:AF16)+$B$38+$AJ37*$L$10/100 -> 4.6 | AJ37: 1
B38: 0.3 | C38: 採材高2 | D38: =SUM(D$15:D17)+$B$38+$AJ38*$L$10/100 -> 8.6 | E38: =SUM(E$15:E17)+$B$38+$AJ38*$L$10/100 -> 8.6 | F38: =SUM(F$15:F17)+$B$38+$AJ38*$L$10/100 -> 8.6 | G38: =SUM(G$15:G17)+$B$38+$AJ38*$L$10/100 -> 8.6 | H38: =SUM(H$15:H17)+$B$38+$AJ38*$L$10/100 -> 8.6 | I38: =SUM(I$15:I17)+$B$38+$AJ38*$L$10/100 -> 8.6 | J38: =SUM(J$15:J17)+$B$38+$AJ38*$L$10/100 -> 8.6 | K38: =SUM(K$15:K17)+$B$38+$AJ38*$L$10/100 -> 8.6 | L38: =SUM(L$15:L17)+$B$38+$AJ38*$L$10/100 -> 8.6 | M38: =SUM(M$15:M17)+$B$38+$AJ38*$L$10/100 -> 8.6 | N38: =SUM(N$15:N17)+$B$38+$AJ38*$L$10/100 -> 8.6 | O38: =SUM(O$15:O17)+$B$38+$AJ38*$L$10/100 -> 8.6 | P38: =SUM(P$15:P17)+$B$38+$AJ38*$L$10/100 -> 8.6 | Q38: =SUM(Q$15:Q17)+$B$38+$AJ38*$L$10/100 -> 8.6 | R38: =SUM(R$15:R17)+$B$38+$AJ38*$L$10/100 -> 8.6 | S38: =SUM(S$15:S17)+$B$38+$AJ38*$L$10/100 -> 8.6 | T38: =SUM(T$15:T17)+$B$38+$AJ38*$L$10/100 -> 8.6 | U38: =SUM(U$15:U17)+$B$38+$AJ38*$L$10/100 -> 8.6 | V38: =SUM(V$15:V17)+$B$38+$AJ38*$L$10/100 -> 8.6 | W38: =SUM(W$15:W17)+$B$38+$AJ38*$L$10/100 -> 8.6 | X38: =SUM(X$15:X17)+$B$38+$AJ38*$L$10/100 -> 8.6 | Y38: =SUM(Y$15:Y17)+$B$38+$AJ38*$L$10/100 -> 8.6 | Z38: =SUM(Z$15:Z17)+$B$38+$AJ38*$L$10/100 -> 8.6 | AA38: =SUM(AA$15:AA17)+$B$38+$AJ38*$L$10/100 -> 8.6 | AB38: =SUM(AB$15:AB17)+$B$38+$AJ38*$L$10/100 -> 8.6 | AC38: =SUM(AC$15:AC17)+$B$38+$AJ38*$L$10/100 -> 8.6 | AD38: =SUM(AD$15:AD17)+$B$38+$AJ38*$L$10/100 -> 8.6 | AE38: =SUM(AE$15:AE17)+$B$38+$AJ38*$L$10/100 -> 8.6 | AF38: =SUM(AF$15:AF17)+$B$38+$AJ38*$L$10/100 -> 8.6 | AJ38: 2
C39: 採材高3 | D39: =SUM(D$15:D18)+$B$38+$AJ39*$L$10/100 -> 12.6 | E39: =SUM(E$15:E18)+$B$38+$AJ39*$L$10/100 -> 12.6 | F39: =SUM(F$15:F18)+$B$38+$AJ39*$L$10/100 -> 12.6 | G39: =SUM(G$15:G18)+$B$38+$AJ39*$L$10/100 -> 12.6 | H39: =SUM(H$15:H18)+$B$38+$AJ39*$L$10/100 -> 12.6 | I39: =SUM(I$15:I18)+$B$38+$AJ39*$L$10/100 -> 12.6 | J39: =SUM(J$15:J18)+$B$38+$AJ39*$L$10/100 -> 12.6 | K39: =SUM(K$15:K18)+$B$38+$AJ39*$L$10/100 -> 12.6 | L39: =SUM(L$15:L18)+$B$38+$AJ39*$L$10/100 -> 12.6 | M39: =SUM(M$15:M18)+$B$38+$AJ39*$L$10/100 -> 12.6 | N39: =SUM(N$15:N18)+$B$38+$AJ39*$L$10/100 -> 12.6 | O39: =SUM(O$15:O18)+$B$38+$AJ39*$L$10/100 -> 12.6 | P39: =SUM(P$15:P18)+$B$38+$AJ39*$L$10/100 -> 12.6 | Q39: =SUM(Q$15:Q18)+$B$38+$AJ39*$L$10/100 -> 12.6 | R39: =SUM(R$15:R18)+$B$38+$AJ39*$L$10/100 -> 12.6 | S39: =SUM(S$15:S18)+$B$38+$AJ39*$L$10/100 -> 12.6 | T39: =SUM(T$15:T18)+$B$38+$AJ39*$L$10/100 -> 12.6 | U39: =SUM(U$15:U18)+$B$38+$AJ39*$L$10/100 -> 12.6 | V39: =SUM(V$15:V18)+$B$38+$AJ39*$L$10/100 -> 12.6 | W39: =SUM(W$15:W18)+$B$38+$AJ39*$L$10/100 -> 12.6 | X39: =SUM(X$15:X18)+$B$38+$AJ39*$L$10/100 -> 12.6 | Y39: =SUM(Y$15:Y18)+$B$38+$AJ39*$L$10/100 -> 12.6 | Z39: =SUM(Z$15:Z18)+$B$38+$AJ39*$L$10/100 -> 12.6 | AA39: =SUM(AA$15:AA18)+$B$38+$AJ39*$L$10/100 -> 12.6 | AB39: =SUM(AB$15:AB18)+$B$38+$AJ39*$L$10/100 -> 12.6 | AC39: =SUM(AC$15:AC18)+$B$38+$AJ39*$L$10/100 -> 12.6 | AD39: =SUM(AD$15:AD18)+$B$38+$AJ39*$L$10/100 -> 12.6 | AE39: =SUM(AE$15:AE18)+$B$38+$AJ39*$L$10/100 -> 12.6 | AF39: =SUM(AF$15:AF18)+$B$38+$AJ39*$L$10/100 -> 12.6 | AJ39: 3
C40: 採材高4 | D40: =SUM(D$15:D19)+$B$38+$AJ40*$L$10/100 -> 16.6 | E40: =SUM(E$15:E19)+$B$38+$AJ40*$L$10/100 -> 16.6 | F40: =SUM(F$15:F19)+$B$38+$AJ40*$L$10/100 -> 16.6 | G40: =SUM(G$15:G19)+$B$38+$AJ40*$L$10/100 -> 16.6 | H40: =SUM(H$15:H19)+$B$38+$AJ40*$L$10/100 -> 16.6 | I40: =SUM(I$15:I19)+$B$38+$AJ40*$L$10/100 -> 16.6 | J40: =SUM(J$15:J19)+$B$38+$AJ40*$L$10/100 -> 16.6 | K40: =SUM(K$15:K19)+$B$38+$AJ40*$L$10/100 -> 16.6 | L40: =SUM(L$15:L19)+$B$38+$AJ40*$L$10/100 -> 16.6 | M40: =SUM(M$15:M19)+$B$38+$AJ40*$L$10/100 -> 16.6 | N40: =SUM(N$15:N19)+$B$38+$AJ40*$L$10/100 -> 16.6 | O40: =SUM(O$15:O19)+$B$38+$AJ40*$L$10/100 -> 16.6 | P40: =SUM(P$15:P19)+$B$38+$AJ40*$L$10/100 -> 16.6 | Q40: =SUM(Q$15:Q19)+$B$38+$AJ40*$L$10/100 -> 16.6 | R40: =SUM(R$15:R19)+$B$38+$AJ40*$L$10/100 -> 16.6 | S40: =SUM(S$15:S19)+$B$38+$AJ40*$L$10/100 -> 16.6 | T40: =SUM(T$15:T19)+$B$38+$AJ40*$L$10/100 -> 16.6 | U40: =SUM(U$15:U19)+$B$38+$AJ40*$L$10/100 -> 16.6 | V40: =SUM(V$15:V19)+$B$38+$AJ40*$L$10/100 -> 16.6 | W40: =SUM(W$15:W19)+$B$38+$AJ40*$L$10/100 -> 16.6 | X40: =SUM(X$15:X19)+$B$38+$AJ40*$L$10/100 -> 16.6 | Y40: =SUM(Y$15:Y19)+$B$38+$AJ40*$L$10/100 -> 16.6 | Z40: =SUM(Z$15:Z19)+$B$38+$AJ40*$L$10/100 -> 16.6 | AA40: =SUM(AA$15:AA19)+$B$38+$AJ40*$L$10/100 -> 16.6 | AB40: =SUM(AB$15:AB19)+$B$38+$AJ40*$L$10/100 -> 16.6 | AC40: =SUM(AC$15:AC19)+$B$38+$AJ40*$L$10/100 -> 16.6 | AD40: =SUM(AD$15:AD19)+$B$38+$AJ40*$L$10/100 -> 16.6 | AE40: =SUM(AE$15:AE19)+$B$38+$AJ40*$L$10/100 -> 16.6 | AF40: =SUM(AF$15:AF19)+$B$38+$AJ40*$L$10/100 -> 16.6 | AJ40: 4
C41: 採材高5 | D41: =SUM(D$15:D20)+$B$38+$AJ41*$L$10/100 -> 20.6 | E41: =SUM(E$15:E20)+$B$38+$AJ41*$L$10/100 -> 20.6 | F41: =SUM(F$15:F20)+$B$38+$AJ41*$L$10/100 -> 20.6 | G41: =SUM(G$15:G20)+$B$38+$AJ41*$L$10/100 -> 20.6 | H41: =SUM(H$15:H20)+$B$38+$AJ41*$L$10/100 -> 20.6 | I41: =SUM(I$15:I20)+$B$38+$AJ41*$L$10/100 -> 20.6 | J41: =SUM(J$15:J20)+$B$38+$AJ41*$L$10/100 -> 20.6 | K41: =SUM(K$15:K20)+$B$38+$AJ41*$L$10/100 -> 20.6 | L41: =SUM(L$15:L20)+$B$38+$AJ41*$L$10/100 -> 20.6 | M41: =SUM(M$15:M20)+$B$38+$AJ41*$L$10/100 -> 20.6 | N41: =SUM(N$15:N20)+$B$38+$AJ41*$L$10/100 -> 20.6 | O41: =SUM(O$15:O20)+$B$38+$AJ41*$L$10/100 -> 20.6 | P41: =SUM(P$15:P20)+$B$38+$AJ41*$L$10/100 -> 20.6 | Q41: =SUM(Q$15:Q20)+$B$38+$AJ41*$L$10/100 -> 20.6 | R41: =SUM(R$15:R20)+$B$38+$AJ41*$L$10/100 -> 20.6 | S41: =SUM(S$15:S20)+$B$38+$AJ41*$L$10/100 -> 20.6 | T41: =SUM(T$15:T20)+$B$38+$AJ41*$L$10/100 -> 20.6 | U41: =SUM(U$15:U20)+$B$38+$AJ41*$L$10/100 -> 20.6 | V41: =SUM(V$15:V20)+$B$38+$AJ41*$L$10/100 -> 20.6 | W41: =SUM(W$15:W20)+$B$38+$AJ41*$L$10/100 -> 20.6 | X41: =SUM(X$15:X20)+$B$38+$AJ41*$L$10/100 -> 20.6 | Y41: =SUM(Y$15:Y20)+$B$38+$AJ41*$L$10/100 -> 20.6 | Z41: =SUM(Z$15:Z20)+$B$38+$AJ41*$L$10/100 -> 20.6 | AA41: =SUM(AA$15:AA20)+$B$38+$AJ41*$L$10/100 -> 20.6 | AB41: =SUM(AB$15:AB20)+$B$38+$AJ41*$L$10/100 -> 20.6 | AC41: =SUM(AC$15:AC20)+$B$38+$AJ41*$L$10/100 -> 20.6 | AD41: =SUM(AD$15:AD20)+$B$38+$AJ41*$L$10/100 -> 20.6 | AE41: =SUM(AE$15:AE20)+$B$38+$AJ41*$L$10/100 -> 20.6 | AF41: =SUM(AF$15:AF20)+$B$38+$AJ41*$L$10/100 -> 20.6 | AJ41: 5
C42: 採材高6 | D42: =SUM(D$15:D21)+$B$38+$AJ42*$L$10/100 -> 24.6 | E42: =SUM(E$15:E21)+$B$38+$AJ42*$L$10/100 -> 24.6 | F42: =SUM(F$15:F21)+$B$38+$AJ42*$L$10/100 -> 24.6 | G42: =SUM(G$15:G21)+$B$38+$AJ42*$L$10/100 -> 24.6 | H42: =SUM(H$15:H21)+$B$38+$AJ42*$L$10/100 -> 24.6 | I42: =SUM(I$15:I21)+$B$38+$AJ42*$L$10/100 -> 24.6 | J42: =SUM(J$15:J21)+$B$38+$AJ42*$L$10/100 -> 24.6 | K42: =SUM(K$15:K21)+$B$38+$AJ42*$L$10/100 -> 24.6 | L42: =SUM(L$15:L21)+$B$38+$AJ42*$L$10/100 -> 24.6 | M42: =SUM(M$15:M21)+$B$38+$AJ42*$L$10/100 -> 24.6 | N42: =SUM(N$15:N21)+$B$38+$AJ42*$L$10/100 -> 24.6 | O42: =SUM(O$15:O21)+$B$38+$AJ42*$L$10/100 -> 24.6 | P42: =SUM(P$15:P21)+$B$38+$AJ42*$L$10/100 -> 24.6 | Q42: =SUM(Q$15:Q21)+$B$38+$AJ42*$L$10/100 -> 24.6 | R42: =SUM(R$15:R21)+$B$38+$AJ42*$L$10/100 -> 24.6 | S42: =SUM(S$15:S21)+$B$38+$AJ42*$L$10/100 -> 24.6 | T42: =SUM(T$15:T21)+$B$38+$AJ42*$L$10/100 -> 24.6 | U42: =SUM(U$15:U21)+$B$38+$AJ42*$L$10/100 -> 24.6 | V42: =SUM(V$15:V21)+$B$38+$AJ42*$L$10/100 -> 24.6 | W42: =SUM(W$15:W21)+$B$38+$AJ42*$L$10/100 -> 24.6 | X42: =SUM(X$15:X21)+$B$38+$AJ42*$L$10/100 -> 24.6 | Y42: =SUM(Y$15:Y21)+$B$38+$AJ42*$L$10/100 -> 24.6 | Z42: =SUM(Z$15:Z21)+$B$38+$AJ42*$L$10/100 -> 24.6 | AA42: =SUM(AA$15:AA21)+$B$38+$AJ42*$L$10/100 -> 24.6 | AB42: =SUM(AB$15:AB21)+$B$38+$AJ42*$L$10/100 -> 24.6 | AC42: =SUM(AC$15:AC21)+$B$38+$AJ42*$L$10/100 -> 24.6 | AD42: =SUM(AD$15:AD21)+$B$38+$AJ42*$L$10/100 -> 24.6 | AE42: =SUM(AE$15:AE21)+$B$38+$AJ42*$L$10/100 -> 24.6 | AF42: =SUM(AF$15:AF21)+$B$38+$AJ42*$L$10/100 -> 24.6 | AJ42: 6
C43: 採材高7 | D43: =SUM(D$15:D22)+$B$38+$AJ43*$L$10/100 -> 28.6 | E43: =SUM(E$15:E22)+$B$38+$AJ43*$L$10/100 -> 28.6 | F43: =SUM(F$15:F22)+$B$38+$AJ43*$L$10/100 -> 28.6 | G43: =SUM(G$15:G22)+$B$38+$AJ43*$L$10/100 -> 28.6 | H43: =SUM(H$15:H22)+$B$38+$AJ43*$L$10/100 -> 28.6 | I43: =SUM(I$15:I22)+$B$38+$AJ43*$L$10/100 -> 28.6 | J43: =SUM(J$15:J22)+$B$38+$AJ43*$L$10/100 -> 28.6 | K43: =SUM(K$15:K22)+$B$38+$AJ43*$L$10/100 -> 28.6 | L43: =SUM(L$15:L22)+$B$38+$AJ43*$L$10/100 -> 28.6 | M43: =SUM(M$15:M22)+$B$38+$AJ43*$L$10/100 -> 28.6 | N43: =SUM(N$15:N22)+$B$38+$AJ43*$L$10/100 -> 28.6 | O43: =SUM(O$15:O22)+$B$38+$AJ43*$L$10/100 -> 28.6 | P43: =SUM(P$15:P22)+$B$38+$AJ43*$L$10/100 -> 28.6 | Q43: =SUM(Q$15:Q22)+$B$38+$AJ43*$L$10/100 -> 28.6 | R43: =SUM(R$15:R22)+$B$38+$AJ43*$L$10/100 -> 28.6 | S43: =SUM(S$15:S22)+$B$38+$AJ43*$L$10/100 -> 28.6 | T43: =SUM(T$15:T22)+$B$38+$AJ43*$L$10/100 -> 28.6 | U43: =SUM(U$15:U22)+$B$38+$AJ43*$L$10/100 -> 28.6 | V43: =SUM(V$15:V22)+$B$38+$AJ43*$L$10/100 -> 28.6 | W43: =SUM(W$15:W22)+$B$38+$AJ43*$L$10/100 -> 28.6 | X43: =SUM(X$15:X22)+$B$38+$AJ43*$L$10/100 -> 28.6 | Y43: =SUM(Y$15:Y22)+$B$38+$AJ43*$L$10/100 -> 28.6 | Z43: =SUM(Z$15:Z22)+$B$38+$AJ43*$L$10/100 -> 28.6 | AA43: =SUM(AA$15:AA22)+$B$38+$AJ43*$L$10/100 -> 28.6 | AB43: =SUM(AB$15:AB22)+$B$38+$AJ43*$L$10/100 -> 28.6 | AC43: =SUM(AC$15:AC22)+$B$38+$AJ43*$L$10/100 -> 28.6 | AD43: =SUM(AD$15:AD22)+$B$38+$AJ43*$L$10/100 -> 28.6 | AE43: =SUM(AE$15:AE22)+$B$38+$AJ43*$L$10/100 -> 28.6 | AF43: =SUM(AF$15:AF22)+$B$38+$AJ43*$L$10/100 -> 28.6 | AJ43: 7
C44: 採材高8 | D44: =SUM(D$15:D23)+$B$38+$AJ44*$L$10/100 -> 32.6 | E44: =SUM(E$15:E23)+$B$38+$AJ44*$L$10/100 -> 32.6 | F44: =SUM(F$15:F23)+$B$38+$AJ44*$L$10/100 -> 32.6 | G44: =SUM(G$15:G23)+$B$38+$AJ44*$L$10/100 -> 32.6 | H44: =SUM(H$15:H23)+$B$38+$AJ44*$L$10/100 -> 32.6 | I44: =SUM(I$15:I23)+$B$38+$AJ44*$L$10/100 -> 32.6 | J44: =SUM(J$15:J23)+$B$38+$AJ44*$L$10/100 -> 32.6 | K44: =SUM(K$15:K23)+$B$38+$AJ44*$L$10/100 -> 32.6 | L44: =SUM(L$15:L23)+$B$38+$AJ44*$L$10/100 -> 32.6 | M44: =SUM(M$15:M23)+$B$38+$AJ44*$L$10/100 -> 32.6 | N44: =SUM(N$15:N23)+$B$38+$AJ44*$L$10/100 -> 32.6 | O44: =SUM(O$15:O23)+$B$38+$AJ44*$L$10/100 -> 32.6 | P44: =SUM(P$15:P23)+$B$38+$AJ44*$L$10/100 -> 32.6 | Q44: =SUM(Q$15:Q23)+$B$38+$AJ44*$L$10/100 -> 32.6 | R44: =SUM(R$15:R23)+$B$38+$AJ44*$L$10/100 -> 32.6 | S44: =SUM(S$15:S23)+$B$38+$AJ44*$L$10/100 -> 32.6 | T44: =SUM(T$15:T23)+$B$38+$AJ44*$L$10/100 -> 32.6 | U44: =SUM(U$15:U23)+$B$38+$AJ44*$L$10/100 -> 32.6 | V44: =SUM(V$15:V23)+$B$38+$AJ44*$L$10/100 -> 32.6 | W44: =SUM(W$15:W23)+$B$38+$AJ44*$L$10/100 -> 32.6 | X44: =SUM(X$15:X23)+$B$38+$AJ44*$L$10/100 -> 32.6 | Y44: =SUM(Y$15:Y23)+$B$38+$AJ44*$L$10/100 -> 32.6 | Z44: =SUM(Z$15:Z23)+$B$38+$AJ44*$L$10/100 -> 32.6 | AA44: =SUM(AA$15:AA23)+$B$38+$AJ44*$L$10/100 -> 32.6 | AB44: =SUM(AB$15:AB23)+$B$38+$AJ44*$L$10/100 -> 32.6 | AC44: =SUM(AC$15:AC23)+$B$38+$AJ44*$L$10/100 -> 32.6 | AD44: =SUM(AD$15:AD23)+$B$38+$AJ44*$L$10/100 -> 32.6 | AE44: =SUM(AE$15:AE23)+$B$38+$AJ44*$L$10/100 -> 32.6 | AF44: =SUM(AF$15:AF23)+$B$38+$AJ44*$L$10/100 -> 32.6 | AJ44: 8
C45: 採材高9 | D45: =SUM(D$15:D24)+$B$38+$AJ45*$L$10/100 -> 36.6 | E45: =SUM(E$15:E24)+$B$38+$AJ45*$L$10/100 -> 36.6 | F45: =SUM(F$15:F24)+$B$38+$AJ45*$L$10/100 -> 36.6 | G45: =SUM(G$15:G24)+$B$38+$AJ45*$L$10/100 -> 36.6 | H45: =SUM(H$15:H24)+$B$38+$AJ45*$L$10/100 -> 36.6 | I45: =SUM(I$15:I24)+$B$38+$AJ45*$L$10/100 -> 36.6 | J45: =SUM(J$15:J24)+$B$38+$AJ45*$L$10/100 -> 36.6 | K45: =SUM(K$15:K24)+$B$38+$AJ45*$L$10/100 -> 36.6 | L45: =SUM(L$15:L24)+$B$38+$AJ45*$L$10/100 -> 36.6 | M45: =SUM(M$15:M24)+$B$38+$AJ45*$L$10/100 -> 36.6 | N45: =SUM(N$15:N24)+$B$38+$AJ45*$L$10/100 -> 36.6 | O45: =SUM(O$15:O24)+$B$38+$AJ45*$L$10/100 -> 36.6 | P45: =SUM(P$15:P24)+$B$38+$AJ45*$L$10/100 -> 36.6 | Q45: =SUM(Q$15:Q24)+$B$38+$AJ45*$L$10/100 -> 36.6 | R45: =SUM(R$15:R24)+$B$38+$AJ45*$L$10/100 -> 36.6 | S45: =SUM(S$15:S24)+$B$38+$AJ45*$L$10/100 -> 36.6 | T45: =SUM(T$15:T24)+$B$38+$AJ45*$L$10/100 -> 36.6 | U45: =SUM(U$15:U24)+$B$38+$AJ45*$L$10/100 -> 36.6 | V45: =SUM(V$15:V24)+$B$38+$AJ45*$L$10/100 -> 36.6 | W45: =SUM(W$15:W24)+$B$38+$AJ45*$L$10/100 -> 36.6 | X45: =SUM(X$15:X24)+$B$38+$AJ45*$L$10/100 -> 36.6 | Y45: =SUM(Y$15:Y24)+$B$38+$AJ45*$L$10/100 -> 36.6 | Z45: =SUM(Z$15:Z24)+$B$38+$AJ45*$L$10/100 -> 36.6 | AA45: =SUM(AA$15:AA24)+$B$38+$AJ45*$L$10/100 -> 36.6 | AB45: =SUM(AB$15:AB24)+$B$38+$AJ45*$L$10/100 -> 36.6 | AC45: =SUM(AC$15:AC24)+$B$38+$AJ45*$L$10/100 -> 36.6 | AD45: =SUM(AD$15:AD24)+$B$38+$AJ45*$L$10/100 -> 36.6 | AE45: =SUM(AE$15:AE24)+$B$38+$AJ45*$L$10/100 -> 36.6 | AF45: =SUM(AF$15:AF24)+$B$38+$AJ45*$L$10/100 -> 36.6 | AJ45: 9
C46: 採材高10 | D46: =SUM(D$15:D25)+$B$38+$AJ46*$L$10/100 -> 40.6 | E46: =SUM(E$15:E25)+$B$38+$AJ46*$L$10/100 -> 40.6 | F46: =SUM(F$15:F25)+$B$38+$AJ46*$L$10/100 -> 40.6 | G46: =SUM(G$15:G25)+$B$38+$AJ46*$L$10/100 -> 40.6 | H46: =SUM(H$15:H25)+$B$38+$AJ46*$L$10/100 -> 40.6 | I46: =SUM(I$15:I25)+$B$38+$AJ46*$L$10/100 -> 40.6 | J46: =SUM(J$15:J25)+$B$38+$AJ46*$L$10/100 -> 40.6 | K46: =SUM(K$15:K25)+$B$38+$AJ46*$L$10/100 -> 40.6 | L46: =SUM(L$15:L25)+$B$38+$AJ46*$L$10/100 -> 40.6 | M46: =SUM(M$15:M25)+$B$38+$AJ46*$L$10/100 -> 40.6 | N46: =SUM(N$15:N25)+$B$38+$AJ46*$L$10/100 -> 40.6 | O46: =SUM(O$15:O25)+$B$38+$AJ46*$L$10/100 -> 40.6 | P46: =SUM(P$15:P25)+$B$38+$AJ46*$L$10/100 -> 40.6 | Q46: =SUM(Q$15:Q25)+$B$38+$AJ46*$L$10/100 -> 40.6 | R46: =SUM(R$15:R25)+$B$38+$AJ46*$L$10/100 -> 40.6 | S46: =SUM(S$15:S25)+$B$38+$AJ46*$L$10/100 -> 40.6 | T46: =SUM(T$15:T25)+$B$38+$AJ46*$L$10/100 -> 40.6 | U46: =SUM(U$15:U25)+$B$38+$AJ46*$L$10/100 -> 40.6 | V46: =SUM(V$15:V25)+$B$38+$AJ46*$L$10/100 -> 40.6 | W46: =SUM(W$15:W25)+$B$38+$AJ46*$L$10/100 -> 40.6 | X46: =SUM(X$15:X25)+$B$38+$AJ46*$L$10/100 -> 40.6 | Y46: =SUM(Y$15:Y25)+$B$38+$AJ46*$L$10/100 -> 40.6 | Z46: =SUM(Z$15:Z25)+$B$38+$AJ46*$L$10/100 -> 40.6 | AA46: =SUM(AA$15:AA25)+$B$38+$AJ46*$L$10/100 -> 40.6 | AB46: =SUM(AB$15:AB25)+$B$38+$AJ46*$L$10/100 -> 40.6 | AC46: =SUM(AC$15:AC25)+$B$38+$AJ46*$L$10/100 -> 40.6 | AD46: =SUM(AD$15:AD25)+$B$38+$AJ46*$L$10/100 -> 40.6 | AE46: =SUM(AE$15:AE25)+$B$38+$AJ46*$L$10/100 -> 40.6 | AF46: =SUM(AF$15:AF25)+$B$38+$AJ46*$L$10/100 -> 40.6 | AJ46: 10
C47: 採材高11 | D47: =SUM(D$15:D26)+$B$38+$AJ47*$L$10/100 -> 44.6 | E47: =SUM(E$15:E26)+$B$38+$AJ47*$L$10/100 -> 44.6 | F47: =SUM(F$15:F26)+$B$38+$AJ47*$L$10/100 -> 44.6 | G47: =SUM(G$15:G26)+$B$38+$AJ47*$L$10/100 -> 44.6 | H47: =SUM(H$15:H26)+$B$38+$AJ47*$L$10/100 -> 44.6 | I47: =SUM(I$15:I26)+$B$38+$AJ47*$L$10/100 -> 44.6 | J47: =SUM(J$15:J26)+$B$38+$AJ47*$L$10/100 -> 44.6 | K47: =SUM(K$15:K26)+$B$38+$AJ47*$L$10/100 -> 44.6 | L47: =SUM(L$15:L26)+$B$38+$AJ47*$L$10/100 -> 44.6 | M47: =SUM(M$15:M26)+$B$38+$AJ47*$L$10/100 -> 44.6 | N47: =SUM(N$15:N26)+$B$38+$AJ47*$L$10/100 -> 44.6 | O47: =SUM(O$15:O26)+$B$38+$AJ47*$L$10/100 -> 44.6 | P47: =SUM(P$15:P26)+$B$38+$AJ47*$L$10/100 -> 44.6 | Q47: =SUM(Q$15:Q26)+$B$38+$AJ47*$L$10/100 -> 44.6 | R47: =SUM(R$15:R26)+$B$38+$AJ47*$L$10/100 -> 44.6 | S47: =SUM(S$15:S26)+$B$38+$AJ47*$L$10/100 -> 44.6 | T47: =SUM(T$15:T26)+$B$38+$AJ47*$L$10/100 -> 44.6 | U47: =SUM(U$15:U26)+$B$38+$AJ47*$L$10/100 -> 44.6 | V47: =SUM(V$15:V26)+$B$38+$AJ47*$L$10/100 -> 44.6 | W47: =SUM(W$15:W26)+$B$38+$AJ47*$L$10/100 -> 44.6 | X47: =SUM(X$15:X26)+$B$38+$AJ47*$L$10/100 -> 44.6 | Y47: =SUM(Y$15:Y26)+$B$38+$AJ47*$L$10/100 -> 44.6 | Z47: =SUM(Z$15:Z26)+$B$38+$AJ47*$L$10/100 -> 44.6 | AA47: =SUM(AA$15:AA26)+$B$38+$AJ47*$L$10/100 -> 44.6 | AB47: =SUM(AB$15:AB26)+$B$38+$AJ47*$L$10/100 -> 44.6 | AC47: =SUM(AC$15:AC26)+$B$38+$AJ47*$L$10/100 -> 44.6 | AD47: =SUM(AD$15:AD26)+$B$38+$AJ47*$L$10/100 -> 44.6 | AE47: =SUM(AE$15:AE26)+$B$38+$AJ47*$L$10/100 -> 44.6 | AF47: =SUM(AF$15:AF26)+$B$38+$AJ47*$L$10/100 -> 44.6 | AJ47: 11
C48: 採材高12 | D48: =SUM(D$15:D27)+$B$38+$AJ48*$L$10/100 -> 48.6 | E48: =SUM(E$15:E27)+$B$38+$AJ48*$L$10/100 -> 48.6 | F48: =SUM(F$15:F27)+$B$38+$AJ48*$L$10/100 -> 48.6 | G48: =SUM(G$15:G27)+$B$38+$AJ48*$L$10/100 -> 48.6 | H48: =SUM(H$15:H27)+$B$38+$AJ48*$L$10/100 -> 48.6 | I48: =SUM(I$15:I27)+$B$38+$AJ48*$L$10/100 -> 48.6 | J48: =SUM(J$15:J27)+$B$38+$AJ48*$L$10/100 -> 48.6 | K48: =SUM(K$15:K27)+$B$38+$AJ48*$L$10/100 -> 48.6 | L48: =SUM(L$15:L27)+$B$38+$AJ48*$L$10/100 -> 48.6 | M48: =SUM(M$15:M27)+$B$38+$AJ48*$L$10/100 -> 48.6 | N48: =SUM(N$15:N27)+$B$38+$AJ48*$L$10/100 -> 48.6 | O48: =SUM(O$15:O27)+$B$38+$AJ48*$L$10/100 -> 48.6 | P48: =SUM(P$15:P27)+$B$38+$AJ48*$L$10/100 -> 48.6 | Q48: =SUM(Q$15:Q27)+$B$38+$AJ48*$L$10/100 -> 48.6 | R48: =SUM(R$15:R27)+$B$38+$AJ48*$L$10/100 -> 48.6 | S48: =SUM(S$15:S27)+$B$38+$AJ48*$L$10/100 -> 48.6 | T48: =SUM(T$15:T27)+$B$38+$AJ48*$L$10/100 -> 48.6 | U48: =SUM(U$15:U27)+$B$38+$AJ48*$L$10/100 -> 48.6 | V48: =SUM(V$15:V27)+$B$38+$AJ48*$L$10/100 -> 48.6 | W48: =SUM(W$15:W27)+$B$38+$AJ48*$L$10/100 -> 48.6 | X48: =SUM(X$15:X27)+$B$38+$AJ48*$L$10/100 -> 48.6 | Y48: =SUM(Y$15:Y27)+$B$38+$AJ48*$L$10/100 -> 48.6 | Z48: =SUM(Z$15:Z27)+$B$38+$AJ48*$L$10/100 -> 48.6 | AA48: =SUM(AA$15:AA27)+$B$38+$AJ48*$L$10/100 -> 48.6 | AB48: =SUM(AB$15:AB27)+$B$38+$AJ48*$L$10/100 -> 48.6 | AC48: =SUM(AC$15:AC27)+$B$38+$AJ48*$L$10/100 -> 48.6 | AD48: =SUM(AD$15:AD27)+$B$38+$AJ48*$L$10/100 -> 48.6 | AE48: =SUM(AE$15:AE27)+$B$38+$AJ48*$L$10/100 -> 48.6 | AF48: =SUM(AF$15:AF27)+$B$38+$AJ48*$L$10/100 -> 48.6 | AJ48: 12
C49: 採材高13 | D49: =SUM(D$15:D28)+$B$38+$AJ49*$L$10/100 -> 52.6 | E49: =SUM(E$15:E28)+$B$38+$AJ49*$L$10/100 -> 52.6 | F49: =SUM(F$15:F28)+$B$38+$AJ49*$L$10/100 -> 52.6 | G49: =SUM(G$15:G28)+$B$38+$AJ49*$L$10/100 -> 52.6 | H49: =SUM(H$15:H28)+$B$38+$AJ49*$L$10/100 -> 52.6 | I49: =SUM(I$15:I28)+$B$38+$AJ49*$L$10/100 -> 52.6 | J49: =SUM(J$15:J28)+$B$38+$AJ49*$L$10/100 -> 52.6 | K49: =SUM(K$15:K28)+$B$38+$AJ49*$L$10/100 -> 52.6 | L49: =SUM(L$15:L28)+$B$38+$AJ49*$L$10/100 -> 52.6 | M49: =SUM(M$15:M28)+$B$38+$AJ49*$L$10/100 -> 52.6 | N49: =SUM(N$15:N28)+$B$38+$AJ49*$L$10/100 -> 52.6 | O49: =SUM(O$15:O28)+$B$38+$AJ49*$L$10/100 -> 52.6 | P49: =SUM(P$15:P28)+$B$38+$AJ49*$L$10/100 -> 52.6 | Q49: =SUM(Q$15:Q28)+$B$38+$AJ49*$L$10/100 -> 52.6 | R49: =SUM(R$15:R28)+$B$38+$AJ49*$L$10/100 -> 52.6 | S49: =SUM(S$15:S28)+$B$38+$AJ49*$L$10/100 -> 52.6 | T49: =SUM(T$15:T28)+$B$38+$AJ49*$L$10/100 -> 52.6 | U49: =SUM(U$15:U28)+$B$38+$AJ49*$L$10/100 -> 52.6 | V49: =SUM(V$15:V28)+$B$38+$AJ49*$L$10/100 -> 52.6 | W49: =SUM(W$15:W28)+$B$38+$AJ49*$L$10/100 -> 52.6 | X49: =SUM(X$15:X28)+$B$38+$AJ49*$L$10/100 -> 52.6 | Y49: =SUM(Y$15:Y28)+$B$38+$AJ49*$L$10/100 -> 52.6 | Z49: =SUM(Z$15:Z28)+$B$38+$AJ49*$L$10/100 -> 52.6 | AA49: =SUM(AA$15:AA28)+$B$38+$AJ49*$L$10/100 -> 52.6 | AB49: =SUM(AB$15:AB28)+$B$38+$AJ49*$L$10/100 -> 52.6 | AC49: =SUM(AC$15:AC28)+$B$38+$AJ49*$L$10/100 -> 52.6 | AD49: =SUM(AD$15:AD28)+$B$38+$AJ49*$L$10/100 -> 52.6 | AE49: =SUM(AE$15:AE28)+$B$38+$AJ49*$L$10/100 -> 52.6 | AF49: =SUM(AF$15:AF28)+$B$38+$AJ49*$L$10/100 -> 52.6 | AJ49: 13
C50: 採材高14 | D50: =SUM(D$15:D29)+$B$38+$AJ50*$L$10/100 -> 56.6 | E50: =SUM(E$15:E29)+$B$38+$AJ50*$L$10/100 -> 56.6 | F50: =SUM(F$15:F29)+$B$38+$AJ50*$L$10/100 -> 56.6 | G50: =SUM(G$15:G29)+$B$38+$AJ50*$L$10/100 -> 56.6 | H50: =SUM(H$15:H29)+$B$38+$AJ50*$L$10/100 -> 56.6 | I50: =SUM(I$15:I29)+$B$38+$AJ50*$L$10/100 -> 56.6 | J50: =SUM(J$15:J29)+$B$38+$AJ50*$L$10/100 -> 56.6 | K50: =SUM(K$15:K29)+$B$38+$AJ50*$L$10/100 -> 56.6 | L50: =SUM(L$15:L29)+$B$38+$AJ50*$L$10/100 -> 56.6 | M50: =SUM(M$15:M29)+$B$38+$AJ50*$L$10/100 -> 56.6 | N50: =SUM(N$15:N29)+$B$38+$AJ50*$L$10/100 -> 56.6 | O50: =SUM(O$15:O29)+$B$38+$AJ50*$L$10/100 -> 56.6 | P50: =SUM(P$15:P29)+$B$38+$AJ50*$L$10/100 -> 56.6 | Q50: =SUM(Q$15:Q29)+$B$38+$AJ50*$L$10/100 -> 56.6 | R50: =SUM(R$15:R29)+$B$38+$AJ50*$L$10/100 -> 56.6 | S50: =SUM(S$15:S29)+$B$38+$AJ50*$L$10/100 -> 56.6 | T50: =SUM(T$15:T29)+$B$38+$AJ50*$L$10/100 -> 56.6 | U50: =SUM(U$15:U29)+$B$38+$AJ50*$L$10/100 -> 56.6 | V50: =SUM(V$15:V29)+$B$38+$AJ50*$L$10/100 -> 56.6 | W50: =SUM(W$15:W29)+$B$38+$AJ50*$L$10/100 -> 56.6 | X50: =SUM(X$15:X29)+$B$38+$AJ50*$L$10/100 -> 56.6 | Y50: =SUM(Y$15:Y29)+$B$38+$AJ50*$L$10/100 -> 56.6 | Z50: =SUM(Z$15:Z29)+$B$38+$AJ50*$L$10/100 -> 56.6 | AA50: =SUM(AA$15:AA29)+$B$38+$AJ50*$L$10/100 -> 56.6 | AB50: =SUM(AB$15:AB29)+$B$38+$AJ50*$L$10/100 -> 56.6 | AC50: =SUM(AC$15:AC29)+$B$38+$AJ50*$L$10/100 -> 56.6 | AD50: =SUM(AD$15:AD29)+$B$38+$AJ50*$L$10/100 -> 56.6 | AE50: =SUM(AE$15:AE29)+$B$38+$AJ50*$L$10/100 -> 56.6 | AF50: =SUM(AF$15:AF29)+$B$38+$AJ50*$L$10/100 -> 56.6 | AJ50: 14
C51: 採材高15 | D51: =SUM(D$15:D30)+$B$38+$AJ51*$L$10/100 -> 60.6 | E51: =SUM(E$15:E30)+$B$38+$AJ51*$L$10/100 -> 60.6 | F51: =SUM(F$15:F30)+$B$38+$AJ51*$L$10/100 -> 60.6 | G51: =SUM(G$15:G30)+$B$38+$AJ51*$L$10/100 -> 60.6 | H51: =SUM(H$15:H30)+$B$38+$AJ51*$L$10/100 -> 60.6 | I51: =SUM(I$15:I30)+$B$38+$AJ51*$L$10/100 -> 60.6 | J51: =SUM(J$15:J30)+$B$38+$AJ51*$L$10/100 -> 60.6 | K51: =SUM(K$15:K30)+$B$38+$AJ51*$L$10/100 -> 60.6 | L51: =SUM(L$15:L30)+$B$38+$AJ51*$L$10/100 -> 60.6 | M51: =SUM(M$15:M30)+$B$38+$AJ51*$L$10/100 -> 60.6 | N51: =SUM(N$15:N30)+$B$38+$AJ51*$L$10/100 -> 60.6 | O51: =SUM(O$15:O30)+$B$38+$AJ51*$L$10/100 -> 60.6 | P51: =SUM(P$15:P30)+$B$38+$AJ51*$L$10/100 -> 60.6 | Q51: =SUM(Q$15:Q30)+$B$38+$AJ51*$L$10/100 -> 60.6 | R51: =SUM(R$15:R30)+$B$38+$AJ51*$L$10/100 -> 60.6 | S51: =SUM(S$15:S30)+$B$38+$AJ51*$L$10/100 -> 60.6 | T51: =SUM(T$15:T30)+$B$38+$AJ51*$L$10/100 -> 60.6 | U51: =SUM(U$15:U30)+$B$38+$AJ51*$L$10/100 -> 60.6 | V51: =SUM(V$15:V30)+$B$38+$AJ51*$L$10/100 -> 60.6 | W51: =SUM(W$15:W30)+$B$38+$AJ51*$L$10/100 -> 60.6 | X51: =SUM(X$15:X30)+$B$38+$AJ51*$L$10/100 -> 60.6 | Y51: =SUM(Y$15:Y30)+$B$38+$AJ51*$L$10/100 -> 60.6 | Z51: =SUM(Z$15:Z30)+$B$38+$AJ51*$L$10/100 -> 60.6 | AA51: =SUM(AA$15:AA30)+$B$38+$AJ51*$L$10/100 -> 60.6 | AB51: =SUM(AB$15:AB30)+$B$38+$AJ51*$L$10/100 -> 60.6 | AC51: =SUM(AC$15:AC30)+$B$38+$AJ51*$L$10/100 -> 60.6 | AD51: =SUM(AD$15:AD30)+$B$38+$AJ51*$L$10/100 -> 60.6 | AE51: =SUM(AE$15:AE30)+$B$38+$AJ51*$L$10/100 -> 60.6 | AF51: =SUM(AF$15:AF30)+$B$38+$AJ51*$L$10/100 -> 60.6 | AJ51: 15
C52: 採材高16 | D52: =SUM(D$15:D31)+$B$38+$AJ52*$L$10/100 -> 64.6 | E52: =SUM(E$15:E31)+$B$38+$AJ52*$L$10/100 -> 64.6 | F52: =SUM(F$15:F31)+$B$38+$AJ52*$L$10/100 -> 64.6 | G52: =SUM(G$15:G31)+$B$38+$AJ52*$L$10/100 -> 64.6 | H52: =SUM(H$15:H31)+$B$38+$AJ52*$L$10/100 -> 64.6 | I52: =SUM(I$15:I31)+$B$38+$AJ52*$L$10/100 -> 64.6 | J52: =SUM(J$15:J31)+$B$38+$AJ52*$L$10/100 -> 64.6 | K52: =SUM(K$15:K31)+$B$38+$AJ52*$L$10/100 -> 64.6 | L52: =SUM(L$15:L31)+$B$38+$AJ52*$L$10/100 -> 64.6 | M52: =SUM(M$15:M31)+$B$38+$AJ52*$L$10/100 -> 64.6 | N52: =SUM(N$15:N31)+$B$38+$AJ52*$L$10/100 -> 64.6 | O52: =SUM(O$15:O31)+$B$38+$AJ52*$L$10/100 -> 64.6 | P52: =SUM(P$15:P31)+$B$38+$AJ52*$L$10/100 -> 64.6 | Q52: =SUM(Q$15:Q31)+$B$38+$AJ52*$L$10/100 -> 64.6 | R52: =SUM(R$15:R31)+$B$38+$AJ52*$L$10/100 -> 64.6 | S52: =SUM(S$15:S31)+$B$38+$AJ52*$L$10/100 -> 64.6 | T52: =SUM(T$15:T31)+$B$38+$AJ52*$L$10/100 -> 64.6 | U52: =SUM(U$15:U31)+$B$38+$AJ52*$L$10/100 -> 64.6 | V52: =SUM(V$15:V31)+$B$38+$AJ52*$L$10/100 -> 64.6 | W52: =SUM(W$15:W31)+$B$38+$AJ52*$L$10/100 -> 64.6 | X52: =SUM(X$15:X31)+$B$38+$AJ52*$L$10/100 -> 64.6 | Y52: =SUM(Y$15:Y31)+$B$38+$AJ52*$L$10/100 -> 64.6 | Z52: =SUM(Z$15:Z31)+$B$38+$AJ52*$L$10/100 -> 64.6 | AA52: =SUM(AA$15:AA31)+$B$38+$AJ52*$L$10/100 -> 64.6 | AB52: =SUM(AB$15:AB31)+$B$38+$AJ52*$L$10/100 -> 64.6 | AC52: =SUM(AC$15:AC31)+$B$38+$AJ52*$L$10/100 -> 64.6 | AD52: =SUM(AD$15:AD31)+$B$38+$AJ52*$L$10/100 -> 64.6 | AE52: =SUM(AE$15:AE31)+$B$38+$AJ52*$L$10/100 -> 64.6 | AF52: =SUM(AF$15:AF31)+$B$38+$AJ52*$L$10/100 -> 64.6 | AJ52: 16
C53: 採材高17 | D53: =SUM(D$15:D32)+$B$38+$AJ53*$L$10/100 -> 68.6 | E53: =SUM(E$15:E32)+$B$38+$AJ53*$L$10/100 -> 68.6 | F53: =SUM(F$15:F32)+$B$38+$AJ53*$L$10/100 -> 68.6 | G53: =SUM(G$15:G32)+$B$38+$AJ53*$L$10/100 -> 68.6 | H53: =SUM(H$15:H32)+$B$38+$AJ53*$L$10/100 -> 68.6 | I53: =SUM(I$15:I32)+$B$38+$AJ53*$L$10/100 -> 68.6 | J53: =SUM(J$15:J32)+$B$38+$AJ53*$L$10/100 -> 68.6 | K53: =SUM(K$15:K32)+$B$38+$AJ53*$L$10/100 -> 68.6 | L53: =SUM(L$15:L32)+$B$38+$AJ53*$L$10/100 -> 68.6 | M53: =SUM(M$15:M32)+$B$38+$AJ53*$L$10/100 -> 68.6 | N53: =SUM(N$15:N32)+$B$38+$AJ53*$L$10/100 -> 68.6 | O53: =SUM(O$15:O32)+$B$38+$AJ53*$L$10/100 -> 68.6 | P53: =SUM(P$15:P32)+$B$38+$AJ53*$L$10/100 -> 68.6 | Q53: =SUM(Q$15:Q32)+$B$38+$AJ53*$L$10/100 -> 68.6 | R53: =SUM(R$15:R32)+$B$38+$AJ53*$L$10/100 -> 68.6 | S53: =SUM(S$15:S32)+$B$38+$AJ53*$L$10/100 -> 68.6 | T53: =SUM(T$15:T32)+$B$38+$AJ53*$L$10/100 -> 68.6 | U53: =SUM(U$15:U32)+$B$38+$AJ53*$L$10/100 -> 68.6 | V53: =SUM(V$15:V32)+$B$38+$AJ53*$L$10/100 -> 68.6 | W53: =SUM(W$15:W32)+$B$38+$AJ53*$L$10/100 -> 68.6 | X53: =SUM(X$15:X32)+$B$38+$AJ53*$L$10/100 -> 68.6 | Y53: =SUM(Y$15:Y32)+$B$38+$AJ53*$L$10/100 -> 68.6 | Z53: =SUM(Z$15:Z32)+$B$38+$AJ53*$L$10/100 -> 68.6 | AA53: =SUM(AA$15:AA32)+$B$38+$AJ53*$L$10/100 -> 68.6 | AB53: =SUM(AB$15:AB32)+$B$38+$AJ53*$L$10/100 -> 68.6 | AC53: =SUM(AC$15:AC32)+$B$38+$AJ53*$L$10/100 -> 68.6 | AD53: =SUM(AD$15:AD32)+$B$38+$AJ53*$L$10/100 -> 68.6 | AE53: =SUM(AE$15:AE32)+$B$38+$AJ53*$L$10/100 -> 68.6 | AF53: =SUM(AF$15:AF32)+$B$38+$AJ53*$L$10/100 -> 68.6 | AJ53: 17
C54: 採材高18 | D54: =SUM(D$15:D33)+$B$38+$AJ54*$L$10/100 -> 72.6 | E54: =SUM(E$15:E33)+$B$38+$AJ54*$L$10/100 -> 72.6 | F54: =SUM(F$15:F33)+$B$38+$AJ54*$L$10/100 -> 72.6 | G54: =SUM(G$15:G33)+$B$38+$AJ54*$L$10/100 -> 72.6 | H54: =SUM(H$15:H33)+$B$38+$AJ54*$L$10/100 -> 72.6 | I54: =SUM(I$15:I33)+$B$38+$AJ54*$L$10/100 -> 72.6 | J54: =SUM(J$15:J33)+$B$38+$AJ54*$L$10/100 -> 72.6 | K54: =SUM(K$15:K33)+$B$38+$AJ54*$L$10/100 -> 72.6 | L54: =SUM(L$15:L33)+$B$38+$AJ54*$L$10/100 -> 72.6 | M54: =SUM(M$15:M33)+$B$38+$AJ54*$L$10/100 -> 72.6 | N54: =SUM(N$15:N33)+$B$38+$AJ54*$L$10/100 -> 72.6 | O54: =SUM(O$15:O33)+$B$38+$AJ54*$L$10/100 -> 72.6 | P54: =SUM(P$15:P33)+$B$38+$AJ54*$L$10/100 -> 72.6 | Q54: =SUM(Q$15:Q33)+$B$38+$AJ54*$L$10/100 -> 72.6 | R54: =SUM(R$15:R33)+$B$38+$AJ54*$L$10/100 -> 72.6 | S54: =SUM(S$15:S33)+$B$38+$AJ54*$L$10/100 -> 72.6 | T54: =SUM(T$15:T33)+$B$38+$AJ54*$L$10/100 -> 72.6 | U54: =SUM(U$15:U33)+$B$38+$AJ54*$L$10/100 -> 72.6 | V54: =SUM(V$15:V33)+$B$38+$AJ54*$L$10/100 -> 72.6 | W54: =SUM(W$15:W33)+$B$38+$AJ54*$L$10/100 -> 72.6 | X54: =SUM(X$15:X33)+$B$38+$AJ54*$L$10/100 -> 72.6 | Y54: =SUM(Y$15:Y33)+$B$38+$AJ54*$L$10/100 -> 72.6 | Z54: =SUM(Z$15:Z33)+$B$38+$AJ54*$L$10/100 -> 72.6 | AA54: =SUM(AA$15:AA33)+$B$38+$AJ54*$L$10/100 -> 72.6 | AB54: =SUM(AB$15:AB33)+$B$38+$AJ54*$L$10/100 -> 72.6 | AC54: =SUM(AC$15:AC33)+$B$38+$AJ54*$L$10/100 -> 72.6 | AD54: =SUM(AD$15:AD33)+$B$38+$AJ54*$L$10/100 -> 72.6 | AE54: =SUM(AE$15:AE33)+$B$38+$AJ54*$L$10/100 -> 72.6 | AF54: =SUM(AF$15:AF33)+$B$38+$AJ54*$L$10/100 -> 72.6 | AJ54: 18
C55: 採材高19 | D55: =SUM(D$15:D34)+$B$38+$AJ55*$L$10/100 -> 76.6 | E55: =SUM(E$15:E34)+$B$38+$AJ55*$L$10/100 -> 76.6 | F55: =SUM(F$15:F34)+$B$38+$AJ55*$L$10/100 -> 76.6 | G55: =SUM(G$15:G34)+$B$38+$AJ55*$L$10/100 -> 76.6 | H55: =SUM(H$15:H34)+$B$38+$AJ55*$L$10/100 -> 76.6 | I55: =SUM(I$15:I34)+$B$38+$AJ55*$L$10/100 -> 76.6 | J55: =SUM(J$15:J34)+$B$38+$AJ55*$L$10/100 -> 76.6 | K55: =SUM(K$15:K34)+$B$38+$AJ55*$L$10/100 -> 76.6 | L55: =SUM(L$15:L34)+$B$38+$AJ55*$L$10/100 -> 76.6 | M55: =SUM(M$15:M34)+$B$38+$AJ55*$L$10/100 -> 76.6 | N55: =SUM(N$15:N34)+$B$38+$AJ55*$L$10/100 -> 76.6 | O55: =SUM(O$15:O34)+$B$38+$AJ55*$L$10/100 -> 76.6 | P55: =SUM(P$15:P34)+$B$38+$AJ55*$L$10/100 -> 76.6 | Q55: =SUM(Q$15:Q34)+$B$38+$AJ55*$L$10/100 -> 76.6 | R55: =SUM(R$15:R34)+$B$38+$AJ55*$L$10/100 -> 76.6 | S55: =SUM(S$15:S34)+$B$38+$AJ55*$L$10/100 -> 76.6 | T55: =SUM(T$15:T34)+$B$38+$AJ55*$L$10/100 -> 76.6 | U55: =SUM(U$15:U34)+$B$38+$AJ55*$L$10/100 -> 76.6 | V55: =SUM(V$15:V34)+$B$38+$AJ55*$L$10/100 -> 76.6 | W55: =SUM(W$15:W34)+$B$38+$AJ55*$L$10/100 -> 76.6 | X55: =SUM(X$15:X34)+$B$38+$AJ55*$L$10/100 -> 76.6 | Y55: =SUM(Y$15:Y34)+$B$38+$AJ55*$L$10/100 -> 76.6 | Z55: =SUM(Z$15:Z34)+$B$38+$AJ55*$L$10/100 -> 76.6 | AA55: =SUM(AA$15:AA34)+$B$38+$AJ55*$L$10/100 -> 76.6 | AB55: =SUM(AB$15:AB34)+$B$38+$AJ55*$L$10/100 -> 76.6 | AC55: =SUM(AC$15:AC34)+$B$38+$AJ55*$L$10/100 -> 76.6 | AD55: =SUM(AD$15:AD34)+$B$38+$AJ55*$L$10/100 -> 76.6 | AE55: =SUM(AE$15:AE34)+$B$38+$AJ55*$L$10/100 -> 76.6 | AF55: =SUM(AF$15:AF34)+$B$38+$AJ55*$L$10/100 -> 76.6 | AJ55: 19
C56: 採材高20 | D56: =SUM(D$15:D35)+$B$38+$AJ56*$L$10/100 -> 80.6 | E56: =SUM(E$15:E35)+$B$38+$AJ56*$L$10/100 -> 80.6 | F56: =SUM(F$15:F35)+$B$38+$AJ56*$L$10/100 -> 80.6 | G56: =SUM(G$15:G35)+$B$38+$AJ56*$L$10/100 -> 80.6 | H56: =SUM(H$15:H35)+$B$38+$AJ56*$L$10/100 -> 80.6 | I56: =SUM(I$15:I35)+$B$38+$AJ56*$L$10/100 -> 80.6 | J56: =SUM(J$15:J35)+$B$38+$AJ56*$L$10/100 -> 80.6 | K56: =SUM(K$15:K35)+$B$38+$AJ56*$L$10/100 -> 80.6 | L56: =SUM(L$15:L35)+$B$38+$AJ56*$L$10/100 -> 80.6 | M56: =SUM(M$15:M35)+$B$38+$AJ56*$L$10/100 -> 80.6 | N56: =SUM(N$15:N35)+$B$38+$AJ56*$L$10/100 -> 80.6 | O56: =SUM(O$15:O35)+$B$38+$AJ56*$L$10/100 -> 80.6 | P56: =SUM(P$15:P35)+$B$38+$AJ56*$L$10/100 -> 80.6 | Q56: =SUM(Q$15:Q35)+$B$38+$AJ56*$L$10/100 -> 80.6 | R56: =SUM(R$15:R35)+$B$38+$AJ56*$L$10/100 -> 80.6 | S56: =SUM(S$15:S35)+$B$38+$AJ56*$L$10/100 -> 80.6 | T56: =SUM(T$15:T35)+$B$38+$AJ56*$L$10/100 -> 80.6 | U56: =SUM(U$15:U35)+$B$38+$AJ56*$L$10/100 -> 80.6 | V56: =SUM(V$15:V35)+$B$38+$AJ56*$L$10/100 -> 80.6 | W56: =SUM(W$15:W35)+$B$38+$AJ56*$L$10/100 -> 80.6 | X56: =SUM(X$15:X35)+$B$38+$AJ56*$L$10/100 -> 80.6 | Y56: =SUM(Y$15:Y35)+$B$38+$AJ56*$L$10/100 -> 80.6 | Z56: =SUM(Z$15:Z35)+$B$38+$AJ56*$L$10/100 -> 80.6 | AA56: =SUM(AA$15:AA35)+$B$38+$AJ56*$L$10/100 -> 80.6 | AB56: =SUM(AB$15:AB35)+$B$38+$AJ56*$L$10/100 -> 80.6 | AC56: =SUM(AC$15:AC35)+$B$38+$AJ56*$L$10/100 -> 80.6 | AD56: =SUM(AD$15:AD35)+$B$38+$AJ56*$L$10/100 -> 80.6 | AE56: =SUM(AE$15:AE35)+$B$38+$AJ56*$L$10/100 -> 80.6 | AF56: =SUM(AF$15:AF35)+$B$38+$AJ56*$L$10/100 -> 80.6 | AJ56: 20
B58: 材長（延びを除いた）
B59: =+B10 -> 40 | C59: 年生
B60: 胸高直径 | C60: cm以上 | D60: =+D11 -> 0 | E60: =+E11 -> 2 | F60: 4 | G60: 6 | H60: 8 | I60: 10 | J60: 12 | K60: 14 | L60: 16 | M60: 18 | N60: 20 | O60: 22 | P60: 24 | Q60: 26 | R60: 28 | S60: 30 | T60: 32 | U60: 34 | V60: 36 | W60: 38 | X60: 40 | Y60: 42 | Z60: 44 | AA60: 46 | AB60: 48 | AC60: 50 | AD60: 52 | AE60: 54 | AF60: 56
C61: cm未満 | D61: =+D12 -> 2 | E61: 4 | F61: 6 | G61: 8 | H61: 10 | I61: 12 | J61: 14 | K61: 16 | L61: 18 | M61: 20 | N61: 22 | O61: 24 | P61: 26 | Q61: 28 | R61: 30 | S61: 32 | T61: 34 | U61: 36 | V61: 38 | W61: 40 | X61: 42 | Y61: 44 | Z61: 46 | AA61: 48 | AB61: 50 | AC61: 52 | AD61: 54 | AE61: 56 | AF61: 58
B62: 立木本数 | C62: 本/ha | D62: =VLOOKUP($B$87,Sheet1!$AD$89:$BG$124,D$87) -> 0 | E62: =VLOOKUP($B$87,Sheet1!$AD$89:$BG$124,E$87) -> 0 | F62: =VLOOKUP($B$87,Sheet1!$AD$89:$BG$124,F$87) -> 0 | G62: =VLOOKUP($B$87,Sheet1!$AD$89:$BG$124,G$87) -> 0 | H62: =VLOOKUP($B$87,Sheet1!$AD$89:$BG$124,H$87) -> 0 | I62: =VLOOKUP($B$87,Sheet1!$AD$89:$BG$124,I$87) -> 0 | J62: =VLOOKUP($B$87,Sheet1!$AD$89:$BG$124,J$87) -> 0 | K62: =VLOOKUP($B$87,Sheet1!$AD$89:$BG$124,K$87) -> 20 | L62: =VLOOKUP($B$87,Sheet1!$AD$89:$BG$124,L$87) -> 40 | M62: =VLOOKUP($B$87,Sheet1!$AD$89:$BG$124,M$87) -> 40 | N62: =VLOOKUP($B$87,Sheet1!$AD$89:$BG$124,N$87) -> 50 | O62: =VLOOKUP($B$87,Sheet1!$AD$89:$BG$124,O$87) -> 30 | P62: =VLOOKUP($B$87,Sheet1!$AD$89:$BG$124,P$87) -> 30 | Q62: =VLOOKUP($B$87,Sheet1!$AD$89:$BG$124,Q$87) -> 20 | R62: =VLOOKUP($B$87,Sheet1!$AD$89:$BG$124,R$87) -> 0 | S62: =VLOOKUP($B$87,Sheet1!$AD$89:$BG$124,S$87) -> 0 | T62: =VLOOKUP($B$87,Sheet1!$AD$89:$BG$124,T$87) -> 0 | U62: =VLOOKUP($B$87,Sheet1!$AD$89:$BG$124,U$87) -> 0 | V62: =VLOOKUP($B$87,Sheet1!$AD$89:$BG$124,V$87) -> 0 | W62: =VLOOKUP($B$87,Sheet1!$AD$89:$BG$124,W$87) -> 0 | X62: =VLOOKUP($B$87,Sheet1!$AD$89:$BG$124,X$87) -> 0 | Y62: =VLOOKUP($B$87,Sheet1!$AD$89:$BG$124,Y$87) -> 0 | Z62: =VLOOKUP($B$87,Sheet1!$AD$89:$BG$124,Z$87) -> 0 | AA62: =VLOOKUP($B$87,Sheet1!$AD$89:$BG$124,AA$87) -> 0 | AB62: =VLOOKUP($B$87,Sheet1!$AD$89:$BG$124,AB$87) -> 0 | AC62: =VLOOKUP($B$87,Sheet1!$AD$89:$BG$124,AC$87) -> 0 | AD62: =VLOOKUP($B$87,Sheet1!$AD$89:$BG$124,AD$87) -> 0 | AE62: =VLOOKUP($B$87,Sheet1!$AD$89:$BG$124,AE$87) -> 0 | AF62: =VLOOKUP($B$87,Sheet1!$AD$89:$BG$124,AF$87) -> 0
B63: 樹高 | C63: m | D63: =+D14 ->  | E63: =+E14 ->  | K63: 17 | L63: 19 | M63: 20 | N63: 21 | O63: 22 | P63: 23 | Q63: 24
C64: 追上 | D64: =IF(OR(D$62=0,D36>D$63),"",D15) ->  | E64: =IF(OR(E$62=0,E36>E$63),"",E15) ->  | K64: 0.3 | L64: 0.3 | M64: 0.3 | N64: 0.3 | O64: 0.3 | P64: 0.3 | Q64: 0.3
C65: 1番玉 | E65: =IF(OR(E$62=0,E37>E$63),"",E16) ->  | K65: 4.0 | L65: 4.0 | M65: 4.0 | N65: 4.0 | O65: 4.0 | P65: 4.0 | Q65: 4.0
C66: 2番玉 | E66: =IF(OR(E$62=0,E38>E$63),"",E17) ->  | K66: 4.0 | L66: 4.0 | M66: 4.0 | N66: 4.0 | O66: 4.0 | P66: 4.0 | Q66: 4.0
C67: 3番玉 | E67: =IF(OR(E$62=0,E39>E$63),"",E18) ->  | K67: 4.0 | L67: 4.0 | M67: 4.0 | N67: 4.0 | O67: 4.0 | P67: 4.0 | Q67: 4.0
C68: 4番玉 | E68: =IF(OR(E$62=0,E40>E$63),"",E19) ->  | K68: 4.0 | L68: 4.0 | M68: 4.0 | N68: 4.0 | O68: 4.0 | P68: 4.0 | Q68: 4.0
C69: 5番玉 | E69: =IF(OR(E$62=0,E41>E$63),"",E20) ->  | N69: 4.0 | O69: 4.0 | P69: 4.0 | Q69: 4.0
C70: 6番玉 | E70: =IF(OR(E$62=0,E42>E$63),"",E21) -> 
C71: 7番玉 | E71: =IF(OR(E$62=0,E43>E$63),"",E22) -> 
C72: 8番玉 | E72: =IF(OR(E$62=0,E44>E$63),"",E23) -> 
C73: 9番玉 | E73: =IF(OR(E$62=0,E45>E$63),"",E24) -> 
C74: 10番玉 | E74: =IF(OR(E$62=0,E46>E$63),"",E25) ->  | AA74: =IF(OR(AA$62=0,AA46>AA$63),"",AA25) -> 
C75: 11番玉 | E75: =IF(OR(E$62=0,E47>E$63),"",E26) ->  | AA75: =IF(OR(AA$62=0,AA47>AA$63),"",AA26) -> 
C76: 12番玉 | E76: =IF(OR(E$62=0,E48>E$63),"",E27) -> 
C77: 13番玉 | E77: =IF(OR(E$62=0,E49>E$63),"",E28) -> 
C78: 14番玉 | E78: =IF(OR(E$62=0,E50>E$63),"",E29) -> 
C79: 15番玉 | E79: =IF(OR(E$62=0,E51>E$63),"",E30) -> 
C80: 16番玉 | E80: =IF(OR(E$62=0,E52>E$63),"",E31) -> 
C81: 17番玉 | E81: =IF(OR(E$62=0,E53>E$63),"",E32) -> 
C82: 18番玉 | E82: =IF(OR(E$62=0,E54>E$63),"",E33) -> 
C83: 19番玉 | E83: =IF(OR(E$62=0,E55>E$63),"",E34) ->  | AA83: =IF(OR(AA$62=0,AA55>AA$63),"",AA34) -> 
C84: 20番玉 | D84: =IF(OR(D$62=0,D56>D$63),"",D35) -> 
B86: 末口径
B87: =+B10 -> 40 | C87: 年生 | D87: 2 | E87: 3 | F87: 4 | G87: 5 | H87: 6 | I87: 7 | J87: 8 | K87: 9 | L87: 10 | M87: 11 | N87: 12 | O87: 13 | P87: 14 | Q87: 15 | R87: 16 | S87: 17 | T87: 18 | U87: 19 | V87: 20 | W87: 21 | X87: 22 | Y87: 23 | Z87: 24 | AA87: 25 | AB87: 26 | AC87: 27 | AD87: 28 | AE87: 29 | AF87: 30
B88: 胸高直径 | C88: cm以上 | D88: =D60 -> 0 | E88: =E60 -> 2 | F88: 4 | G88: 6 | H88: 8 | I88: 10 | J88: 12 | K88: 14 | L88: 16 | M88: 18 | N88: 20 | O88: 22 | P88: 24 | Q88: 26 | R88: 28 | S88: 30 | T88: 32 | U88: 34 | V88: 36 | W88: 38 | X88: 40 | Y88: 42 | Z88: 44 | AA88: 46 | AB88: 48 | AC88: 50 | AD88: 52 | AE88: 54 | AF88: 56
C89: cm未満 | D89: =D61 -> 2 | E89: =E61 -> 4 | F89: 6 | G89: 8 | H89: 10 | I89: 12 | J89: 14 | K89: 16 | L89: 18 | M89: 20 | N89: 22 | O89: 24 | P89: 26 | Q89: 28 | R89: 30 | S89: 32 | T89: 34 | U89: 36 | V89: 38 | W89: 40 | X89: 42 | Y89: 44 | Z89: 46 | AA89: 48 | AB89: 50 | AC89: 52 | AD89: 54 | AE89: 56 | AF89: 58
B90: 立木本数 | C90: 本/ha | D90: =D62 -> 0 | E90: =E62 -> 0 | F90: 0 | G90: 0 | H90: 0 | I90: 0 | J90: 0 | K90: 20 | L90: 40 | M90: 40 | N90: 50 | O90: 30 | P90: 30 | Q90: 20 | R90: 0 | S90: 0 | T90: 0 | U90: 0 | V90: 0 | W90: 0 | X90: 0 | Y90: 0 | Z90: 0 | AA90: 0 | AB90: 0 | AC90: 0 | AD90: 0 | AE90: 0 | AF90: 0
B91: 樹高 | C91: m | D91: =+D63 ->  | E91: =+E63 ->  | K91: 17 | L91: 19 | M91: 20 | N91: 21 | O91: 22 | P91: 23 | Q91: 24
B92: 追上m | C92: =+C15 -> 0.3 | D92: =IF(D64="","",VLOOKUP($B$87,Sheet1!$BH$209:$CK$244,D$87)) ->  | E92: =IF(E64="","",VLOOKUP($B$87,Sheet1!$BH$209:$CK$244,E$87)) ->  | F92: =IF(F64="","",VLOOKUP($B$87,Sheet1!$BH$209:$CK$244,F$87)) ->  | G92: =IF(G64="","",VLOOKUP($B$87,Sheet1!$BH$209:$CK$244,G$87)) ->  | H92: =IF(H64="","",VLOOKUP($B$87,Sheet1!$BH$209:$CK$244,H$87)) ->  | I92: =IF(I64="","",VLOOKUP($B$87,Sheet1!$BH$209:$CK$244,I$87)) ->  | J92: =IF(J64="","",VLOOKUP($B$87,Sheet1!$BH$209:$CK$244,J$87)) ->  | K92: =IF(K64="","",VLOOKUP($B$87,Sheet1!$BH$209:$CK$244,K$87)) -> 15 | L92: =IF(L64="","",VLOOKUP($B$87,Sheet1!$BH$209:$CK$244,L$87)) -> 17 | M92: =IF(M64="","",VLOOKUP($B$87,Sheet1!$BH$209:$CK$244,M$87)) -> 19 | N92: =IF(N64="","",VLOOKUP($B$87,Sheet1!$BH$209:$CK$244,N$87)) -> 21 | O92: =IF(O64="","",VLOOKUP($B$87,Sheet1!$BH$209:$CK$244,O$87)) -> 23 | P92: =IF(P64="","",VLOOKUP($B$87,Sheet1!$BH$209:$CK$244,P$87)) -> 25 | Q92: =IF(Q64="","",VLOOKUP($B$87,Sheet1!$BH$209:$CK$244,Q$87)) -> 27 | R92: =IF(R64="","",VLOOKUP($B$87,Sheet1!$BH$209:$CK$244,R$87)) ->  | S92: =IF(S64="","",VLOOKUP($B$87,Sheet1!$BH$209:$CK$244,S$87)) ->  | T92: =IF(T64="","",VLOOKUP($B$87,Sheet1!$BH$209:$CK$244,T$87)) ->  | U92: =IF(U64="","",VLOOKUP($B$87,Sheet1!$BH$209:$CK$244,U$87)) ->  | V92: =IF(V64="","",VLOOKUP($B$87,Sheet1!$BH$209:$CK$244,V$87)) ->  | W92: =IF(W64="","",VLOOKUP($B$87,Sheet1!$BH$209:$CK$244,W$87)) ->  | X92: =IF(X64="","",VLOOKUP($B$87,Sheet1!$BH$209:$CK$244,X$87)) ->  | Y92: =IF(Y64="","",VLOOKUP($B$87,Sheet1!$BH$209:$CK$244,Y$87)) ->  | Z92: =IF(Z64="","",VLOOKUP($B$87,Sheet1!$BH$209:$CK$244,Z$87)) ->  | AA92: =IF(AA64="","",VLOOKUP($B$87,Sheet1!$BH$209:$CK$244,AA$87)) ->  | AB92: =IF(AB64="","",VLOOKUP($B$87,Sheet1!$BH$209:$CK$244,AB$87)) ->  | AC92: =IF(AC64="","",VLOOKUP($B$87,Sheet1!$BH$209:$CK$244,AC$87)) ->  | AD92: =IF(AD64="","",VLOOKUP($B$87,Sheet1!$BH$209:$CK$244,AD$87)) ->  | AE92: =IF(AE64="","",VLOOKUP($B$87,Sheet1!$BH$209:$CK$244,AE$87)) ->  | AF92: =IF(AF64="","",VLOOKUP($B$87,Sheet1!$BH$209:$CK$244,AF$87)) -> 
C93: 1番玉 | D93: =IF(D65="","",VLOOKUP($B$87,Sheet1t!$AD$301:$BG$336,D$87)) ->  | E93: =IF(E65="","",VLOOKUP($B$87,Sheet1t!$AD$301:$BG$336,E$87)) ->  | F93: =IF(F65="","",VLOOKUP($B$87,Sheet1t!$AD$301:$BG$336,F$87)) ->  | G93: =IF(G65="","",VLOOKUP($B$87,Sheet1t!$AD$301:$BG$336,G$87)) ->  | H93: =IF(H65="","",VLOOKUP($B$87,Sheet1t!$AD$301:$BG$336,H$87)) ->  | I93: =IF(I65="","",VLOOKUP($B$87,Sheet1t!$AD$301:$BG$336,I$87)) ->  | J93: =IF(J65="","",VLOOKUP($B$87,Sheet1t!$AD$301:$BG$336,J$87)) ->  | K93: =IF(K65="","",VLOOKUP($B$87,Sheet1t!$AD$301:$BG$336,K$87)) -> 11 | L93: =IF(L65="","",VLOOKUP($B$87,Sheet1t!$AD$301:$BG$336,L$87)) -> 13 | M93: =IF(M65="","",VLOOKUP($B$87,Sheet1t!$AD$301:$BG$336,M$87)) -> 15 | N93: =IF(N65="","",VLOOKUP($B$87,Sheet1t!$AD$301:$BG$336,N$87)) -> 16 | O93: =IF(O65="","",VLOOKUP($B$87,Sheet1t!$AD$301:$BG$336,O$87)) -> 18 | P93: =IF(P65="","",VLOOKUP($B$87,Sheet1t!$AD$301:$BG$336,P$87)) -> 20 | Q93: =IF(Q65="","",VLOOKUP($B$87,Sheet1t!$AD$301:$BG$336,Q$87)) -> 22 | R93: =IF(R65="","",VLOOKUP($B$87,Sheet1t!$AD$301:$BG$336,R$87)) ->  | S93: =IF(S65="","",VLOOKUP($B$87,Sheet1t!$AD$301:$BG$336,S$87)) ->  | T93: =IF(T65="","",VLOOKUP($B$87,Sheet1t!$AD$301:$BG$336,T$87)) ->  | U93: =IF(U65="","",VLOOKUP($B$87,Sheet1t!$AD$301:$BG$336,U$87)) ->  | V93: =IF(V65="","",VLOOKUP($B$87,Sheet1t!$AD$301:$BG$336,V$87)) ->  | W93: =IF(W65="","",VLOOKUP($B$87,Sheet1t!$AD$301:$BG$336,W$87)) ->  | X93: =IF(X65="","",VLOOKUP($B$87,Sheet1t!$AD$301:$BG$336,X$87)) ->  | Y93: =IF(Y65="","",VLOOKUP($B$87,Sheet1t!$AD$301:$BG$336,Y$87)) ->  | Z93: =IF(Z65="","",VLOOKUP($B$87,Sheet1t!$AD$301:$BG$336,Z$87)) ->  | AA93: =IF(AA65="","",VLOOKUP($B$87,Sheet1t!$AD$301:$BG$336,AA$87)) ->  | AB93: =IF(AB65="","",VLOOKUP($B$87,Sheet1t!$AD$301:$BG$336,AB$87)) ->  | AC93: =IF(AC65="","",VLOOKUP($B$87,Sheet1t!$AD$301:$BG$336,AC$87)) ->  | AD93: =IF(AD65="","",VLOOKUP($B$87,Sheet1t!$AD$301:$BG$336,AD$87)) ->  | AE93: =IF(AE65="","",VLOOKUP($B$87,Sheet1t!$AD$301:$BG$336,AE$87)) ->  | AF93: =IF(AF65="","",VLOOKUP($B$87,Sheet1t!$AD$301:$BG$336,AF$87)) ->  | BP93: =IF(D65="","",VLOOKUP($B$87,Sheet1!$AD$301:$BG$336,D$87)) -> 
C94: 2番玉 | D94: =IF(D66="","",VLOOKUP($B$87,Sheet1t!$AD$636:$BG$671,D$87)) ->  | E94: =IF(E66="","",VLOOKUP($B$87,Sheet1t!$AD$636:$BG$671,E$87)) ->  | F94: =IF(F66="","",VLOOKUP($B$87,Sheet1t!$AD$636:$BG$671,F$87)) ->  | G94: =IF(G66="","",VLOOKUP($B$87,Sheet1t!$AD$636:$BG$671,G$87)) ->  | H94: =IF(H66="","",VLOOKUP($B$87,Sheet1t!$AD$636:$BG$671,H$87)) ->  | I94: =IF(I66="","",VLOOKUP($B$87,Sheet1t!$AD$636:$BG$671,I$87)) ->  | J94: =IF(J66="","",VLOOKUP($B$87,Sheet1t!$AD$636:$BG$671,J$87)) ->  | K94: =IF(K66="","",VLOOKUP($B$87,Sheet1t!$AD$636:$BG$671,K$87)) -> 9 | L94: =IF(L66="","",VLOOKUP($B$87,Sheet1t!$AD$636:$BG$671,L$87)) -> 10 | M94: =IF(M66="","",VLOOKUP($B$87,Sheet1t!$AD$636:$BG$671,M$87)) -> 12 | N94: =IF(N66="","",VLOOKUP($B$87,Sheet1t!$AD$636:$BG$671,N$87)) -> 14 | O94: =IF(O66="","",VLOOKUP($B$87,Sheet1t!$AD$636:$BG$671,O$87)) -> 15 | P94: =IF(P66="","",VLOOKUP($B$87,Sheet1t!$AD$636:$BG$671,P$87)) -> 17 | Q94: =IF(Q66="","",VLOOKUP($B$87,Sheet1t!$AD$636:$BG$671,Q$87)) -> 19 | R94: =IF(R66="","",VLOOKUP($B$87,Sheet1t!$AD$636:$BG$671,R$87)) ->  | S94: =IF(S66="","",VLOOKUP($B$87,Sheet1t!$AD$636:$BG$671,S$87)) ->  | T94: =IF(T66="","",VLOOKUP($B$87,Sheet1t!$AD$636:$BG$671,T$87)) ->  | U94: =IF(U66="","",VLOOKUP($B$87,Sheet1t!$AD$636:$BG$671,U$87)) ->  | V94: =IF(V66="","",VLOOKUP($B$87,Sheet1t!$AD$636:$BG$671,V$87)) ->  | W94: =IF(W66="","",VLOOKUP($B$87,Sheet1t!$AD$636:$BG$671,W$87)) ->  | X94: =IF(X66="","",VLOOKUP($B$87,Sheet1t!$AD$636:$BG$671,X$87)) ->  | Y94: =IF(Y66="","",VLOOKUP($B$87,Sheet1t!$AD$636:$BG$671,Y$87)) ->  | Z94: =IF(Z66="","",VLOOKUP($B$87,Sheet1t!$AD$636:$BG$671,Z$87)) ->  | AA94: =IF(AA66="","",VLOOKUP($B$87,Sheet1t!$AD$636:$BG$671,AA$87)) ->  | AB94: =IF(AB66="","",VLOOKUP($B$87,Sheet1t!$AD$636:$BG$671,AB$87)) ->  | AC94: =IF(AC66="","",VLOOKUP($B$87,Sheet1t!$AD$636:$BG$671,AC$87)) ->  | AD94: =IF(AD66="","",VLOOKUP($B$87,Sheet1t!$AD$636:$BG$671,AD$87)) ->  | AE94: =IF(AE66="","",VLOOKUP($B$87,Sheet1t!$AD$636:$BG$671,AE$87)) ->  | AF94: =IF(AF66="","",VLOOKUP($B$87,Sheet1t!$AD$636:$BG$671,AF$87)) -> 
C95: 3番玉 | D95: =IF(D67="","",VLOOKUP($B$87,Sheet1t!$AD$966:$BG$1001,D$87)) ->  | E95: =IF(E67="","",VLOOKUP($B$87,Sheet1t!$AD$966:$BG$1001,E$87)) ->  | F95: =IF(F67="","",VLOOKUP($B$87,Sheet1t!$AD$966:$BG$1001,F$87)) ->  | G95: =IF(G67="","",VLOOKUP($B$87,Sheet1t!$AD$966:$BG$1001,G$87)) ->  | H95: =IF(H67="","",VLOOKUP($B$87,Sheet1t!$AD$966:$BG$1001,H$87)) ->  | I95: =IF(I67="","",VLOOKUP($B$87,Sheet1t!$AD$966:$BG$1001,I$87)) ->  | J95: =IF(J67="","",VLOOKUP($B$87,Sheet1t!$AD$966:$BG$1001,J$87)) ->  | K95: =IF(K67="","",VLOOKUP($B$87,Sheet1t!$AD$966:$BG$1001,K$87)) -> 6 | L95: =IF(L67="","",VLOOKUP($B$87,Sheet1t!$AD$966:$BG$1001,L$87)) -> 8 | M95: =IF(M67="","",VLOOKUP($B$87,Sheet1t!$AD$966:$BG$1001,M$87)) -> 10 | N95: =IF(N67="","",VLOOKUP($B$87,Sheet1t!$AD$966:$BG$1001,N$87)) -> 11 | O95: =IF(O67="","",VLOOKUP($B$87,Sheet1t!$AD$966:$BG$1001,O$87)) -> 13 | P95: =IF(P67="","",VLOOKUP($B$87,Sheet1t!$AD$966:$BG$1001,P$87)) -> 14 | Q95: =IF(Q67="","",VLOOKUP($B$87,Sheet1t!$AD$966:$BG$1001,Q$87)) -> 16 | R95: =IF(R67="","",VLOOKUP($B$87,Sheet1t!$AD$966:$BG$1001,R$87)) ->  | S95: =IF(S67="","",VLOOKUP($B$87,Sheet1t!$AD$966:$BG$1001,S$87)) ->  | T95: =IF(T67="","",VLOOKUP($B$87,Sheet1t!$AD$966:$BG$1001,T$87)) ->  | U95: =IF(U67="","",VLOOKUP($B$87,Sheet1t!$AD$966:$BG$1001,U$87)) ->  | V95: =IF(V67="","",VLOOKUP($B$87,Sheet1t!$AD$966:$BG$1001,V$87)) ->  | W95: =IF(W67="","",VLOOKUP($B$87,Sheet1t!$AD$966:$BG$1001,W$87)) ->  | X95: =IF(X67="","",VLOOKUP($B$87,Sheet1t!$AD$966:$BG$1001,X$87)) ->  | Y95: =IF(Y67="","",VLOOKUP($B$87,Sheet1t!$AD$966:$BG$1001,Y$87)) ->  | Z95: =IF(Z67="","",VLOOKUP($B$87,Sheet1t!$AD$966:$BG$1001,Z$87)) ->  | AA95: =IF(AA67="","",VLOOKUP($B$87,Sheet1t!$AD$966:$BG$1001,AA$87)) ->  | AB95: =IF(AB67="","",VLOOKUP($B$87,Sheet1t!$AD$966:$BG$1001,AB$87)) ->  | AC95: =IF(AC67="","",VLOOKUP($B$87,Sheet1t!$AD$966:$BG$1001,AC$87)) ->  | AD95: =IF(AD67="","",VLOOKUP($B$87,Sheet1t!$AD$966:$BG$1001,AD$87)) ->  | AE95: =IF(AE67="","",VLOOKUP($B$87,Sheet1t!$AD$966:$BG$1001,AE$87)) ->  | AF95: =IF(AF67="","",VLOOKUP($B$87,Sheet1t!$AD$966:$BG$1001,AF$87)) -> 
C96: 4番玉 | D96: =IF(D68="","",VLOOKUP($B$87,Sheet1t!$AD$1296:$BG$1331,D$87)) ->  | E96: =IF(E68="","",VLOOKUP($B$87,Sheet1t!$AD$1296:$BG$1331,E$87)) ->  | F96: =IF(F68="","",VLOOKUP($B$87,Sheet1t!$AD$1296:$BG$1331,F$87)) ->  | G96: =IF(G68="","",VLOOKUP($B$87,Sheet1t!$AD$1296:$BG$1331,G$87)) ->  | H96: =IF(H68="","",VLOOKUP($B$87,Sheet1t!$AD$1296:$BG$1331,H$87)) ->  | I96: =IF(I68="","",VLOOKUP($B$87,Sheet1t!$AD$1296:$BG$1331,I$87)) ->  | J96: =IF(J68="","",VLOOKUP($B$87,Sheet1t!$AD$1296:$BG$1331,J$87)) ->  | K96: =IF(K68="","",VLOOKUP($B$87,Sheet1t!$AD$1296:$BG$1331,K$87)) -> 1 | L96: =IF(L68="","",VLOOKUP($B$87,Sheet1t!$AD$1296:$BG$1331,L$87)) -> 4 | M96: =IF(M68="","",VLOOKUP($B$87,Sheet1t!$AD$1296:$BG$1331,M$87)) -> 6 | N96: =IF(N68="","",VLOOKUP($B$87,Sheet1t!$AD$1296:$BG$1331,N$87)) -> 7 | O96: =IF(O68="","",VLOOKUP($B$87,Sheet1t!$AD$1296:$BG$1331,O$87)) -> 9 | P96: =IF(P68="","",VLOOKUP($B$87,Sheet1t!$AD$1296:$BG$1331,P$87)) -> 11 | Q96: =IF(Q68="","",VLOOKUP($B$87,Sheet1t!$AD$1296:$BG$1331,Q$87)) -> 12 | R96: =IF(R68="","",VLOOKUP($B$87,Sheet1t!$AD$1296:$BG$1331,R$87)) ->  | S96: =IF(S68="","",VLOOKUP($B$87,Sheet1t!$AD$1296:$BG$1331,S$87)) ->  | T96: =IF(T68="","",VLOOKUP($B$87,Sheet1t!$AD$1296:$BG$1331,T$87)) ->  | U96: =IF(U68="","",VLOOKUP($B$87,Sheet1t!$AD$1296:$BG$1331,U$87)) ->  | V96: =IF(V68="","",VLOOKUP($B$87,Sheet1t!$AD$1296:$BG$1331,V$87)) ->  | W96: =IF(W68="","",VLOOKUP($B$87,Sheet1t!$AD$1296:$BG$1331,W$87)) ->  | X96: =IF(X68="","",VLOOKUP($B$87,Sheet1t!$AD$1296:$BG$1331,X$87)) ->  | Y96: =IF(Y68="","",VLOOKUP($B$87,Sheet1t!$AD$1296:$BG$1331,Y$87)) ->  | Z96: =IF(Z68="","",VLOOKUP($B$87,Sheet1t!$AD$1296:$BG$1331,Z$87)) ->  | AA96: =IF(AA68="","",VLOOKUP($B$87,Sheet1t!$AD$1296:$BG$1331,AA$87)) ->  | AB96: =IF(AB68="","",VLOOKUP($B$87,Sheet1t!$AD$1296:$BG$1331,AB$87)) ->  | AC96: =IF(AC68="","",VLOOKUP($B$87,Sheet1t!$AD$1296:$BG$1331,AC$87)) ->  | AD96: =IF(AD68="","",VLOOKUP($B$87,Sheet1t!$AD$1296:$BG$1331,AD$87)) ->  | AE96: =IF(AE68="","",VLOOKUP($B$87,Sheet1t!$AD$1296:$BG$1331,AE$87)) ->  | AF96: =IF(AF68="","",VLOOKUP($B$87,Sheet1t!$AD$1296:$BG$1331,AF$87)) -> 
C97: 5番玉 | D97: =IF(D69="","",VLOOKUP($B$87,Sheet1t!$AD$1636:$BG$1671,D$87)) ->  | E97: =IF(E69="","",VLOOKUP($B$87,Sheet1t!$AD$1636:$BG$1671,E$87)) ->  | F97: =IF(F69="","",VLOOKUP($B$87,Sheet1t!$AD$1636:$BG$1671,F$87)) ->  | G97: =IF(G69="","",VLOOKUP($B$87,Sheet1t!$AD$1636:$BG$1671,G$87)) ->  | H97: =IF(H69="","",VLOOKUP($B$87,Sheet1t!$AD$1636:$BG$1671,H$87)) ->  | I97: =IF(I69="","",VLOOKUP($B$87,Sheet1t!$AD$1636:$BG$1671,I$87)) ->  | J97: =IF(J69="","",VLOOKUP($B$87,Sheet1t!$AD$1636:$BG$1671,J$87)) ->  | K97: =IF(K69="","",VLOOKUP($B$87,Sheet1t!$AD$1636:$BG$1671,K$87)) ->  | L97: =IF(L69="","",VLOOKUP($B$87,Sheet1t!$AD$1636:$BG$1671,L$87)) ->  | M97: =IF(M69="","",VLOOKUP($B$87,Sheet1t!$AD$1636:$BG$1671,M$87)) ->  | N97: =IF(N69="","",VLOOKUP($B$87,Sheet1t!$AD$1636:$BG$1671,N$87)) -> 1 | O97: =IF(O69="","",VLOOKUP($B$87,Sheet1t!$AD$1636:$BG$1671,O$87)) -> 3 | P97: =IF(P69="","",VLOOKUP($B$87,Sheet1t!$AD$1636:$BG$1671,P$87)) -> 5 | Q97: =IF(Q69="","",VLOOKUP($B$87,Sheet1t!$AD$1636:$BG$1671,Q$87)) -> 7 | R97: =IF(R69="","",VLOOKUP($B$87,Sheet1t!$AD$1636:$BG$1671,R$87)) ->  | S97: =IF(S69="","",VLOOKUP($B$87,Sheet1t!$AD$1636:$BG$1671,S$87)) ->  | T97: =IF(T69="","",VLOOKUP($B$87,Sheet1t!$AD$1636:$BG$1671,T$87)) ->  | U97: =IF(U69="","",VLOOKUP($B$87,Sheet1t!$AD$1636:$BG$1671,U$87)) ->  | V97: =IF(V69="","",VLOOKUP($B$87,Sheet1t!$AD$1636:$BG$1671,V$87)) ->  | W97: =IF(W69="","",VLOOKUP($B$87,Sheet1t!$AD$1636:$BG$1671,W$87)) ->  | X97: =IF(X69="","",VLOOKUP($B$87,Sheet1t!$AD$1636:$BG$1671,X$87)) ->  | Y97: =IF(Y69="","",VLOOKUP($B$87,Sheet1t!$AD$1636:$BG$1671,Y$87)) ->  | Z97: =IF(Z69="","",VLOOKUP($B$87,Sheet1t!$AD$1636:$BG$1671,Z$87)) ->  | AA97: =IF(AA69="","",VLOOKUP($B$87,Sheet1t!$AD$1636:$BG$1671,AA$87)) ->  | AB97: =IF(AB69="","",VLOOKUP($B$87,Sheet1t!$AD$1636:$BG$1671,AB$87)) ->  | AC97: =IF(AC69="","",VLOOKUP($B$87,Sheet1t!$AD$1636:$BG$1671,AC$87)) ->  | AD97: =IF(AD69="","",VLOOKUP($B$87,Sheet1t!$AD$1636:$BG$1671,AD$87)) ->  | AE97: =IF(AE69="","",VLOOKUP($B$87,Sheet1t!$AD$1636:$BG$1671,AE$87)) ->  | AF97: =IF(AF69="","",VLOOKUP($B$87,Sheet1t!$AD$1636:$BG$1671,AF$87)) -> 
C98: 6番玉 | D98: =IF(D70="","",VLOOKUP($B$87,Sheet1t!$AD$1966:$BG$2001,D$87)) ->  | E98: =IF(E70="","",VLOOKUP($B$87,Sheet1t!$AD$1966:$BG$2001,E$87)) ->  | F98: =IF(F70="","",VLOOKUP($B$87,Sheet1t!$AD$1966:$BG$2001,F$87)) ->  | G98: =IF(G70="","",VLOOKUP($B$87,Sheet1t!$AD$1966:$BG$2001,G$87)) ->  | H98: =IF(H70="","",VLOOKUP($B$87,Sheet1t!$AD$1966:$BG$2001,H$87)) ->  | I98: =IF(I70="","",VLOOKUP($B$87,Sheet1t!$AD$1966:$BG$2001,I$87)) ->  | J98: =IF(J70="","",VLOOKUP($B$87,Sheet1t!$AD$1966:$BG$2001,J$87)) ->  | K98: =IF(K70="","",VLOOKUP($B$87,Sheet1t!$AD$1966:$BG$2001,K$87)) ->  | L98: =IF(L70="","",VLOOKUP($B$87,Sheet1t!$AD$1966:$BG$2001,L$87)) ->  | M98: =IF(M70="","",VLOOKUP($B$87,Sheet1t!$AD$1966:$BG$2001,M$87)) ->  | N98: =IF(N70="","",VLOOKUP($B$87,Sheet1t!$AD$1966:$BG$2001,N$87)) ->  | O98: =IF(O70="","",VLOOKUP($B$87,Sheet1t!$AD$1966:$BG$2001,O$87)) ->  | P98: =IF(P70="","",VLOOKUP($B$87,Sheet1t!$AD$1966:$BG$2001,P$87)) ->  | Q98: =IF(Q70="","",VLOOKUP($B$87,Sheet1t!$AD$1966:$BG$2001,Q$87)) ->  | R98: =IF(R70="","",VLOOKUP($B$87,Sheet1t!$AD$1966:$BG$2001,R$87)) ->  | S98: =IF(S70="","",VLOOKUP($B$87,Sheet1t!$AD$1966:$BG$2001,S$87)) ->  | T98: =IF(T70="","",VLOOKUP($B$87,Sheet1t!$AD$1966:$BG$2001,T$87)) ->  | U98: =IF(U70="","",VLOOKUP($B$87,Sheet1t!$AD$1966:$BG$2001,U$87)) ->  | V98: =IF(V70="","",VLOOKUP($B$87,Sheet1t!$AD$1966:$BG$2001,V$87)) ->  | W98: =IF(W70="","",VLOOKUP($B$87,Sheet1t!$AD$1966:$BG$2001,W$87)) ->  | X98: =IF(X70="","",VLOOKUP($B$87,Sheet1t!$AD$1966:$BG$2001,X$87)) ->  | Y98: =IF(Y70="","",VLOOKUP($B$87,Sheet1t!$AD$1966:$BG$2001,Y$87)) ->  | Z98: =IF(Z70="","",VLOOKUP($B$87,Sheet1t!$AD$1966:$BG$2001,Z$87)) ->  | AA98: =IF(AA70="","",VLOOKUP($B$87,Sheet1t!$AD$1966:$BG$2001,AA$87)) ->  | AB98: =IF(AB70="","",VLOOKUP($B$87,Sheet1t!$AD$1966:$BG$2001,AB$87)) ->  | AC98: =IF(AC70="","",VLOOKUP($B$87,Sheet1t!$AD$1966:$BG$2001,AC$87)) ->  | AD98: =IF(AD70="","",VLOOKUP($B$87,Sheet1t!$AD$1966:$BG$2001,AD$87)) ->  | AE98: =IF(AE70="","",VLOOKUP($B$87,Sheet1t!$AD$1966:$BG$2001,AE$87)) ->  | AF98: =IF(AF70="","",VLOOKUP($B$87,Sheet1t!$AD$1966:$BG$2001,AF$87)) -> 
C99: 7番玉 | D99: =IF(D71="","",VLOOKUP($B$87,Sheet1t!$AD$2296:$BG$2331,D$87)) ->  | E99: =IF(E71="","",VLOOKUP($B$87,Sheet1t!$AD$2296:$BG$2331,E$87)) ->  | F99: =IF(F71="","",VLOOKUP($B$87,Sheet1t!$AD$2296:$BG$2331,F$87)) ->  | G99: =IF(G71="","",VLOOKUP($B$87,Sheet1t!$AD$2296:$BG$2331,G$87)) ->  | H99: =IF(H71="","",VLOOKUP($B$87,Sheet1t!$AD$2296:$BG$2331,H$87)) ->  | I99: =IF(I71="","",VLOOKUP($B$87,Sheet1t!$AD$2296:$BG$2331,I$87)) ->  | J99: =IF(J71="","",VLOOKUP($B$87,Sheet1t!$AD$2296:$BG$2331,J$87)) ->  | K99: =IF(K71="","",VLOOKUP($B$87,Sheet1t!$AD$2296:$BG$2331,K$87)) ->  | L99: =IF(L71="","",VLOOKUP($B$87,Sheet1t!$AD$2296:$BG$2331,L$87)) ->  | M99: =IF(M71="","",VLOOKUP($B$87,Sheet1t!$AD$2296:$BG$2331,M$87)) ->  | N99: =IF(N71="","",VLOOKUP($B$87,Sheet1t!$AD$2296:$BG$2331,N$87)) ->  | O99: =IF(O71="","",VLOOKUP($B$87,Sheet1t!$AD$2296:$BG$2331,O$87)) ->  | P99: =IF(P71="","",VLOOKUP($B$87,Sheet1t!$AD$2296:$BG$2331,P$87)) ->  | Q99: =IF(Q71="","",VLOOKUP($B$87,Sheet1t!$AD$2296:$BG$2331,Q$87)) ->  | R99: =IF(R71="","",VLOOKUP($B$87,Sheet1t!$AD$2296:$BG$2331,R$87)) ->  | S99: =IF(S71="","",VLOOKUP($B$87,Sheet1t!$AD$2296:$BG$2331,S$87)) ->  | T99: =IF(T71="","",VLOOKUP($B$87,Sheet1t!$AD$2296:$BG$2331,T$87)) ->  | U99: =IF(U71="","",VLOOKUP($B$87,Sheet1t!$AD$2296:$BG$2331,U$87)) ->  | V99: =IF(V71="","",VLOOKUP($B$87,Sheet1t!$AD$2296:$BG$2331,V$87)) ->  | W99: =IF(W71="","",VLOOKUP($B$87,Sheet1t!$AD$2296:$BG$2331,W$87)) ->  | X99: =IF(X71="","",VLOOKUP($B$87,Sheet1t!$AD$2296:$BG$2331,X$87)) ->  | Y99: =IF(Y71="","",VLOOKUP($B$87,Sheet1t!$AD$2296:$BG$2331,Y$87)) ->  | Z99: =IF(Z71="","",VLOOKUP($B$87,Sheet1t!$AD$2296:$BG$2331,Z$87)) ->  | AA99: =IF(AA71="","",VLOOKUP($B$87,Sheet1t!$AD$2296:$BG$2331,AA$87)) ->  | AB99: =IF(AB71="","",VLOOKUP($B$87,Sheet1t!$AD$2296:$BG$2331,AB$87)) ->  | AC99: =IF(AC71="","",VLOOKUP($B$87,Sheet1t!$AD$2296:$BG$2331,AC$87)) ->  | AD99: =IF(AD71="","",VLOOKUP($B$87,Sheet1t!$AD$2296:$BG$2331,AD$87)) ->  | AE99: =IF(AE71="","",VLOOKUP($B$87,Sheet1t!$AD$2296:$BG$2331,AE$87)) ->  | AF99: =IF(AF71="","",VLOOKUP($B$87,Sheet1t!$AD$2296:$BG$2331,AF$87)) -> 
C100: 8番玉 | D100: =IF(D72="","",VLOOKUP($B$87,Sheet1t!$AD$2626:$BG$2661,D$87)) ->  | E100: =IF(E72="","",VLOOKUP($B$87,Sheet1t!$AD$2626:$BG$2661,E$87)) ->  | F100: =IF(F72="","",VLOOKUP($B$87,Sheet1t!$AD$2626:$BG$2661,F$87)) ->  | G100: =IF(G72="","",VLOOKUP($B$87,Sheet1t!$AD$2626:$BG$2661,G$87)) ->  | H100: =IF(H72="","",VLOOKUP($B$87,Sheet1t!$AD$2626:$BG$2661,H$87)) ->  | I100: =IF(I72="","",VLOOKUP($B$87,Sheet1t!$AD$2626:$BG$2661,I$87)) ->  | J100: =IF(J72="","",VLOOKUP($B$87,Sheet1t!$AD$2626:$BG$2661,J$87)) ->  | K100: =IF(K72="","",VLOOKUP($B$87,Sheet1t!$AD$2626:$BG$2661,K$87)) ->  | L100: =IF(L72="","",VLOOKUP($B$87,Sheet1t!$AD$2626:$BG$2661,L$87)) ->  | M100: =IF(M72="","",VLOOKUP($B$87,Sheet1t!$AD$2626:$BG$2661,M$87)) ->  | N100: =IF(N72="","",VLOOKUP($B$87,Sheet1t!$AD$2626:$BG$2661,N$87)) ->  | O100: =IF(O72="","",VLOOKUP($B$87,Sheet1t!$AD$2626:$BG$2661,O$87)) ->  | P100: =IF(P72="","",VLOOKUP($B$87,Sheet1t!$AD$2626:$BG$2661,P$87)) ->  | Q100: =IF(Q72="","",VLOOKUP($B$87,Sheet1t!$AD$2626:$BG$2661,Q$87)) ->  | R100: =IF(R72="","",VLOOKUP($B$87,Sheet1t!$AD$2626:$BG$2661,R$87)) ->  | S100: =IF(S72="","",VLOOKUP($B$87,Sheet1t!$AD$2626:$BG$2661,S$87)) ->  | T100: =IF(T72="","",VLOOKUP($B$87,Sheet1t!$AD$2626:$BG$2661,T$87)) ->  | U100: =IF(U72="","",VLOOKUP($B$87,Sheet1t!$AD$2626:$BG$2661,U$87)) ->  | V100: =IF(V72="","",VLOOKUP($B$87,Sheet1t!$AD$2626:$BG$2661,V$87)) ->  | W100: =IF(W72="","",VLOOKUP($B$87,Sheet1t!$AD$2626:$BG$2661,W$87)) ->  | X100: =IF(X72="","",VLOOKUP($B$87,Sheet1t!$AD$2626:$BG$2661,X$87)) ->  | Y100: =IF(Y72="","",VLOOKUP($B$87,Sheet1t!$AD$2626:$BG$2661,Y$87)) ->  | Z100: =IF(Z72="","",VLOOKUP($B$87,Sheet1t!$AD$2626:$BG$2661,Z$87)) ->  | AA100: =IF(AA72="","",VLOOKUP($B$87,Sheet1t!$AD$2626:$BG$2661,AA$87)) ->  | AB100: =IF(AB72="","",VLOOKUP($B$87,Sheet1t!$AD$2626:$BG$2661,AB$87)) ->  | AC100: =IF(AC72="","",VLOOKUP($B$87,Sheet1t!$AD$2626:$BG$2661,AC$87)) ->  | AD100: =IF(AD72="","",VLOOKUP($B$87,Sheet1t!$AD$2626:$BG$2661,AD$87)) ->  | AE100: =IF(AE72="","",VLOOKUP($B$87,Sheet1t!$AD$2626:$BG$2661,AE$87)) ->  | AF100: =IF(AF72="","",VLOOKUP($B$87,Sheet1t!$AD$2626:$BG$2661,AF$87)) -> 
C101: 9番玉 | D101: =IF(D73="","",VLOOKUP($B$87,Sheet1t!$AD$2956:$BG$2991,D$87)) ->  | E101: =IF(E73="","",VLOOKUP($B$87,Sheet1t!$AD$2956:$BG$2991,E$87)) ->  | F101: =IF(F73="","",VLOOKUP($B$87,Sheet1t!$AD$2956:$BG$2991,F$87)) ->  | G101: =IF(G73="","",VLOOKUP($B$87,Sheet1t!$AD$2956:$BG$2991,G$87)) ->  | H101: =IF(H73="","",VLOOKUP($B$87,Sheet1t!$AD$2956:$BG$2991,H$87)) ->  | I101: =IF(I73="","",VLOOKUP($B$87,Sheet1t!$AD$2956:$BG$2991,I$87)) ->  | J101: =IF(J73="","",VLOOKUP($B$87,Sheet1t!$AD$2956:$BG$2991,J$87)) ->  | K101: =IF(K73="","",VLOOKUP($B$87,Sheet1t!$AD$2956:$BG$2991,K$87)) ->  | L101: =IF(L73="","",VLOOKUP($B$87,Sheet1t!$AD$2956:$BG$2991,L$87)) ->  | M101: =IF(M73="","",VLOOKUP($B$87,Sheet1t!$AD$2956:$BG$2991,M$87)) ->  | N101: =IF(N73="","",VLOOKUP($B$87,Sheet1t!$AD$2956:$BG$2991,N$87)) ->  | O101: =IF(O73="","",VLOOKUP($B$87,Sheet1t!$AD$2956:$BG$2991,O$87)) ->  | P101: =IF(P73="","",VLOOKUP($B$87,Sheet1t!$AD$2956:$BG$2991,P$87)) ->  | Q101: =IF(Q73="","",VLOOKUP($B$87,Sheet1t!$AD$2956:$BG$2991,Q$87)) ->  | R101: =IF(R73="","",VLOOKUP($B$87,Sheet1t!$AD$2956:$BG$2991,R$87)) ->  | S101: =IF(S73="","",VLOOKUP($B$87,Sheet1t!$AD$2956:$BG$2991,S$87)) ->  | T101: =IF(T73="","",VLOOKUP($B$87,Sheet1t!$AD$2956:$BG$2991,T$87)) ->  | U101: =IF(U73="","",VLOOKUP($B$87,Sheet1t!$AD$2956:$BG$2991,U$87)) ->  | V101: =IF(V73="","",VLOOKUP($B$87,Sheet1t!$AD$2956:$BG$2991,V$87)) ->  | W101: =IF(W73="","",VLOOKUP($B$87,Sheet1t!$AD$2956:$BG$2991,W$87)) ->  | X101: =IF(X73="","",VLOOKUP($B$87,Sheet1t!$AD$2956:$BG$2991,X$87)) ->  | Y101: =IF(Y73="","",VLOOKUP($B$87,Sheet1t!$AD$2956:$BG$2991,Y$87)) ->  | Z101: =IF(Z73="","",VLOOKUP($B$87,Sheet1t!$AD$2956:$BG$2991,Z$87)) ->  | AA101: =IF(AA73="","",VLOOKUP($B$87,Sheet1t!$AD$2956:$BG$2991,AA$87)) ->  | AB101: =IF(AB73="","",VLOOKUP($B$87,Sheet1t!$AD$2956:$BG$2991,AB$87)) ->  | AC101: =IF(AC73="","",VLOOKUP($B$87,Sheet1t!$AD$2956:$BG$2991,AC$87)) ->  | AD101: =IF(AD73="","",VLOOKUP($B$87,Sheet1t!$AD$2956:$BG$2991,AD$87)) ->  | AE101: =IF(AE73="","",VLOOKUP($B$87,Sheet1t!$AD$2956:$BG$2991,AE$87)) ->  | AF101: =IF(AF73="","",VLOOKUP($B$87,Sheet1t!$AD$2956:$BG$2991,AF$87)) -> 
C102: 10番玉 | D102: =IF(D74="","",VLOOKUP($B$87,Sheet1t!$AD$3286:$BG$3321,D$87)) ->  | E102: =IF(E74="","",VLOOKUP($B$87,Sheet1t!$AD$3286:$BG$3321,E$87)) ->  | F102: =IF(F74="","",VLOOKUP($B$87,Sheet1t!$AD$3286:$BG$3321,F$87)) ->  | G102: =IF(G74="","",VLOOKUP($B$87,Sheet1t!$AD$3286:$BG$3321,G$87)) ->  | H102: =IF(H74="","",VLOOKUP($B$87,Sheet1t!$AD$3286:$BG$3321,H$87)) ->  | I102: =IF(I74="","",VLOOKUP($B$87,Sheet1t!$AD$3286:$BG$3321,I$87)) ->  | J102: =IF(J74="","",VLOOKUP($B$87,Sheet1t!$AD$3286:$BG$3321,J$87)) ->  | K102: =IF(K74="","",VLOOKUP($B$87,Sheet1t!$AD$3286:$BG$3321,K$87)) ->  | L102: =IF(L74="","",VLOOKUP($B$87,Sheet1t!$AD$3286:$BG$3321,L$87)) ->  | M102: =IF(M74="","",VLOOKUP($B$87,Sheet1t!$AD$3286:$BG$3321,M$87)) ->  | N102: =IF(N74="","",VLOOKUP($B$87,Sheet1t!$AD$3286:$BG$3321,N$87)) ->  | O102: =IF(O74="","",VLOOKUP($B$87,Sheet1t!$AD$3286:$BG$3321,O$87)) ->  | P102: =IF(P74="","",VLOOKUP($B$87,Sheet1t!$AD$3286:$BG$3321,P$87)) ->  | Q102: =IF(Q74="","",VLOOKUP($B$87,Sheet1t!$AD$3286:$BG$3321,Q$87)) ->  | R102: =IF(R74="","",VLOOKUP($B$87,Sheet1t!$AD$3286:$BG$3321,R$87)) ->  | S102: =IF(S74="","",VLOOKUP($B$87,Sheet1t!$AD$3286:$BG$3321,S$87)) ->  | T102: =IF(T74="","",VLOOKUP($B$87,Sheet1t!$AD$3286:$BG$3321,T$87)) ->  | U102: =IF(U74="","",VLOOKUP($B$87,Sheet1t!$AD$3286:$BG$3321,U$87)) ->  | V102: =IF(V74="","",VLOOKUP($B$87,Sheet1t!$AD$3286:$BG$3321,V$87)) ->  | W102: =IF(W74="","",VLOOKUP($B$87,Sheet1t!$AD$3286:$BG$3321,W$87)) ->  | X102: =IF(X74="","",VLOOKUP($B$87,Sheet1t!$AD$3286:$BG$3321,X$87)) ->  | Y102: =IF(Y74="","",VLOOKUP($B$87,Sheet1t!$AD$3286:$BG$3321,Y$87)) ->  | Z102: =IF(Z74="","",VLOOKUP($B$87,Sheet1t!$AD$3286:$BG$3321,Z$87)) ->  | AA102: =IF(AA74="","",VLOOKUP($B$87,Sheet1t!$AD$3286:$BG$3321,AA$87)) ->  | AB102: =IF(AB74="","",VLOOKUP($B$87,Sheet1t!$AD$3286:$BG$3321,AB$87)) ->  | AC102: =IF(AC74="","",VLOOKUP($B$87,Sheet1t!$AD$3286:$BG$3321,AC$87)) ->  | AD102: =IF(AD74="","",VLOOKUP($B$87,Sheet1t!$AD$3286:$BG$3321,AD$87)) ->  | AE102: =IF(AE74="","",VLOOKUP($B$87,Sheet1t!$AD$3286:$BG$3321,AE$87)) ->  | AF102: =IF(AF74="","",VLOOKUP($B$87,Sheet1t!$AD$3286:$BG$3321,AF$87)) -> 
C103: 11番玉 | D103: =IF(D75="","",VLOOKUP($B$87,Sheet1t!$AD$3616:$BG$3651,D$87)) ->  | E103: =IF(E75="","",VLOOKUP($B$87,Sheet1t!$AD$3616:$BG$3651,E$87)) ->  | F103: =IF(F75="","",VLOOKUP($B$87,Sheet1t!$AD$3616:$BG$3651,F$87)) ->  | G103: =IF(G75="","",VLOOKUP($B$87,Sheet1t!$AD$3616:$BG$3651,G$87)) ->  | H103: =IF(H75="","",VLOOKUP($B$87,Sheet1t!$AD$3616:$BG$3651,H$87)) ->  | I103: =IF(I75="","",VLOOKUP($B$87,Sheet1t!$AD$3616:$BG$3651,I$87)) ->  | J103: =IF(J75="","",VLOOKUP($B$87,Sheet1t!$AD$3616:$BG$3651,J$87)) ->  | K103: =IF(K75="","",VLOOKUP($B$87,Sheet1t!$AD$3616:$BG$3651,K$87)) ->  | L103: =IF(L75="","",VLOOKUP($B$87,Sheet1t!$AD$3616:$BG$3651,L$87)) ->  | M103: =IF(M75="","",VLOOKUP($B$87,Sheet1t!$AD$3616:$BG$3651,M$87)) ->  | N103: =IF(N75="","",VLOOKUP($B$87,Sheet1t!$AD$3616:$BG$3651,N$87)) ->  | O103: =IF(O75="","",VLOOKUP($B$87,Sheet1t!$AD$3616:$BG$3651,O$87)) ->  | P103: =IF(P75="","",VLOOKUP($B$87,Sheet1t!$AD$3616:$BG$3651,P$87)) ->  | Q103: =IF(Q75="","",VLOOKUP($B$87,Sheet1t!$AD$3616:$BG$3651,Q$87)) ->  | R103: =IF(R75="","",VLOOKUP($B$87,Sheet1t!$AD$3616:$BG$3651,R$87)) ->  | S103: =IF(S75="","",VLOOKUP($B$87,Sheet1t!$AD$3616:$BG$3651,S$87)) ->  | T103: =IF(T75="","",VLOOKUP($B$87,Sheet1t!$AD$3616:$BG$3651,T$87)) ->  | U103: =IF(U75="","",VLOOKUP($B$87,Sheet1t!$AD$3616:$BG$3651,U$87)) ->  | V103: =IF(V75="","",VLOOKUP($B$87,Sheet1t!$AD$3616:$BG$3651,V$87)) ->  | W103: =IF(W75="","",VLOOKUP($B$87,Sheet1t!$AD$3616:$BG$3651,W$87)) ->  | X103: =IF(X75="","",VLOOKUP($B$87,Sheet1t!$AD$3616:$BG$3651,X$87)) ->  | Y103: =IF(Y75="","",VLOOKUP($B$87,Sheet1t!$AD$3616:$BG$3651,Y$87)) ->  | Z103: =IF(Z75="","",VLOOKUP($B$87,Sheet1t!$AD$3616:$BG$3651,Z$87)) ->  | AA103: =IF(AA75="","",VLOOKUP($B$87,Sheet1t!$AD$3616:$BG$3651,AA$87)) ->  | AB103: =IF(AB75="","",VLOOKUP($B$87,Sheet1t!$AD$3616:$BG$3651,AB$87)) ->  | AC103: =IF(AC75="","",VLOOKUP($B$87,Sheet1t!$AD$3616:$BG$3651,AC$87)) ->  | AD103: =IF(AD75="","",VLOOKUP($B$87,Sheet1t!$AD$3616:$BG$3651,AD$87)) ->  | AE103: =IF(AE75="","",VLOOKUP($B$87,Sheet1t!$AD$3616:$BG$3651,AE$87)) ->  | AF103: =IF(AF75="","",VLOOKUP($B$87,Sheet1t!$AD$3616:$BG$3651,AF$87)) -> 
C104: 12番玉 | D104: =IF(D76="","",VLOOKUP($B$87,Sheet1t!$AD$3946:$BG$3981,D$87)) ->  | E104: =IF(E76="","",VLOOKUP($B$87,Sheet1t!$AD$3946:$BG$3981,E$87)) ->  | F104: =IF(F76="","",VLOOKUP($B$87,Sheet1t!$AD$3946:$BG$3981,F$87)) ->  | G104: =IF(G76="","",VLOOKUP($B$87,Sheet1t!$AD$3946:$BG$3981,G$87)) ->  | H104: =IF(H76="","",VLOOKUP($B$87,Sheet1t!$AD$3946:$BG$3981,H$87)) ->  | I104: =IF(I76="","",VLOOKUP($B$87,Sheet1t!$AD$3946:$BG$3981,I$87)) ->  | J104: =IF(J76="","",VLOOKUP($B$87,Sheet1t!$AD$3946:$BG$3981,J$87)) ->  | K104: =IF(K76="","",VLOOKUP($B$87,Sheet1t!$AD$3946:$BG$3981,K$87)) ->  | L104: =IF(L76="","",VLOOKUP($B$87,Sheet1t!$AD$3946:$BG$3981,L$87)) ->  | M104: =IF(M76="","",VLOOKUP($B$87,Sheet1t!$AD$3946:$BG$3981,M$87)) ->  | N104: =IF(N76="","",VLOOKUP($B$87,Sheet1t!$AD$3946:$BG$3981,N$87)) ->  | O104: =IF(O76="","",VLOOKUP($B$87,Sheet1t!$AD$3946:$BG$3981,O$87)) ->  | P104: =IF(P76="","",VLOOKUP($B$87,Sheet1t!$AD$3946:$BG$3981,P$87)) ->  | Q104: =IF(Q76="","",VLOOKUP($B$87,Sheet1t!$AD$3946:$BG$3981,Q$87)) ->  | R104: =IF(R76="","",VLOOKUP($B$87,Sheet1t!$AD$3946:$BG$3981,R$87)) ->  | S104: =IF(S76="","",VLOOKUP($B$87,Sheet1t!$AD$3946:$BG$3981,S$87)) ->  | T104: =IF(T76="","",VLOOKUP($B$87,Sheet1t!$AD$3946:$BG$3981,T$87)) ->  | U104: =IF(U76="","",VLOOKUP($B$87,Sheet1t!$AD$3946:$BG$3981,U$87)) ->  | V104: =IF(V76="","",VLOOKUP($B$87,Sheet1t!$AD$3946:$BG$3981,V$87)) ->  | W104: =IF(W76="","",VLOOKUP($B$87,Sheet1t!$AD$3946:$BG$3981,W$87)) ->  | X104: =IF(X76="","",VLOOKUP($B$87,Sheet1t!$AD$3946:$BG$3981,X$87)) ->  | Y104: =IF(Y76="","",VLOOKUP($B$87,Sheet1t!$AD$3946:$BG$3981,Y$87)) ->  | Z104: =IF(Z76="","",VLOOKUP($B$87,Sheet1t!$AD$3946:$BG$3981,Z$87)) ->  | AA104: =IF(AA76="","",VLOOKUP($B$87,Sheet1t!$AD$3946:$BG$3981,AA$87)) ->  | AB104: =IF(AB76="","",VLOOKUP($B$87,Sheet1t!$AD$3946:$BG$3981,AB$87)) ->  | AC104: =IF(AC76="","",VLOOKUP($B$87,Sheet1t!$AD$3946:$BG$3981,AC$87)) ->  | AD104: =IF(AD76="","",VLOOKUP($B$87,Sheet1t!$AD$3946:$BG$3981,AD$87)) ->  | AE104: =IF(AE76="","",VLOOKUP($B$87,Sheet1t!$AD$3946:$BG$3981,AE$87)) ->  | AF104: =IF(AF76="","",VLOOKUP($B$87,Sheet1t!$AD$3946:$BG$3981,AF$87)) -> 
C105: 13番玉 | D105: =IF(D77="","",VLOOKUP($B$87,Sheet1t!$AD$4276:$BG$4311,D$87)) ->  | E105: =IF(E77="","",VLOOKUP($B$87,Sheet1t!$AD$4276:$BG$4311,E$87)) ->  | F105: =IF(F77="","",VLOOKUP($B$87,Sheet1t!$AD$4276:$BG$4311,F$87)) ->  | G105: =IF(G77="","",VLOOKUP($B$87,Sheet1t!$AD$4276:$BG$4311,G$87)) ->  | H105: =IF(H77="","",VLOOKUP($B$87,Sheet1t!$AD$4276:$BG$4311,H$87)) ->  | I105: =IF(I77="","",VLOOKUP($B$87,Sheet1t!$AD$4276:$BG$4311,I$87)) ->  | J105: =IF(J77="","",VLOOKUP($B$87,Sheet1t!$AD$4276:$BG$4311,J$87)) ->  | K105: =IF(K77="","",VLOOKUP($B$87,Sheet1t!$AD$4276:$BG$4311,K$87)) ->  | L105: =IF(L77="","",VLOOKUP($B$87,Sheet1t!$AD$4276:$BG$4311,L$87)) ->  | M105: =IF(M77="","",VLOOKUP($B$87,Sheet1t!$AD$4276:$BG$4311,M$87)) ->  | N105: =IF(N77="","",VLOOKUP($B$87,Sheet1t!$AD$4276:$BG$4311,N$87)) ->  | O105: =IF(O77="","",VLOOKUP($B$87,Sheet1t!$AD$4276:$BG$4311,O$87)) ->  | P105: =IF(P77="","",VLOOKUP($B$87,Sheet1t!$AD$4276:$BG$4311,P$87)) ->  | Q105: =IF(Q77="","",VLOOKUP($B$87,Sheet1t!$AD$4276:$BG$4311,Q$87)) ->  | R105: =IF(R77="","",VLOOKUP($B$87,Sheet1t!$AD$4276:$BG$4311,R$87)) ->  | S105: =IF(S77="","",VLOOKUP($B$87,Sheet1t!$AD$4276:$BG$4311,S$87)) ->  | T105: =IF(T77="","",VLOOKUP($B$87,Sheet1t!$AD$4276:$BG$4311,T$87)) ->  | U105: =IF(U77="","",VLOOKUP($B$87,Sheet1t!$AD$4276:$BG$4311,U$87)) ->  | V105: =IF(V77="","",VLOOKUP($B$87,Sheet1t!$AD$4276:$BG$4311,V$87)) ->  | W105: =IF(W77="","",VLOOKUP($B$87,Sheet1t!$AD$4276:$BG$4311,W$87)) ->  | X105: =IF(X77="","",VLOOKUP($B$87,Sheet1t!$AD$4276:$BG$4311,X$87)) ->  | Y105: =IF(Y77="","",VLOOKUP($B$87,Sheet1t!$AD$4276:$BG$4311,Y$87)) ->  | Z105: =IF(Z77="","",VLOOKUP($B$87,Sheet1t!$AD$4276:$BG$4311,Z$87)) ->  | AA105: =IF(AA77="","",VLOOKUP($B$87,Sheet1t!$AD$4276:$BG$4311,AA$87)) ->  | AB105: =IF(AB77="","",VLOOKUP($B$87,Sheet1t!$AD$4276:$BG$4311,AB$87)) ->  | AC105: =IF(AC77="","",VLOOKUP($B$87,Sheet1t!$AD$4276:$BG$4311,AC$87)) ->  | AD105: =IF(AD77="","",VLOOKUP($B$87,Sheet1t!$AD$4276:$BG$4311,AD$87)) ->  | AE105: =IF(AE77="","",VLOOKUP($B$87,Sheet1t!$AD$4276:$BG$4311,AE$87)) ->  | AF105: =IF(AF77="","",VLOOKUP($B$87,Sheet1t!$AD$4276:$BG$4311,AF$87)) -> 
C106: 14番玉 | D106: =IF(D78="","",VLOOKUP($B$87,Sheet1t!$AD$4606:$BG$4641,D$87)) ->  | E106: =IF(E78="","",VLOOKUP($B$87,Sheet1t!$AD$4606:$BG$4641,E$87)) ->  | F106: =IF(F78="","",VLOOKUP($B$87,Sheet1t!$AD$4606:$BG$4641,F$87)) ->  | G106: =IF(G78="","",VLOOKUP($B$87,Sheet1t!$AD$4606:$BG$4641,G$87)) ->  | H106: =IF(H78="","",VLOOKUP($B$87,Sheet1t!$AD$4606:$BG$4641,H$87)) ->  | I106: =IF(I78="","",VLOOKUP($B$87,Sheet1t!$AD$4606:$BG$4641,I$87)) ->  | J106: =IF(J78="","",VLOOKUP($B$87,Sheet1t!$AD$4606:$BG$4641,J$87)) ->  | K106: =IF(K78="","",VLOOKUP($B$87,Sheet1t!$AD$4606:$BG$4641,K$87)) ->  | L106: =IF(L78="","",VLOOKUP($B$87,Sheet1t!$AD$4606:$BG$4641,L$87)) ->  | M106: =IF(M78="","",VLOOKUP($B$87,Sheet1t!$AD$4606:$BG$4641,M$87)) ->  | N106: =IF(N78="","",VLOOKUP($B$87,Sheet1t!$AD$4606:$BG$4641,N$87)) ->  | O106: =IF(O78="","",VLOOKUP($B$87,Sheet1t!$AD$4606:$BG$4641,O$87)) ->  | P106: =IF(P78="","",VLOOKUP($B$87,Sheet1t!$AD$4606:$BG$4641,P$87)) ->  | Q106: =IF(Q78="","",VLOOKUP($B$87,Sheet1t!$AD$4606:$BG$4641,Q$87)) ->  | R106: =IF(R78="","",VLOOKUP($B$87,Sheet1t!$AD$4606:$BG$4641,R$87)) ->  | S106: =IF(S78="","",VLOOKUP($B$87,Sheet1t!$AD$4606:$BG$4641,S$87)) ->  | T106: =IF(T78="","",VLOOKUP($B$87,Sheet1t!$AD$4606:$BG$4641,T$87)) ->  | U106: =IF(U78="","",VLOOKUP($B$87,Sheet1t!$AD$4606:$BG$4641,U$87)) ->  | V106: =IF(V78="","",VLOOKUP($B$87,Sheet1t!$AD$4606:$BG$4641,V$87)) ->  | W106: =IF(W78="","",VLOOKUP($B$87,Sheet1t!$AD$4606:$BG$4641,W$87)) ->  | X106: =IF(X78="","",VLOOKUP($B$87,Sheet1t!$AD$4606:$BG$4641,X$87)) ->  | Y106: =IF(Y78="","",VLOOKUP($B$87,Sheet1t!$AD$4606:$BG$4641,Y$87)) ->  | Z106: =IF(Z78="","",VLOOKUP($B$87,Sheet1t!$AD$4606:$BG$4641,Z$87)) ->  | AA106: =IF(AA78="","",VLOOKUP($B$87,Sheet1t!$AD$4606:$BG$4641,AA$87)) ->  | AB106: =IF(AB78="","",VLOOKUP($B$87,Sheet1t!$AD$4606:$BG$4641,AB$87)) ->  | AC106: =IF(AC78="","",VLOOKUP($B$87,Sheet1t!$AD$4606:$BG$4641,AC$87)) ->  | AD106: =IF(AD78="","",VLOOKUP($B$87,Sheet1t!$AD$4606:$BG$4641,AD$87)) ->  | AE106: =IF(AE78="","",VLOOKUP($B$87,Sheet1t!$AD$4606:$BG$4641,AE$87)) ->  | AF106: =IF(AF78="","",VLOOKUP($B$87,Sheet1t!$AD$4606:$BG$4641,AF$87)) -> 
C107: 15番玉 | D107: =IF(D79="","",VLOOKUP($B$87,Sheet1t!$AD$4936:$BG$4971,D$87)) ->  | E107: =IF(E79="","",VLOOKUP($B$87,Sheet1t!$AD$4936:$BG$4971,E$87)) ->  | F107: =IF(F79="","",VLOOKUP($B$87,Sheet1t!$AD$4936:$BG$4971,F$87)) ->  | G107: =IF(G79="","",VLOOKUP($B$87,Sheet1t!$AD$4936:$BG$4971,G$87)) ->  | H107: =IF(H79="","",VLOOKUP($B$87,Sheet1t!$AD$4936:$BG$4971,H$87)) ->  | I107: =IF(I79="","",VLOOKUP($B$87,Sheet1t!$AD$4936:$BG$4971,I$87)) ->  | J107: =IF(J79="","",VLOOKUP($B$87,Sheet1t!$AD$4936:$BG$4971,J$87)) ->  | K107: =IF(K79="","",VLOOKUP($B$87,Sheet1t!$AD$4936:$BG$4971,K$87)) ->  | L107: =IF(L79="","",VLOOKUP($B$87,Sheet1t!$AD$4936:$BG$4971,L$87)) ->  | M107: =IF(M79="","",VLOOKUP($B$87,Sheet1t!$AD$4936:$BG$4971,M$87)) ->  | N107: =IF(N79="","",VLOOKUP($B$87,Sheet1t!$AD$4936:$BG$4971,N$87)) ->  | O107: =IF(O79="","",VLOOKUP($B$87,Sheet1t!$AD$4936:$BG$4971,O$87)) ->  | P107: =IF(P79="","",VLOOKUP($B$87,Sheet1t!$AD$4936:$BG$4971,P$87)) ->  | Q107: =IF(Q79="","",VLOOKUP($B$87,Sheet1t!$AD$4936:$BG$4971,Q$87)) ->  | R107: =IF(R79="","",VLOOKUP($B$87,Sheet1t!$AD$4936:$BG$4971,R$87)) ->  | S107: =IF(S79="","",VLOOKUP($B$87,Sheet1t!$AD$4936:$BG$4971,S$87)) ->  | T107: =IF(T79="","",VLOOKUP($B$87,Sheet1t!$AD$4936:$BG$4971,T$87)) ->  | U107: =IF(U79="","",VLOOKUP($B$87,Sheet1t!$AD$4936:$BG$4971,U$87)) ->  | V107: =IF(V79="","",VLOOKUP($B$87,Sheet1t!$AD$4936:$BG$4971,V$87)) ->  | W107: =IF(W79="","",VLOOKUP($B$87,Sheet1t!$AD$4936:$BG$4971,W$87)) ->  | X107: =IF(X79="","",VLOOKUP($B$87,Sheet1t!$AD$4936:$BG$4971,X$87)) ->  | Y107: =IF(Y79="","",VLOOKUP($B$87,Sheet1t!$AD$4936:$BG$4971,Y$87)) ->  | Z107: =IF(Z79="","",VLOOKUP($B$87,Sheet1t!$AD$4936:$BG$4971,Z$87)) ->  | AA107: =IF(AA79="","",VLOOKUP($B$87,Sheet1t!$AD$4936:$BG$4971,AA$87)) ->  | AB107: =IF(AB79="","",VLOOKUP($B$87,Sheet1t!$AD$4936:$BG$4971,AB$87)) ->  | AC107: =IF(AC79="","",VLOOKUP($B$87,Sheet1t!$AD$4936:$BG$4971,AC$87)) ->  | AD107: =IF(AD79="","",VLOOKUP($B$87,Sheet1t!$AD$4936:$BG$4971,AD$87)) ->  | AE107: =IF(AE79="","",VLOOKUP($B$87,Sheet1t!$AD$4936:$BG$4971,AE$87)) ->  | AF107: =IF(AF79="","",VLOOKUP($B$87,Sheet1t!$AD$4936:$BG$4971,AF$87)) -> 
C108: 16番玉 | D108: =IF(D80="","",VLOOKUP($B$87,Sheet1t!$AD$5266:$BG$5301,D$87)) ->  | E108: =IF(E80="","",VLOOKUP($B$87,Sheet1t!$AD$5266:$BG$5301,E$87)) ->  | F108: =IF(F80="","",VLOOKUP($B$87,Sheet1t!$AD$5266:$BG$5301,F$87)) ->  | G108: =IF(G80="","",VLOOKUP($B$87,Sheet1t!$AD$5266:$BG$5301,G$87)) ->  | H108: =IF(H80="","",VLOOKUP($B$87,Sheet1t!$AD$5266:$BG$5301,H$87)) ->  | I108: =IF(I80="","",VLOOKUP($B$87,Sheet1t!$AD$5266:$BG$5301,I$87)) ->  | J108: =IF(J80="","",VLOOKUP($B$87,Sheet1t!$AD$5266:$BG$5301,J$87)) ->  | K108: =IF(K80="","",VLOOKUP($B$87,Sheet1t!$AD$5266:$BG$5301,K$87)) ->  | L108: =IF(L80="","",VLOOKUP($B$87,Sheet1t!$AD$5266:$BG$5301,L$87)) ->  | M108: =IF(M80="","",VLOOKUP($B$87,Sheet1t!$AD$5266:$BG$5301,M$87)) ->  | N108: =IF(N80="","",VLOOKUP($B$87,Sheet1t!$AD$5266:$BG$5301,N$87)) ->  | O108: =IF(O80="","",VLOOKUP($B$87,Sheet1t!$AD$5266:$BG$5301,O$87)) ->  | P108: =IF(P80="","",VLOOKUP($B$87,Sheet1t!$AD$5266:$BG$5301,P$87)) ->  | Q108: =IF(Q80="","",VLOOKUP($B$87,Sheet1t!$AD$5266:$BG$5301,Q$87)) ->  | R108: =IF(R80="","",VLOOKUP($B$87,Sheet1t!$AD$5266:$BG$5301,R$87)) ->  | S108: =IF(S80="","",VLOOKUP($B$87,Sheet1t!$AD$5266:$BG$5301,S$87)) ->  | T108: =IF(T80="","",VLOOKUP($B$87,Sheet1t!$AD$5266:$BG$5301,T$87)) ->  | U108: =IF(U80="","",VLOOKUP($B$87,Sheet1t!$AD$5266:$BG$5301,U$87)) ->  | V108: =IF(V80="","",VLOOKUP($B$87,Sheet1t!$AD$5266:$BG$5301,V$87)) ->  | W108: =IF(W80="","",VLOOKUP($B$87,Sheet1t!$AD$5266:$BG$5301,W$87)) ->  | X108: =IF(X80="","",VLOOKUP($B$87,Sheet1t!$AD$5266:$BG$5301,X$87)) ->  | Y108: =IF(Y80="","",VLOOKUP($B$87,Sheet1t!$AD$5266:$BG$5301,Y$87)) ->  | Z108: =IF(Z80="","",VLOOKUP($B$87,Sheet1t!$AD$5266:$BG$5301,Z$87)) ->  | AA108: =IF(AA80="","",VLOOKUP($B$87,Sheet1t!$AD$5266:$BG$5301,AA$87)) ->  | AB108: =IF(AB80="","",VLOOKUP($B$87,Sheet1t!$AD$5266:$BG$5301,AB$87)) ->  | AC108: =IF(AC80="","",VLOOKUP($B$87,Sheet1t!$AD$5266:$BG$5301,AC$87)) ->  | AD108: =IF(AD80="","",VLOOKUP($B$87,Sheet1t!$AD$5266:$BG$5301,AD$87)) ->  | AE108: =IF(AE80="","",VLOOKUP($B$87,Sheet1t!$AD$5266:$BG$5301,AE$87)) ->  | AF108: =IF(AF80="","",VLOOKUP($B$87,Sheet1t!$AD$5266:$BG$5301,AF$87)) -> 
C109: 17番玉 | D109: =IF(D81="","",VLOOKUP($B$87,Sheet1t!$AD$5596:$BG$5631,D$87)) ->  | E109: =IF(E81="","",VLOOKUP($B$87,Sheet1t!$AD$5596:$BG$5631,E$87)) ->  | F109: =IF(F81="","",VLOOKUP($B$87,Sheet1t!$AD$5596:$BG$5631,F$87)) ->  | G109: =IF(G81="","",VLOOKUP($B$87,Sheet1t!$AD$5596:$BG$5631,G$87)) ->  | H109: =IF(H81="","",VLOOKUP($B$87,Sheet1t!$AD$5596:$BG$5631,H$87)) ->  | I109: =IF(I81="","",VLOOKUP($B$87,Sheet1t!$AD$5596:$BG$5631,I$87)) ->  | J109: =IF(J81="","",VLOOKUP($B$87,Sheet1t!$AD$5596:$BG$5631,J$87)) ->  | K109: =IF(K81="","",VLOOKUP($B$87,Sheet1t!$AD$5596:$BG$5631,K$87)) ->  | L109: =IF(L81="","",VLOOKUP($B$87,Sheet1t!$AD$5596:$BG$5631,L$87)) ->  | M109: =IF(M81="","",VLOOKUP($B$87,Sheet1t!$AD$5596:$BG$5631,M$87)) ->  | N109: =IF(N81="","",VLOOKUP($B$87,Sheet1t!$AD$5596:$BG$5631,N$87)) ->  | O109: =IF(O81="","",VLOOKUP($B$87,Sheet1t!$AD$5596:$BG$5631,O$87)) ->  | P109: =IF(P81="","",VLOOKUP($B$87,Sheet1t!$AD$5596:$BG$5631,P$87)) ->  | Q109: =IF(Q81="","",VLOOKUP($B$87,Sheet1t!$AD$5596:$BG$5631,Q$87)) ->  | R109: =IF(R81="","",VLOOKUP($B$87,Sheet1t!$AD$5596:$BG$5631,R$87)) ->  | S109: =IF(S81="","",VLOOKUP($B$87,Sheet1t!$AD$5596:$BG$5631,S$87)) ->  | T109: =IF(T81="","",VLOOKUP($B$87,Sheet1t!$AD$5596:$BG$5631,T$87)) ->  | U109: =IF(U81="","",VLOOKUP($B$87,Sheet1t!$AD$5596:$BG$5631,U$87)) ->  | V109: =IF(V81="","",VLOOKUP($B$87,Sheet1t!$AD$5596:$BG$5631,V$87)) ->  | W109: =IF(W81="","",VLOOKUP($B$87,Sheet1t!$AD$5596:$BG$5631,W$87)) ->  | X109: =IF(X81="","",VLOOKUP($B$87,Sheet1t!$AD$5596:$BG$5631,X$87)) ->  | Y109: =IF(Y81="","",VLOOKUP($B$87,Sheet1t!$AD$5596:$BG$5631,Y$87)) ->  | Z109: =IF(Z81="","",VLOOKUP($B$87,Sheet1t!$AD$5596:$BG$5631,Z$87)) ->  | AA109: =IF(AA81="","",VLOOKUP($B$87,Sheet1t!$AD$5596:$BG$5631,AA$87)) ->  | AB109: =IF(AB81="","",VLOOKUP($B$87,Sheet1t!$AD$5596:$BG$5631,AB$87)) ->  | AC109: =IF(AC81="","",VLOOKUP($B$87,Sheet1t!$AD$5596:$BG$5631,AC$87)) ->  | AD109: =IF(AD81="","",VLOOKUP($B$87,Sheet1t!$AD$5596:$BG$5631,AD$87)) ->  | AE109: =IF(AE81="","",VLOOKUP($B$87,Sheet1t!$AD$5596:$BG$5631,AE$87)) ->  | AF109: =IF(AF81="","",VLOOKUP($B$87,Sheet1t!$AD$5596:$BG$5631,AF$87)) -> 
C110: 18番玉 | D110: =IF(D82="","",VLOOKUP($B$87,Sheet1t!$AD$5926:$BG$5963,D$87)) ->  | E110: =IF(E82="","",VLOOKUP($B$87,Sheet1t!$AD$5926:$BG$5963,E$87)) ->  | F110: =IF(F82="","",VLOOKUP($B$87,Sheet1t!$AD$5926:$BG$5963,F$87)) ->  | G110: =IF(G82="","",VLOOKUP($B$87,Sheet1t!$AD$5926:$BG$5963,G$87)) ->  | H110: =IF(H82="","",VLOOKUP($B$87,Sheet1t!$AD$5926:$BG$5963,H$87)) ->  | I110: =IF(I82="","",VLOOKUP($B$87,Sheet1t!$AD$5926:$BG$5963,I$87)) ->  | J110: =IF(J82="","",VLOOKUP($B$87,Sheet1t!$AD$5926:$BG$5963,J$87)) ->  | K110: =IF(K82="","",VLOOKUP($B$87,Sheet1t!$AD$5926:$BG$5963,K$87)) ->  | L110: =IF(L82="","",VLOOKUP($B$87,Sheet1t!$AD$5926:$BG$5963,L$87)) ->  | M110: =IF(M82="","",VLOOKUP($B$87,Sheet1t!$AD$5926:$BG$5963,M$87)) ->  | N110: =IF(N82="","",VLOOKUP($B$87,Sheet1t!$AD$5926:$BG$5963,N$87)) ->  | O110: =IF(O82="","",VLOOKUP($B$87,Sheet1t!$AD$5926:$BG$5963,O$87)) ->  | P110: =IF(P82="","",VLOOKUP($B$87,Sheet1t!$AD$5926:$BG$5963,P$87)) ->  | Q110: =IF(Q82="","",VLOOKUP($B$87,Sheet1t!$AD$5926:$BG$5963,Q$87)) ->  | R110: =IF(R82="","",VLOOKUP($B$87,Sheet1t!$AD$5926:$BG$5963,R$87)) ->  | S110: =IF(S82="","",VLOOKUP($B$87,Sheet1t!$AD$5926:$BG$5963,S$87)) ->  | T110: =IF(T82="","",VLOOKUP($B$87,Sheet1t!$AD$5926:$BG$5963,T$87)) ->  | U110: =IF(U82="","",VLOOKUP($B$87,Sheet1t!$AD$5926:$BG$5963,U$87)) ->  | V110: =IF(V82="","",VLOOKUP($B$87,Sheet1t!$AD$5926:$BG$5963,V$87)) ->  | W110: =IF(W82="","",VLOOKUP($B$87,Sheet1t!$AD$5926:$BG$5963,W$87)) ->  | X110: =IF(X82="","",VLOOKUP($B$87,Sheet1t!$AD$5926:$BG$5963,X$87)) ->  | Y110: =IF(Y82="","",VLOOKUP($B$87,Sheet1t!$AD$5926:$BG$5963,Y$87)) ->  | Z110: =IF(Z82="","",VLOOKUP($B$87,Sheet1t!$AD$5926:$BG$5963,Z$87)) ->  | AA110: =IF(AA82="","",VLOOKUP($B$87,Sheet1t!$AD$5926:$BG$5963,AA$87)) ->  | AB110: =IF(AB82="","",VLOOKUP($B$87,Sheet1t!$AD$5926:$BG$5963,AB$87)) ->  | AC110: =IF(AC82="","",VLOOKUP($B$87,Sheet1t!$AD$5926:$BG$5963,AC$87)) ->  | AD110: =IF(AD82="","",VLOOKUP($B$87,Sheet1t!$AD$5926:$BG$5963,AD$87)) ->  | AE110: =IF(AE82="","",VLOOKUP($B$87,Sheet1t!$AD$5926:$BG$5963,AE$87)) ->  | AF110: =IF(AF82="","",VLOOKUP($B$87,Sheet1t!$AD$5926:$BG$5963,AF$87)) -> 
C111: 19番玉 | D111: =IF(D83="","",VLOOKUP($B$87,Sheet1t!$AD$6256:$BG$6291,D$87)) ->  | E111: =IF(E83="","",VLOOKUP($B$87,Sheet1t!$AD$6256:$BG$6291,E$87)) ->  | F111: =IF(F83="","",VLOOKUP($B$87,Sheet1t!$AD$6256:$BG$6291,F$87)) ->  | G111: =IF(G83="","",VLOOKUP($B$87,Sheet1t!$AD$6256:$BG$6291,G$87)) ->  | H111: =IF(H83="","",VLOOKUP($B$87,Sheet1t!$AD$6256:$BG$6291,H$87)) ->  | I111: =IF(I83="","",VLOOKUP($B$87,Sheet1t!$AD$6256:$BG$6291,I$87)) ->  | J111: =IF(J83="","",VLOOKUP($B$87,Sheet1t!$AD$6256:$BG$6291,J$87)) ->  | K111: =IF(K83="","",VLOOKUP($B$87,Sheet1t!$AD$6256:$BG$6291,K$87)) ->  | L111: =IF(L83="","",VLOOKUP($B$87,Sheet1t!$AD$6256:$BG$6291,L$87)) ->  | M111: =IF(M83="","",VLOOKUP($B$87,Sheet1t!$AD$6256:$BG$6291,M$87)) ->  | N111: =IF(N83="","",VLOOKUP($B$87,Sheet1t!$AD$6256:$BG$6291,N$87)) ->  | O111: =IF(O83="","",VLOOKUP($B$87,Sheet1t!$AD$6256:$BG$6291,O$87)) ->  | P111: =IF(P83="","",VLOOKUP($B$87,Sheet1t!$AD$6256:$BG$6291,P$87)) ->  | Q111: =IF(Q83="","",VLOOKUP($B$87,Sheet1t!$AD$6256:$BG$6291,Q$87)) ->  | R111: =IF(R83="","",VLOOKUP($B$87,Sheet1t!$AD$6256:$BG$6291,R$87)) ->  | S111: =IF(S83="","",VLOOKUP($B$87,Sheet1t!$AD$6256:$BG$6291,S$87)) ->  | T111: =IF(T83="","",VLOOKUP($B$87,Sheet1t!$AD$6256:$BG$6291,T$87)) ->  | U111: =IF(U83="","",VLOOKUP($B$87,Sheet1t!$AD$6256:$BG$6291,U$87)) ->  | V111: =IF(V83="","",VLOOKUP($B$87,Sheet1t!$AD$6256:$BG$6291,V$87)) ->  | W111: =IF(W83="","",VLOOKUP($B$87,Sheet1t!$AD$6256:$BG$6291,W$87)) ->  | X111: =IF(X83="","",VLOOKUP($B$87,Sheet1t!$AD$6256:$BG$6291,X$87)) ->  | Y111: =IF(Y83="","",VLOOKUP($B$87,Sheet1t!$AD$6256:$BG$6291,Y$87)) ->  | Z111: =IF(Z83="","",VLOOKUP($B$87,Sheet1t!$AD$6256:$BG$6291,Z$87)) ->  | AA111: =IF(AA83="","",VLOOKUP($B$87,Sheet1t!$AD$6256:$BG$6291,AA$87)) ->  | AB111: =IF(AB83="","",VLOOKUP($B$87,Sheet1t!$AD$6256:$BG$6291,AB$87)) ->  | AC111: =IF(AC83="","",VLOOKUP($B$87,Sheet1t!$AD$6256:$BG$6291,AC$87)) ->  | AD111: =IF(AD83="","",VLOOKUP($B$87,Sheet1t!$AD$6256:$BG$6291,AD$87)) ->  | AE111: =IF(AE83="","",VLOOKUP($B$87,Sheet1t!$AD$6256:$BG$6291,AE$87)) ->  | AF111: =IF(AF83="","",VLOOKUP($B$87,Sheet1t!$AD$6256:$BG$6291,AF$87)) -> 
